Workbook

Sheet DIRECTIONS
A1: DEKALB COUNTY SCHOOL DISTRICT CONTINUOUS SCHOOL IMPROVEMENT PLAN (CSIP) TEMPLATE DIRECTIONS
A3: These directions are provided as a quick guide and complement the Support Sessions offered and the DCSD CSIP Screen Cast.
A4: ALL SCHOOLS
A5: All schools will complete the following worksheets/tabs: 1. Cover Sheet 2. Data Analysis/Comprehensive Needs Assessment 3. Priority Areas (up to four) 4. Level 1-3 Initiatives 5. Level 4 Initiatives 6. Title I Schools complete the Title I Position Tab 7. Tutor Worksheet 8. Signature Page.
A6: DO NOT DOWNLOAD THE TEMPLATE - DO NOT MAKE A COPY TO CUT & PASTE FROM (This will paste over formulas) These steps must be followed for the template to work. These steps will ensure you save a macro-enabled workbook: 1. Go to TEAMS and select the CSIP Group/Tile 2. Select Files and choose your school name 3. Select FY25-27CSIP.xlsm
A7: Cover Sheet
A8: • From the dropdown menu, select your school's name. Your school name, school number and address will auto populate on this page and all other places throughout the document where needed.
A9: • Type - Principal's Name - School's Vision and Mission Statements (you can also paste into the formula bar). | E9: • List: - School Improvement Team Members’ positions and names
A10: • Enter the date when the school council approves the CSIP • Enter the dates(s) when modifications are made once your plan is approved. You can either keep a list of dates to demonstrate your school is following the continuous improvement process or each time you made a change and save the file, you can enter the dates of the revision.
A11: Data Analysis/ Comprehensive Needs Assessment
A12: • Complete questions #1 through #5 based on the discussions with School Improvement Teams, grade levels, stakeholders, etc. Reference your data sources to create your root cause analysis.
A13: • From the review of the data, select up to 4 Priority Areas. These Priority Areas are the overarching areas the school is working to address. Examples include Literacy in all grade levels, Math, Attendance, Culture, etc.
A14: • For each Priority Area listed in the Data Analysis/ Comprehensive Needs Assessment worksheet, a Priority Area Worksheet must be completed within the template. Information included in the Priority Areas autofill in each Priority Area Worksheet.
A16: Priority Area Worksheets
A17: • On each Priority Area worksheet, enter a SMARTIE Goal and Performance Measures.
A18: • Next you will select the DCSD Strategic Plan Alignment area that supports the Priority Area. - First click on the cell. - Press DEL (delete) key to clear the menu. - Then select the appropriate goal from the dropdown menu.
A19: • For each Priority Area, up to three (3) Improvement Strategies can be included. Within the improvement strategy area, state what will be implemented to help achieve the SMARTIE goal. Select the Six Essential System(s) tied to the improvement strategy. Multiple systems can be selected.
A20: • For each Improvement Strategy, list the Action Steps that support the Improvement Strategy. Use the Instructional Improvement Guide to help identify Action Steps that address structures/process, monitoring for fidelity, resources, professional learning, family engagement, and personnel.
B21: A variety of sample Action Steps are offered below for the purpose of sharing action steps that are commonly used. A note of caution, these examples are not always related to one another, in that the samples are not all related to Guided Reading or Guided Math, but they can be used as samples for other actions steps. Structure/Processes: - Review and adjust, if needed, the master schedule to ensure appropriate time to implement Guided Math. - Develop and implement a process to identify students for flexible grouping that address how students will move between groups based on data. Monitoring for Fidelity: - Establish a process for the administrative team/CSIP Improvement Team to monitor teachers' implementation of the school improvement strategy and provide specific and timely feedback to teachers. Resources: - Select appropriate leveled readers for students to use in flexible groups. - Students and teachers will use various math manipulatives to support learning of math standards and objectives including, but not limited to graphing calculators and geometric models. - Students will utilize interactive notebooks in each core content class. Notebooks will include personalized vocabulary word walls so students have a resource meeting his/her needs to gain academic language.
B22: Professional Learning: - Teachers will participate in SIOP training for all 10 components by the end of the school year. The consultant will offer professional learning once a month to all teachers focusing on a SIOP component and will scaffold with each additional component. Teachers will use the strategies in each PL in lesson planning and delivery. Administrative team and coach/ISS will provide feedback to teachers ensuring the appropriate use of the strategies. Family Engagement: - The school will offer two events (one each semester) focusing on how families can support literacy. Sessions will be planned based on survey results for the best times for families to meet. Students will lead teaching sessions for families demonstrating their academic knowledge.Grade levels will create resources for families to use outside of school. Personnel: - The Academic Coach/CSIP Improvement Team will attend SIOP training with teachers and establish an observation schedule so that all teachers receive feedback regarding the "component of the month." If additional support is needed, the coach will schedule time with teachers to focus on specific areas to enhance the implementation of the components and/or features. - Daytime tutors will provide supplemental learning opportunities for identified students based on multiple data points. Based on students' data the tutor may use a remediation model providing support to students after academic content already presented or to front load information as a preview of the content as opportunity to build background knowledge.
B23: For Title I Schools: • Positions: If Title I funds are used to support positions, complete the personnel tab and be sure you include what the position will do as an action step, but do not allocation funds. Positions included in the Position tab are automatically reflected in the budget. • Tutors: If Title I funds will be used to support Tutors, include an action step describing what the tutors will do, how students are identified, the times of tutoring, etc. Do not allocate funds with the action step. Use the Tutor worksheet to budget for the positions. Information from the worksheet are automatically reflected in the budget.
A24: • For each Action Step, include the position or person responsible for the completion of the action steps. The "other" column is option and for school use. Some schools may elect to use this section to provide a timeframe to help with monitoring.
A25: • The remaining columns will auto fill, if applicable, with information entered in subsequent worksheets.
A27: • The process outlined above will be repeated for all Priority Areas that were named in the Data Analysis/Comprehensive Needs Assessment Worksheet.
A29: ALL TITLE I SCHOOLS
A31: Title I Worksheets
A32: Title I funds support the implementation of the CSIP. In the Title I Worksheets, schools will demonstrate how their Title I funds are supplementing the general and state funding allocated and show alignment of the action steps to Title I (required components). For each Action Step, identify a Title I component even if funding is not allocated.
A33: Priority Area, Improvement Strategies, and Action Steps
B34: • These areas auto-populate from information entered on the Priority Area worksheets.
B35: • No action is needed in these cells.
A36: Title I Components
B37: • Select the Title I program requirement - Click on the cell. - Press DEL (delete) key to clear the menu. - From the drop-down menu, choose one of the required Title I components that accurately supports each Action Step.
B38: • In order to have a federally compliant Title I section of the Continuous School Improvement Plan, all required components must be addressed in at least one of the Priority Area Worksheets. Review the CSIP Peer Review Checklist to ensure all components are addressed somewhere in the plan.
A39: Budget Category
B40: • If Title I funds are supporting the Action Step, select the appropriate budget category from the dropdown menu. Up to three budget categories may be selected to support each Action Step.
A41: Budget Code
B42: • This cell auto-fills based on information selected in the budget category column.
A43: Amount
B44: • Enter the amount of Title I funds budgeted to support the Action Step.
B45: • For tutors and positions, no budget category, code or amount is needed. Funds budgeted to support position(s) and/or tutors will be reflected on the Title I Tutor Salary Worksheet and Title I Position Salary Worksheet and summarized on the Title I Budget tab.
A46: Total Federal Funding for Action Step
B47: • No action needed. This cell auto-fills based on the information provided in the budget category cells and budgeted amounts.
A48: Professional Learning
B49: • Follow directions for columns as stated above and ensure the action step(s) provide details of the professional learning, such as (1) who is providing the PL, (2) who is participating in the PL, (3) when is the PL occurring, and (4) what are the plans for redelivery, when appropriate. Monitoring and fidelity must also be addressed within the action step to determine the effectiveness of the PL.
A50: Parent and Family Engagement
B51: • Demonstrate how the action step addresses the required Parent/Family Engagement components. To be able to select multiple items in the dropdown menu, - First, click on the cell - Next clear the contents by using the DEL (delete) key. - Then click on as many requirements that the action step addresses.
B52: • In order to have a federally compliant Title I Parent and Family Engagement CSIP, the required 13 components must be addressed at some point in the plan. Use the Title I checklist to help ensure all are included in the CSIP.
B53: • Follow directions for remaining columns as stated above for the budget information.
A55: Tutor Worksheet
A56: This worksheet allows schools to accurately budget for daytime and after school tutors.
A58: Person’s Name or Vacant
B59: • Enter the name of the tutor or vacant, if not yet known.
A60: Daytime or After school Tutoring
B61: • From the drop down menu select the appropriate choice for the tutor.
A62: Regular DCSD Employee
B63: • If the tutor is a current DCSD employee, select YES from the drop down menu.
B64: • Otherwise, select NO.
A65: Title I Paid Hours per Week
B66: • Enter the total number of hours per week; not to exceed 28.5.
B67: • NOTE: For tutors who may be employed in multiple schools, the MAXIMUM number of hours they are eligible to work is 28.5.
A68: Total Number of Weeks
B69: • Enter the total number of weeks the tutor will work throughout the school year.
A70: Remaining columns will auto-populate based on information provided in the previously described columns and be summarized in the Title I Budget Tab.
A72: Title I Position Salary Worksheet (1-8)
A73: This worksheet allows schools to accurately budget for Title I paid positions.
A75: Person’s Employee Number, if known
B76: • Enter the employee's EID, if known. If vacant position, leave blank.
A77: Last name of the Title I Paid Position
B78: • Enter the employee's last name as it appears in the all district systems. If the person is not hired yet, type VACANT.
A79: First name of the Title I Paid Position
B80: • Enter the employee's first name as it appears in the all district systems
A81: Position name
B82: • From the drop down menu, select the position.
A83: Position/Job number
B84: • Enter the position/job number, if known.
A85: Grade Level and/or Subject
B86: • List the grade level(s) the position will serve (if multiple grades served, include them i.e. K-2, 6-8, 9-12). If the position is not grade level specific but it is subject specific, provide that information such as HS ELA, HS Math, or Kindergarten.
A87: Subject(s) Licensed
B88: • To ensure the Title I paid position meets the state's determined professional qualifications.
A89: Certified or Non-Certified
B90: • From the drop down menu, select the category. - Certified includes teachers and academic coaches - Classified includes data clerks, parent liaisons, paraprofessionals
A91: Years of experience
B92: • From the drop down menu, select the number of years the employee has earned to the salary is calculated correctly. Be sure to add a year from this year's figure because you are budgeting for next school when the person gained another year of experience.
A93: Certificate Type/Pay Grade
B94: • From the drop down menu, select the appropriate category so that the salary calculates correctly. - Teachers and academic coaches will be selected from Bachelor, Master, Specialist, or Doctorate - Classified personnel are based on position and days employed. We sure you select the correct item.
A95: Months
B96: • Type the number of months the person is employed. Typically the person is employed for 10 months even if the person is paid for 12 months.
A97: Regular DCSD Employee
B98: • From the drop down menu, select YES if the person is not retired or was not previously retired. This impacts the retirement calculations.
A99: % Title I paid
B100: • Type in the amount that Title is paying. In most cases, Title I is paying 100% of the salary, so 100 should be typed.
A101: % Paid by other
B102: • Type in the amount that other funding source is paying towards the salary of the position. If Title I is paying 100%, then 0 is entered here. If an amount other than 100% was enter in % Title I paid, this section must be completed.
A103: The remaining rows for each position will be calculated and the salary and benefits will be summarized in the Budget Tab.
A105: Title I Schoolwide Budget Sheet
A106: • Summarizes how Title I funds are budgeted to support Action Steps and to supplement state and local resources.
A107: • Carefully review that the minimum set aside amount for Parent and Family Engagement is met.
A108: • At the bottom of the page, “Difference” should be zero.
A110: Signature Page
A111: • All meetings discussing the Continuous School Improvement Plan must be documented; therefore, a sign-in template is provided. This is a resources that you can use if you choose, it is not required.

Sheet Cover Sheet
A1: CONTINUOUS SCHOOL IMPROVEMENT PLAN (CSIP)
A2: School Name | B2: Narvie J Harris Elementary | G2: School Number: | H2: =VLOOKUP(B2,SchoolTable,2,FALSE) -> 1940
A3: School Address | B3: =VLOOKUP(B2,SchoolTable,6,FALSE) -> 3981 McGill Drive,Decatur,GA 30034
A4: Principal | B4: Lisa Scott
A5: District Name/State Local Education Agency (LEA) Number | B5: DeKalb County School District (644)
A6: Date of Initial Local School Council Vote of Approval | B6: 2024-03-14
A7: Date of Last Review/Update | B7: 2024-06-18
A8: Principal Signature | B8: (Signature On File)
A9: Director of Title I Signature | B9: (Signature On File)
A11: School Vision and Mission Statement
A12: Vision Statement
A13: The vision of Narvie J. Harris Theme School is to inspire our community of learners to achieve educational excellence.
A16: Mission Statement
A17: The mission of Narvie J. Harris Theme School is to ensure student success leading to higher education, work and life-long learning.
A23: District Strategic Plan Goal Alignment
A24: ='Data Lists'!A41 -> Goal Area I: Student Success with Equity and Access
A25: ='Data Lists'!A42 -> Goal Area II: School, Family, Community Engagement
A26: ='Data Lists'!A43 -> Goal Area III: Recruit, develop, and Retain Talent
A27: ='Data Lists'!A44 -> Goal Area IV: Culture and Climate
A28: ='Data Lists'!A45 -> Goal Area V: Mental Health and Wellness
A29: ='Data Lists'!A46 -> Goal Area VI: Organizational Excellence
A30: School Improvement Team Membership | B30: Name
A31: Principal: | B31: =B4 -> Lisa Scott
A32: Parent Representative | B32: Mr. Rodney Tripplet
A33: Assistant Principal | B33: Mrs. LaToya Johnson
A34: Academic Coach
A35: MTSS | B35: Ms. Lavira Willis
A36: Special Ed. Department Chair | B36: Mrs. Andrena Shirley
A37: Kindergarten Chair | B37: Mrs. Coretia Miller
A38: 1st Grade Chair | B38: Ms. Leslie Crawford
A39: 2nd Grade Chair | B39: Ms. Donna Massey
A40: 3rd Grade Chair | B40: Ms. Kay Black
A41: 4th Grade Chair | B41: Ms. Tracye Kornegay
A42: 5th Grade Chair | B42: Mr. Carl Boles
A43: Gifted Teacher | B43: Mrs. Brandy Pless
A44: Classified Staff Member | B44: Mrs. Dani Rutledge

Sheet Data Lists (hidden)
R1: Pay_Table
A2: You may select more than one component from the following components - Components 1-13 are required | B2: Title I | C2: Select budget category from drop down menu | D2: FOR TITLE I FOCUS AND PRIORITY SCHOOLS ONLY - Select Georgia Performance Standard | E2: Select budget category from drop down menu | G2: Select budget category from drop down menu | I2: Select from drop down menu - you may select more than one | K2: Select from drop down menu | L2: Select a budget category | M2: Select a budget category | N2: Select a budget category | O2: Select from drop down menu - you may select more than one | P2: Select from Drop down menu | Q2: Activities for At-Risk Students | R2: 14.7 | AA2: Yes
A3: 1) Convene a Title I Annual public meeting | B3: Focus | C3: Computer Software & Supplies | D3: Curriculum 1: Systemic Collaborative Planning Process | E3: Computer Software & Supplies | G3: Computer Software & Supplies | I3: Schoolwide Reform Strategies (TA & SWP) | K3: Reading | L3: Parent - Food Purchases | M3: Advertising Fees | N3: Computer Equipment | O3: Provide strong leadership. | P3: Tutor | Q3: Scientifically-Based Reform Strategies | R3: 35
A4: 2) Offer a flexible number of meetings | C4: Contracted Services - Supplemental | D4: Curriculum 3: Intent and Rigor of Standards | E4: Contracted Services - Supplemental | G4: Contracted Services - Supplemental | I4: High-quality and ongoing PD for teachers, principals, and paras - (TA & SWP) | K4: Math | L4: Parent - Professional Development | M4: Computer Equipment | N4: Computer Hardware | O4: Ensure teachers are effective and able to improve instruction. | P4: Salary - other Assignment | Q4: Highly Qualified Staff
A5: 3) Involve parents in an organized, ongoing, and timely way in the planning, review, and improvement of Title I programs and Schoolwide program plans | C5: Contracted Repairs & Maintenance - Equipment | D5: Assessment 2: Balanced System of Assessments | E5: Contracted Repairs & Maintenance - Equipment | G5: Contracted Repairs & Maintenance - Equipment | I5: Strategies to attract teachers that meet state determined professional qualifications to high-need schools | K5: Reading & Math | L5: Parent - Supplies & Materials | M5: Computer Hardware | N5: Computer Repair | O5: Redesign the school day, week or year to include additional time for student learning and teacher collaboration. | Q5: Effective Instruction
A6: 4) Provide timely information to parents through various methods | C6: Supplies & Materials | D6: Assessment 3: Common Assessments | E6: Field Trips | G6: Library Books | I6: Transition Activities (PreK-K; 5th-6th; 8th-9th) | L6: Participant Stipends | M6: Computer Repair | N6: Computer Software & Supplies | O6: Strengthen the school's instructional program. | Q6: Student Assessments
A7: 5) Provide regular opportunities for parents to meet with school staff | C7: Printing & Binding | D7: Instruction 4: Research-based Instructional Practices | E7: Library Books | G7: Membership Dues & Fees | I7: Including teachers in decisions regarding the use of assessments | L7: Postage | M7: Computer Software & Supplies | N7: EEA - Additional Duty | O7: Use data to inform instruction. | Q7: Family Engagement
A8: 6) Provide for parent comments and feedback on the content of the Schoolwide program plan | C8: Field Trips | D8: Instruction 8: Students monitor own Learning | E8: Membership Dues & Fees | G8: Parent Contracted Services | I8: Activities for children experiencing difficulty | L8: Printing & Binding Fees | M8: Contracted Services | N8: Membership Dues/Fees | O8: Improve school safety and discipline and address other non-academic factors that impact student achievement. | Q8: Select from drop down menu, - you may select more than one
A9: 7) Develop School-Parent compacts | C9: Library Books | D9: Instruction 9: Data-driven Interventions | E9: Furniture and Equipment - Inventoried | G9: Parent - Instructor Stipend | I9: Coordination & Integration of Federal, State, and Local Services - (TA & SWP) | M9: Contracted Transportation | N9: Participant Stipends | O9: Provide ongoing mechanisms for family and community engagement.
A10: 8) Provide parent assistance on understanding state academic content standards and student academic achievement standards, monitoring, and progress | C10: Membership Dues & Fees | D10: Professional Learning 6: Monitors impact of PL | E10: Parent - Printing & Binding | G10: Parent - Other Food Purchases | I10: TA ONLY - Description of the method by which children with the greatest need are selected | M10: Curriculum Development EEA | N10: Staff Development | O10: Implement one of the four School Improvement Grant (SIG) models.
A11: 9) Provide materials and training to help parents work with their children to improve achievement. | C11: Parent - Contracted Services | D11: Leadership 6: Data-driven Leadership Team | E11: Pupil Transportation - Contracted | G11: Parent - Postage | I11: TA ONLY - Process for reviewing participating students' progress and evaluating and revising the program to support students' progress to meet the state content and performance standards.– (TA Only) | M11: EEA - Additional Duty | N11: Substitute Pay - Staff Development
A12: 10) Educate school personnel in the value and utility of contributions of parents | C12: Parent - Instructor Stipend | D12: Planning and Organization 1: Common Vision and Mission | E12: Salary - Additional Responsibilities | G12: Parent - Professional Development | I12: TA ONLY - Procedures for annual assessment of students for meeting state and local expectations – (TA Only) | M12: Field Trips
A13: 11) Coordinate and integrate parent involvement programs and activities | C13: Parent - Other Food Purchases | D13: Planning and Organization 2: Data-driven School Improvement Plan | E13: Salary - Pupil Transportation - Bus Driver | G13: Parent - Supplies & Materials | M13: Furniture Capitalized
A14: 12) Ensure that information is clear and understandable for parents, translate as needed | C14: Parent - Postage | D14: Planning and Organization 3: Monitors and Adjusts SIP | E14: Salary - Other Assignment Curriculum Development | G14: Furniture and Equipment - Inventoried | M14: Furniture Purchases
A15: 13) Provide opportunities for parents with limited English proficiency, parents with disabilities, and parents of migratory children | C15: Parent - Professional Development | E15: Salary - Substitute Pay (Not Professional Development) | G15: Furniture and Equipment - Capitalized | M15: Library Books
C16: Parent - Supplies & Materials | E16: Salary - Substitute Pay (Professional Development) | G16: Parent - Printing & Binding | M16: Membership Dues/Fees
C17: Parent - Printing & Binding | E17: Staff Dev Instructor (Stipend) | G17: Pupil Transportation - Contracted | M17: Mileage Reimbursement
C18: Furniture and Equipment - Inventoried | E18: Staff Dev Participant (Stipend) | G18: Salary - Pupil Transportation - Bus Driver | M18: Mobile Communication Costs
C19: Extended Year/Day Teacher | E19: Staff Dev/Workshop Expenses | G19: Extended Year/Day Supplies & Materials | M19: Parent - Food Purchases
C20: Pupil Transportation - Contracted | E20: Stipend - Planning Period | G20: Extended Day Snacks | M20: Parent - Professional Development
C21: Salary - Additional Responsibilities | E21: Extended Year/Day Supplies & Materials | M21: Parent - Supplies & Materials
C22: Salary - Pupil Transportation - Bus Driver | E22: Supplies & Materials | M22: Participant Stipends
C23: Salary - Other Assignment Curriculum Development | E23: Extended Day Snacks | M23: Postage
C24: Salary - Substitute Pay (Not Professional Development) | M24: Printing & Binding Fees
C25: Salary - Substitute Pay (Professional Development) | M25: Salary - After Hours Tutors
C26: Staff Dev Instructor (Stipend) | M26: Salary - Daytime Tutor
C27: Staff Dev Participant (Stipend) | M27: Staff Development
C28: Staff Dev/Workshop Expenses | M28: Substitute Pay - Not PD
C29: Stipend - Planning Period | M29: Substitute Pay - Staff Development
C30: Extended Year/Day Supplies & Materials | M30: Supplies & Materials
C31: Extended Day Snacks | M31: Telephones
M32: Rental and Lease
A40: Click here and select the area of the DCSD Strategic Plan from the dropdown menu
A41: Goal Area I: Student Success with Equity and Access
A42: Goal Area II: School, Family, Community Engagement
A43: Goal Area III: Recruit, develop, and Retain Talent
A44: Goal Area IV: Culture and Climate
A45: Goal Area V: Mental Health and Wellness
A46: Goal Area VI: Organizational Excellence
A50: Six Systems - Select 1
A51: SYSTEM 1: Standards and Curriculum Implementation
A52: SYSTEM 2: Effective Use of Data
A53: SYSTEM 3: Collaboration Planning and Instructional Practices for Deeper Learning
A54: SYSTEM 4: Progress Monitoring and Analysis of Student Work
A55: SYSTEM 5: Academic and Behavioral Support
A56: SYSTEM 6: Instructional Feedback and Professional Learning
C60: 1
A61: Select from drop down menu | C61: 2
A62: Daytime | C62: 3
A63: After School | C63: 4
C64: 5
C65: 6
A66: Select from drop down menu | C66: 7
A67: Yes | C67: 8
A68: No | C68: 9
C69: 10

Sheet BudgetDD (hidden)
A1: Code Description | B1: Munis GL Acct Codes | C1: Fund | D1: Function | E1: Object | F1: Sub Object | G1: Project | H1: School Location | I1: Program | J1: Crosspoint GL Codes
A2: =BudgetCat!A9 -> Instructional Contracted Services | B2: =BudgetCat!K9 -> 402.1000.530000.40024.1940.1750.FAC.030.2025 | C2: 204 | D2: 38 | E2: 95 | F2: 00 | G2: 400204 | H2: =CurrSchool -> 1940 | I2: 1750 | J2: =CONCATENATE(C2,"-",D2,"-",E2,"-",F2,"-",G2,"-",H2,"-",I2) -> 204-38-95-00-400204-1940-1750
A3: =BudgetCat!A10 -> Instructional Contracted Services Teacher Salary (Charter Schools Only) | B3: =BudgetCat!K10 -> 402.1000.532100.40024.1940.1750.FAC.030.2025 | C3: 204 | D3: 38 | E3: 95 | F3: 10 | G3: 400204 | H3: 1940 | I3: 1750 | J3: =CONCATENATE(C3,"-",D3,"-",E3,"-",F3,"-",G3,"-",H3,"-",I3) -> 204-38-95-10-400204-1940-1750
A4: =BudgetCat!A11 -> Instructional Supplies | B4: =BudgetCat!K11 -> 402.1000.561000.40024.1940.1750.FAC.030.2025 | C4: 204 | D4: 38 | E4: 53 | F4: 00 | G4: 400204 | H4: 1940 | I4: 1750 | J4: 204-38-53-00-400204-1940-1750
A5: =BudgetCat!A12 -> Instructional Technology Supplies | B5: =BudgetCat!K12 -> 402.1000.561100.40024.1940.1750.FAC.030.2025 | C5: 204 | D5: 38 | E5: 53 | F5: 10 | G5: 400204 | H5: 1940 | I5: 1750 | J5: 204-38-53-10-400204-1940-1750
A6: =BudgetCat!A13 -> Instructional Computer Software | B6: =BudgetCat!K13 -> 402.1000.553200.40024.1940.1750.FAC.030.2025 | C6: 204 | D6: 38 | E6: 53 | F6: 05 | G6: 400204 | H6: 1940 | I6: 1750 | J6: 204-38-53-05-400204-1940-1750
A7: =BudgetCat!A14 -> Instructional Equipment | B7: =BudgetCat!K14 -> 402.1000.561500.40024.1940.1750.FAC.030.2025 | C7: 204 | D7: 61 | E7: 92 | F7: 00 | G7: 400204 | H7: 1940 | I7: 1750 | J7: 204-61-92-00-400204-1940-1750
A8: =BudgetCat!A15 -> Instructional Equipment (greater than or equal to $5000) | B8: =BudgetCat!K15 -> 402.1000.573400.40024.1940.1750.FAC.030.2025 | C8: 204 | D8: 61 | E8: 92 | F8: 01 | G8: 400204 | H8: 1940 | I8: 1750 | J8: 204-61-92-01-400204-1940-1750
A9: =BudgetCat!A16 -> Instructional Computers | B9: =BudgetCat!K16 -> 402.1000.561600.40024.1940.1750.FAC.030.2025 | C9: 204 | D9: 61 | E9: 92 | F9: 05 | G9: 400204 | H9: 1940 | I9: 1750 | J9: 204-61-92-05-400204-1940-1750
A10: =BudgetCat!A17 -> Instructional Books and Periodicals | B10: =BudgetCat!K17 -> 402.1000.564200.40024.1940.1750.FAC.030.2025 | C10: 204 | D10: 38 | E10: 62 | F10: 00 | G10: 400204 | H10: 1940 | I10: 1750 | J10: 204-38-62-00-400204-1940-1750
A11: =BudgetCat!A18 -> ADD PFE Facilitator Extra Activity | B11: =BudgetCat!K18 -> 402.1000.519900.40024.1940.1750.FAC.030.2025 | C11: 204 | D11: 42 | E11: 17 | F11: 00 | G11: 400204 | H11: 1940 | I11: 1750 | J11: 204-42-17-00-400204-1940-1750
A12: =BudgetCat!A19 -> ADD PFE Facilitator Extra Activity FICA | B12: =BudgetCat!K19 -> 402.1000.522000.40024.1940.1750.FAC.030.2025 | C12: 204 | D12: 42 | E12: 89 | F12: 00 | G12: 400204 | H12: 1940 | I12: 1750 | J12: 204-42-89-00-400204-1940-1750
A13: =BudgetCat!A20 -> ADD PFE Contracted Services | B13: =BudgetCat!K20 -> 402.2100.530000.40024.1940.1750.FAC.030.2025 | C13: 204 | D13: 42 | E13: 95 | F13: 00 | G13: 400204 | H13: 1940 | I13: 1750 | J13: 204-42-95-00-400204-1940-1750
A14: =BudgetCat!A21 -> ADD PFE Communications | B14: =BudgetCat!K21 -> 402.2100.553000.40024.1940.1750.FAC.030.2025 | C14: 204 | D14: 42 | E14: 97 | F14: 00 | G14: 400204 | H14: 1940 | I14: 1750 | J14: 204-42-97-00-400204-1940-1750
A15: =BudgetCat!A22 -> ADD PFE Travel of Employees | B15: =BudgetCat!K22 -> 402.2100.558000.40024.1940.1750.FAC.030.2025 | C15: 204 | D15: 42 | E15: 33 | F15: 00 | G15: 400204 | H15: 1940 | I15: 1750 | J15: 204-42-33-00-400204-1940-1750
A16: =BudgetCat!A23 -> ADD PFE Registration Fees | B16: =BudgetCat!K23 -> 402.2100.581000.40024.1940.1750.FAC.030.2025 | C16: 204 | D16: 42 | E16: 36 | F16: 00 | G16: 400204 | H16: 1940 | I16: 1750 | J16: 204-42-36-00-400204-1940-1750
A17: =BudgetCat!A24 -> ADD PFE Supplies | B17: =BudgetCat!K24 -> 402.2100.561000.40024.1940.1750.FAC.030.2025 | C17: 204 | D17: 42 | E17: 53 | F17: 00 | G17: 400204 | H17: 1940 | I17: 1750 | J17: 204-42-53-00-400204-1940-1750
A18: =BudgetCat!A25 -> ADD PFE Computer Software | B18: =BudgetCat!K25 -> 402.2100.553200.40024.1940.1750.FAC.030.2025 | C18: 204 | D18: 42 | E18: 53 | F18: 05 | G18: 400204 | H18: 1940 | I18: 1750 | J18: 204-42-53-05-400204-1940-1750
A19: =BudgetCat!A26 -> ADD PFE Technology Supplies | B19: =BudgetCat!K26 -> 402.2100.561100.40024.1940.1750.FAC.030.2025 | C19: 204 | D19: 42 | E19: 53 | F19: 10 | G19: 400204 | H19: 1940 | I19: 1750 | J19: 204-42-53-10-400204-1940-1750
A20: =BudgetCat!A27 -> ADD PFE Expendible Equipment | B20: =BudgetCat!K27 -> 402.2100.561500.40024.1940.1750.FAC.030.2025 | C20: 204 | D20: 42 | E20: 92 | F20: 00 | G20: 400204 | H20: 1940 | I20: 1750 | J20: 204-42-92-00-400204-1940-1750
A21: =BudgetCat!A28 -> ADD PFE Expendible Computer Equipment | B21: =BudgetCat!K28 -> 402.2100.561600.40024.1940.1750.FAC.030.2025 | C21: 204 | D21: 42 | E21: 92 | F21: 05 | G21: 400204 | H21: 1940 | I21: 1750 | J21: 204-42-92-05-400204-1940-1750
A22: =BudgetCat!A29 -> ADD PFE Books and Periodicals | B22: =BudgetCat!K29 -> 402.2100.564200.40024.1940.1750.FAC.030.2025 | C22: 204 | D22: 42 | E22: 62 | F22: 00 | G22: 400204 | H22: 1940 | I22: 1750 | J22: 204-42-62-00-400204-1940-1750
A23: =BudgetCat!A46 -> PL Substitutes for Certified Teacher | B23: =BudgetCat!K46 -> 402.2213.511400.40024.1940.1750.FAC.030.2025 | C23: 204 | D23: 44 | E23: 16 | F23: 00 | G23: 400204 | H23: =CurrSchool -> 1940 | I23: 1750 | J23: 204-44-16-00-400204-1940-1750
A24: =BudgetCat!A48 -> PL Stipends | B24: =BudgetCat!K48 -> 402.2213.511600.40024.1940.1750.FAC.030.2025 | C24: 204 | D24: 44 | E24: 12 | F24: 00 | G24: 400204 | H24: =CurrSchool -> 1940 | I24: 1750 | J24: 204-44-12-00-400204-1940-1750
A25: =BudgetCat!A53 -> PL Contracted Services | B25: =BudgetCat!K53 -> 402.2213.530000.40024.1940.1750.FAC.030.2025 | C25: 204 | D25: 44 | E25: 95 | F25: 00 | G25: 400204 | H25: =CurrSchool -> 1940 | I25: 1750 | J25: 204-44-95-00-400204-1940-1750
A26: =BudgetCat!A54 -> PL Travel of Employees | B26: =BudgetCat!K54 -> 402.2213.558000.40024.1940.1750.FAC.030.2025 | C26: 204 | D26: 44 | E26: 33 | F26: 00 | G26: 400204 | H26: 1940 | I26: 1750 | J26: 204-44-33-00-400204-1940-1750
A27: =BudgetCat!A55 -> PL Registration Fees | B27: =BudgetCat!K55 -> 402.2213.581000.40024.1940.1750.FAC.030.2025 | C27: 204 | D27: 44 | E27: 36 | F27: 00 | G27: 400204 | H27: 1940 | I27: 1750 | J27: 204-44-36-00-400204-1940-1750
A28: =BudgetCat!A56 -> PL Supplies | B28: =BudgetCat!K56 -> 402.2213.561000.40024.1940.1750.FAC.030.2025 | C28: 204 | D28: 44 | E28: 53 | F28: 00 | G28: 400204 | H28: 1940 | I28: 1750 | J28: 204-44-53-00-400204-1940-1750
A29: =BudgetCat!A57 -> PL Computer Software | B29: =BudgetCat!K57 -> 402.2213.553200.40024.1940.1750.FAC.030.2025 | C29: 204 | D29: 44 | E29: 53 | F29: 05 | G29: 400204 | H29: 1940 | I29: 1750 | J29: 204-44-53-05-400204-1940-1750
A30: =BudgetCat!A58 -> PL Equipment | B30: =BudgetCat!K58 -> 402.2213.561500.40024.1940.1750.FAC.030.2025 | C30: 204 | D30: 44 | E30: 92 | F30: 00 | G30: 400204 | H30: 1940 | I30: 1750 | J30: 204-44-92-00-400204-1940-1750
A31: =BudgetCat!A59 -> PL Books and Periodicals | B31: =BudgetCat!K59 -> 402.2213.564200.40024.1940.1750.FAC.030.2025 | C31: 204 | D31: 44 | E31: 62 | F31: 00 | G31: 400204 | H31: 1940 | I31: 1750 | J31: 204-44-62-00-400204-1940-1750
A32: =BudgetCat!A6 -> Substitutes for Certified Teacher Salaries | B32: =BudgetCat!K6 -> 402.1000.511300.40024.1940.1750.FAC.030.2025 | C32: 204 | D32: 38 | E32: 16 | F32: 00 | G32: 400204 | H32: 1940 | I32: 1750 | J32: 204-38-16-00-400204-1940-1750
A33: =BudgetCat!A60 -> Educational Media Books and Periodicals | B33: =BudgetCat!K60 -> 402.2220.564200.40024.1940.1750.FAC.030.2025 | C33: 204 | D33: 44 | E33: 62 | F33: 05 | G33: 400204 | H33: 1940 | I33: 1750 | J33: 204-44-62-05-400204-1940-1750
A34: =BudgetCat!A61 -> Custodian Extra Activity | B34: =BudgetCat!K61 -> 402.2600.518600.40024.1940.1750.FAC.030.2025 | C34: 204 | D34: 57 | E34: 17 | F34: 00 | G34: 400204 | H34: 1940 | I34: 1750 | J34: 204-57-17-00-400204-1940-1750
A35: =BudgetCat!A63 -> Transportation Bus Driver Extra Activity | B35: =BudgetCat!K63 -> 402.2700.518000.40024.1940.1750.FAC.030.2025 | C35: 204 | D35: 56 | E35: 17 | F35: 00 | G35: 400204 | H35: 1940 | I35: 1750 | J35: 204-56-17-00-400204-1940-1750
A36: =BudgetCat!A65 -> Transportation Gas or Diesel Fuel | B36: =BudgetCat!K65 -> 402.2700.562000.40024.1940.1750.FAC.030.2025 | C36: 204 | D36: 56 | E36: 95 | F36: 00 | G36: 400204 | H36: 1940 | I36: 1750 | J36: 204-56-95-00-400204-1940-1750
A37: =BudgetCat!A66 -> Transportation For Parents | B37: =BudgetCat!K66 -> 402.2100.559500.40024.1940.1750.FAC.030.2025 | C37: 204 | D37: 56 | E37: 95 | F37: 10 | G37: 400204 | H37: 1940 | I37: 1750 | J37: 204-56-95-10-400204-1940-1750

Sheet BudgetPFEDD (hidden)
A1: Code Description | B1: =BudgetCat!K1 -> Touchpoint/MUNIS Budget Codes | C1: Fund | D1: Function | E1: Object | F1: Sub Object | G1: Project | H1: School Location | I1: Program | J1: Crosspoint GL Codes
A2: =BudgetCat!A34 -> PFE Facilitator Extra Activity | B2: =BudgetCat!K34 -> 402.2100.519900.30124.1940.1750.FAC.030.2025 | C2: 204 | D2: 42 | E2: 17 | F2: 00 | G2: 301204 | H2: =CurrSchool -> 1940 | I2: 1750 | J2: =CONCATENATE(C2,"-",D2,"-",E2,"-",F2,"-",G2,"-",H2,"-",I2) -> 204-42-17-00-301204-1940-1750
A3: =BudgetCat!A36 -> PFE Contracted Services | B3: =BudgetCat!K36 -> 402.2100.530000.30124.1940.1750.FAC.030.2025 | C3: 204 | D3: 42 | E3: 95 | F3: 00 | G3: 301204 | H3: 1940 | I3: 1750 | J3: =CONCATENATE(C3,"-",D3,"-",E3,"-",F3,"-",G3,"-",H3,"-",I3) -> 204-42-95-00-301204-1940-1750
A4: =BudgetCat!A37 -> PFE Communications | B4: =BudgetCat!K37 -> 402.2100.553000.30124.1940.1750.FAC.030.2025 | C4: 204 | D4: 42 | E4: 97 | F4: 00 | G4: 301204 | H4: 1940 | I4: 1750 | J4: 204-42-97-00-301204-1940-1750
A5: =BudgetCat!A38 -> PFE Travel of Employees | B5: =BudgetCat!K38 -> 402.2100.558000.30124.1940.1750.FAC.030.2025 | C5: 204 | D5: 42 | E5: 33 | F5: 00 | G5: 301204 | H5: 1940 | I5: 1750 | J5: 204-42-33-00-301204-1940-1750
A6: =BudgetCat!A39 -> PFE Registration Fees | B6: =BudgetCat!K39 -> 402.2100.581000.30124.1940.1750.FAC.030.2025 | C6: 204 | D6: 42 | E6: 36 | F6: 00 | G6: 301204 | H6: 1940 | I6: 1750 | J6: 204-42-36-00-301204-1940-1750
A7: =BudgetCat!A40 -> PFE Supplies | B7: =BudgetCat!K40 -> 402.2100.561000.30124.1940.1750.FAC.030.2025 | C7: 204 | D7: 42 | E7: 53 | F7: 00 | G7: 301204 | H7: 1940 | I7: 1750 | J7: 204-42-53-00-301204-1940-1750
A8: =BudgetCat!A41 -> PFE Computer Software | B8: =BudgetCat!K41 -> 402.2100.553200.30124.1940.1750.FAC.030.2025 | C8: 204 | D8: 42 | E8: 53 | F8: 05 | G8: 301204 | H8: 1940 | I8: 1750 | J8: 204-42-53-05-301204-1940-1750
A9: =BudgetCat!A42 -> PFE Technology Supplies | B9: =BudgetCat!K42 -> 402.2100.561100.30124.1940.1750.FAC.030.2025 | C9: 204 | D9: 42 | E9: 53 | F9: 10 | G9: 301204 | H9: 1940 | I9: 1750 | J9: 204-42-53-10-301204-1940-1750
A10: =BudgetCat!A43 -> PFE Expendible Equipment | B10: =BudgetCat!K43 -> 402.2100.561500.30124.1940.1750.FAC.030.2025 | C10: 204 | D10: 42 | E10: 92 | F10: 00 | G10: 301204 | H10: 1940 | I10: 1750 | J10: 204-42-92-00-301204-1940-1750
A11: =BudgetCat!A44 -> PFE Expendible Computer Equipment | B11: =BudgetCat!K44 -> 402.2100.561600.30124.1940.1750.FAC.030.2025 | C11: 204 | D11: 42 | E11: 92 | F11: 05 | G11: 301204 | H11: 1940 | I11: 1750 | J11: 204-42-92-05-301204-1940-1750
A12: =BudgetCat!A45 -> PFE Books and Periodicals | B12: =BudgetCat!K45 -> 402.2100.564200.30124.1940.1750.FAC.030.2025 | C12: 204 | D12: 42 | E12: 62 | F12: 00 | G12: 301204 | H12: 1940 | I12: 1750 | J12: 204-42-62-00-301204-1940-1750

Sheet FinRef (hidden)
A1: SchoolYears | B1: 2025-2027
A2: FICA_RATE(part-time - bus drivers, substitutes, teachers, parent liaisons) | B2: 0.0765
A3: RET_RATE (full-time - teachers, paras, academic coaches, parent liaisons, custodians) | B3: 0.209
A4: Supplemental | B4: 0.00144
A5: Medicare | B5: =0.0145 -> 0.0145
A6: FICA | B6: =0.0625 -> 0.0625
A7: TRS | B7: 0.2078 | E7: CERT INS RATE/YR (teachers... Acedemic coaches) SCHEDULE
A8: GrpLife | B8: =0.01056 -> 0.01056 | E8: Year | F8: 2024 | G8: 2024 | H8: 2024 | I8: 2025 | J8: 2025 | K8: 2025 | L8: 2025 | M8: 2025 | N8: 2025 | O8: 2025 | P8: 2025 | Q8: 2025
A9: CERT INS RATE/YR (teachers... Acedemic coaches) | B9: 21120 | E9: Mo | F9: 10 | G9: 11 | H9: 12 | I9: 1 | J9: 2 | K9: 3 | L9: 4 | M9: 5 | N9: 6 | O9: 7 | P9: 8 | Q9: 9
A10: CLASS INS RATE/YR (paras and parent liasions) | B10: 16650 | F10: 1195 | G10: 1195 | H10: 1195 | I10: 1445 | J10: 1445 | K10: 1445 | L10: 1445 | M10: 1445 | N10: 1445 | O10: 1445 | P10: 1445 | Q10: 1445 | S10: =SUM(F10:R10) -> 16590
A11: CERT INS RATE/Mo | B11: =B9/10 -> 2112
A12: CLASS INS RATE/Mo | B12: =B10/10 -> 1665
A13: HEALTH INS | B13: 5547
A14: Pos. Adj. Factor | B14: 0.025
A15: Alt Benefits Total | B15: 0.0265 | D15: =SUM(B4,B5,B8) -> 0.0265
A17: Certified | B17: 40 | C17: per/hr | F17: Sandra Mack 3/14/24
A18: Non-Certified | B18: 22.5 | C18: per/hr
F19: Paraprofessionals and Parent Liaisons - $16,590 Total
A20: Yes | F20: October 2024 - $1195
A21: No | F21: November 2024 - $1195
F22: December 2024 - $1195
A23: TUTOR_RATES | F23: January - September 2025 - $1445
B24: 22.5
B25: 40 | F25: Full-Time Teachers and Academic Coaches - $21,120
F26: $1760 per month
A27: LastPosted: | B27: 2024-09-29T09:36:39 | C27: DJC

Sheet SalaryYR (hidden)
A1: Yrs | B1: Bachelors E04 | C1: Masters E05 | D1: Specialist E06 | E1: Doctors E07 | F1: SP2-T05 | G1: SP2-T19 | H1: SP2-T21 | I1: PA2-T05 | J1: PA2-T19 | K1: PA2-T21 | L1: PSL-T05 | M1: PSL-T19 | N1: PSL-T21 | O1: SEC-T15 | P1: SEC-T19 | Q1: SEC-T26
A2: 0 | B2: 46571.62 | C2: 49430.67 | D2: 54178.39 | E2: 59350.63 | F2: N/A | G2: N/A | H2: N/A | I2: N/A | J2: N/A | K2: N/A | L2: N/A | M2: N/A | N2: N/A | O2: N/A | P2: N/A | Q2: N/A
A3: 1 | B3: 46571.62 | C3: 49430.67 | D3: 54178.39 | E3: 59350.63 | F3: 48799.17 | G3: 52232.28 | H3: 60324.6 | I3: 22118.02 | J3: 25328.7 | K3: 29252.86 | L3: 21898.97 | M3: 25077.85 | N3: 28963.15 | O3: 27729.21 | P3: 29680.01 | Q3: 34278.32
A4: 2 | B4: 46571.62 | C4: 49430.67 | D4: 54178.39 | E4: 59350.63 | F4: 49474.53 | G4: 52955.15 | H4: 61159.47 | I4: 22659.29 | J4: 25948.54 | K4: 29968.74 | L4: 22434.94 | M4: 25691.63 | N4: 29672.02 | O4: 28293.85 | P4: 30284.37 | Q4: 34976.32
A5: 3 | B5: 46571.62 | C5: 49430.67 | D5: 54178.39 | E5: 59350.63 | F5: 50392.71 | G5: 53937.93 | H5: 62294.51 | I5: 23202.71 | J5: 26570.84 | K5: 30687.45 | L5: 22972.97 | M5: 26307.76 | N5: 30383.61 | O5: 28856.31 | P5: 30886.4 | Q5: 35671.62
A6: 4 | B6: 47700.29 | C6: 50559.35 | D6: 55307.07 | E6: 60479.32 | F6: 51310.89 | G6: 54920.7 | H6: 63429.54 | I6: 23744.03 | J6: 27190.75 | K6: 31403.4 | L6: 23508.95 | M6: 26921.54 | N6: 31092.48 | O6: 29420.97 | P6: 31490.79 | Q6: 36369.64
A7: 5 | B7: 47700.29 | C7: 50559.35 | D7: 55410.29 | E7: 60479.32 | F7: 52490.17 | G7: 56182.95 | H7: 64887.35 | I7: 24287.44 | J7: 27813.04 | K7: 32122.1 | L7: 24046.98 | M7: 27537.67 | N7: 31804.07 | O7: 29983.41 | P7: 32092.8 | Q7: 37064.92
A8: 6 | B8: 47700.29 | C8: 50559.35 | D8: 55410.29 | E8: 60479.32 | F8: 53147.24 | G8: 56886.24 | H8: 65699.6 | I8: 25076.69 | J8: 28716.86 | K8: 33165.95 | L8: 24585.01 | M8: 28153.8 | N8: 32515.66 | O8: 30545.85 | P8: 32694.81 | Q8: 37760.2
A9: 7 | B9: 47756.74 | C9: 50672.21 | D9: 55711.75 | E9: 61511.45 | F9: 54065.43 | G9: 57869.03 | H9: 66834.65 | I9: 25623.41 | J9: 29342.93 | K9: 33889.02 | L9: 25120.99 | M9: 28767.59 | N9: 33224.54 | O9: 31110.51 | P9: 33299.19 | Q9: 38458.22
A10: 8 | B10: 48277.39 | C10: 51521.4 | D10: 58218.94 | E10: 61750.27 | F10: 54983.6 | G10: 58851.8 | H10: 67969.68 | I10: 26172.19 | J10: 29971.38 | K10: 34614.83 | L10: 25659.01 | M10: 29383.71 | N10: 33936.11 | O10: 31672.96 | P10: 33901.21 | Q10: 39153.51
A11: 9 | B11: 48544.09 | C11: 55369.87 | D11: 62128.62 | E11: 68547.88 | F11: 55901.79 | G11: 59834.57 | H11: 69104.72 | I11: 26720.97 | J11: 30599.82 | K11: 35340.64 | L11: 26197.03 | M11: 29999.83 | N11: 34647.69 | O11: 32237.6 | P11: 34505.57 | Q11: 39851.5
A12: 10 | B12: 49013.06 | C12: 56031.44 | D12: 63216.05 | E12: 70125.19 | F12: 57104.05 | G12: 61121.42 | H12: 70590.93 | I12: 27267.68 | J12: 31225.89 | K12: 36063.7 | L12: 26733.01 | M12: 30613.61 | N12: 35356.56 | O12: 32800.06 | P12: 35107.6 | Q12: 40546.81
A13: 11 | B13: 50483.45 | C13: 57647 | D13: 64917.12 | E13: 71631.39 | F13: 57738.14 | G13: 61800.12 | H13: 71374.79 | I13: 27816.46 | J13: 31854.33 | K13: 36789.51 | L13: 27270.99 | M13: 31229.68 | N13: 36068.08 | O13: 33362.5 | P13: 35709.61 | Q13: 41242.09
A14: 12 | B14: 51100.32 | C14: 58077.37 | D14: 65356.72 | E14: 72116.98 | F14: 58949.63 | G14: 63096.84 | H14: 72872.41 | I14: 28363.16 | J14: 32480.39 | K14: 37512.56 | L14: 27807.02 | M14: 31843.52 | N14: 36777.02 | O14: 33927.15 | P14: 36313.98 | Q14: 41940.09
A15: 13 | B15: 52901.53 | C15: 59987.72 | D15: 67422.43 | E15: 74579.1 | F15: 59572.32 | G15: 63763.33 | H15: 73642.16 | I15: 28911.95 | J15: 33108.84 | K15: 38238.38 | L15: 28345.05 | M15: 32459.66 | N15: 37488.62 | O15: 34489.6 | P15: 36916 | Q15: 42635.38
A16: 14 | B16: 53478.64 | C16: 60638.54 | D16: 67789.41 | E16: 74987.98 | F16: 60490.49 | G16: 64746.1 | H16: 74777.19 | I16: 29460.74 | J16: 33737.3 | K16: 38964.2 | L16: 28883.08 | M16: 33075.78 | N16: 38200.2 | O16: 35054.25 | P16: 37520.38 | Q16: 43333.4
A17: 15 | B17: 54957.77 | C17: 62314.48 | D17: 69680.85 | E17: 77076.89 | F17: 61715.8 | G17: 66057.61 | H17: 76291.89 | I17: 30007.43 | J17: 34363.35 | K17: 39687.25 | L17: 29419.06 | M17: 33689.57 | N17: 38909.08 | O17: 35616.7 | P17: 38122.4 | Q17: 44028.69
A18: 16 | B18: 55746.75 | C18: 63207.46 | D18: 70571.68 | E18: 77772.18 | F18: 62326.85 | G18: 66711.65 | H18: 77047.26 | I18: 30556.22 | J18: 34991.8 | K18: 40413.06 | L18: 29957.08 | M18: 34305.69 | N18: 39620.66 | O18: 36179.15 | P18: 38724.42 | Q18: 44723.98
A19: 17 | B19: 56964.59 | C19: 64579.13 | D19: 72091.42 | E19: 79467.46 | F19: 63245.02 | G19: 67694.42 | H19: 78182.29 | I19: 31102.91 | J19: 35617.85 | K19: 41136.11 | L19: 30493.06 | M19: 34919.47 | N19: 40329.53 | O19: 36743.8 | P19: 39328.79 | Q19: 45421.98
A20: 18 | B20: 57784.08 | C20: 65507.99 | D20: 73131.14 | E20: 80386.64 | F20: 64163.21 | G20: 68677.21 | H20: 79317.34 | I20: 31651.7 | J20: 36246.31 | K20: 41861.93 | L20: 31031.08 | M20: 35535.6 | N20: 41041.11 | O20: 37306.25 | P20: 39930.81 | Q20: 46117.27
A21: 19 | B21: 59130.41 | C21: 67021.07 | D21: 74806.42 | E21: 82216.43 | F21: 65081.39 | G21: 69659.98 | H21: 80452.37 | I21: 32200.49 | J21: 36874.75 | K21: 42587.74 | L21: 31569.12 | M21: 36151.74 | N21: 41752.71 | O21: 37868.71 | P21: 40532.84 | Q21: 46812.57
A22: 20 | B22: 59255.68 | C22: 67021.07 | D22: 74806.42 | E22: 82216.43 | F22: 65999.56 | G22: 70642.75 | H22: 81587.4 | I22: 32747.18 | J22: 37500.81 | K22: 43310.79 | L22: 32105.08 | M22: 36765.5 | N22: 42461.56 | O22: 38433.34 | P22: 41137.19 | Q22: 47510.56
A23: 21 | B23: 61084.16 | C23: 67051.8 | D23: 74806.42 | E23: 82216.43 | F23: 65999.56 | G23: 70642.75 | H23: 81587.4 | I23: 34868.54 | J23: 39930.11 | K23: 46116.46 | L23: 32105.08 | M23: 36765.5 | N23: 42461.56 | O23: 38833.94 | P23: 41565.97 | Q23: 48005.77
A24: 22 | B24: 62933.52 | C24: 68834.06 | D24: 75479.12 | E24: 82658.47 | F24: 65999.56 | G24: 70642.75 | H24: 81587.4 | I24: 34868.54 | J24: 39930.11 | K24: 46116.46 | L24: 32105.08 | M24: 36765.5 | N24: 42461.56 | O24: 38814.54 | P24: 41545.21 | Q24: 47981.79
A25: 23 | B25: 64821.52 | C25: 70899.07 | D25: 77529.94 | E25: 84795.03 | F25: 65999.56 | G25: 70642.75 | H25: 81587.4 | I25: 34868.54 | J25: 39930.11 | K25: 46116.46 | L25: 32105.08 | M25: 36765.5 | N25: 42461.56 | O25: 38982.33 | P25: 41724.8 | Q25: 48189.21
A26: 24 | B26: 66107.44 | C26: 73072.1 | D26: 79911.11 | E26: 87281.61 | F26: 65999.56 | G26: 70642.75 | H26: 81587.4 | I26: 34868.54 | J26: 39930.11 | K26: 46116.46 | L26: 32105.08 | M26: 36765.5 | N26: 42461.56 | O26: 38982.33 | P26: 41724.8 | Q26: 48189.21
A27: 25 | B27: 66107.44 | C27: 75264.26 | D27: 82308.44 | E27: 89628.2 | F27: 65999.56 | G27: 70642.75 | H27: 81587.4 | I27: 34868.54 | J27: 39930.11 | K27: 46116.46 | L27: 32105.08 | M27: 36765.5 | N27: 42461.56 | O27: 38982.33 | P27: 41724.8 | Q27: 48189.21
A28: 26 | B28: 66107.44 | C28: 76768.89 | D28: 83953.04 | E28: 91425.89 | F28: 65999.56 | G28: 70642.75 | H28: 81587.4 | I28: 34868.54 | J28: 39930.11 | K28: 46116.46 | L28: 32105.08 | M28: 36765.5 | N28: 42461.56 | O28: 38982.33 | P28: 41724.8 | Q28: 48189.21
A29: 27 | B29: 67391.18 | C29: 76768.89 | D29: 83953.04 | E29: 91425.89 | F29: 65999.56 | G29: 70642.75 | H29: 81587.4 | I29: 34868.54 | J29: 39930.11 | K29: 46116.46 | L29: 32105.08 | M29: 36765.5 | N29: 42461.56 | O29: 38982.33 | P29: 41724.8 | Q29: 48189.21
A30: 28 | B30: 67391.18 | C30: 76768.89 | D30: 83953.04 | E30: 91425.89 | F30: 65999.56 | G30: 70642.75 | H30: 81587.4 | I30: 34868.54 | J30: 39930.11 | K30: 46116.46 | L30: 32105.08 | M30: 36765.5 | N30: 42461.56 | O30: 38982.33 | P30: 41724.8 | Q30: 48189.21
A31: 29 | B31: 67391.18 | C31: 78275.69 | D31: 85595.45 | E31: 93206.07 | F31: 65999.56 | G31: 70642.75 | H31: 81587.4 | I31: 34868.54 | J31: 39930.11 | K31: 46116.46 | L31: 32105.08 | M31: 36765.5 | N31: 42461.56 | O31: 38982.33 | P31: 41724.8 | Q31: 48189.21
A32: 30 | B32: 68703.37 | C32: 78275.69 | D32: 85595.45 | E32: 93206.07 | F32: 65999.56 | G32: 70642.75 | H32: 81587.4 | I32: 34868.54 | J32: 39930.11 | K32: 46116.46 | L32: 32105.08 | M32: 36765.5 | N32: 42461.56 | O32: 38982.33 | P32: 41724.8 | Q32: 48189.21
A33: 31 | B33: 68703.37 | C33: 78275.69 | D33: 85595.45 | E33: 93206.07 | F33: 65999.56 | G33: 70642.75 | H33: 81587.4 | I33: 34868.54 | J33: 39930.11 | K33: 46116.46 | L33: 32105.08 | M33: 36765.5 | N33: 42461.56 | O33: 38982.33 | P33: 41724.8 | Q33: 48189.21

Sheet SalaryMo (hidden)
A1: Yrs | B1: Bachelors E04 | C1: Masters E05 | D1: Specialist E06 | E1: Doctors E07 | F1: SP2-T05 | G1: SP2-T19 | H1: SP2-T21 | I1: PA2-T05 | J1: PA2-T19 | K1: PA2-T21 | L1: PSL-T05 | M1: PSL-T19 | N1: PSL-T21 | O1: SEC-T15 | P1: SEC-T19 | Q1: SEC-T26
A2: 0 | B2: 3796 | C2: 4029 | D2: 4416 | E2: 4838 | F2: N/A | G2: N/A | H2: N/A | I2: N/A | J2: N/A | K2: N/A | L2: N/A | M2: N/A | N2: N/A | O2: N/A | P2: N/A | Q2: N/A
A3: 1 | B3: 3796 | C3: 4029 | D3: 4416 | E3: 4838 | F3: 3987 | G3: 4268 | H3: 4929 | I3: 1808 | J3: 2070 | K3: 2390 | L3: 1790 | M3: 2049 | N3: 2367 | O3: 2266 | P3: 2425 | Q3: 2801
A4: 2 | B4: 3796 | C4: 4029 | D4: 4416 | E4: 4838 | F4: 4043 | G4: 4327 | H4: 4997 | I4: 1852 | J4: 2120 | K4: 2449 | L4: 1833 | M4: 2099 | N4: 2425 | O4: 2312 | P4: 2475 | Q4: 2858
A5: 3 | B5: 3888 | C5: 4121 | D5: 4508 | E5: 4930 | F5: 4118 | G5: 4407 | H5: 5090 | I5: 1896 | J5: 2171 | K5: 2508 | L5: 1877 | M5: 2150 | N5: 2483 | O5: 2358 | P5: 2524 | Q5: 2915
A6: 4 | B6: 3888 | C6: 4121 | D6: 4508 | E6: 4930 | F6: 4193 | G6: 4487 | H6: 5183 | I6: 1940 | J6: 2222 | K6: 2566 | L6: 1921 | M6: 2200 | N6: 2541 | O6: 2404 | P6: 2573 | Q6: 2972
A7: 5 | B7: 3888 | C7: 4121 | D7: 4508 | E7: 4930 | F7: 4289 | G7: 4591 | H7: 5302 | I7: 1985 | J7: 2273 | K7: 2625 | L7: 1965 | M7: 2250 | N7: 2599 | O7: 2450 | P7: 2622 | Q7: 3029
A8: 6 | B8: 3893 | C8: 4130 | D8: 4541 | E8: 5014 | F8: 4343 | G8: 4648 | H8: 5368 | I8: 2049 | J8: 2347 | K8: 2710 | L8: 2009 | M8: 2301 | N8: 2657 | O8: 2496 | P8: 2672 | Q8: 3085
A9: 7 | B9: 3935 | C9: 4199 | D9: 4745 | E9: 5033 | F9: 4418 | G9: 4728 | H9: 5461 | I9: 2094 | J9: 2398 | K9: 2769 | L9: 2053 | M9: 2351 | N9: 2715 | O9: 2542 | P9: 2721 | Q9: 3143
A10: 8 | B10: 3957 | C10: 4513 | D10: 5064 | E10: 5587 | F10: 4493 | G10: 4809 | H10: 5554 | I10: 2139 | J10: 2449 | K10: 2829 | L10: 2097 | M10: 2401 | N10: 2773 | O10: 2588 | P10: 2770 | Q10: 3199
A11: 9 | B11: 3995 | C11: 4567 | D11: 5153 | E11: 5716 | F11: 4568 | G11: 4889 | H11: 5646 | I11: 2184 | J11: 2500 | K11: 2888 | L11: 2141 | M11: 2451 | N11: 2831 | O11: 2634 | P11: 2820 | Q11: 3256
A12: 10 | B12: 4115 | C12: 4699 | D12: 5291 | E12: 5838 | F12: 4666 | G12: 4994 | H12: 5768 | I12: 2228 | J12: 2552 | K12: 2947 | L12: 2185 | M12: 2502 | N12: 2889 | O12: 2680 | P12: 2869 | Q12: 3313
A13: 11 | B13: 4165 | C13: 4734 | D13: 5327 | E13: 5878 | F13: 4718 | G13: 5050 | H13: 5832 | I13: 2273 | J13: 2603 | K13: 3006 | L13: 2229 | M13: 2552 | N13: 2947 | O13: 2726 | P13: 2918 | Q13: 3370
A14: 12 | B14: 4312 | C14: 4889 | D14: 5495 | E14: 6079 | F14: 4817 | G14: 5155 | H14: 5954 | I14: 2318 | J14: 2654 | K14: 3065 | L14: 2272 | M14: 2602 | N14: 3005 | O14: 2772 | P14: 2967 | Q14: 3427
A15: 13 | B15: 4359 | C15: 4943 | D15: 5525 | E15: 6112 | F15: 4868 | G15: 5210 | H15: 6017 | I15: 2363 | J15: 2705 | K15: 3125 | L15: 2316 | M15: 2652 | N15: 3063 | O15: 2818 | P15: 3017 | Q15: 3484
A16: 14 | B16: 4480 | C16: 5079 | D16: 5679 | E16: 6282 | F16: 4943 | G16: 5290 | H16: 6110 | I16: 2407 | J16: 2757 | K16: 3184 | L16: 2360 | M16: 2703 | N16: 3121 | O16: 2864 | P16: 3066 | Q16: 3541
A17: 15 | B17: 4544 | C17: 5152 | D17: 5752 | E17: 6339 | F17: 5043 | G17: 5397 | H17: 6233 | I17: 2452 | J17: 2808 | K17: 3243 | L17: 2404 | M17: 2753 | N17: 3179 | O17: 2910 | P17: 3115 | Q17: 3598
A18: 16 | B18: 4643 | C18: 5264 | D18: 5876 | E18: 6477 | F18: 5093 | G18: 5451 | H18: 6295 | I18: 2497 | J18: 2859 | K18: 3302 | L18: 2448 | M18: 2803 | N18: 3237 | O18: 2956 | P18: 3164 | Q18: 3654
A19: 17 | B19: 4710 | C19: 5339 | D19: 5961 | E19: 6552 | F19: 5168 | G19: 5531 | H19: 6388 | I19: 2542 | J19: 2910 | K19: 3361 | L19: 2492 | M19: 2853 | N19: 3295 | O19: 3002 | P19: 3214 | Q19: 3711
A20: 18 | B20: 4820 | C20: 5463 | D20: 6097 | E20: 6701 | F20: 5243 | G20: 5611 | H20: 6481 | I20: 2586 | J20: 2962 | K20: 3421 | L20: 2536 | M20: 2904 | N20: 3354 | O20: 3048 | P20: 3263 | Q20: 3768
A21: 19 | B21: 4830 | C21: 5463 | D21: 6097 | E21: 6701 | F21: 5318 | G21: 5692 | H21: 6573 | I21: 2631 | J21: 3013 | K21: 3480 | L21: 2580 | M21: 2954 | N21: 3412 | O21: 3094 | P21: 3312 | Q21: 3825
A22: 20 | B22: 4979 | C22: 5465 | D22: 6097 | E22: 6701 | F22: 5393 | G22: 5772 | H22: 6666 | I22: 2676 | J22: 3064 | K22: 3539 | L22: 2623 | M22: 3004 | N22: 3470 | O22: 3140 | P22: 3361 | Q22: 3882
A23: 21 | B23: 5130 | C23: 5610 | D23: 6152 | E23: 6737 | F23: 5393 | G23: 5772 | H23: 6666 | I23: 2676 | J23: 3064 | K23: 3539 | L23: 2623 | M23: 3004 | N23: 3470 | O23: 3140 | P23: 3361 | Q23: 3882
A24: 22 | B24: 5283 | C24: 5779 | D24: 6319 | E24: 6911 | F24: 5393 | G24: 5772 | H24: 6666 | I24: 2676 | J24: 3064 | K24: 3539 | L24: 2623 | M24: 3004 | N24: 3470 | O24: 3140 | P24: 3361 | Q24: 3882
A25: 23 | B25: 5388 | C25: 5956 | D25: 6513 | E25: 7114 | F25: 5393 | G25: 5772 | H25: 6666 | I25: 2676 | J25: 3064 | K25: 3539 | L25: 2623 | M25: 3004 | N25: 3470 | O25: 3140 | P25: 3361 | Q25: 3882
A26: 24 | B26: 5388 | C26: 6135 | D26: 6709 | E26: 7305 | F26: 5393 | G26: 5772 | H26: 6666 | I26: 2676 | J26: 3064 | K26: 3539 | L26: 2623 | M26: 3004 | N26: 3470 | O26: 3140 | P26: 3361 | Q26: 3882
A27: 25 | B27: 5388 | C27: 6257 | D27: 6843 | E27: 7452 | F27: 5393 | G27: 5772 | H27: 6666 | I27: 2676 | J27: 3064 | K27: 3539 | L27: 2623 | M27: 3004 | N27: 3470 | O27: 3140 | P27: 3361 | Q27: 3882
A28: 26 | B28: 5493 | C28: 6257 | D28: 6843 | E28: 7452 | F28: 5393 | G28: 5772 | H28: 6666 | I28: 2676 | J28: 3064 | K28: 3539 | L28: 2623 | M28: 3004 | N28: 3470 | O28: 3140 | P28: 3361 | Q28: 3882
A29: 27 | B29: 5493 | C29: 6257 | D29: 6843 | E29: 7452 | F29: 5393 | G29: 5772 | H29: 6666 | I29: 2676 | J29: 3064 | K29: 3539 | L29: 2623 | M29: 3004 | N29: 3470 | O29: 3140 | P29: 3361 | Q29: 3882
A30: 28 | B30: 5493 | C30: 6380 | D30: 6976 | E30: 7597 | F30: 5393 | G30: 5772 | H30: 6666 | I30: 2676 | J30: 3064 | K30: 3539 | L30: 2623 | M30: 3004 | N30: 3470 | O30: 3140 | P30: 3361 | Q30: 3882
A31: 29 | B31: 5600 | C31: 6380 | D31: 6976 | E31: 7597 | F31: 5393 | G31: 5772 | H31: 6666 | I31: 2676 | J31: 3064 | K31: 3539 | L31: 2623 | M31: 3004 | N31: 3470 | O31: 3140 | P31: 3361 | Q31: 3882
A32: 30 | B32: 5600 | C32: 6380 | D32: 6976 | E32: 7597 | F32: 5393 | G32: 5772 | H32: 6666 | I32: 2676 | J32: 3064 | K32: 3539 | L32: 2623 | M32: 3004 | N32: 3470 | O32: 3140 | P32: 3361 | Q32: 3882
A33: 31 | B33: 5600 | C33: 6501 | D33: 7111 | E33: 7743 | F33: 5393 | G33: 5772 | H33: 6666 | I33: 2676 | J33: 3064 | K33: 3539 | L33: 2623 | M33: 3004 | N33: 3470 | O33: 3140 | P33: 3361 | Q33: 3882

Sheet PosSalary (hidden)
B1: Yrs | C1: Bachelors E04 | D1: Masters E05 | E1: Specialist E06 | F1: Doctors E07 | G1: Para - 186 days-PA2-T05 | H1: Para - 213 days-PA2-T19 | I1: Para - 246 days-PA2-T21 | J1: Parent Liais. - 186 days-PSL-T05 | K1: Parent Liais. - 213 days-PSL-T19 | L1: Parent Liais. - 246 days-PSL-T21 | M1: Data Clerk - 199 days-SEC-T15 | N1: Data Clerk - 213 days-SEC-T19 | O1: Data Clerk - 246 days-SEC-T26 | P1: Parent Support Liais. - 199 days -SP2-T05 | Q1: Parent Support Liais. - 213 days - SP2-T19 | R1: Parent Support Liais. - 246 days - SP2-T21
A2: Bachelors E04 | B2: 0 | C2: 3881 | D2: 4119 | E2: 4515 | F2: 4946 | G2: N/A | H2: N/A | I2: N/A | J2: N/A | K2: N/A | L2: N/A | M2: N/A | N2: N/A | O2: N/A | P2: N/A | Q2: N/A | R2: N/A
A3: Masters E05 | B3: 1 | C3: 3881 | D3: 4119 | E3: 4515 | F3: 4946 | G3: 1843 | H3: 2111 | I3: 2438 | J3: 1825 | K3: 2090 | L3: 2414 | M3: 2311 | N3: 2473 | O3: 2857 | P3: 4067 | Q3: 4353 | R3: 5027
A4: Specialist E06 | B4: 2 | C4: 3881 | D4: 4119 | E4: 4515 | F4: 4946 | G4: 1888 | H4: 2162 | I4: 2497 | J4: 1870 | K4: 2141 | L4: 2473 | M4: 2358 | N4: 2524 | O4: 2915 | P4: 4123 | Q4: 4413 | R4: 5097
A5: Doctors E07 | B5: 3 | C5: 3881 | D5: 4119 | E5: 4515 | F5: 4946 | G5: 1934 | H5: 2214 | I5: 2557 | J5: 1914 | K5: 2192 | L5: 2532 | M5: 2405 | N5: 2574 | O5: 2973 | P5: 4199 | Q5: 4495 | R5: 5191
A6: Para - 186 days-PA2-T05 | B6: 4 | C6: 3975 | D6: 4213 | E6: 4609 | F6: 5040 | G6: 1979 | H6: 2266 | I6: 2617 | J6: 1959 | K6: 2243 | L6: 2591 | M6: 2452 | N6: 2624 | O6: 3031 | P6: 4276 | Q6: 4577 | R6: 5286
A7: Para - 213 days-PA2-T19 | B7: 5 | C7: 3975 | D7: 4213 | E7: 4618 | F7: 5040 | G7: 2024 | H7: 2318 | I7: 2677 | J7: 2004 | K7: 2295 | L7: 2650 | M7: 2499 | N7: 2674 | O7: 3089 | P7: 4374 | Q7: 4682 | R7: 5407
A8: Para - 246 days-PA2-T21 | B8: 6 | C8: 3975 | D8: 4213 | E8: 4618 | F8: 5040 | G8: 2090 | H8: 2393 | I8: 2764 | J8: 2049 | K8: 2346 | L8: 2710 | M8: 2545 | N8: 2725 | O8: 3147 | P8: 4429 | Q8: 4741 | R8: 5475
A9: Parent Liais. - 186 days-PSL-T05 | B9: 7 | C9: 3980 | D9: 4223 | E9: 4643 | F9: 5126 | G9: 2135 | H9: 2445 | I9: 2824 | J9: 2093 | K9: 2397 | L9: 2769 | M9: 2593 | N9: 2775 | O9: 3205 | P9: 4505 | Q9: 4822 | R9: 5570
A10: Parent Liais. - 213 days-PSL-T19 | B10: 8 | C10: 4023 | D10: 4293 | E10: 4852 | F10: 5146 | G10: 2181 | H10: 2498 | I10: 2885 | J10: 2138 | K10: 2449 | L10: 2828 | M10: 2639 | N10: 2825 | O10: 3263 | P10: 4582 | Q10: 4904 | R10: 5664
A11: Parent Liais. - 246 days-PSL-T21 | B11: 9 | C11: 4045 | D11: 4614 | E11: 5177 | F11: 5712 | G11: 2227 | H11: 2550 | I11: 2945 | J11: 2183 | K11: 2500 | L11: 2887 | M11: 2686 | N11: 2875 | O11: 3321 | P11: 4658 | Q11: 4986 | R11: 5759
A12: Data Clerk - 199 days-SEC-T15 | B12: 10 | C12: 4084 | D12: 4669 | E12: 5268 | F12: 5844 | G12: 2272 | H12: 2602 | I12: 3005 | J12: 2228 | K12: 2551 | L12: 2946 | M12: 2733 | N12: 2926 | O12: 3379 | P12: 4759 | Q12: 5093 | R12: 5883
A13: Data Clerk - 213 days-SEC-T19 | B13: 11 | C13: 4207 | D13: 4804 | E13: 5410 | F13: 5969 | G13: 2318 | H13: 2655 | I13: 3066 | J13: 2273 | K13: 2602 | L13: 3006 | M13: 2780 | N13: 2976 | O13: 3437 | P13: 4812 | Q13: 5150 | R13: 5948
A14: Data Clerk - 246 days-SEC-T26 | B14: 12 | C14: 4258 | D14: 4840 | E14: 5446 | F14: 6010 | G14: 2364 | H14: 2707 | I14: 3126 | J14: 2317 | K14: 2654 | L14: 3065 | M14: 2827 | N14: 3026 | O14: 3495 | P14: 4912 | Q14: 5258 | R14: 6073
A15: Parent Support Liais. - 199 days -SP2-T05 | B15: 13 | C15: 4408 | D15: 4999 | E15: 5619 | F15: 6215 | G15: 2409 | H15: 2759 | I15: 3187 | J15: 2362 | K15: 2705 | L15: 3124 | M15: 2874 | N15: 3076 | O15: 3553 | P15: 4964 | Q15: 5314 | R15: 6137
A16: Parent Support Liais. - 213 days - SP2-T19 | B16: 14 | C16: 4457 | D16: 5053 | E16: 5649 | F16: 6249 | G16: 2455 | H16: 2811 | I16: 3247 | J16: 2407 | K16: 2756 | L16: 3183 | M16: 2921 | N16: 3127 | O16: 3611 | P16: 5041 | Q16: 5396 | R16: 6231
A17: Parent Support Liais. - 246 days - SP2-T21 | B17: 15 | C17: 4580 | D17: 5193 | E17: 5807 | F17: 6423 | G17: 2501 | H17: 2864 | I17: 3307 | J17: 2452 | K17: 2807 | L17: 3242 | M17: 2968 | N17: 3177 | O17: 3669 | P17: 5143 | Q17: 5505 | R17: 6358
B18: 16 | C18: 4646 | D18: 5267 | E18: 5881 | F18: 6481 | G18: 2546 | H18: 2916 | I18: 3368 | J18: 2496 | K18: 2859 | L18: 3302 | M18: 3015 | N18: 3227 | O18: 3727 | P18: 5194 | Q18: 5559 | R18: 6421
B19: 17 | C19: 4747 | D19: 5382 | E19: 6008 | F19: 6622 | G19: 2592 | H19: 2968 | I19: 3428 | J19: 2541 | K19: 2910 | L19: 3361 | M19: 3062 | N19: 3277 | O19: 3785 | P19: 5270 | Q19: 5641 | R19: 6515
B20: 18 | C20: 4815 | D20: 5459 | E20: 6094 | F20: 6699 | G20: 2638 | H20: 3021 | I20: 3488 | J20: 2586 | K20: 2961 | L20: 3420 | M20: 3109 | N20: 3328 | O20: 3843 | P20: 5347 | Q20: 5723 | R20: 6610
B21: 19 | C21: 4928 | D21: 5585 | E21: 6234 | F21: 6851 | G21: 2683 | H21: 3073 | I21: 3549 | J21: 2631 | K21: 3013 | L21: 3479 | M21: 3156 | N21: 3378 | O21: 3901 | P21: 5423 | Q21: 5805 | R21: 6704
B22: 20 | C22: 4938 | D22: 5585 | E22: 6234 | F22: 6851 | G22: 2729 | H22: 3125 | I22: 3609 | J22: 2675 | K22: 3064 | L22: 3538 | M22: 3203 | N22: 3428 | O22: 3959 | P22: 5500 | Q22: 5887 | R22: 6799
B23: 21 | C23: 5090 | D23: 5588 | E23: 6234 | F23: 6851 | G23: 2906 | H23: 3328 | I23: 3843 | J23: 2675 | K23: 3064 | L23: 3538 | M23: 3236 | N23: 3464 | O23: 4000 | P23: 5500 | Q23: 5887 | R23: 6799
B24: 22 | C24: 5244 | D24: 5736 | E24: 6290 | F24: 6888 | G24: 2906 | H24: 3328 | I24: 3843 | J24: 2675 | K24: 3064 | L24: 3538 | M24: 3235 | N24: 3462 | O24: 3998 | P24: 5500 | Q24: 5887 | R24: 6799
B25: 23 | C25: 5402 | D25: 5908 | E25: 6461 | F25: 7066 | G25: 2906 | H25: 3328 | I25: 3843 | J25: 2675 | K25: 3064 | L25: 3538 | M25: 3249 | N25: 3477 | O25: 4016 | P25: 5500 | Q25: 5887 | R25: 6799
B26: 24 | C26: 5509 | D26: 6089 | E26: 6659 | F26: 7273 | G26: 2906 | H26: 3328 | I26: 3843 | J26: 2675 | K26: 3064 | L26: 3538 | M26: 3249 | N26: 3477 | O26: 4016 | P26: 5500 | Q26: 5887 | R26: 6799
B27: 25 | C27: 5509 | D27: 6272 | E27: 6859 | F27: 7469 | G27: 2906 | H27: 3328 | I27: 3843 | J27: 2675 | K27: 3064 | L27: 3538 | M27: 3249 | N27: 3477 | O27: 4016 | P27: 5500 | Q27: 5887 | R27: 6799
B28: 26 | C28: 5509 | D28: 6397 | E28: 6996 | F28: 7619 | G28: 2906 | H28: 3328 | I28: 3843 | J28: 2675 | K28: 3064 | L28: 3538 | M28: 3249 | N28: 3477 | O28: 4016 | P28: 5500 | Q28: 5887 | R28: 6799
B29: 27 | C29: 5616 | D29: 6397 | E29: 6996 | F29: 7619 | G29: 2906 | H29: 3328 | I29: 3843 | J29: 2675 | K29: 3064 | L29: 3538 | M29: 3249 | N29: 3477 | O29: 4016 | P29: 5500 | Q29: 5887 | R29: 6799
B30: 28 | C30: 5616 | D30: 6397 | E30: 6996 | F30: 7619 | G30: 2906 | H30: 3328 | I30: 3843 | J30: 2675 | K30: 3064 | L30: 3538 | M30: 3249 | N30: 3477 | O30: 4016 | P30: 5500 | Q30: 5887 | R30: 6799
B31: 29 | C31: 5616 | D31: 6523 | E31: 7133 | F31: 7767 | G31: 2906 | H31: 3328 | I31: 3843 | J31: 2675 | K31: 3064 | L31: 3538 | M31: 3249 | N31: 3477 | O31: 4016 | P31: 5500 | Q31: 5887 | R31: 6799
B32: 30 | C32: 5725 | D32: 6523 | E32: 7133 | F32: 7767 | G32: 2906 | H32: 3328 | I32: 3843 | J32: 2675 | K32: 3064 | L32: 3538 | M32: 3249 | N32: 3477 | O32: 4016 | P32: 5500 | Q32: 5887 | R32: 6799
B33: 31 | C33: 5725 | D33: 6523 | E33: 7133 | F33: 7767 | G33: 2906 | H33: 3328 | I33: 3843 | J33: 2675 | K33: 3064 | L33: 3538 | M33: 3249 | N33: 3477 | O33: 4016 | P33: 5500 | Q33: 5887 | R33: 6799

Sheet BudgetCat (hidden)
A1: Code Description | B1: BudgetCode | C1: Fund | D1: Function | E1: Object | F1: Sub Object | G1: Project | H1: School Location | I1: Program | J1: Budget | K1: Touchpoint/MUNIS Budget Codes | P1: LOC | Q1: Program
A2: Teacher Salary | B2: =CONCATENATE(L2,".",M2,".",N2,".",O2,".",P2,".",Q2,".",R2,".",S2,".",T2) -> 402.1000.511000.40024.1940.1750.FAC.030.2025 | C2: 204 | D2: 38 | E2: 05 | F2: 00 | G2: 400204 | H2: =CurrSchool -> 1940 | I2: 1750 | K2: =CONCATENATE(L2,".",M2,".",N2,".",O2,".",P2,".",Q2,".",R2,".",S2,".",T2) -> 402.1000.511000.40024.1940.1750.FAC.030.2025 | L2: 402 | M2: 1000 | N2: 511000 | O2: 40024 | P2: =CurrSchool -> 1940 | Q2: 1750 | R2: FAC | S2: 030 | T2: 2025
A3: Teacher and Paraprofessional Group Health | B3: 402.1000.521000.40024.1940.1750.FAC.030.2025 | C3: 204 | D3: 38 | E3: 87 | F3: 00 | G3: 400204 | H3: 1940 | I3: 1750 | K3: 402.1000.521000.40024.1940.1750.FAC.030.2025 | L3: 402 | M3: 1000 | N3: 521000 | O3: 40024 | P3: 1940 | Q3: 1750 | R3: FAC | S3: 030 | T3: 2025
A4: Teacher and Paraprofessional Retirement | B4: 402.1000.523000.40024.1940.1750.FAC.030.2025 | C4: 204 | D4: 38 | E4: 74 | F4: 00 | G4: 400204 | H4: 1940 | I4: 1750 | K4: 402.1000.523000.40024.1940.1750.FAC.030.2025 | L4: 402 | M4: 1000 | N4: 523000 | O4: 40024 | P4: 1940 | Q4: 1750 | R4: FAC | S4: 030 | T4: 2025
A5: Paraprofessional Salary | B5: 402.1000.514000.40024.1940.1750.FAC.030.2025 | C5: 204 | D5: 38 | E5: 07 | F5: 00 | G5: 400204 | H5: 1940 | I5: 1750 | K5: 402.1000.514000.40024.1940.1750.FAC.030.2025 | L5: 402 | M5: 1000 | N5: 514000 | O5: 40024 | P5: 1940 | Q5: 1750 | R5: FAC | S5: 030 | T5: 2025
A6: Substitutes for Certified Teacher Salaries | B6: 402.1000.511300.40024.1940.1750.FAC.030.2025 | C6: 204 | D6: 38 | E6: 16 | F6: 00 | G6: 400204 | H6: 1940 | I6: 1750 | K6: 402.1000.511300.40024.1940.1750.FAC.030.2025 | L6: 402 | M6: 1000 | N6: 511300 | O6: 40024 | P6: 1940 | Q6: 1750 | R6: FAC | S6: 030 | T6: 2025
A7: Afterschool/Daytime Tutorial | B7: 402.1000.519900.40024.1940.1750.FAC.030.2025 | C7: 204 | D7: 38 | E7: 17 | F7: 00 | G7: 400204 | H7: 1940 | I7: 1750 | K7: 402.1000.519900.40024.1940.1750.FAC.030.2025 | L7: 402 | M7: 1000 | N7: 519900 | O7: 40024 | P7: 1940 | Q7: 1750 | R7: FAC | S7: 030 | T7: 2025
A8: Instructional FICA (Teacher,Para,Subs,Tutor) | B8: 402.1000.522000.40024.1940.1750.FAC.030.2025 | C8: 204 | D8: 38 | E8: 89 | F8: 00 | G8: 400204 | H8: 1940 | I8: 1750 | K8: 402.1000.522000.40024.1940.1750.FAC.030.2025 | L8: 402 | M8: 1000 | N8: 522000 | O8: 40024 | P8: 1940 | Q8: 1750 | R8: FAC | S8: 030 | T8: 2025
A9: Instructional Contracted Services | B9: 402.1000.530000.40024.1940.1750.FAC.030.2025 | C9: 204 | D9: 38 | E9: 95 | F9: 00 | G9: 400204 | H9: =CurrSchool -> 1940 | I9: 1750 | K9: 402.1000.530000.40024.1940.1750.FAC.030.2025 | L9: 402 | M9: 1000 | N9: 530000 | O9: 40024 | P9: =CurrSchool -> 1940 | Q9: 1750 | R9: FAC | S9: 030 | T9: 2025
A10: Instructional Contracted Services Teacher Salary (Charter Schools Only) | B10: 402.1000.532100.40024.1940.1750.FAC.030.2025 | C10: 204 | D10: 38 | E10: 95 | F10: 10 | G10: 400204 | H10: 1940 | I10: 1750 | K10: 402.1000.532100.40024.1940.1750.FAC.030.2025 | L10: 402 | M10: 1000 | N10: 532100 | O10: 40024 | P10: 1940 | Q10: 1750 | R10: FAC | S10: 030 | T10: 2025
A11: Instructional Supplies | B11: 402.1000.561000.40024.1940.1750.FAC.030.2025 | C11: 204 | D11: 38 | E11: 53 | F11: 00 | G11: 400204 | H11: 1940 | I11: 1750 | K11: 402.1000.561000.40024.1940.1750.FAC.030.2025 | L11: 402 | M11: 1000 | N11: 561000 | O11: 40024 | P11: 1940 | Q11: 1750 | R11: FAC | S11: 030 | T11: 2025
A12: Instructional Technology Supplies | B12: 402.1000.561100.40024.1940.1750.FAC.030.2025 | C12: 204 | D12: 38 | E12: 53 | F12: 10 | G12: 400204 | H12: 1940 | I12: 1750 | K12: 402.1000.561100.40024.1940.1750.FAC.030.2025 | L12: 402 | M12: 1000 | N12: 561100 | O12: 40024 | P12: 1940 | Q12: 1750 | R12: FAC | S12: 030 | T12: 2025
A13: Instructional Computer Software | B13: 402.1000.553200.40024.1940.1750.FAC.030.2025 | C13: 204 | D13: 38 | E13: 53 | F13: 05 | G13: 400204 | H13: 1940 | I13: 1750 | K13: 402.1000.553200.40024.1940.1750.FAC.030.2025 | L13: 402 | M13: 1000 | N13: 553200 | O13: 40024 | P13: 1940 | Q13: 1750 | R13: FAC | S13: 030 | T13: 2025
A14: Instructional Equipment | B14: 402.1000.561500.40024.1940.1750.FAC.030.2025 | C14: 204 | D14: 61 | E14: 92 | F14: 00 | G14: 400204 | H14: 1940 | I14: 1750 | K14: 402.1000.561500.40024.1940.1750.FAC.030.2025 | L14: 402 | M14: 1000 | N14: 561500 | O14: 40024 | P14: 1940 | Q14: 1750 | R14: FAC | S14: 030 | T14: 2025
A15: Instructional Equipment (greater than or equal to $5000) | B15: 402.1000.573400.40024.1940.1750.FAC.030.2025 | C15: 204 | D15: 61 | E15: 92 | F15: 01 | G15: 400204 | H15: 1940 | I15: 1750 | K15: 402.1000.573400.40024.1940.1750.FAC.030.2025 | L15: 402 | M15: 1000 | N15: 573400 | O15: 40024 | P15: 1940 | Q15: 1750 | R15: FAC | S15: 030 | T15: 2025
A16: Instructional Computers | B16: 402.1000.561600.40024.1940.1750.FAC.030.2025 | C16: 204 | D16: 61 | E16: 92 | F16: 05 | G16: 400204 | H16: 1940 | I16: 1750 | K16: 402.1000.561600.40024.1940.1750.FAC.030.2025 | L16: 402 | M16: 1000 | N16: 561600 | O16: 40024 | P16: 1940 | Q16: 1750 | R16: FAC | S16: 030 | T16: 2025
A17: Instructional Books and Periodicals | B17: 402.1000.564200.40024.1940.1750.FAC.030.2025 | C17: 204 | D17: 38 | E17: 62 | F17: 00 | G17: 400204 | H17: 1940 | I17: 1750 | K17: 402.1000.564200.40024.1940.1750.FAC.030.2025 | L17: 402 | M17: 1000 | N17: 564200 | O17: 40024 | P17: 1940 | Q17: 1750 | R17: FAC | S17: 030 | T17: 2025
A18: ADD PFE Facilitator Extra Activity | B18: 402.1000.519900.40024.1940.1750.FAC.030.2025 | C18: 204 | D18: 42 | E18: 17 | F18: 00 | G18: 400204 | H18: 1940 | I18: 1750 | K18: 402.1000.519900.40024.1940.1750.FAC.030.2025 | L18: 402 | M18: 1000 | N18: 519900 | O18: 40024 | P18: 1940 | Q18: 1750 | R18: FAC | S18: 030 | T18: 2025
A19: ADD PFE Facilitator Extra Activity FICA | B19: 402.1000.522000.40024.1940.1750.FAC.030.2025 | C19: 204 | D19: 42 | E19: 89 | F19: 00 | G19: 400204 | H19: 1940 | I19: 1750 | K19: 402.1000.522000.40024.1940.1750.FAC.030.2025 | L19: 402 | M19: 1000 | N19: 522000 | O19: 40024 | P19: =CurrSchool -> 1940 | Q19: 1750 | R19: FAC | S19: 030 | T19: 2025
A20: ADD PFE Contracted Services | B20: 402.2100.530000.40024.1940.1750.FAC.030.2025 | C20: 204 | D20: 42 | E20: 95 | F20: 00 | G20: 400204 | H20: 1940 | I20: 1750 | K20: 402.2100.530000.40024.1940.1750.FAC.030.2025 | L20: 402 | M20: 2100 | N20: 530000 | O20: 40024 | P20: =CurrSchool -> 1940 | Q20: 1750 | R20: FAC | S20: 030 | T20: 2025
A21: ADD PFE Communications | B21: 402.2100.553000.40024.1940.1750.FAC.030.2025 | C21: 204 | D21: 42 | E21: 97 | F21: 00 | G21: 400204 | H21: 1940 | I21: 1750 | K21: 402.2100.553000.40024.1940.1750.FAC.030.2025 | L21: 402 | M21: 2100 | N21: 553000 | O21: 40024 | P21: =CurrSchool -> 1940 | Q21: 1750 | R21: FAC | S21: 030 | T21: 2025
A22: ADD PFE Travel of Employees | B22: 402.2100.558000.40024.1940.1750.FAC.030.2025 | C22: 204 | D22: 42 | E22: 33 | F22: 00 | G22: 400204 | H22: 1940 | I22: 1750 | K22: 402.2100.558000.40024.1940.1750.FAC.030.2025 | L22: 402 | M22: 2100 | N22: 558000 | O22: 40024 | P22: =CurrSchool -> 1940 | Q22: 1750 | R22: FAC | S22: 030 | T22: 2025
A23: ADD PFE Registration Fees | B23: 402.2100.581000.40024.1940.1750.FAC.030.2025 | C23: 204 | D23: 42 | E23: 36 | F23: 00 | G23: 400204 | H23: 1940 | I23: 1750 | K23: 402.2100.581000.40024.1940.1750.FAC.030.2025 | L23: 402 | M23: 2100 | N23: 581000 | O23: 40024 | P23: =CurrSchool -> 1940 | Q23: 1750 | R23: FAC | S23: 030 | T23: 2025
A24: ADD PFE Supplies | B24: 402.2100.561000.40024.1940.1750.FAC.030.2025 | C24: 204 | D24: 42 | E24: 53 | F24: 00 | G24: 400204 | H24: 1940 | I24: 1750 | K24: 402.2100.561000.40024.1940.1750.FAC.030.2025 | L24: 402 | M24: 2100 | N24: 561000 | O24: 40024 | P24: =CurrSchool -> 1940 | Q24: 1750 | R24: FAC | S24: 030 | T24: 2025
A25: ADD PFE Computer Software | B25: 402.2100.553200.40024.1940.1750.FAC.030.2025 | C25: 204 | D25: 42 | E25: 53 | F25: 05 | G25: 400204 | H25: 1940 | I25: 1750 | K25: 402.2100.553200.40024.1940.1750.FAC.030.2025 | L25: 402 | M25: 2100 | N25: 553200 | O25: 40024 | P25: 1940 | Q25: 1750 | R25: FAC | S25: 030 | T25: 2025
A26: ADD PFE Technology Supplies | B26: 402.2100.561100.40024.1940.1750.FAC.030.2025 | C26: 204 | D26: 42 | E26: 53 | F26: 10 | G26: 400204 | H26: 1940 | I26: 1750 | K26: 402.2100.561100.40024.1940.1750.FAC.030.2025 | L26: 402 | M26: 2100 | N26: 561100 | O26: 40024 | P26: 1940 | Q26: 1750 | R26: FAC | S26: 030 | T26: 2025
A27: ADD PFE Expendible Equipment | B27: 402.2100.561500.40024.1940.1750.FAC.030.2025 | C27: 204 | D27: 42 | E27: 92 | F27: 00 | G27: 400204 | H27: 1940 | I27: 1750 | K27: 402.2100.561500.40024.1940.1750.FAC.030.2025 | L27: 402 | M27: 2100 | N27: 561500 | O27: 40024 | P27: 1940 | Q27: 1750 | R27: FAC | S27: 030 | T27: 2025
A28: ADD PFE Expendible Computer Equipment | B28: 402.2100.561600.40024.1940.1750.FAC.030.2025 | C28: 204 | D28: 42 | E28: 92 | F28: 05 | G28: 400204 | H28: 1940 | I28: 1750 | K28: 402.2100.561600.40024.1940.1750.FAC.030.2025 | L28: 402 | M28: 2100 | N28: 561600 | O28: 40024 | P28: 1940 | Q28: 1750 | R28: FAC | S28: 030 | T28: 2025
A29: ADD PFE Books and Periodicals | B29: 402.2100.564200.40024.1940.1750.FAC.030.2025 | C29: 204 | D29: 42 | E29: 62 | F29: 00 | G29: 400204 | H29: 1940 | I29: 1750 | K29: 402.2100.564200.40024.1940.1750.FAC.030.2025 | L29: 402 | M29: 2100 | N29: 564200 | O29: 40024 | P29: 1940 | Q29: 1750 | R29: FAC | S29: 030 | T29: 2025
A30: Parent Liaison Salary | B30: 402.2100.517700.40024.1940.1750.FAC.030.2025 | C30: 204 | D30: 42 | E30: 07 | F30: 00 | G30: 400204 | H30: 1940 | I30: 1750 | K30: 402.2100.517700.40024.1940.1750.FAC.030.2025 | L30: 402 | M30: 2100 | N30: 517700 | O30: 40024 | P30: 1940 | Q30: 1750 | R30: FAC | S30: 030 | T30: 2025
A31: Parent Liaisons Group Health | B31: 402.2100.521000.40024.1940.1750.FAC.030.2025 | C31: 204 | D31: 42 | E31: 87 | F31: 00 | G31: 400204 | H31: 1940 | I31: 1750 | K31: 402.2100.521000.40024.1940.1750.FAC.030.2025 | L31: 402 | M31: 2100 | N31: 521000 | O31: 40024 | P31: 1940 | Q31: 1750 | R31: FAC | S31: 030 | T31: 2025
A32: Parent Liaisons Teacher Retirement | B32: 402.2100.523000.40024.1940.1750.FAC.030.2025 | C32: 204 | D32: 42 | E32: 74 | F32: 00 | G32: 400204 | H32: 1940 | I32: 1750 | K32: 402.2100.523000.40024.1940.1750.FAC.030.2025 | L32: 402 | M32: 2100 | N32: 523000 | O32: 40024 | P32: 1940 | Q32: 1750 | R32: FAC | S32: 030 | T32: 2025
A33: Parent Liaisons FICA | B33: 402.2100.522000.40024.1940.1750.FAC.030.2025 | C33: 204 | D33: 42 | E33: 89 | F33: 00 | G33: 400204 | H33: 1940 | I33: 1750 | K33: 402.2100.522000.40024.1940.1750.FAC.030.2025 | L33: 402 | M33: 2100 | N33: 522000 | O33: 40024 | P33: 1940 | Q33: 1750 | R33: FAC | S33: 030 | T33: 2025
A34: PFE Facilitator Extra Activity | B34: 402.2100.519900.30124.1940.1750.FAC.030.2025 | C34: 204 | D34: 42 | E34: 17 | F34: 00 | G34: 301204 | H34: 1940 | I34: 1750 | K34: 402.2100.519900.30124.1940.1750.FAC.030.2025 | L34: 402 | M34: 2100 | N34: 519900 | O34: 30124 | P34: =CurrSchool -> 1940 | Q34: 1750 | R34: FAC | S34: 030 | T34: 2025
A35: PFE FICA | B35: 402.2100.522000.30124.1940.1750.FAC.030.2025 | C35: 204 | D35: 42 | E35: 89 | F35: 00 | G35: 301204 | H35: 1940 | I35: 1750 | K35: 402.2100.522000.30124.1940.1750.FAC.030.2025 | L35: 402 | M35: 2100 | N35: 522000 | O35: 30124 | P35: 1940 | Q35: 1750 | R35: FAC | S35: 030 | T35: 2025
A36: PFE Contracted Services | B36: 402.2100.530000.30124.1940.1750.FAC.030.2025 | C36: 204 | D36: 42 | E36: 95 | F36: 00 | G36: 301204 | H36: 1940 | I36: 1750 | K36: 402.2100.530000.30124.1940.1750.FAC.030.2025 | L36: 402 | M36: 2100 | N36: 530000 | O36: 30124 | P36: 1940 | Q36: 1750 | R36: FAC | S36: 030 | T36: 2025
A37: PFE Communications | B37: 402.2100.553000.30124.1940.1750.FAC.030.2025 | C37: 204 | D37: 42 | E37: 97 | F37: 00 | G37: 301204 | H37: 1940 | I37: 1750 | K37: 402.2100.553000.30124.1940.1750.FAC.030.2025 | L37: 402 | M37: 2100 | N37: 553000 | O37: 30124 | P37: 1940 | Q37: 1750 | R37: FAC | S37: 030 | T37: 2025
A38: PFE Travel of Employees | B38: 402.2100.558000.30124.1940.1750.FAC.030.2025 | C38: 204 | D38: 42 | E38: 33 | F38: 00 | G38: 301204 | H38: 1940 | I38: 1750 | K38: 402.2100.558000.30124.1940.1750.FAC.030.2025 | L38: 402 | M38: 2100 | N38: 558000 | O38: 30124 | P38: 1940 | Q38: 1750 | R38: FAC | S38: 030 | T38: 2025
A39: PFE Registration Fees | B39: 402.2100.581000.30124.1940.1750.FAC.030.2025 | C39: 204 | D39: 42 | E39: 36 | F39: 00 | G39: 301204 | H39: 1940 | I39: 1750 | K39: 402.2100.581000.30124.1940.1750.FAC.030.2025 | L39: 402 | M39: 2100 | N39: 581000 | O39: 30124 | P39: 1940 | Q39: 1750 | R39: FAC | S39: 030 | T39: 2025
A40: PFE Supplies | B40: 402.2100.561000.30124.1940.1750.FAC.030.2025 | C40: 204 | D40: 42 | E40: 53 | F40: 00 | G40: 301204 | H40: 1940 | I40: 1750 | K40: 402.2100.561000.30124.1940.1750.FAC.030.2025 | L40: 402 | M40: 2100 | N40: 561000 | O40: 30124 | P40: 1940 | Q40: 1750 | R40: FAC | S40: 030 | T40: 2025
A41: PFE Computer Software | B41: 402.2100.553200.30124.1940.1750.FAC.030.2025 | C41: 204 | D41: 42 | E41: 53 | F41: 05 | G41: 301204 | H41: =CurrSchool -> 1940 | I41: 1750 | K41: 402.2100.553200.30124.1940.1750.FAC.030.2025 | L41: 402 | M41: 2100 | N41: 553200 | O41: 30124 | P41: 1940 | Q41: 1750 | R41: FAC | S41: 030 | T41: 2025
A42: PFE Technology Supplies | B42: 402.2100.561100.30124.1940.1750.FAC.030.2025 | C42: 204 | D42: 42 | E42: 53 | F42: 10 | G42: 301204 | H42: 1940 | I42: 1750 | K42: 402.2100.561100.30124.1940.1750.FAC.030.2025 | L42: 402 | M42: 2100 | N42: 561100 | O42: 30124 | P42: 1940 | Q42: 1750 | R42: FAC | S42: 030 | T42: 2025
A43: PFE Expendible Equipment | B43: 402.2100.561500.30124.1940.1750.FAC.030.2025 | C43: 204 | D43: 42 | E43: 92 | F43: 00 | G43: 301204 | H43: 1940 | I43: 1750 | K43: 402.2100.561500.30124.1940.1750.FAC.030.2025 | L43: 402 | M43: 2100 | N43: 561500 | O43: 30124 | P43: 1940 | Q43: 1750 | R43: FAC | S43: 030 | T43: 2025
A44: PFE Expendible Computer Equipment | B44: 402.2100.561600.30124.1940.1750.FAC.030.2025 | C44: 204 | D44: 42 | E44: 92 | F44: 05 | G44: 301204 | H44: 1940 | I44: 1750 | K44: 402.2100.561600.30124.1940.1750.FAC.030.2025 | L44: 402 | M44: 2100 | N44: 561600 | O44: 30124 | P44: 1940 | Q44: 1750 | R44: FAC | S44: 030 | T44: 2025
A45: PFE Books and Periodicals | B45: 402.2100.564200.30124.1940.1750.FAC.030.2025 | C45: 204 | D45: 42 | E45: 62 | F45: 00 | G45: 301204 | H45: 1940 | I45: 1750 | K45: 402.2100.564200.30124.1940.1750.FAC.030.2025 | L45: 402 | M45: 2100 | N45: 564200 | O45: 30124 | P45: 1940 | Q45: 1750 | R45: FAC | S45: 030 | T45: 2025
A46: PL Substitutes for Certified Teacher | B46: 402.2213.511400.40024.1940.1750.FAC.030.2025 | C46: 204 | D46: 44 | E46: 16 | F46: 00 | G46: 400204 | H46: 1940 | I46: 1750 | K46: 402.2213.511400.40024.1940.1750.FAC.030.2025 | L46: 402 | M46: 2213 | N46: 511400 | O46: 40024 | P46: 1940 | Q46: 1750 | R46: FAC | S46: 030 | T46: 2025
A47: PL FICA (Subs, Stips, Academic Coach) | B47: 402.2213.522000.40024.1940.1750.FAC.030.2025 | C47: 204 | D47: 44 | E47: 89 | F47: 00 | G47: 400204 | H47: 1940 | I47: 1750 | K47: 402.2213.522000.40024.1940.1750.FAC.030.2025 | L47: 402 | M47: 2213 | N47: 522000 | O47: 40024 | P47: 1940 | Q47: 1750 | R47: FAC | S47: 030 | T47: 2025
A48: PL Stipends | B48: 402.2213.511600.40024.1940.1750.FAC.030.2025 | C48: 204 | D48: 44 | E48: 12 | F48: 00 | G48: 400204 | H48: 1940 | I48: 1750 | K48: 402.2213.511600.40024.1940.1750.FAC.030.2025 | L48: 402 | M48: 2213 | N48: 511600 | O48: 40024 | P48: 1940 | Q48: 1750 | R48: FAC | S48: 030 | T48: 2025
A49: Academic Coach Salaries | B49: 402.2213.519100.40024.1940.1750.FAC.030.2025 | C49: 204 | D49: 44 | E49: 19 | F49: 10 | G49: 400204 | H49: 1940 | I49: 1750 | K49: 402.2213.519100.40024.1940.1750.FAC.030.2025 | L49: 402 | M49: 2213 | N49: 519100 | O49: 40024 | P49: 1940 | Q49: 1750 | R49: FAC | S49: 030 | T49: 2025
A50: Academic Coach Group Health | B50: 402.2213.521000.40024.1940.1750.FAC.030.2025 | C50: 204 | D50: 44 | E50: 87 | F50: 00 | G50: 400204 | H50: 1940 | I50: 1750 | K50: 402.2213.521000.40024.1940.1750.FAC.030.2025 | L50: 402 | M50: 2213 | N50: 521000 | O50: 40024 | P50: 1940 | Q50: 1750 | R50: FAC | S50: 030 | T50: 2025
A51: Academic Coach Teacher Retirement | B51: 402.2213.523000.40024.1940.1750.FAC.030.2025 | C51: 204 | D51: 44 | E51: 74 | F51: 00 | G51: 400204 | H51: 1940 | I51: 1750 | K51: 402.2213.523000.40024.1940.1750.FAC.030.2025 | L51: 402 | M51: 2213 | N51: 523000 | O51: 40024 | P51: 1940 | Q51: 1750 | R51: FAC | S51: 030 | T51: 2025
A52: Data Clerk Salary | B52: 402.2213.000000.40024.1940.1750.FAC.030.2025 | C52: 204 | D52: 44 | E52: 03 | F52: 00 | G52: 400204 | H52: 1940 | I52: 1750 | K52: 402.2213.000000.40024.1940.1750.FAC.030.2025 | L52: 402 | M52: 2213 | N52: 000000 | O52: 40024 | P52: 1940 | Q52: 1750 | R52: FAC | S52: 030 | T52: 2025
A53: PL Contracted Services | B53: 402.2213.530000.40024.1940.1750.FAC.030.2025 | C53: 204 | D53: 44 | E53: 95 | F53: 00 | G53: 400204 | H53: 1940 | I53: 1750 | K53: 402.2213.530000.40024.1940.1750.FAC.030.2025 | L53: 402 | M53: 2213 | N53: 530000 | O53: 40024 | P53: =CurrSchool -> 1940 | Q53: 1750 | R53: FAC | S53: 030 | T53: 2025
A54: PL Travel of Employees | B54: 402.2213.558000.40024.1940.1750.FAC.030.2025 | C54: 204 | D54: 44 | E54: 33 | F54: 00 | G54: 400204 | H54: 1940 | I54: 1750 | K54: 402.2213.558000.40024.1940.1750.FAC.030.2025 | L54: 402 | M54: 2213 | N54: 558000 | O54: 40024 | P54: 1940 | Q54: 1750 | R54: FAC | S54: 030 | T54: 2025
A55: PL Registration Fees | B55: 402.2213.581000.40024.1940.1750.FAC.030.2025 | C55: 204 | D55: 44 | E55: 36 | F55: 00 | G55: 400204 | H55: 1940 | I55: 1750 | K55: 402.2213.581000.40024.1940.1750.FAC.030.2025 | L55: 402 | M55: 2213 | N55: 581000 | O55: 40024 | P55: 1940 | Q55: 1750 | R55: FAC | S55: 030 | T55: 2025
A56: PL Supplies | B56: 402.2213.561000.40024.1940.1750.FAC.030.2025 | C56: 204 | D56: 44 | E56: 53 | F56: 00 | G56: 400204 | H56: 1940 | I56: 1750 | K56: 402.2213.561000.40024.1940.1750.FAC.030.2025 | L56: 402 | M56: 2213 | N56: 561000 | O56: 40024 | P56: 1940 | Q56: 1750 | R56: FAC | S56: 030 | T56: 2025
A57: PL Computer Software | B57: 402.2213.553200.40024.1940.1750.FAC.030.2025 | C57: 204 | D57: 44 | E57: 53 | F57: 05 | G57: 400204 | H57: 1940 | I57: 1750 | K57: 402.2213.553200.40024.1940.1750.FAC.030.2025 | L57: 402 | M57: 2213 | N57: 553200 | O57: 40024 | P57: 1940 | Q57: 1750 | R57: FAC | S57: 030 | T57: 2025
A58: PL Equipment | B58: 402.2213.561500.40024.1940.1750.FAC.030.2025 | C58: 204 | D58: 44 | E58: 92 | F58: 00 | G58: 400204 | H58: 1940 | I58: 1750 | K58: 402.2213.561500.40024.1940.1750.FAC.030.2025 | L58: 402 | M58: 2213 | N58: 561500 | O58: 40024 | P58: 1940 | Q58: 1750 | R58: FAC | S58: 030 | T58: 2025
A59: PL Books and Periodicals | B59: 402.2213.564200.40024.1940.1750.FAC.030.2025 | C59: 204 | D59: 44 | E59: 62 | F59: 00 | G59: 400204 | H59: 1940 | I59: 1750 | K59: 402.2213.564200.40024.1940.1750.FAC.030.2025 | L59: 402 | M59: 2213 | N59: 564200 | O59: 40024 | P59: 1940 | Q59: 1750 | R59: FAC | S59: 030 | T59: 2025
A60: Educational Media Books and Periodicals | B60: 402.2220.564200.40024.1940.1750.FAC.030.2025 | C60: 204 | D60: 44 | E60: 62 | F60: 05 | G60: 400204 | H60: 1940 | I60: 1750 | K60: 402.2220.564200.40024.1940.1750.FAC.030.2025 | L60: 402 | M60: 2220 | N60: 564200 | O60: 40024 | P60: 1940 | Q60: 1750 | R60: FAC | S60: 030 | T60: 2025
A61: Custodian Extra Activity | B61: 402.2600.518600.40024.1940.1750.FAC.030.2025 | C61: 204 | D61: 57 | E61: 17 | F61: 00 | G61: 400204 | H61: 1940 | I61: 1750 | K61: 402.2600.518600.40024.1940.1750.FAC.030.2025 | L61: 402 | M61: 2600 | N61: 518600 | O61: 40024 | P61: 1940 | Q61: 1750 | R61: FAC | S61: 030 | T61: 2025
A62: Custodian FICA | B62: 402.2600.522000.40024.1940.1750.FAC.030.2025 | C62: 204 | D62: 57 | E62: 89 | F62: 00 | G62: 400204 | H62: 1940 | I62: 1750 | K62: 402.2600.522000.40024.1940.1750.FAC.030.2025 | L62: 402 | M62: 2600 | N62: 522000 | O62: 40024 | P62: 1940 | Q62: 1750 | R62: FAC | S62: 030 | T62: 2025
A63: Transportation Bus Driver Extra Activity | B63: 402.2700.518000.40024.1940.1750.FAC.030.2025 | C63: 204 | D63: 56 | E63: 17 | F63: 00 | G63: 400204 | H63: 1940 | I63: 1750 | K63: 402.2700.518000.40024.1940.1750.FAC.030.2025 | L63: 402 | M63: 2700 | N63: 518000 | O63: 40024 | P63: 1940 | Q63: 1750 | R63: FAC | S63: 030 | T63: 2025
A64: Transporation Bus Driver FICA | B64: 402.2700.522000.40024.1940.1750.FAC.030.2025 | C64: 204 | D64: 56 | E64: 89 | F64: 00 | G64: 400204 | H64: 1940 | I64: 1750 | K64: 402.2700.522000.40024.1940.1750.FAC.030.2025 | L64: 402 | M64: 2700 | N64: 522000 | O64: 40024 | P64: 1940 | Q64: 1750 | R64: FAC | S64: 030 | T64: 2025
A65: Transportation Gas or Diesel Fuel | B65: 402.2700.562000.40024.1940.1750.FAC.030.2025 | C65: 204 | D65: 56 | E65: 95 | F65: 00 | G65: 400204 | H65: 1940 | I65: 1750 | K65: 402.2700.562000.40024.1940.1750.FAC.030.2025 | L65: 402 | M65: 2700 | N65: 562000 | O65: 40024 | P65: 1940 | Q65: 1750 | R65: FAC | S65: 030 | T65: 2025
A66: Transportation For Parents | B66: =CONCATENATE(L66,".",M66,".",N66,".",O66,".",P66,".",Q66,".",R66,".",S66,".",T66) -> 402.2100.559500.40024.1940.1750.FAC.030.2025 | C66: 204 | D66: 56 | E66: 95 | F66: 10 | G66: 400204 | H66: 1940 | I66: 1750 | K66: =CONCATENATE(L66,".",M66,".",N66,".",O66,".",P66,".",Q66,".",R66,".",S66,".",T66) -> 402.2100.559500.40024.1940.1750.FAC.030.2025 | L66: 402 | M66: 2100 | N66: 559500 | O66: 40024 | P66: 1940 | Q66: 1750 | R66: FAC | S66: 030 | T66: 2025
A67: Total | J67: =SUM(J2:J66) -> 0

Sheet TitleIExpns (hidden)
A1: =BudgetCat!A1 -> Code Description | B1: =BudgetCat!B1 -> BudgetCode | C1: Cat1Costs1 | D1: Cat1Costs2 | E1: Cat1Costs3 | F1: Cat1Costs4 | G1: Cat1Costs5 | H1: Cat1Costs6 | I1: Cat1Tot | J1: Cat2Costs1 | K1: Cat2Costs2 | L1: Cat2Costs3 | M1: Cat2Costs4 | N1: Cat2Costs5 | O1: Cat2Costs6 | P1: Cat2Tot | Q1: Cat3Costs1 | R1: Cat3Costs2 | S1: Cat3Costs3 | T1: Cat3Costs4 | U1: Cat3Costs5 | V1: Cat3Costs6 | W1: Cat3Tot | X1: Cat4Costs1 | Y1: Cat4Costs2 | Z1: Cat4Costs3 | AA1: Cat4Costs4 | AB1: Cat4Costs5 | AC1: Cat4Costs6 | AD1: Cat4Tot | AE1: Totals
A2: =BudgetCat!A2 -> Teacher Salary | B2: =BudgetCat!B2 -> 402.1000.511000.40024.1940.1750.FAC.030.2025 | C2: =SUMIF(e1Cat1,A2,e1Costs1) -> 0 | D2: =SUMIF(e1Cat2,A2,e1Costs2) -> 0 | E2: =SUMIF(e1Cat3,A2,e1Costs3) -> 0 | F2: =SUMIF(e1Cat4,A2,e1Costs4) -> 0 | G2: =SUMIF(e1Cat5,A2,e1Costs5) -> 0 | H2: =SUMIF(e1Cat6,A2,e1Costs6) -> 0 | I2: =SUM(C2:H2) -> 0 | J2: =SUMIF(e2Cat1,A2,e2Costs1) -> 0 | K2: =SUMIF(e2Cat2,A2,e2Costs2) -> 0 | L2: =SUMIF(e2Cat3,A2,e2Costs3) -> 0 | M2: =SUMIF(e2Cat4,A2,e2Costs4) -> 0 | N2: =SUMIF(e2Cat5,A2,e2Costs5) -> 0 | O2: =SUMIF(e2Cat6,A2,e2Costs6) -> 0 | P2: =SUM(J2:O2) -> 0 | Q2: =SUMIF(e3Cat1,A2,e3Costs1) -> 0 | R2: =SUMIF(e3Cat2,A2,e3Costs2) -> 0 | S2: =SUMIF(e3Cat3,A2,e3Costs3) -> 0 | T2: =SUMIF(e3Cat4,A2,e3Costs4) -> 0 | U2: =SUMIF(e3Cat5,A2,e3Costs5) -> 0 | V2: =SUMIF(e3Cat6,A2,e3Costs6) -> 0 | W2: =SUM(Q2:V2) -> 0 | X2: =SUMIF(e4Cat1,A2,e4Costs1) -> 0 | Y2: =SUMIF(e4Cat2,A2,e4Costs2) -> 0 | Z2: =SUMIF(e4Cat3,A2,e4Costs3) -> 0 | AA2: =SUMIF(e4Cat4,A2,e4Costs4) -> 0 | AB2: =SUMIF(e4Cat5,A2,e4Costs5) -> 0 | AC2: =SUMIF(e4Cat6,A2,e4Costs6) -> 0 | AD2: =SUM(X2:AC2) -> 0 | AE2: =SUM(I2,P2,W2,AD2) -> 0
A3: =BudgetCat!A3 -> Teacher and Paraprofessional Group Health | B3: =BudgetCat!B3 -> 402.1000.521000.40024.1940.1750.FAC.030.2025 | C3: =SUMIF(e1Cat1,A3,e1Costs1) -> 0 | D3: 0 | E3: 0 | F3: 0 | G3: 0 | H3: 0 | I3: =SUM(C3:H3) -> 0 | J3: 0 | K3: 0 | L3: 0 | M3: 0 | N3: 0 | O3: 0 | P3: =SUM(J3:O3) -> 0 | Q3: 0 | R3: 0 | S3: 0 | T3: 0 | U3: 0 | V3: 0 | W3: =SUM(Q3:V3) -> 0 | X3: 0 | Y3: 0 | Z3: 0 | AA3: 0 | AB3: 0 | AC3: 0 | AD3: =SUM(X3:AC3) -> 0 | AE3: 0
A4: =BudgetCat!A4 -> Teacher and Paraprofessional Retirement | B4: =BudgetCat!B4 -> 402.1000.523000.40024.1940.1750.FAC.030.2025 | C4: 0 | D4: 0 | E4: 0 | F4: 0 | G4: 0 | H4: 0 | I4: 0 | J4: 0 | K4: 0 | L4: 0 | M4: 0 | N4: 0 | O4: 0 | P4: 0 | Q4: 0 | R4: 0 | S4: 0 | T4: 0 | U4: 0 | V4: 0 | W4: 0 | X4: 0 | Y4: 0 | Z4: 0 | AA4: 0 | AB4: 0 | AC4: 0 | AD4: 0 | AE4: 0
A5: =BudgetCat!A5 -> Paraprofessional Salary | B5: =BudgetCat!B5 -> 402.1000.514000.40024.1940.1750.FAC.030.2025 | C5: 0 | D5: 0 | E5: 0 | F5: 0 | G5: 0 | H5: 0 | I5: 0 | J5: 0 | K5: 0 | L5: 0 | M5: 0 | N5: 0 | O5: 0 | P5: 0 | Q5: 0 | R5: 0 | S5: 0 | T5: 0 | U5: 0 | V5: 0 | W5: 0 | X5: 0 | Y5: 0 | Z5: 0 | AA5: 0 | AB5: 0 | AC5: 0 | AD5: 0 | AE5: 0
A6: =BudgetCat!A6 -> Substitutes for Certified Teacher Salaries | B6: =BudgetCat!B6 -> 402.1000.511300.40024.1940.1750.FAC.030.2025 | C6: 0 | D6: 0 | E6: 0 | F6: 0 | G6: 0 | H6: 0 | I6: 0 | J6: 0 | K6: 0 | L6: 0 | M6: 0 | N6: 0 | O6: 0 | P6: 0 | Q6: 0 | R6: 0 | S6: 0 | T6: 0 | U6: 0 | V6: 0 | W6: 0 | X6: 0 | Y6: 0 | Z6: 0 | AA6: 0 | AB6: 0 | AC6: 0 | AD6: 0 | AE6: 0
A7: =BudgetCat!A7 -> Afterschool/Daytime Tutorial | B7: =BudgetCat!B7 -> 402.1000.519900.40024.1940.1750.FAC.030.2025 | C7: 0 | D7: 0 | E7: 0 | F7: 0 | G7: 0 | H7: 0 | I7: 0 | J7: 0 | K7: 0 | L7: 0 | M7: 0 | N7: 0 | O7: 0 | P7: 0 | Q7: 0 | R7: 0 | S7: 0 | T7: 0 | U7: 0 | V7: 0 | W7: 0 | X7: 0 | Y7: 0 | Z7: 0 | AA7: 0 | AB7: 0 | AC7: 0 | AD7: 0 | AE7: 0
A8: =BudgetCat!A8 -> Instructional FICA (Teacher,Para,Subs,Tutor) | B8: =BudgetCat!B8 -> 402.1000.522000.40024.1940.1750.FAC.030.2025 | C8: =IF(SUMIF(e1Cat1,$A$6,e1Costs1)>0,SUMIF(e1Cat1,$A$6,e1Costs1)*tFICA,0) -> 0 | D8: =IF(SUMIF(e1Cat2,$A$6,e1Costs2)>0,SUMIF(e1Cat2,$A$6,e1Costs2)*tFICA,0) -> 0 | E8: =IF(SUMIF(e1Cat3,$A$6,e1Costs3)>0,SUMIF(e1Cat3,$A$6,e1Costs3)*tFICA,0) -> 0 | F8: =IF(SUMIF(e1Cat4,$A$6,e1Costs4)>0,SUMIF(e1Cat4,$A$6,e1Costs4)*tFICA,0) -> 0 | G8: =IF(SUMIF(e1Cat5,$A$6,e1Costs5)>0,SUMIF(e1Cat5,$A$6,e1Costs5)*tFICA,0) -> 0 | H8: =IF(SUMIF(e1Cat6,$A$6,e1Costs6)>0,SUMIF(e1Cat6,$A$6,e1Costs6)*tFICA,0) -> 0 | I8: 0 | J8: =IF(SUMIF(e2Cat1,$A$6,e2Costs1)>0,SUMIF(e2Cat1,$A$6,e2Costs1)*tFICA,0) -> 0 | K8: =IF(SUMIF(e2Cat2,$A$6,e2Costs2)>0,SUMIF(e2Cat2,$A$6,e2Costs2)*tFICA,0) -> 0 | L8: =IF(SUMIF(e2Cat3,$A$6,e2Costs3)>0,SUMIF(e2Cat3,$A$6,e2Costs3)*tFICA,0) -> 0 | M8: =IF(SUMIF(e2Cat4,$A$6,e2Costs4)>0,SUMIF(e2Cat4,$A$6,e2Costs4)*tFICA,0) -> 0 | N8: =IF(SUMIF(e2Cat5,$A$6,e2Costs5)>0,SUMIF(e2Cat5,$A$6,e2Costs5)*tFICA,0) -> 0 | O8: =IF(SUMIF(e2Cat6,$A$6,e2Costs6)>0,SUMIF(e2Cat6,$A$6,e2Costs6)*tFICA,0) -> 0 | P8: 0 | Q8: =IF(SUMIF(e3Cat1,$A$6,e3Costs1)>0,SUMIF(e3Cat1,$A$6,e3Costs1)*tFICA,0) -> 0 | R8: =IF(SUMIF(e3Cat2,$A$6,e3Costs2)>0,SUMIF(e3Cat2,$A$6,e3Costs2)*tFICA,0) -> 0 | S8: =IF(SUMIF(e3Cat3,$A$6,e3Costs3)>0,SUMIF(e3Cat3,$A$6,e3Costs3)*tFICA,0) -> 0 | T8: =IF(SUMIF(e3Cat4,$A$6,e3Costs4)>0,SUMIF(e3Cat4,$A$6,e3Costs4)*tFICA,0) -> 0 | U8: =IF(SUMIF(e3Cat5,$A$6,e3Costs5)>0,SUMIF(e3Cat5,$A$6,e3Costs5)*tFICA,0) -> 0 | V8: =IF(SUMIF(e3Cat6,$A$6,e3Costs6)>0,SUMIF(e3Cat6,$A$6,e3Costs6)*tFICA,0) -> 0 | W8: 0 | X8: =IF(SUMIF(e4Cat1,$A$6,e4Costs1)>0,SUMIF(e4Cat1,$A$6,e4Costs1)*tFICA,0) -> 0 | Y8: =IF(SUMIF(e4Cat2,$A$6,e4Costs2)>0,SUMIF(e4Cat2,$A$6,e4Costs2)*tFICA,0) -> 0 | Z8: =IF(SUMIF(e4Cat3,$A$6,e4Costs3)>0,SUMIF(e4Cat3,$A$6,e4Costs3)*tFICA,0) -> 0 | AA8: =IF(SUMIF(e4Cat4,$A$6,e4Costs4)>0,SUMIF(e4Cat4,$A$6,e4Costs4)*tFICA,0) -> 0 | AB8: =IF(SUMIF(e4Cat5,$A$6,e4Costs5)>0,SUMIF(e4Cat5,$A$6,e4Costs5)*tFICA,0) -> 0 | AC8: =IF(SUMIF(e4Cat6,$A$6,e4Costs6)>0,SUMIF(e4Cat6,$A$6,e4Costs6)*tFICA,0) -> 0 | AD8: 0 | AE8: 0
A9: =BudgetCat!A9 -> Instructional Contracted Services | B9: =BudgetCat!B9 -> 402.1000.530000.40024.1940.1750.FAC.030.2025 | C9: 0 | D9: 0 | E9: 0 | F9: 0 | G9: 0 | H9: 0 | I9: 0 | J9: 0 | K9: 0 | L9: 0 | M9: 0 | N9: 0 | O9: 0 | P9: 0 | Q9: 0 | R9: 0 | S9: 0 | T9: 0 | U9: 0 | V9: 0 | W9: 0 | X9: 0 | Y9: 0 | Z9: 0 | AA9: 0 | AB9: 0 | AC9: 0 | AD9: 0 | AE9: 0
A10: =BudgetCat!A10 -> Instructional Contracted Services Teacher Salary (Charter Schools Only) | B10: =BudgetCat!B10 -> 402.1000.532100.40024.1940.1750.FAC.030.2025 | C10: 0 | D10: 0 | E10: 0 | F10: 0 | G10: 0 | H10: 0 | I10: 0 | J10: 0 | K10: 0 | L10: 0 | M10: 0 | N10: 0 | O10: 0 | P10: 0 | Q10: 0 | R10: 0 | S10: 0 | T10: 0 | U10: 0 | V10: 0 | W10: 0 | X10: 0 | Y10: 0 | Z10: 0 | AA10: 0 | AB10: 0 | AC10: 0 | AD10: 0 | AE10: 0
A11: =BudgetCat!A11 -> Instructional Supplies | B11: =BudgetCat!B11 -> 402.1000.561000.40024.1940.1750.FAC.030.2025 | C11: 3375 | D11: 0 | E11: 0 | F11: 0 | G11: 0 | H11: 0 | I11: 3375 | J11: 51470.81 | K11: 0 | L11: 0 | M11: 0 | N11: 0 | O11: 0 | P11: 51470.81 | Q11: 0 | R11: 0 | S11: 0 | T11: 0 | U11: 0 | V11: 0 | W11: 0 | X11: 0 | Y11: 0 | Z11: 0 | AA11: 0 | AB11: 0 | AC11: 0 | AD11: 0 | AE11: 54845.81
A12: =BudgetCat!A12 -> Instructional Technology Supplies | B12: =BudgetCat!B12 -> 402.1000.561100.40024.1940.1750.FAC.030.2025 | C12: 0 | D12: 0 | E12: 0 | F12: 0 | G12: 0 | H12: 0 | I12: 0 | J12: 0 | K12: 0 | L12: 0 | M12: 0 | N12: 0 | O12: 0 | P12: 0 | Q12: 0 | R12: 0 | S12: 0 | T12: 0 | U12: 0 | V12: 0 | W12: 0 | X12: 0 | Y12: 0 | Z12: 0 | AA12: 0 | AB12: 0 | AC12: 0 | AD12: 0 | AE12: 0
A13: =BudgetCat!A13 -> Instructional Computer Software | B13: =BudgetCat!B13 -> 402.1000.553200.40024.1940.1750.FAC.030.2025 | C13: 39552.57 | D13: 0 | E13: 0 | F13: 0 | G13: 0 | H13: 0 | I13: 39552.57 | J13: 0 | K13: 0 | L13: 0 | M13: 0 | N13: 0 | O13: 0 | P13: 0 | Q13: 0 | R13: 0 | S13: 0 | T13: 0 | U13: 0 | V13: 0 | W13: 0 | X13: 0 | Y13: 0 | Z13: 0 | AA13: 0 | AB13: 0 | AC13: 0 | AD13: 0 | AE13: 39552.57
A14: =BudgetCat!A14 -> Instructional Equipment | B14: =BudgetCat!B14 -> 402.1000.561500.40024.1940.1750.FAC.030.2025 | C14: 8484.91 | D14: 0 | E14: 0 | F14: 0 | G14: 0 | H14: 0 | I14: 8484.91 | J14: 0 | K14: 2500 | L14: 0 | M14: 0 | N14: 0 | O14: 0 | P14: 2500 | Q14: 0 | R14: 0 | S14: 0 | T14: 0 | U14: 0 | V14: 0 | W14: 0 | X14: 0 | Y14: 0 | Z14: 0 | AA14: 0 | AB14: 0 | AC14: 0 | AD14: 0 | AE14: 10984.91
A15: =BudgetCat!A15 -> Instructional Equipment (greater than or equal to $5000) | B15: =BudgetCat!B15 -> 402.1000.573400.40024.1940.1750.FAC.030.2025 | C15: =SUMIF(e1Cat1,A15,e1Costs1) -> 0 | D15: =SUMIF(e1Cat2,A15,e1Costs2) -> 0 | E15: =SUMIF(e1Cat3,A15,e1Costs3) -> 0 | F15: =SUMIF(e1Cat4,A15,e1Costs4) -> 0 | G15: =SUMIF(e1Cat5,A15,e1Costs5) -> 0 | H15: =SUMIF(e1Cat6,A15,e1Costs6) -> 0 | I15: =SUM(C15:H15) -> 0 | J15: =SUMIF(e2Cat1,A15,e2Costs1) -> 0 | K15: =SUMIF(e2Cat2,A15,e2Costs2) -> 0 | L15: =SUMIF(e2Cat3,A15,e2Costs3) -> 0 | M15: =SUMIF(e2Cat4,A15,e2Costs4) -> 0 | N15: =SUMIF(e2Cat5,A15,e2Costs5) -> 0 | O15: =SUMIF(e2Cat6,A15,e2Costs6) -> 0 | P15: =SUM(J15:O15) -> 0 | Q15: =SUMIF(e3Cat1,A15,e3Costs1) -> 0 | R15: =SUMIF(e3Cat2,A15,e3Costs2) -> 0 | S15: =SUMIF(e3Cat3,A15,e3Costs3) -> 0 | T15: =SUMIF(e3Cat4,A15,e3Costs4) -> 0 | U15: =SUMIF(e3Cat5,A15,e3Costs5) -> 0 | V15: =SUMIF(e3Cat6,A15,e3Costs6) -> 0 | W15: =SUM(Q15:V15) -> 0 | X15: =SUMIF(e4Cat1,A15,e4Costs1) -> 0 | Y15: =SUMIF(e4Cat2,A15,e4Costs2) -> 0 | Z15: =SUMIF(e4Cat3,A15,e4Costs3) -> 0 | AA15: =SUMIF(e4Cat4,A15,e4Costs4) -> 0 | AB15: =SUMIF(e4Cat5,A15,e4Costs5) -> 0 | AC15: =SUMIF(e4Cat6,A15,e4Costs6) -> 0 | AD15: =SUM(X15:AC15) -> 0 | AE15: =SUM(I15,P15,W15,AD15) -> 0
A16: =BudgetCat!A16 -> Instructional Computers | B16: =BudgetCat!B16 -> 402.1000.561600.40024.1940.1750.FAC.030.2025 | C16: 0 | D16: 0 | E16: 0 | F16: 0 | G16: 0 | H16: 0 | I16: 0 | J16: 0 | K16: 0 | L16: 0 | M16: 0 | N16: 0 | O16: 0 | P16: 0 | Q16: 0 | R16: 0 | S16: 0 | T16: 0 | U16: 0 | V16: 0 | W16: 0 | X16: 0 | Y16: 0 | Z16: 0 | AA16: 0 | AB16: 0 | AC16: 0 | AD16: 0 | AE16: 0
A17: =BudgetCat!A17 -> Instructional Books and Periodicals | B17: =BudgetCat!B17 -> 402.1000.564200.40024.1940.1750.FAC.030.2025 | C17: 0 | D17: 0 | E17: 0 | F17: 0 | G17: 0 | H17: 0 | I17: 0 | J17: 0 | K17: 0 | L17: 0 | M17: 0 | N17: 0 | O17: 0 | P17: 0 | Q17: 0 | R17: 0 | S17: 0 | T17: 0 | U17: 0 | V17: 0 | W17: 0 | X17: 0 | Y17: 0 | Z17: 0 | AA17: 0 | AB17: 0 | AC17: 0 | AD17: 0 | AE17: 0
A18: =BudgetCat!A18 -> ADD PFE Facilitator Extra Activity | B18: =BudgetCat!B18 -> 402.1000.519900.40024.1940.1750.FAC.030.2025 | C18: 0 | D18: 0 | E18: 0 | F18: 0 | G18: 0 | H18: 0 | I18: 0 | J18: 0 | K18: 0 | L18: 0 | M18: 0 | N18: 0 | O18: 0 | P18: 0 | Q18: 0 | R18: 0 | S18: 0 | T18: 0 | U18: 0 | V18: 0 | W18: 0 | X18: 0 | Y18: 0 | Z18: 0 | AA18: 0 | AB18: 0 | AC18: 0 | AD18: 0 | AE18: 0
A19: =BudgetCat!A19 -> ADD PFE Facilitator Extra Activity FICA | B19: =BudgetCat!B19 -> 402.1000.522000.40024.1940.1750.FAC.030.2025 | C19: =IF(SUMIF(e1Cat1,$A$18,e1Costs1)>0,SUMIF(e1Cat1,$A$18,e1Costs1)*vAltBene,0) -> 0 | D19: =IF(SUMIF(e1Cat2,$A$18,e1Costs2)>0,SUMIF(e1Cat2,$A$18,e1Costs2)*vAltBene,0) -> 0 | E19: =IF(SUMIF(e1Cat3,$A$18,e1Costs3)>0,SUMIF(e1Cat3,$A$18,e1Costs3)*vAltBene,0) -> 0 | F19: =IF(SUMIF(e1Cat4,$A$18,e1Costs4)>0,SUMIF(e1Cat4,$A$18,e1Costs4)*vAltBene,0) -> 0 | G19: =IF(SUMIF(e1Cat5,$A$18,e1Costs5)>0,SUMIF(e1Cat5,$A$18,e1Costs5)*vAltBene,0) -> 0 | H19: =IF(SUMIF(e1Cat6,$A$18,e1Costs6)>0,SUMIF(e1Cat6,$A$18,e1Costs6)*vAltBene,0) -> 0 | I19: 0 | J19: =IF(SUMIF(e2Cat1,$A$18,e2Costs1)>0,SUMIF(e2Cat1,$A$18,e2Costs1)*vAltBene,0) -> 0 | K19: =IF(SUMIF(e2Cat2,$A$18,e2Costs2)>0,SUMIF(e2Cat2,$A$18,e2Costs2)*vAltBene,0) -> 0 | L19: =IF(SUMIF(e2Cat3,$A$18,e2Costs3)>0,SUMIF(e2Cat3,$A$18,e2Costs3)*vAltBene,0) -> 0 | M19: =IF(SUMIF(e2Cat4,$A$18,e2Costs4)>0,SUMIF(e2Cat4,$A$18,e2Costs4)*vAltBene,0) -> 0 | N19: =IF(SUMIF(e2Cat5,$A$18,e2Costs5)>0,SUMIF(e2Cat5,$A$18,e2Costs5)*vAltBene,0) -> 0 | O19: =IF(SUMIF(e2Cat6,$A$18,e2Costs6)>0,SUMIF(e2Cat6,$A$18,e2Costs6)*vAltBene,0) -> 0 | P19: 0 | Q19: =IF(SUMIF(e3Cat1,$A$18,e3Costs1)>0,SUMIF(e3Cat1,$A$18,e3Costs1)*vAltBene,0) -> 0 | R19: =IF(SUMIF(e3Cat2,$A$18,e3Costs2)>0,SUMIF(e3Cat2,$A$18,e3Costs2)*vAltBene,0) -> 0 | S19: =IF(SUMIF(e3Cat3,$A$18,e3Costs3)>0,SUMIF(e3Cat3,$A$18,e3Costs3)*vAltBene,0) -> 0 | T19: =IF(SUMIF(e3Cat4,$A$18,e3Costs4)>0,SUMIF(e3Cat4,$A$18,e3Costs4)*vAltBene,0) -> 0 | U19: =IF(SUMIF(e3Cat5,$A$18,e3Costs5)>0,SUMIF(e3Cat5,$A$18,e3Costs5)*vAltBene,0) -> 0 | V19: =IF(SUMIF(e3Cat6,$A$18,e3Costs6)>0,SUMIF(e3Cat6,$A$18,e3Costs6)*vAltBene,0) -> 0 | W19: 0 | X19: =IF(SUMIF(e4Cat1,$A$18,e4Costs1)>0,SUMIF(e4Cat1,$A$18,e4Costs1)*vAltBene,0) -> 0 | Y19: =IF(SUMIF(e4Cat2,$A$18,e4Costs2)>0,SUMIF(e4Cat2,$A$18,e4Costs2)*vAltBene,0) -> 0 | Z19: =IF(SUMIF(e4Cat3,$A$18,e4Costs3)>0,SUMIF(e4Cat3,$A$18,e4Costs3)*vAltBene,0) -> 0 | AA19: =IF(SUMIF(e4Cat4,$A$18,e4Costs4)>0,SUMIF(e4Cat4,$A$18,e4Costs4)*vAltBene,0) -> 0 | AB19: =IF(SUMIF(e4Cat5,$A$18,e4Costs5)>0,SUMIF(e4Cat5,$A$18,e4Costs5)*vAltBene,0) -> 0 | AC19: =IF(SUMIF(e4Cat6,$A$18,e4Costs6)>0,SUMIF(e4Cat6,$A$18,e4Costs6)*vAltBene,0) -> 0 | AD19: 0 | AE19: 0
A20: =BudgetCat!A20 -> ADD PFE Contracted Services | B20: =BudgetCat!B20 -> 402.2100.530000.40024.1940.1750.FAC.030.2025 | C20: =SUMIF(e1Cat1,A20,e1Costs1) -> 0 | D20: =SUMIF(e1Cat2,A20,e1Costs2) -> 0 | E20: =SUMIF(e1Cat3,A20,e1Costs3) -> 0 | F20: =SUMIF(e1Cat4,A20,e1Costs4) -> 0 | G20: =SUMIF(e1Cat5,A20,e1Costs5) -> 0 | H20: =SUMIF(e1Cat6,A20,e1Costs6) -> 0 | I20: =SUM(C20:H20) -> 0 | J20: =SUMIF(e2Cat1,A20,e2Costs1) -> 0 | K20: =SUMIF(e2Cat2,A20,e2Costs2) -> 0 | L20: =SUMIF(e2Cat3,A20,e2Costs3) -> 0 | M20: =SUMIF(e2Cat4,A20,e2Costs4) -> 0 | N20: =SUMIF(e2Cat5,A20,e2Costs5) -> 0 | O20: =SUMIF(e2Cat6,A20,e2Costs6) -> 0 | P20: =SUM(J20:O20) -> 0 | Q20: =SUMIF(e3Cat1,A20,e3Costs1) -> 0 | R20: =SUMIF(e3Cat2,A20,e3Costs2) -> 0 | S20: =SUMIF(e3Cat3,A20,e3Costs3) -> 0 | T20: =SUMIF(e3Cat4,A20,e3Costs4) -> 0 | U20: =SUMIF(e3Cat5,A20,e3Costs5) -> 0 | V20: =SUMIF(e3Cat6,A20,e3Costs6) -> 0 | W20: =SUM(Q20:V20) -> 0 | X20: =SUMIF(e4Cat1,A20,e4Costs1) -> 0 | Y20: =SUMIF(e4Cat2,A20,e4Costs2) -> 0 | Z20: =SUMIF(e4Cat3,A20,e4Costs3) -> 0 | AA20: =SUMIF(e4Cat4,A20,e4Costs4) -> 0 | AB20: =SUMIF(e4Cat5,A20,e4Costs5) -> 0 | AC20: =SUMIF(e4Cat6,A20,e4Costs6) -> 0 | AD20: =SUM(X20:AC20) -> 0 | AE20: =SUM(I20,P20,W20,AD20) -> 0
A21: =BudgetCat!A21 -> ADD PFE Communications | B21: =BudgetCat!B21 -> 402.2100.553000.40024.1940.1750.FAC.030.2025 | C21: =SUMIF(e1Cat1,A21,e1Costs1) -> 0 | D21: =SUMIF(e1Cat2,A21,e1Costs2) -> 0 | E21: =SUMIF(e1Cat3,A21,e1Costs3) -> 0 | F21: =SUMIF(e1Cat4,A21,e1Costs4) -> 0 | G21: =SUMIF(e1Cat5,A21,e1Costs5) -> 0 | H21: =SUMIF(e1Cat6,A21,e1Costs6) -> 0 | I21: =SUM(C21:H21) -> 0 | J21: =SUMIF(e2Cat1,A21,e2Costs1) -> 0 | K21: =SUMIF(e2Cat2,A21,e2Costs2) -> 0 | L21: =SUMIF(e2Cat3,A21,e2Costs3) -> 0 | M21: =SUMIF(e2Cat4,A21,e2Costs4) -> 0 | N21: =SUMIF(e2Cat5,A21,e2Costs5) -> 0 | O21: =SUMIF(e2Cat6,A21,e2Costs6) -> 0 | P21: =SUM(J21:O21) -> 0 | Q21: =SUMIF(e3Cat1,A21,e3Costs1) -> 0 | R21: =SUMIF(e3Cat2,A21,e3Costs2) -> 0 | S21: =SUMIF(e3Cat3,A21,e3Costs3) -> 0 | T21: =SUMIF(e3Cat4,A21,e3Costs4) -> 0 | U21: =SUMIF(e3Cat5,A21,e3Costs5) -> 0 | V21: =SUMIF(e3Cat6,A21,e3Costs6) -> 0 | W21: =SUM(Q21:V21) -> 0 | X21: =SUMIF(e4Cat1,A21,e4Costs1) -> 0 | Y21: =SUMIF(e4Cat2,A21,e4Costs2) -> 0 | Z21: =SUMIF(e4Cat3,A21,e4Costs3) -> 0 | AA21: =SUMIF(e4Cat4,A21,e4Costs4) -> 0 | AB21: =SUMIF(e4Cat5,A21,e4Costs5) -> 0 | AC21: =SUMIF(e4Cat6,A21,e4Costs6) -> 0 | AD21: =SUM(X21:AC21) -> 0 | AE21: =SUM(I21,P21,W21,AD21) -> 0
A22: =BudgetCat!A22 -> ADD PFE Travel of Employees | B22: =BudgetCat!B22 -> 402.2100.558000.40024.1940.1750.FAC.030.2025 | C22: =SUMIF(e1Cat1,A22,e1Costs1) -> 0 | D22: =SUMIF(e1Cat2,A22,e1Costs2) -> 0 | E22: =SUMIF(e1Cat3,A22,e1Costs3) -> 0 | F22: =SUMIF(e1Cat4,A22,e1Costs4) -> 0 | G22: =SUMIF(e1Cat5,A22,e1Costs5) -> 0 | H22: =SUMIF(e1Cat6,A22,e1Costs6) -> 0 | I22: =SUM(C22:H22) -> 0 | J22: =SUMIF(e2Cat1,A22,e2Costs1) -> 0 | K22: =SUMIF(e2Cat2,A22,e2Costs2) -> 0 | L22: =SUMIF(e2Cat3,A22,e2Costs3) -> 0 | M22: =SUMIF(e2Cat4,A22,e2Costs4) -> 0 | N22: =SUMIF(e2Cat5,A22,e2Costs5) -> 0 | O22: =SUMIF(e2Cat6,A22,e2Costs6) -> 0 | P22: =SUM(J22:O22) -> 0 | Q22: =SUMIF(e3Cat1,A22,e3Costs1) -> 0 | R22: =SUMIF(e3Cat2,A22,e3Costs2) -> 0 | S22: =SUMIF(e3Cat3,A22,e3Costs3) -> 0 | T22: =SUMIF(e3Cat4,A22,e3Costs4) -> 0 | U22: =SUMIF(e3Cat5,A22,e3Costs5) -> 0 | V22: =SUMIF(e3Cat6,A22,e3Costs6) -> 0 | W22: =SUM(Q22:V22) -> 0 | X22: =SUMIF(e4Cat1,A22,e4Costs1) -> 0 | Y22: =SUMIF(e4Cat2,A22,e4Costs2) -> 0 | Z22: =SUMIF(e4Cat3,A22,e4Costs3) -> 0 | AA22: =SUMIF(e4Cat4,A22,e4Costs4) -> 0 | AB22: =SUMIF(e4Cat5,A22,e4Costs5) -> 0 | AC22: =SUMIF(e4Cat6,A22,e4Costs6) -> 0 | AD22: =SUM(X22:AC22) -> 0 | AE22: =SUM(I22,P22,W22,AD22) -> 0
A23: =BudgetCat!A23 -> ADD PFE Registration Fees | B23: =BudgetCat!B23 -> 402.2100.581000.40024.1940.1750.FAC.030.2025 | C23: =SUMIF(e1Cat1,A23,e1Costs1) -> 0 | D23: =SUMIF(e1Cat2,A23,e1Costs2) -> 0 | E23: =SUMIF(e1Cat3,A23,e1Costs3) -> 0 | F23: =SUMIF(e1Cat4,A23,e1Costs4) -> 0 | G23: =SUMIF(e1Cat5,A23,e1Costs5) -> 0 | H23: =SUMIF(e1Cat6,A23,e1Costs6) -> 0 | I23: =SUM(C23:H23) -> 0 | J23: =SUMIF(e2Cat1,A23,e2Costs1) -> 0 | K23: =SUMIF(e2Cat2,A23,e2Costs2) -> 0 | L23: =SUMIF(e2Cat3,A23,e2Costs3) -> 0 | M23: =SUMIF(e2Cat4,A23,e2Costs4) -> 0 | N23: =SUMIF(e2Cat5,A23,e2Costs5) -> 0 | O23: =SUMIF(e2Cat6,A23,e2Costs6) -> 0 | P23: =SUM(J23:O23) -> 0 | Q23: =SUMIF(e3Cat1,A23,e3Costs1) -> 0 | R23: =SUMIF(e3Cat2,A23,e3Costs2) -> 0 | S23: =SUMIF(e3Cat3,A23,e3Costs3) -> 0 | T23: =SUMIF(e3Cat4,A23,e3Costs4) -> 0 | U23: =SUMIF(e3Cat5,A23,e3Costs5) -> 0 | V23: =SUMIF(e3Cat6,A23,e3Costs6) -> 0 | W23: =SUM(Q23:V23) -> 0 | X23: =SUMIF(e4Cat1,A23,e4Costs1) -> 0 | Y23: =SUMIF(e4Cat2,A23,e4Costs2) -> 0 | Z23: =SUMIF(e4Cat3,A23,e4Costs3) -> 0 | AA23: =SUMIF(e4Cat4,A23,e4Costs4) -> 0 | AB23: =SUMIF(e4Cat5,A23,e4Costs5) -> 0 | AC23: =SUMIF(e4Cat6,A23,e4Costs6) -> 0 | AD23: =SUM(X23:AC23) -> 0 | AE23: =SUM(I23,P23,W23,AD23) -> 0
A24: =BudgetCat!A24 -> ADD PFE Supplies | B24: =BudgetCat!B24 -> 402.2100.561000.40024.1940.1750.FAC.030.2025 | C24: =SUMIF(e1Cat1,A24,e1Costs1) -> 0 | D24: =SUMIF(e1Cat2,A24,e1Costs2) -> 0 | E24: =SUMIF(e1Cat3,A24,e1Costs3) -> 0 | F24: =SUMIF(e1Cat4,A24,e1Costs4) -> 0 | G24: =SUMIF(e1Cat5,A24,e1Costs5) -> 0 | H24: =SUMIF(e1Cat6,A24,e1Costs6) -> 0 | I24: =SUM(C24:H24) -> 0 | J24: =SUMIF(e2Cat1,A24,e2Costs1) -> 0 | K24: =SUMIF(e2Cat2,A24,e2Costs2) -> 0 | L24: =SUMIF(e2Cat3,A24,e2Costs3) -> 0 | M24: =SUMIF(e2Cat4,A24,e2Costs4) -> 0 | N24: =SUMIF(e2Cat5,A24,e2Costs5) -> 0 | O24: =SUMIF(e2Cat6,A24,e2Costs6) -> 0 | P24: =SUM(J24:O24) -> 0 | Q24: =SUMIF(e3Cat1,A24,e3Costs1) -> 0 | R24: =SUMIF(e3Cat2,A24,e3Costs2) -> 0 | S24: =SUMIF(e3Cat3,A24,e3Costs3) -> 0 | T24: =SUMIF(e3Cat4,A24,e3Costs4) -> 0 | U24: =SUMIF(e3Cat5,A24,e3Costs5) -> 0 | V24: =SUMIF(e3Cat6,A24,e3Costs6) -> 0 | W24: =SUM(Q24:V24) -> 0 | X24: =SUMIF(e4Cat1,A24,e4Costs1) -> 0 | Y24: =SUMIF(e4Cat2,A24,e4Costs2) -> 0 | Z24: =SUMIF(e4Cat3,A24,e4Costs3) -> 0 | AA24: =SUMIF(e4Cat4,A24,e4Costs4) -> 0 | AB24: =SUMIF(e4Cat5,A24,e4Costs5) -> 0 | AC24: =SUMIF(e4Cat6,A24,e4Costs6) -> 0 | AD24: =SUM(X24:AC24) -> 0 | AE24: =SUM(I24,P24,W24,AD24) -> 0
A25: =BudgetCat!A25 -> ADD PFE Computer Software | B25: =BudgetCat!B25 -> 402.2100.553200.40024.1940.1750.FAC.030.2025 | C25: =SUMIF(e1Cat1,A25,e1Costs1) -> 0 | D25: =SUMIF(e1Cat2,A25,e1Costs2) -> 0 | E25: =SUMIF(e1Cat3,A25,e1Costs3) -> 0 | F25: =SUMIF(e1Cat4,A25,e1Costs4) -> 0 | G25: =SUMIF(e1Cat5,A25,e1Costs5) -> 0 | H25: =SUMIF(e1Cat6,A25,e1Costs6) -> 0 | I25: =SUM(C25:H25) -> 0 | J25: =SUMIF(e2Cat1,A25,e2Costs1) -> 0 | K25: =SUMIF(e2Cat2,A25,e2Costs2) -> 0 | L25: =SUMIF(e2Cat3,A25,e2Costs3) -> 0 | M25: =SUMIF(e2Cat4,A25,e2Costs4) -> 0 | N25: =SUMIF(e2Cat5,A25,e2Costs5) -> 0 | O25: =SUMIF(e2Cat6,A25,e2Costs6) -> 0 | P25: =SUM(J25:O25) -> 0 | Q25: =SUMIF(e3Cat1,A25,e3Costs1) -> 0 | R25: =SUMIF(e3Cat2,A25,e3Costs2) -> 0 | S25: =SUMIF(e3Cat3,A25,e3Costs3) -> 0 | T25: =SUMIF(e3Cat4,A25,e3Costs4) -> 0 | U25: =SUMIF(e3Cat5,A25,e3Costs5) -> 0 | V25: =SUMIF(e3Cat6,A25,e3Costs6) -> 0 | W25: =SUM(Q25:V25) -> 0 | X25: =SUMIF(e4Cat1,A25,e4Costs1) -> 0 | Y25: =SUMIF(e4Cat2,A25,e4Costs2) -> 0 | Z25: =SUMIF(e4Cat3,A25,e4Costs3) -> 0 | AA25: =SUMIF(e4Cat4,A25,e4Costs4) -> 0 | AB25: =SUMIF(e4Cat5,A25,e4Costs5) -> 0 | AC25: =SUMIF(e4Cat6,A25,e4Costs6) -> 0 | AD25: =SUM(X25:AC25) -> 0 | AE25: =SUM(I25,P25,W25,AD25) -> 0
A26: =BudgetCat!A26 -> ADD PFE Technology Supplies | B26: =BudgetCat!B26 -> 402.2100.561100.40024.1940.1750.FAC.030.2025 | C26: =SUMIF(e1Cat1,A26,e1Costs1) -> 0 | D26: =SUMIF(e1Cat2,A26,e1Costs2) -> 0 | E26: =SUMIF(e1Cat3,A26,e1Costs3) -> 0 | F26: =SUMIF(e1Cat4,A26,e1Costs4) -> 0 | G26: =SUMIF(e1Cat5,A26,e1Costs5) -> 0 | H26: =SUMIF(e1Cat6,A26,e1Costs6) -> 0 | I26: =SUM(C26:H26) -> 0 | J26: =SUMIF(e2Cat1,A26,e2Costs1) -> 0 | K26: =SUMIF(e2Cat2,A26,e2Costs2) -> 0 | L26: =SUMIF(e2Cat3,A26,e2Costs3) -> 0 | M26: =SUMIF(e2Cat4,A26,e2Costs4) -> 0 | N26: =SUMIF(e2Cat5,A26,e2Costs5) -> 0 | O26: =SUMIF(e2Cat6,A26,e2Costs6) -> 0 | P26: =SUM(J26:O26) -> 0 | Q26: =SUMIF(e3Cat1,A26,e3Costs1) -> 0 | R26: =SUMIF(e3Cat2,A26,e3Costs2) -> 0 | S26: =SUMIF(e3Cat3,A26,e3Costs3) -> 0 | T26: =SUMIF(e3Cat4,A26,e3Costs4) -> 0 | U26: =SUMIF(e3Cat5,A26,e3Costs5) -> 0 | V26: =SUMIF(e3Cat6,A26,e3Costs6) -> 0 | W26: =SUM(Q26:V26) -> 0 | X26: =SUMIF(e4Cat1,A26,e4Costs1) -> 0 | Y26: =SUMIF(e4Cat2,A26,e4Costs2) -> 0 | Z26: =SUMIF(e4Cat3,A26,e4Costs3) -> 0 | AA26: =SUMIF(e4Cat4,A26,e4Costs4) -> 0 | AB26: =SUMIF(e4Cat5,A26,e4Costs5) -> 0 | AC26: =SUMIF(e4Cat6,A26,e4Costs6) -> 0 | AD26: =SUM(X26:AC26) -> 0 | AE26: =SUM(I26,P26,W26,AD26) -> 0
A27: =BudgetCat!A27 -> ADD PFE Expendible Equipment | B27: =BudgetCat!B27 -> 402.2100.561500.40024.1940.1750.FAC.030.2025 | C27: =SUMIF(e1Cat1,A27,e1Costs1) -> 0 | D27: =SUMIF(e1Cat2,A27,e1Costs2) -> 0 | E27: =SUMIF(e1Cat3,A27,e1Costs3) -> 0 | F27: =SUMIF(e1Cat4,A27,e1Costs4) -> 0 | G27: =SUMIF(e1Cat5,A27,e1Costs5) -> 0 | H27: =SUMIF(e1Cat6,A27,e1Costs6) -> 0 | I27: =SUM(C27:H27) -> 0 | J27: =SUMIF(e2Cat1,A27,e2Costs1) -> 0 | K27: =SUMIF(e2Cat2,A27,e2Costs2) -> 0 | L27: =SUMIF(e2Cat3,A27,e2Costs3) -> 0 | M27: =SUMIF(e2Cat4,A27,e2Costs4) -> 0 | N27: =SUMIF(e2Cat5,A27,e2Costs5) -> 0 | O27: =SUMIF(e2Cat6,A27,e2Costs6) -> 0 | P27: =SUM(J27:O27) -> 0 | Q27: =SUMIF(e3Cat1,A27,e3Costs1) -> 0 | R27: =SUMIF(e3Cat2,A27,e3Costs2) -> 0 | S27: =SUMIF(e3Cat3,A27,e3Costs3) -> 0 | T27: =SUMIF(e3Cat4,A27,e3Costs4) -> 0 | U27: =SUMIF(e3Cat5,A27,e3Costs5) -> 0 | V27: =SUMIF(e3Cat6,A27,e3Costs6) -> 0 | W27: =SUM(Q27:V27) -> 0 | X27: =SUMIF(e4Cat1,A27,e4Costs1) -> 0 | Y27: =SUMIF(e4Cat2,A27,e4Costs2) -> 0 | Z27: =SUMIF(e4Cat3,A27,e4Costs3) -> 0 | AA27: =SUMIF(e4Cat4,A27,e4Costs4) -> 0 | AB27: =SUMIF(e4Cat5,A27,e4Costs5) -> 0 | AC27: =SUMIF(e4Cat6,A27,e4Costs6) -> 0 | AD27: =SUM(X27:AC27) -> 0 | AE27: =SUM(I27,P27,W27,AD27) -> 0
A28: =BudgetCat!A28 -> ADD PFE Expendible Computer Equipment | B28: =BudgetCat!B28 -> 402.2100.561600.40024.1940.1750.FAC.030.2025 | C28: =SUMIF(e1Cat1,A28,e1Costs1) -> 0 | D28: =SUMIF(e1Cat2,A28,e1Costs2) -> 0 | E28: =SUMIF(e1Cat3,A28,e1Costs3) -> 0 | F28: =SUMIF(e1Cat4,A28,e1Costs4) -> 0 | G28: =SUMIF(e1Cat5,A28,e1Costs5) -> 0 | H28: =SUMIF(e1Cat6,A28,e1Costs6) -> 0 | I28: =SUM(C28:H28) -> 0 | J28: =SUMIF(e2Cat1,A28,e2Costs1) -> 0 | K28: =SUMIF(e2Cat2,A28,e2Costs2) -> 0 | L28: =SUMIF(e2Cat3,A28,e2Costs3) -> 0 | M28: =SUMIF(e2Cat4,A28,e2Costs4) -> 0 | N28: =SUMIF(e2Cat5,A28,e2Costs5) -> 0 | O28: =SUMIF(e2Cat6,A28,e2Costs6) -> 0 | P28: =SUM(J28:O28) -> 0 | Q28: =SUMIF(e3Cat1,A28,e3Costs1) -> 0 | R28: =SUMIF(e3Cat2,A28,e3Costs2) -> 0 | S28: =SUMIF(e3Cat3,A28,e3Costs3) -> 0 | T28: =SUMIF(e3Cat4,A28,e3Costs4) -> 0 | U28: =SUMIF(e3Cat5,A28,e3Costs5) -> 0 | V28: =SUMIF(e3Cat6,A28,e3Costs6) -> 0 | W28: =SUM(Q28:V28) -> 0 | X28: =SUMIF(e4Cat1,A28,e4Costs1) -> 0 | Y28: =SUMIF(e4Cat2,A28,e4Costs2) -> 0 | Z28: =SUMIF(e4Cat3,A28,e4Costs3) -> 0 | AA28: =SUMIF(e4Cat4,A28,e4Costs4) -> 0 | AB28: =SUMIF(e4Cat5,A28,e4Costs5) -> 0 | AC28: =SUMIF(e4Cat6,A28,e4Costs6) -> 0 | AD28: =SUM(X28:AC28) -> 0 | AE28: =SUM(I28,P28,W28,AD28) -> 0
A29: =BudgetCat!A29 -> ADD PFE Books and Periodicals | B29: =BudgetCat!B29 -> 402.2100.564200.40024.1940.1750.FAC.030.2025 | C29: =SUMIF(e1Cat1,A29,e1Costs1) -> 0 | D29: =SUMIF(e1Cat2,A29,e1Costs2) -> 0 | E29: =SUMIF(e1Cat3,A29,e1Costs3) -> 0 | F29: =SUMIF(e1Cat4,A29,e1Costs4) -> 0 | G29: =SUMIF(e1Cat5,A29,e1Costs5) -> 0 | H29: =SUMIF(e1Cat6,A29,e1Costs6) -> 0 | I29: =SUM(C29:H29) -> 0 | J29: =SUMIF(e2Cat1,A29,e2Costs1) -> 0 | K29: =SUMIF(e2Cat2,A29,e2Costs2) -> 0 | L29: =SUMIF(e2Cat3,A29,e2Costs3) -> 0 | M29: =SUMIF(e2Cat4,A29,e2Costs4) -> 0 | N29: =SUMIF(e2Cat5,A29,e2Costs5) -> 0 | O29: =SUMIF(e2Cat6,A29,e2Costs6) -> 0 | P29: =SUM(J29:O29) -> 0 | Q29: =SUMIF(e3Cat1,A29,e3Costs1) -> 0 | R29: =SUMIF(e3Cat2,A29,e3Costs2) -> 0 | S29: =SUMIF(e3Cat3,A29,e3Costs3) -> 0 | T29: =SUMIF(e3Cat4,A29,e3Costs4) -> 0 | U29: =SUMIF(e3Cat5,A29,e3Costs5) -> 0 | V29: =SUMIF(e3Cat6,A29,e3Costs6) -> 0 | W29: =SUM(Q29:V29) -> 0 | X29: =SUMIF(e4Cat1,A29,e4Costs1) -> 0 | Y29: =SUMIF(e4Cat2,A29,e4Costs2) -> 0 | Z29: =SUMIF(e4Cat3,A29,e4Costs3) -> 0 | AA29: =SUMIF(e4Cat4,A29,e4Costs4) -> 0 | AB29: =SUMIF(e4Cat5,A29,e4Costs5) -> 0 | AC29: =SUMIF(e4Cat6,A29,e4Costs6) -> 0 | AD29: =SUM(X29:AC29) -> 0 | AE29: =SUM(I29,P29,W29,AD29) -> 0
A30: =BudgetCat!A30 -> Parent Liaison Salary | B30: =BudgetCat!B30 -> 402.2100.517700.40024.1940.1750.FAC.030.2025 | C30: 0 | D30: 0 | E30: 0 | F30: 0 | G30: 0 | H30: 0 | I30: 0 | J30: 0 | K30: 0 | L30: 0 | M30: 0 | N30: 0 | O30: 0 | P30: 0 | Q30: 0 | R30: 0 | S30: 0 | T30: 0 | U30: 0 | V30: 0 | W30: 0 | X30: 0 | Y30: 0 | Z30: 0 | AA30: 0 | AB30: 0 | AC30: 0 | AD30: 0 | AE30: 0
A31: =BudgetCat!A31 -> Parent Liaisons Group Health | B31: =BudgetCat!B31 -> 402.2100.521000.40024.1940.1750.FAC.030.2025 | C31: 0 | D31: 0 | E31: 0 | F31: 0 | G31: 0 | H31: 0 | I31: 0 | J31: 0 | K31: 0 | L31: 0 | M31: 0 | N31: 0 | O31: 0 | P31: 0 | Q31: 0 | R31: 0 | S31: 0 | T31: 0 | U31: 0 | V31: 0 | W31: 0 | X31: 0 | Y31: 0 | Z31: 0 | AA31: 0 | AB31: 0 | AC31: 0 | AD31: 0 | AE31: 0
A32: =BudgetCat!A32 -> Parent Liaisons Teacher Retirement | B32: =BudgetCat!B32 -> 402.2100.523000.40024.1940.1750.FAC.030.2025 | C32: 0 | D32: 0 | E32: 0 | F32: 0 | G32: 0 | H32: 0 | I32: 0 | J32: 0 | K32: 0 | L32: 0 | M32: 0 | N32: 0 | O32: 0 | P32: 0 | Q32: 0 | R32: 0 | S32: 0 | T32: 0 | U32: 0 | V32: 0 | W32: 0 | X32: 0 | Y32: 0 | Z32: 0 | AA32: 0 | AB32: 0 | AC32: 0 | AD32: 0 | AE32: 0
A33: =BudgetCat!A33 -> Parent Liaisons FICA | B33: =BudgetCat!B33 -> 402.2100.522000.40024.1940.1750.FAC.030.2025 | C33: 0 | D33: 0 | E33: 0 | F33: 0 | G33: 0 | H33: 0 | I33: 0 | J33: 0 | K33: 0 | L33: 0 | M33: 0 | N33: 0 | O33: 0 | P33: 0 | Q33: 0 | R33: 0 | S33: 0 | T33: 0 | U33: 0 | V33: 0 | W33: 0 | X33: 0 | Y33: 0 | Z33: 0 | AA33: 0 | AB33: 0 | AC33: 0 | AD33: 0 | AE33: 0
A34: =BudgetCat!A34 -> PFE Facilitator Extra Activity | B34: =BudgetCat!B34 -> 402.2100.519900.30124.1940.1750.FAC.030.2025 | C34: =SUMIF(e1Cat1,A34,e1Costs1) -> 0 | D34: =SUMIF(e1Cat2,A34,e1Costs2) -> 0 | E34: =SUMIF(e1Cat3,A34,e1Costs3) -> 0 | F34: =SUMIF(e1Cat4,A34,e1Costs4) -> 0 | G34: =SUMIF(e1Cat5,A34,e1Costs5) -> 0 | H34: =SUMIF(e1Cat6,A34,e1Costs6) -> 0 | I34: =SUM(C34:H34) -> 0 | J34: =SUMIF(e2Cat1,A34,e2Costs1) -> 1080 | K34: =SUMIF(e2Cat2,A34,e2Costs2) -> 0 | L34: =SUMIF(e2Cat3,A34,e2Costs3) -> 0 | M34: =SUMIF(e2Cat4,A34,e2Costs4) -> 0 | N34: =SUMIF(e2Cat5,A34,e2Costs5) -> 0 | O34: =SUMIF(e2Cat6,A34,e2Costs6) -> 0 | P34: =SUM(J34:O34) -> 1080 | Q34: =SUMIF(e3Cat1,A34,e3Costs1) -> 0 | R34: =SUMIF(e3Cat2,A34,e3Costs2) -> 0 | S34: =SUMIF(e3Cat3,A34,e3Costs3) -> 0 | T34: =SUMIF(e3Cat4,A34,e3Costs4) -> 0 | U34: =SUMIF(e3Cat5,A34,e3Costs5) -> 0 | V34: =SUMIF(e3Cat6,A34,e3Costs6) -> 0 | W34: =SUM(Q34:V34) -> 0 | X34: =SUMIF(e4Cat1,A34,e4Costs1) -> 0 | Y34: =SUMIF(e4Cat2,A34,e4Costs2) -> 0 | Z34: =SUMIF(e4Cat3,A34,e4Costs3) -> 0 | AA34: =SUMIF(e4Cat4,A34,e4Costs4) -> 0 | AB34: =SUMIF(e4Cat5,A34,e4Costs5) -> 0 | AC34: =SUMIF(e4Cat6,A34,e4Costs6) -> 0 | AD34: =SUM(X34:AC34) -> 0 | AE34: =SUM(I34,P34,W34,AD34) -> 1080
A35: =BudgetCat!A35 -> PFE FICA | B35: =BudgetCat!B35 -> 402.2100.522000.30124.1940.1750.FAC.030.2025 | C35: =IF(SUMIF(e1Cat1,$A$34,e1Costs1)>0,SUMIF(e1Cat1,$A$34,e1Costs1)*vAltBene,0) -> 0 | D35: =IF(SUMIF(e1Cat2,$A$34,e1Costs2)>0,SUMIF(e1Cat2,$A$34,e1Costs2)*vAltBene,0) -> 0 | E35: =IF(SUMIF(e1Cat3,$A$34,e1Costs3)>0,SUMIF(e1Cat3,$A$34,e1Costs3)*vAltBene,0) -> 0 | F35: =IF(SUMIF(e1Cat4,$A$34,e1Costs4)>0,SUMIF(e1Cat4,$A$34,e1Costs4)*vAltBene,0) -> 0 | G35: =IF(SUMIF(e1Cat5,$A$34,e1Costs5)>0,SUMIF(e1Cat5,$A$34,e1Costs5)*vAltBene,0) -> 0 | H35: =IF(SUMIF(e1Cat6,$A$34,e1Costs6)>0,SUMIF(e1Cat6,$A$34,e1Costs6)*vAltBene,0) -> 0 | I35: 0 | J35: =IF(SUMIF(e2Cat1,$A$34,e2Costs1)>0,SUMIF(e2Cat1,$A$34,e2Costs1)*vAltBene,0) -> 28.62 | K35: =IF(SUMIF(e2Cat2,$A$34,e2Costs2)>0,SUMIF(e2Cat2,$A$34,e2Costs2)*vAltBene,0) -> 0 | L35: =IF(SUMIF(e2Cat3,$A$34,e2Costs3)>0,SUMIF(e2Cat3,$A$34,e2Costs3)*vAltBene,0) -> 0 | M35: =IF(SUMIF(e2Cat4,$A$34,e2Costs4)>0,SUMIF(e2Cat4,$A$34,e2Costs4)*vAltBene,0) -> 0 | N35: =IF(SUMIF(e2Cat5,$A$34,e2Costs5)>0,SUMIF(e2Cat5,$A$34,e2Costs5)*vAltBene,0) -> 0 | O35: =IF(SUMIF(e2Cat6,$A$34,e2Costs6)>0,SUMIF(e2Cat6,$A$34,e2Costs6)*vAltBene,0) -> 0 | P35: 28.62 | Q35: =IF(SUMIF(e3Cat1,$A$34,e3Costs1)>0,SUMIF(e3Cat1,$A$34,e3Costs1)*vAltBene,0) -> 0 | R35: =IF(SUMIF(e3Cat2,$A$34,e3Costs2)>0,SUMIF(e3Cat2,$A$34,e3Costs2)*vAltBene,0) -> 0 | S35: =IF(SUMIF(e3Cat3,$A$34,e3Costs3)>0,SUMIF(e3Cat3,$A$34,e3Costs3)*vAltBene,0) -> 0 | T35: =IF(SUMIF(e3Cat4,$A$34,e3Costs4)>0,SUMIF(e3Cat4,$A$34,e3Costs4)*vAltBene,0) -> 0 | U35: =IF(SUMIF(e3Cat5,$A$34,e3Costs5)>0,SUMIF(e3Cat5,$A$34,e3Costs5)*vAltBene,0) -> 0 | V35: =IF(SUMIF(e3Cat6,$A$34,e3Costs6)>0,SUMIF(e3Cat6,$A$34,e3Costs6)*vAltBene,0) -> 0 | W35: 0 | X35: =IF(SUMIF(e4Cat1,$A$34,e4Costs1)>0,SUMIF(e4Cat1,$A$34,e4Costs1)*vAltBene,0) -> 0 | Y35: =IF(SUMIF(e4Cat2,$A$34,e4Costs2)>0,SUMIF(e4Cat2,$A$34,e4Costs2)*vAltBene,0) -> 0 | Z35: =IF(SUMIF(e4Cat3,$A$34,e4Costs3)>0,SUMIF(e4Cat3,$A$34,e4Costs3)*vAltBene,0) -> 0 | AA35: =IF(SUMIF(e4Cat4,$A$34,e4Costs4)>0,SUMIF(e4Cat4,$A$34,e4Costs4)*vAltBene,0) -> 0 | AB35: =IF(SUMIF(e4Cat5,$A$34,e4Costs5)>0,SUMIF(e4Cat5,$A$34,e4Costs5)*vAltBene,0) -> 0 | AC35: =IF(SUMIF(e4Cat6,$A$34,e4Costs6)>0,SUMIF(e4Cat6,$A$34,e4Costs6)*vAltBene,0) -> 0 | AD35: 0 | AE35: 28.62
A36: =BudgetCat!A36 -> PFE Contracted Services | B36: =BudgetCat!B36 -> 402.2100.530000.30124.1940.1750.FAC.030.2025 | C36: 0 | D36: 0 | E36: 0 | F36: 0 | G36: 0 | H36: 0 | I36: 0 | J36: 0 | K36: 0 | L36: 0 | M36: 0 | N36: 0 | O36: 0 | P36: 0 | Q36: 0 | R36: 0 | S36: 0 | T36: 0 | U36: 0 | V36: 0 | W36: 0 | X36: 0 | Y36: 0 | Z36: 0 | AA36: 0 | AB36: 0 | AC36: 0 | AD36: 0 | AE36: 0
A37: =BudgetCat!A37 -> PFE Communications | B37: =BudgetCat!B37 -> 402.2100.553000.30124.1940.1750.FAC.030.2025 | C37: 0 | D37: 0 | E37: 0 | F37: 0 | G37: 0 | H37: 0 | I37: 0 | J37: 0 | K37: 0 | L37: 0 | M37: 0 | N37: 0 | O37: 0 | P37: 0 | Q37: 0 | R37: 0 | S37: 0 | T37: 0 | U37: 0 | V37: 0 | W37: 0 | X37: 0 | Y37: 0 | Z37: 0 | AA37: 0 | AB37: 0 | AC37: 0 | AD37: 0 | AE37: 0
A38: =BudgetCat!A38 -> PFE Travel of Employees | B38: =BudgetCat!B38 -> 402.2100.558000.30124.1940.1750.FAC.030.2025 | C38: 0 | D38: 0 | E38: 0 | F38: 0 | G38: 0 | H38: 0 | I38: 0 | J38: 0 | K38: 0 | L38: 0 | M38: 0 | N38: 0 | O38: 0 | P38: 0 | Q38: 0 | R38: 0 | S38: 0 | T38: 0 | U38: 0 | V38: 0 | W38: 0 | X38: 0 | Y38: 0 | Z38: 0 | AA38: 0 | AB38: 0 | AC38: 0 | AD38: 0 | AE38: 0
A39: =BudgetCat!A39 -> PFE Registration Fees | B39: =BudgetCat!B39 -> 402.2100.581000.30124.1940.1750.FAC.030.2025 | C39: 0 | D39: 0 | E39: 0 | F39: 0 | G39: 0 | H39: 0 | I39: 0 | J39: 0 | K39: 0 | L39: 0 | M39: 0 | N39: 0 | O39: 0 | P39: 0 | Q39: 0 | R39: 0 | S39: 0 | T39: 0 | U39: 0 | V39: 0 | W39: 0 | X39: 0 | Y39: 0 | Z39: 0 | AA39: 0 | AB39: 0 | AC39: 0 | AD39: 0 | AE39: 0
A40: =BudgetCat!A40 -> PFE Supplies | B40: =BudgetCat!B40 -> 402.2100.561000.30124.1940.1750.FAC.030.2025 | C40: 749.38 | D40: 0 | E40: 0 | F40: 0 | G40: 0 | H40: 0 | I40: 749.38 | J40: 258.32 | K40: 0 | L40: 0 | M40: 0 | N40: 0 | O40: 0 | P40: 258.32 | Q40: 0 | R40: 0 | S40: 0 | T40: 0 | U40: 0 | V40: 0 | W40: 0 | X40: 0 | Y40: 0 | Z40: 0 | AA40: 0 | AB40: 0 | AC40: 0 | AD40: 0 | AE40: 1007.7
A41: =BudgetCat!A41 -> PFE Computer Software | B41: =BudgetCat!B41 -> 402.2100.553200.30124.1940.1750.FAC.030.2025 | C41: 0 | D41: 0 | E41: 0 | F41: 0 | G41: 0 | H41: 0 | I41: 0 | J41: 0 | K41: 0 | L41: 0 | M41: 0 | N41: 0 | O41: 0 | P41: 0 | Q41: 0 | R41: 0 | S41: 0 | T41: 0 | U41: 0 | V41: 0 | W41: 0 | X41: 0 | Y41: 0 | Z41: 0 | AA41: 0 | AB41: 0 | AC41: 0 | AD41: 0 | AE41: 0
A42: =BudgetCat!A42 -> PFE Technology Supplies | B42: =BudgetCat!B42 -> 402.2100.561100.30124.1940.1750.FAC.030.2025 | C42: 0 | D42: 0 | E42: 0 | F42: 0 | G42: 0 | H42: 0 | I42: 0 | J42: 0 | K42: 0 | L42: 0 | M42: 0 | N42: 0 | O42: 0 | P42: 0 | Q42: 0 | R42: 0 | S42: 0 | T42: 0 | U42: 0 | V42: 0 | W42: 0 | X42: 0 | Y42: 0 | Z42: 0 | AA42: 0 | AB42: 0 | AC42: 0 | AD42: 0 | AE42: 0
A43: =BudgetCat!A43 -> PFE Expendible Equipment | B43: =BudgetCat!B43 -> 402.2100.561500.30124.1940.1750.FAC.030.2025 | C43: 1200 | D43: 0 | E43: 0 | F43: 0 | G43: 0 | H43: 0 | I43: 1200 | J43: 0 | K43: 0 | L43: 0 | M43: 0 | N43: 0 | O43: 0 | P43: 0 | Q43: 0 | R43: 0 | S43: 0 | T43: 0 | U43: 0 | V43: 0 | W43: 0 | X43: 0 | Y43: 0 | Z43: 0 | AA43: 0 | AB43: 0 | AC43: 0 | AD43: 0 | AE43: 1200
A44: =BudgetCat!A44 -> PFE Expendible Computer Equipment | B44: =BudgetCat!B44 -> 402.2100.561600.30124.1940.1750.FAC.030.2025 | C44: 0 | D44: 0 | E44: 0 | F44: 0 | G44: 0 | H44: 0 | I44: 0 | J44: 0 | K44: 0 | L44: 0 | M44: 0 | N44: 0 | O44: 0 | P44: 0 | Q44: 0 | R44: 0 | S44: 0 | T44: 0 | U44: 0 | V44: 0 | W44: 0 | X44: 0 | Y44: 0 | Z44: 0 | AA44: 0 | AB44: 0 | AC44: 0 | AD44: 0 | AE44: 0
A45: =BudgetCat!A45 -> PFE Books and Periodicals | B45: =BudgetCat!B45 -> 402.2100.564200.30124.1940.1750.FAC.030.2025 | C45: 0 | D45: 0 | E45: 0 | F45: 0 | G45: 0 | H45: 0 | I45: 0 | J45: 0 | K45: 0 | L45: 0 | M45: 0 | N45: 0 | O45: 0 | P45: 0 | Q45: 0 | R45: 0 | S45: 0 | T45: 0 | U45: 0 | V45: 0 | W45: 0 | X45: 0 | Y45: 0 | Z45: 0 | AA45: 0 | AB45: 0 | AC45: 0 | AD45: 0 | AE45: 0
A46: =BudgetCat!A46 -> PL Substitutes for Certified Teacher | B46: =BudgetCat!B46 -> 402.2213.511400.40024.1940.1750.FAC.030.2025 | C46: =SUMIF(e1Cat1,A46,e1Costs1) -> 0 | D46: =SUMIF(e1Cat2,A46,e1Costs2) -> 0 | E46: =SUMIF(e1Cat3,A46,e1Costs3) -> 0 | F46: =SUMIF(e1Cat4,A46,e1Costs4) -> 0 | G46: =SUMIF(e1Cat5,A46,e1Costs5) -> 0 | H46: =SUMIF(e1Cat6,A46,e1Costs6) -> 0 | I46: 0 | J46: =SUMIF(e2Cat1,A46,e2Costs1) -> 0 | K46: =SUMIF(e2Cat2,A46,e2Costs2) -> 0 | L46: =SUMIF(e2Cat3,A46,e2Costs3) -> 0 | M46: =SUMIF(e2Cat4,A46,e2Costs4) -> 0 | N46: =SUMIF(e2Cat5,A46,e2Costs5) -> 0 | O46: =SUMIF(e2Cat6,A46,e2Costs6) -> 0 | P46: 0 | Q46: =SUMIF(e3Cat1,A46,e3Costs1) -> 0 | R46: =SUMIF(e3Cat2,A46,e3Costs2) -> 0 | S46: =SUMIF(e3Cat3,A46,e3Costs3) -> 0 | T46: =SUMIF(e3Cat4,A46,e3Costs4) -> 0 | U46: =SUMIF(e3Cat5,A46,e3Costs5) -> 0 | V46: =SUMIF(e3Cat6,A46,e3Costs6) -> 0 | W46: 0 | X46: =SUMIF(e4Cat1,A46,e4Costs1) -> 0 | Y46: =SUMIF(e4Cat2,A46,e4Costs2) -> 0 | Z46: =SUMIF(e4Cat3,A46,e4Costs3) -> 0 | AA46: =SUMIF(e4Cat4,A46,e4Costs4) -> 0 | AB46: =SUMIF(e4Cat5,A46,e4Costs5) -> 0 | AC46: =SUMIF(e4Cat6,A46,e4Costs6) -> 0 | AD46: 0 | AE46: =SUM(I46,P46,W46,AD46) -> 0
A47: =BudgetCat!A47 -> PL FICA (Subs, Stips, Academic Coach) | B47: =BudgetCat!B47 -> 402.2213.522000.40024.1940.1750.FAC.030.2025 | C47: =IF(SUMIF(e1Cat1,$A$46,e1Costs1)>0,IF(SUMIF(e1Cat1,$A$48,e1Costs1)>0,SUMIF(e1Cat1,$A$46,e1Costs1)*tFICA+SUMIF(e1Cat1,$A$48,e1Costs1)*vFICA,SUMIF(e1Cat1,$A$46,e1Costs1)*tFICA),IF(SUMIF(e1Cat1,$A$48,e1Costs1)>0,SUMIF(e1Cat1,$A$48,e1Costs1)*vFICA,0)) -> 0 | D47: =IF(SUMIF(e1Cat2,$A$46,e1Costs2)>0,IF(SUMIF(e1Cat2,$A$48,e1Costs2)>0,SUMIF(e1Cat2,$A$46,e1Costs2)*tFICA+SUMIF(e1Cat2,$A$48,e1Costs2)*vFICA,SUMIF(e1Cat2,$A$46,e1Costs2)*tFICA),IF(SUMIF(e1Cat2,$A$48,e1Costs2)>0,SUMIF(e1Cat2,$A$48,e1Costs2)*vFICA,0)) -> 0 | E47: =IF(SUMIF(e1Cat3,$A$46,e1Costs3)>0,IF(SUMIF(e1Cat3,$A$48,e1Costs3)>0,SUMIF(e1Cat3,$A$46,e1Costs3)*tFICA+SUMIF(e1Cat3,$A$48,e1Costs3)*vFICA,SUMIF(e1Cat3,$A$46,e1Costs3)*tFICA),IF(SUMIF(e1Cat3,$A$48,e1Costs3)>0,SUMIF(e1Cat3,$A$48,e1Costs3)*vFICA,0)) -> 0 | F47: =IF(SUMIF(e1Cat4,$A$46,e1Costs4)>0,IF(SUMIF(e1Cat4,$A$48,e1Costs4)>0,SUMIF(e1Cat4,$A$46,e1Costs4)*tFICA+SUMIF(e1Cat4,$A$48,e1Costs4)*vFICA,SUMIF(e1Cat4,$A$46,e1Costs4)*tFICA),IF(SUMIF(e1Cat4,$A$48,e1Costs4)>0,SUMIF(e1Cat4,$A$48,e1Costs4)*vFICA,0)) -> 0 | G47: =IF(SUMIF(e1Cat5,$A$46,e1Costs5)>0,IF(SUMIF(e1Cat5,$A$48,e1Costs5)>0,SUMIF(e1Cat5,$A$46,e1Costs5)*tFICA+SUMIF(e1Cat5,$A$48,e1Costs5)*vFICA,SUMIF(e1Cat5,$A$46,e1Costs5)*tFICA),IF(SUMIF(e1Cat5,$A$48,e1Costs5)>0,SUMIF(e1Cat5,$A$48,e1Costs5)*vFICA,0)) -> 0 | H47: =IF(SUMIF(e1Cat6,$A$46,e1Costs6)>0,IF(SUMIF(e1Cat6,$A$48,e1Costs6)>0,SUMIF(e1Cat6,$A$46,e1Costs6)*tFICA+SUMIF(e1Cat6,$A$48,e1Costs6)*vFICA,SUMIF(e1Cat6,$A$46,e1Costs6)*tFICA),IF(SUMIF(e1Cat6,$A$48,e1Costs6)>0,SUMIF(e1Cat6,$A$48,e1Costs6)*vFICA,0)) -> 0 | I47: 0 | J47: =IF(SUMIF(e2Cat1,$A$46,e2Costs1)>0,IF(SUMIF(e2Cat1,$A$48,e2Costs1)>0,SUMIF(e2Cat1,$A$46,e2Costs1)*tFICA+SUMIF(e2Cat1,$A$48,e2Costs1)*vFICA,SUMIF(e2Cat1,$A$46,e2Costs1)*tFICA),IF(SUMIF(e2Cat1,$A$48,e2Costs1)>0,SUMIF(e2Cat1,$A$48,e2Costs1)*vFICA,0)) -> 400 | K47: =IF(SUMIF(e2Cat2,$A$46,e2Costs2)>0,IF(SUMIF(e2Cat2,$A$48,e2Costs2)>0,SUMIF(e2Cat2,$A$46,e2Costs2)*tFICA+SUMIF(e2Cat2,$A$48,e2Costs2)*vFICA,SUMIF(e2Cat2,$A$46,e2Costs2)*tFICA),IF(SUMIF(e2Cat2,$A$48,e2Costs2)>0,SUMIF(e2Cat2,$A$48,e2Costs2)*vFICA,0)) -> 0 | L47: =IF(SUMIF(e2Cat3,$A$46,e2Costs3)>0,IF(SUMIF(e2Cat3,$A$48,e2Costs3)>0,SUMIF(e2Cat3,$A$46,e2Costs3)*tFICA+SUMIF(e2Cat3,$A$48,e2Costs3)*vFICA,SUMIF(e2Cat3,$A$46,e2Costs3)*tFICA),IF(SUMIF(e2Cat3,$A$48,e2Costs3)>0,SUMIF(e2Cat3,$A$48,e2Costs3)*vFICA,0)) -> 0 | M47: =IF(SUMIF(e2Cat4,$A$46,e2Costs4)>0,IF(SUMIF(e2Cat4,$A$48,e2Costs4)>0,SUMIF(e2Cat4,$A$46,e2Costs4)*tFICA+SUMIF(e2Cat4,$A$48,e2Costs4)*vFICA,SUMIF(e2Cat4,$A$46,e2Costs4)*tFICA),IF(SUMIF(e2Cat4,$A$48,e2Costs4)>0,SUMIF(e2Cat4,$A$48,e2Costs4)*vFICA,0)) -> 0 | N47: =IF(SUMIF(e2Cat5,$A$46,e2Costs5)>0,IF(SUMIF(e2Cat5,$A$48,e2Costs5)>0,SUMIF(e2Cat5,$A$46,e2Costs5)*tFICA+SUMIF(e2Cat5,$A$48,e2Costs5)*vFICA,SUMIF(e2Cat5,$A$46,e2Costs5)*tFICA),IF(SUMIF(e2Cat5,$A$48,e2Costs5)>0,SUMIF(e2Cat5,$A$48,e2Costs5)*vFICA,0)) -> 0 | O47: =IF(SUMIF(e2Cat6,$A$46,e2Costs6)>0,IF(SUMIF(e2Cat6,$A$48,e2Costs6)>0,SUMIF(e2Cat6,$A$46,e2Costs6)*tFICA+SUMIF(e2Cat6,$A$48,e2Costs6)*vFICA,SUMIF(e2Cat6,$A$46,e2Costs6)*tFICA),IF(SUMIF(e2Cat6,$A$48,e2Costs6)>0,SUMIF(e2Cat6,$A$48,e2Costs6)*vFICA,0)) -> 0 | P47: 400 | Q47: =IF(SUMIF(e3Cat1,$A$46,e3Costs1)>0,IF(SUMIF(e3Cat1,$A$48,e3Costs1)>0,SUMIF(e3Cat1,$A$46,e3Costs1)*tFICA+SUMIF(e3Cat1,$A$48,e3Costs1)*vFICA,SUMIF(e3Cat1,$A$46,e3Costs1)*tFICA),IF(SUMIF(e3Cat1,$A$48,e3Costs1)>0,SUMIF(e3Cat1,$A$48,e3Costs1)*vFICA,0)) -> 0 | R47: =IF(SUMIF(e3Cat2,$A$46,e3Costs2)>0,IF(SUMIF(e3Cat2,$A$48,e3Costs2)>0,SUMIF(e3Cat2,$A$46,e3Costs2)*tFICA+SUMIF(e3Cat2,$A$48,e3Costs2)*vFICA,SUMIF(e3Cat2,$A$46,e3Costs2)*tFICA),IF(SUMIF(e3Cat2,$A$48,e3Costs2)>0,SUMIF(e3Cat2,$A$48,e3Costs2)*vFICA,0)) -> 0 | S47: =IF(SUMIF(e3Cat3,$A$46,e3Costs3)>0,IF(SUMIF(e3Cat3,$A$48,e3Costs3)>0,SUMIF(e3Cat3,$A$46,e3Costs3)*tFICA+SUMIF(e3Cat3,$A$48,e3Costs3)*vFICA,SUMIF(e3Cat3,$A$46,e3Costs3)*tFICA),IF(SUMIF(e3Cat3,$A$48,e3Costs3)>0,SUMIF(e3Cat3,$A$48,e3Costs3)*vFICA,0)) -> 0 | T47: =IF(SUMIF(e3Cat4,$A$46,e3Costs4)>0,IF(SUMIF(e3Cat4,$A$48,e3Costs4)>0,SUMIF(e3Cat4,$A$46,e3Costs4)*tFICA+SUMIF(e3Cat4,$A$48,e3Costs4)*vFICA,SUMIF(e3Cat4,$A$46,e3Costs4)*tFICA),IF(SUMIF(e3Cat4,$A$48,e3Costs4)>0,SUMIF(e3Cat4,$A$48,e3Costs4)*vFICA,0)) -> 0 | U47: =IF(SUMIF(e3Cat5,$A$46,e3Costs5)>0,IF(SUMIF(e3Cat5,$A$48,e3Costs5)>0,SUMIF(e3Cat5,$A$46,e3Costs5)*tFICA+SUMIF(e3Cat5,$A$48,e3Costs5)*vFICA,SUMIF(e3Cat5,$A$46,e3Costs5)*tFICA),IF(SUMIF(e3Cat5,$A$48,e3Costs5)>0,SUMIF(e3Cat5,$A$48,e3Costs5)*vFICA,0)) -> 0 | V47: =IF(SUMIF(e3Cat6,$A$46,e3Costs6)>0,IF(SUMIF(e3Cat6,$A$48,e3Costs6)>0,SUMIF(e3Cat6,$A$46,e3Costs6)*tFICA+SUMIF(e3Cat6,$A$48,e3Costs6)*vFICA,SUMIF(e3Cat6,$A$46,e3Costs6)*tFICA),IF(SUMIF(e3Cat6,$A$48,e3Costs6)>0,SUMIF(e3Cat6,$A$48,e3Costs6)*vFICA,0)) -> 0 | W47: 0 | X47: =IF(SUMIF(e4Cat1,$A$46,e4Costs1)>0,IF(SUMIF(e4Cat1,$A$48,e4Costs1)>0,SUMIF(e4Cat1,$A$46,e4Costs1)*tFICA+SUMIF(e4Cat1,$A$48,e4Costs1)*vFICA,SUMIF(e4Cat1,$A$46,e4Costs1)*tFICA),IF(SUMIF(e4Cat1,$A$48,e4Costs1)>0,SUMIF(e4Cat1,$A$48,e4Costs1)*vFICA,0)) -> 0 | Y47: =IF(SUMIF(e4Cat2,$A$46,e4Costs2)>0,IF(SUMIF(e4Cat2,$A$48,e4Costs2)>0,SUMIF(e4Cat2,$A$46,e4Costs2)*tFICA+SUMIF(e4Cat2,$A$48,e4Costs2)*vFICA,SUMIF(e4Cat2,$A$46,e4Costs2)*tFICA),IF(SUMIF(e4Cat2,$A$48,e4Costs2)>0,SUMIF(e4Cat2,$A$48,e4Costs2)*vFICA,0)) -> 0 | Z47: =IF(SUMIF(e4Cat3,$A$46,e4Costs3)>0,IF(SUMIF(e4Cat3,$A$48,e4Costs3)>0,SUMIF(e4Cat3,$A$46,e4Costs3)*tFICA+SUMIF(e4Cat3,$A$48,e4Costs3)*vFICA,SUMIF(e4Cat3,$A$46,e4Costs3)*tFICA),IF(SUMIF(e4Cat3,$A$48,e4Costs3)>0,SUMIF(e4Cat3,$A$48,e4Costs3)*vFICA,0)) -> 0 | AA47: =IF(SUMIF(e4Cat4,$A$46,e4Costs4)>0,IF(SUMIF(e4Cat4,$A$48,e4Costs4)>0,SUMIF(e4Cat4,$A$46,e4Costs4)*tFICA+SUMIF(e4Cat4,$A$48,e4Costs4)*vFICA,SUMIF(e4Cat4,$A$46,e4Costs4)*tFICA),IF(SUMIF(e4Cat4,$A$48,e4Costs4)>0,SUMIF(e4Cat4,$A$48,e4Costs4)*vFICA,0)) -> 0 | AB47: =IF(SUMIF(e4Cat5,$A$46,e4Costs5)>0,IF(SUMIF(e4Cat5,$A$48,e4Costs5)>0,SUMIF(e4Cat5,$A$46,e4Costs5)*tFICA+SUMIF(e4Cat5,$A$48,e4Costs5)*vFICA,SUMIF(e4Cat5,$A$46,e4Costs5)*tFICA),IF(SUMIF(e4Cat5,$A$48,e4Costs5)>0,SUMIF(e4Cat5,$A$48,e4Costs5)*vFICA,0)) -> 0 | AC47: =IF(SUMIF(e4Cat6,$A$46,e4Costs6)>0,IF(SUMIF(e4Cat6,$A$48,e4Costs6)>0,SUMIF(e4Cat6,$A$46,e4Costs6)*tFICA+SUMIF(e4Cat6,$A$48,e4Costs6)*vFICA,SUMIF(e4Cat6,$A$46,e4Costs6)*tFICA),IF(SUMIF(e4Cat6,$A$48,e4Costs6)>0,SUMIF(e4Cat6,$A$48,e4Costs6)*vFICA,0)) -> 0 | AD47: 0 | AE47: 400
A48: =BudgetCat!A48 -> PL Stipends | B48: =BudgetCat!B48 -> 402.2213.511600.40024.1940.1750.FAC.030.2025 | C48: 0 | D48: 0 | E48: 0 | F48: 0 | G48: 0 | H48: 0 | I48: 0 | J48: 6400 | K48: 0 | L48: 0 | M48: 0 | N48: 0 | O48: 0 | P48: 6400 | Q48: 0 | R48: 0 | S48: 0 | T48: 0 | U48: 0 | V48: 0 | W48: 0 | X48: 0 | Y48: 0 | Z48: 0 | AA48: 0 | AB48: 0 | AC48: 0 | AD48: 0 | AE48: 6400
A49: =BudgetCat!A49 -> Academic Coach Salaries | B49: =BudgetCat!B49 -> 402.2213.519100.40024.1940.1750.FAC.030.2025 | C49: 0 | D49: 0 | E49: 0 | F49: 0 | G49: 0 | H49: 0 | I49: 0 | J49: 0 | K49: 0 | L49: 0 | M49: 0 | N49: 0 | O49: 0 | P49: 0 | Q49: 0 | R49: 0 | S49: 0 | T49: 0 | U49: 0 | V49: 0 | W49: 0 | X49: 0 | Y49: 0 | Z49: 0 | AA49: 0 | AB49: 0 | AC49: 0 | AD49: 0 | AE49: 0
A50: =BudgetCat!A50 -> Academic Coach Group Health | B50: =BudgetCat!B50 -> 402.2213.521000.40024.1940.1750.FAC.030.2025 | C50: 0 | D50: 0 | E50: 0 | F50: 0 | G50: 0 | H50: 0 | I50: 0 | J50: 0 | K50: 0 | L50: 0 | M50: 0 | N50: 0 | O50: 0 | P50: 0 | Q50: 0 | R50: 0 | S50: 0 | T50: 0 | U50: 0 | V50: 0 | W50: 0 | X50: 0 | Y50: 0 | Z50: 0 | AA50: 0 | AB50: 0 | AC50: 0 | AD50: 0 | AE50: 0
A51: =BudgetCat!A51 -> Academic Coach Teacher Retirement | B51: =BudgetCat!B51 -> 402.2213.523000.40024.1940.1750.FAC.030.2025 | C51: 0 | D51: 0 | E51: 0 | F51: 0 | G51: 0 | H51: 0 | I51: 0 | J51: 0 | K51: 0 | L51: 0 | M51: 0 | N51: 0 | O51: 0 | P51: 0 | Q51: 0 | R51: 0 | S51: 0 | T51: 0 | U51: 0 | V51: 0 | W51: 0 | X51: 0 | Y51: 0 | Z51: 0 | AA51: 0 | AB51: 0 | AC51: 0 | AD51: 0 | AE51: 0
A52: =BudgetCat!A52 -> Data Clerk Salary | B52: =BudgetCat!B52 -> 402.2213.000000.40024.1940.1750.FAC.030.2025 | C52: 0 | D52: 0 | E52: 0 | F52: 0 | G52: 0 | H52: 0 | I52: 0 | J52: 0 | K52: 0 | L52: 0 | M52: 0 | N52: 0 | O52: 0 | P52: 0 | Q52: 0 | R52: 0 | S52: 0 | T52: 0 | U52: 0 | V52: 0 | W52: 0 | X52: 0 | Y52: 0 | Z52: 0 | AA52: 0 | AB52: 0 | AC52: 0 | AD52: 0 | AE52: 0
A53: =BudgetCat!A53 -> PL Contracted Services | B53: =BudgetCat!B53 -> 402.2213.530000.40024.1940.1750.FAC.030.2025 | C53: 0 | D53: 0 | E53: 0 | F53: 0 | G53: 0 | H53: 0 | I53: 0 | J53: 0 | K53: 0 | L53: 0 | M53: 0 | N53: 0 | O53: 0 | P53: 0 | Q53: 0 | R53: 0 | S53: 0 | T53: 0 | U53: 0 | V53: 0 | W53: 0 | X53: 0 | Y53: 0 | Z53: 0 | AA53: 0 | AB53: 0 | AC53: 0 | AD53: 0 | AE53: 0
A54: =BudgetCat!A54 -> PL Travel of Employees | B54: =BudgetCat!B54 -> 402.2213.558000.40024.1940.1750.FAC.030.2025 | C54: 0 | D54: 0 | E54: 0 | F54: 0 | G54: 0 | H54: 0 | I54: 0 | J54: 20000 | K54: 0 | L54: 0 | M54: 0 | N54: 0 | O54: 0 | P54: 20000 | Q54: 0 | R54: 0 | S54: 0 | T54: 0 | U54: 0 | V54: 0 | W54: 0 | X54: 0 | Y54: 0 | Z54: 0 | AA54: 0 | AB54: 0 | AC54: 0 | AD54: 0 | AE54: 20000
A55: =BudgetCat!A55 -> PL Registration Fees | B55: =BudgetCat!B55 -> 402.2213.581000.40024.1940.1750.FAC.030.2025 | C55: 0 | D55: 0 | E55: 0 | F55: 0 | G55: 0 | H55: 0 | I55: 0 | J55: 0 | K55: 10000 | L55: 0 | M55: 0 | N55: 0 | O55: 0 | P55: 10000 | Q55: 0 | R55: 0 | S55: 0 | T55: 0 | U55: 0 | V55: 0 | W55: 0 | X55: 0 | Y55: 0 | Z55: 0 | AA55: 0 | AB55: 0 | AC55: 0 | AD55: 0 | AE55: 10000
A56: =BudgetCat!A56 -> PL Supplies | B56: =BudgetCat!B56 -> 402.2213.561000.40024.1940.1750.FAC.030.2025 | C56: 0 | D56: 0 | E56: 0 | F56: 0 | G56: 0 | H56: 0 | I56: 0 | J56: 0 | K56: 0 | L56: 0 | M56: 0 | N56: 0 | O56: 0 | P56: 0 | Q56: 0 | R56: 0 | S56: 0 | T56: 0 | U56: 0 | V56: 0 | W56: 0 | X56: 0 | Y56: 0 | Z56: 0 | AA56: 0 | AB56: 0 | AC56: 0 | AD56: 0 | AE56: 0
A57: =BudgetCat!A57 -> PL Computer Software | B57: =BudgetCat!B57 -> 402.2213.553200.40024.1940.1750.FAC.030.2025 | C57: 0 | D57: 0 | E57: 0 | F57: 0 | G57: 0 | H57: 0 | I57: 0 | J57: 0 | K57: 0 | L57: 0 | M57: 0 | N57: 0 | O57: 0 | P57: 0 | Q57: 0 | R57: 0 | S57: 0 | T57: 0 | U57: 0 | V57: 0 | W57: 0 | X57: 0 | Y57: 0 | Z57: 0 | AA57: 0 | AB57: 0 | AC57: 0 | AD57: 0 | AE57: 0
A58: =BudgetCat!A58 -> PL Equipment | B58: =BudgetCat!B58 -> 402.2213.561500.40024.1940.1750.FAC.030.2025 | C58: =SUMIF(e1Cat1,A58,e1Costs1) -> 0 | D58: =SUMIF(e1Cat2,A58,e1Costs2) -> 0 | E58: =SUMIF(e1Cat3,A58,e1Costs3) -> 0 | F58: =SUMIF(e1Cat4,A58,e1Costs4) -> 0 | G58: =SUMIF(e1Cat5,A58,e1Costs5) -> 0 | H58: =SUMIF(e1Cat6,A58,e1Costs6) -> 0 | I58: =SUM(C58:H58) -> 0 | J58: =SUMIF(e2Cat1,A58,e2Costs1) -> 0 | K58: =SUMIF(e2Cat2,A58,e2Costs2) -> 0 | L58: =SUMIF(e2Cat3,A58,e2Costs3) -> 0 | M58: =SUMIF(e2Cat4,A58,e2Costs4) -> 0 | N58: =SUMIF(e2Cat5,A58,e2Costs5) -> 0 | O58: =SUMIF(e2Cat6,A58,e2Costs6) -> 0 | P58: =SUM(J58:O58) -> 0 | Q58: =SUMIF(e3Cat1,A58,e3Costs1) -> 0 | R58: =SUMIF(e3Cat2,A58,e3Costs2) -> 0 | S58: =SUMIF(e3Cat3,A58,e3Costs3) -> 0 | T58: =SUMIF(e3Cat4,A58,e3Costs4) -> 0 | U58: =SUMIF(e3Cat5,A58,e3Costs5) -> 0 | V58: =SUMIF(e3Cat6,A58,e3Costs6) -> 0 | W58: =SUM(Q58:V58) -> 0 | X58: =SUMIF(e4Cat1,A58,e4Costs1) -> 0 | Y58: =SUMIF(e4Cat2,A58,e4Costs2) -> 0 | Z58: =SUMIF(e4Cat3,A58,e4Costs3) -> 0 | AA58: =SUMIF(e4Cat4,A58,e4Costs4) -> 0 | AB58: =SUMIF(e4Cat5,A58,e4Costs5) -> 0 | AC58: =SUMIF(e4Cat6,A58,e4Costs6) -> 0 | AD58: =SUM(X58:AC58) -> 0 | AE58: =SUM(I58,P58,W58,AD58) -> 0
A59: =BudgetCat!A59 -> PL Books and Periodicals | B59: =BudgetCat!B59 -> 402.2213.564200.40024.1940.1750.FAC.030.2025 | C59: 0 | D59: 0 | E59: 0 | F59: 0 | G59: 0 | H59: 0 | I59: 0 | J59: 0 | K59: 0 | L59: 0 | M59: 0 | N59: 0 | O59: 0 | P59: 0 | Q59: 0 | R59: 0 | S59: 0 | T59: 0 | U59: 0 | V59: 0 | W59: 0 | X59: 0 | Y59: 0 | Z59: 0 | AA59: 0 | AB59: 0 | AC59: 0 | AD59: 0 | AE59: 0
A60: =BudgetCat!A60 -> Educational Media Books and Periodicals | B60: =BudgetCat!B60 -> 402.2220.564200.40024.1940.1750.FAC.030.2025 | C60: 0 | D60: 0 | E60: 0 | F60: 0 | G60: 0 | H60: 0 | I60: 0 | J60: 0 | K60: 0 | L60: 0 | M60: 0 | N60: 0 | O60: 0 | P60: 0 | Q60: 0 | R60: 0 | S60: 0 | T60: 0 | U60: 0 | V60: 0 | W60: 0 | X60: 0 | Y60: 0 | Z60: 0 | AA60: 0 | AB60: 0 | AC60: 0 | AD60: 0 | AE60: 0
A61: =BudgetCat!A61 -> Custodian Extra Activity | B61: =BudgetCat!B61 -> 402.2600.518600.40024.1940.1750.FAC.030.2025 | C61: 0 | D61: 0 | E61: 0 | F61: 0 | G61: 0 | H61: 0 | I61: 0 | J61: 0 | K61: 0 | L61: 0 | M61: 0 | N61: 0 | O61: 0 | P61: 0 | Q61: 0 | R61: 0 | S61: 0 | T61: 0 | U61: 0 | V61: 0 | W61: 0 | X61: 0 | Y61: 0 | Z61: 0 | AA61: 0 | AB61: 0 | AC61: 0 | AD61: 0 | AE61: 0
A62: =BudgetCat!A62 -> Custodian FICA | B62: =BudgetCat!B62 -> 402.2600.522000.40024.1940.1750.FAC.030.2025 | C62: =IF(SUMIF(e1Cat1,$A$61,e1Costs1)>0,SUMIF(e1Cat1,$A$61,e1Costs1)*vAltBene,0) -> 0 | D62: =IF(SUMIF(e1Cat2,$A$61,e1Costs2)>0,SUMIF(e1Cat2,$A$61,e1Costs2)*vAltBene,0) -> 0 | E62: =IF(SUMIF(e1Cat3,$A$61,e1Costs3)>0,SUMIF(e1Cat3,$A$61,e1Costs3)*vAltBene,0) -> 0 | F62: =IF(SUMIF(e1Cat4,$A$61,e1Costs4)>0,SUMIF(e1Cat4,$A$61,e1Costs4)*vAltBene,0) -> 0 | G62: =IF(SUMIF(e1Cat5,$A$61,e1Costs5)>0,SUMIF(e1Cat5,$A$61,e1Costs5)*vAltBene,0) -> 0 | H62: =IF(SUMIF(e1Cat6,$A$61,e1Costs6)>0,SUMIF(e1Cat6,$A$61,e1Costs6)*vAltBene,0) -> 0 | I62: 0 | J62: =IF(SUMIF(e2Cat1,$A$61,e2Costs1)>0,SUMIF(e2Cat1,$A$61,e2Costs1)*vAltBene,0) -> 0 | K62: =IF(SUMIF(e2Cat2,$A$61,e2Costs2)>0,SUMIF(e2Cat2,$A$61,e2Costs2)*vAltBene,0) -> 0 | L62: =IF(SUMIF(e2Cat3,$A$61,e2Costs3)>0,SUMIF(e2Cat3,$A$61,e2Costs3)*vAltBene,0) -> 0 | M62: =IF(SUMIF(e2Cat4,$A$61,e2Costs4)>0,SUMIF(e2Cat4,$A$61,e2Costs4)*vAltBene,0) -> 0 | N62: =IF(SUMIF(e2Cat5,$A$61,e2Costs5)>0,SUMIF(e2Cat5,$A$61,e2Costs5)*vAltBene,0) -> 0 | O62: =IF(SUMIF(e2Cat6,$A$61,e2Costs6)>0,SUMIF(e2Cat6,$A$61,e2Costs6)*vAltBene,0) -> 0 | P62: 0 | Q62: =IF(SUMIF(e3Cat1,$A$61,e3Costs1)>0,SUMIF(e3Cat1,$A$61,e3Costs1)*vAltBene,0) -> 0 | R62: =IF(SUMIF(e3Cat2,$A$61,e3Costs2)>0,SUMIF(e3Cat2,$A$61,e3Costs2)*vAltBene,0) -> 0 | S62: =IF(SUMIF(e3Cat3,$A$61,e3Costs3)>0,SUMIF(e3Cat3,$A$61,e3Costs3)*vAltBene,0) -> 0 | T62: =IF(SUMIF(e3Cat4,$A$61,e3Costs4)>0,SUMIF(e3Cat4,$A$61,e3Costs4)*vAltBene,0) -> 0 | U62: =IF(SUMIF(e3Cat5,$A$61,e3Costs5)>0,SUMIF(e3Cat5,$A$61,e3Costs5)*vAltBene,0) -> 0 | V62: =IF(SUMIF(e3Cat6,$A$61,e3Costs6)>0,SUMIF(e3Cat6,$A$61,e3Costs6)*vAltBene,0) -> 0 | W62: 0 | X62: =IF(SUMIF(e4Cat1,$A$61,e4Costs1)>0,SUMIF(e4Cat1,$A$61,e4Costs1)*vAltBene,0) -> 0 | Y62: =IF(SUMIF(e4Cat2,$A$61,e4Costs2)>0,SUMIF(e4Cat2,$A$61,e4Costs2)*vAltBene,0) -> 0 | Z62: =IF(SUMIF(e4Cat3,$A$61,e4Costs3)>0,SUMIF(e4Cat3,$A$61,e4Costs3)*vAltBene,0) -> 0 | AA62: =IF(SUMIF(e4Cat4,$A$61,e4Costs4)>0,SUMIF(e4Cat4,$A$61,e4Costs4)*vAltBene,0) -> 0 | AB62: =IF(SUMIF(e4Cat5,$A$61,e4Costs5)>0,SUMIF(e4Cat5,$A$61,e4Costs5)*vAltBene,0) -> 0 | AC62: =IF(SUMIF(e4Cat6,$A$61,e4Costs6)>0,SUMIF(e4Cat6,$A$61,e4Costs6)*vAltBene,0) -> 0 | AD62: 0 | AE62: 0
A63: =BudgetCat!A63 -> Transportation Bus Driver Extra Activity | B63: =BudgetCat!B63 -> 402.2700.518000.40024.1940.1750.FAC.030.2025 | C63: 0 | D63: 0 | E63: 0 | F63: 0 | G63: 0 | H63: 0 | I63: 0 | J63: 0 | K63: 0 | L63: 0 | M63: 0 | N63: 0 | O63: 0 | P63: 0 | Q63: 0 | R63: 0 | S63: 0 | T63: 0 | U63: 0 | V63: 0 | W63: 0 | X63: 0 | Y63: 0 | Z63: 0 | AA63: 0 | AB63: 0 | AC63: 0 | AD63: 0 | AE63: 0
A64: =BudgetCat!A64 -> Transporation Bus Driver FICA | B64: =BudgetCat!B64 -> 402.2700.522000.40024.1940.1750.FAC.030.2025 | C64: =IF(SUMIF(e1Cat1,$A$63,e1Costs1)>0,SUMIF(e1Cat1,$A$63,e1Costs1)*tFICA,0) -> 0 | D64: =IF(SUMIF(e1Cat2,$A$63,e1Costs2)>0,SUMIF(e1Cat2,$A$63,e1Costs2)*tFICA,0) -> 0 | E64: =IF(SUMIF(e1Cat3,$A$63,e1Costs3)>0,SUMIF(e1Cat3,$A$63,e1Costs3)*tFICA,0) -> 0 | F64: =IF(SUMIF(e1Cat4,$A$63,e1Costs4)>0,SUMIF(e1Cat4,$A$63,e1Costs4)*tFICA,0) -> 0 | G64: =IF(SUMIF(e1Cat5,$A$63,e1Costs5)>0,SUMIF(e1Cat5,$A$63,e1Costs5)*tFICA,0) -> 0 | H64: =IF(SUMIF(e1Cat6,$A$63,e1Costs6)>0,SUMIF(e1Cat6,$A$63,e1Costs6)*tFICA,0) -> 0 | I64: 0 | J64: =IF(SUMIF(e2Cat1,$A$63,e2Costs1)>0,SUMIF(e2Cat1,$A$63,e2Costs1)*tFICA,0) -> 0 | K64: =IF(SUMIF(e2Cat2,$A$63,e2Costs2)>0,SUMIF(e2Cat2,$A$63,e2Costs2)*tFICA,0) -> 0 | L64: =IF(SUMIF(e2Cat3,$A$63,e2Costs3)>0,SUMIF(e2Cat3,$A$63,e2Costs3)*tFICA,0) -> 0 | M64: =IF(SUMIF(e2Cat4,$A$63,e2Costs4)>0,SUMIF(e2Cat4,$A$63,e2Costs4)*tFICA,0) -> 0 | N64: =IF(SUMIF(e2Cat5,$A$63,e2Costs5)>0,SUMIF(e2Cat5,$A$63,e2Costs5)*tFICA,0) -> 0 | O64: =IF(SUMIF(e2Cat6,$A$63,e2Costs6)>0,SUMIF(e2Cat6,$A$63,e2Costs6)*tFICA,0) -> 0 | P64: 0 | Q64: =IF(SUMIF(e3Cat1,$A$63,e3Costs1)>0,SUMIF(e3Cat1,$A$63,e3Costs1)*tFICA,0) -> 0 | R64: =IF(SUMIF(e3Cat2,$A$63,e3Costs2)>0,SUMIF(e3Cat2,$A$63,e3Costs2)*tFICA,0) -> 0 | S64: =IF(SUMIF(e3Cat3,$A$63,e3Costs3)>0,SUMIF(e3Cat3,$A$63,e3Costs3)*tFICA,0) -> 0 | T64: =IF(SUMIF(e3Cat4,$A$63,e3Costs4)>0,SUMIF(e3Cat4,$A$63,e3Costs4)*tFICA,0) -> 0 | U64: =IF(SUMIF(e3Cat5,$A$63,e3Costs5)>0,SUMIF(e3Cat5,$A$63,e3Costs5)*tFICA,0) -> 0 | V64: =IF(SUMIF(e3Cat6,$A$63,e3Costs6)>0,SUMIF(e3Cat6,$A$63,e3Costs6)*tFICA,0) -> 0 | W64: 0 | X64: =IF(SUMIF(e4Cat1,$A$63,e4Costs1)>0,SUMIF(e4Cat1,$A$63,e4Costs1)*tFICA,0) -> 0 | Y64: =IF(SUMIF(e4Cat2,$A$63,e4Costs2)>0,SUMIF(e4Cat2,$A$63,e4Costs2)*tFICA,0) -> 0 | Z64: =IF(SUMIF(e4Cat3,$A$63,e4Costs3)>0,SUMIF(e4Cat3,$A$63,e4Costs3)*tFICA,0) -> 0 | AA64: =IF(SUMIF(e4Cat4,$A$63,e4Costs4)>0,SUMIF(e4Cat4,$A$63,e4Costs4)*tFICA,0) -> 0 | AB64: =IF(SUMIF(e4Cat5,$A$63,e4Costs5)>0,SUMIF(e4Cat5,$A$63,e4Costs5)*tFICA,0) -> 0 | AC64: =IF(SUMIF(e4Cat6,$A$63,e4Costs6)>0,SUMIF(e4Cat6,$A$63,e4Costs6)*tFICA,0) -> 0 | AD64: 0 | AE64: 0
A65: =BudgetCat!A65 -> Transportation Gas or Diesel Fuel | B65: =BudgetCat!B65 -> 402.2700.562000.40024.1940.1750.FAC.030.2025 | C65: 0 | D65: 0 | E65: 0 | F65: 0 | G65: 0 | H65: 0 | I65: 0 | J65: 0 | K65: 0 | L65: 0 | M65: 0 | N65: 0 | O65: 0 | P65: 0 | Q65: 0 | R65: 0 | S65: 0 | T65: 0 | U65: 0 | V65: 0 | W65: 0 | X65: 0 | Y65: 0 | Z65: 0 | AA65: 0 | AB65: 0 | AC65: 0 | AD65: 0 | AE65: 0
A66: =BudgetCat!A66 -> Transportation For Parents | B66: =BudgetCat!B66 -> 402.2100.559500.40024.1940.1750.FAC.030.2025 | C66: 0 | D66: 0 | E66: 0 | F66: 0 | G66: 0 | H66: 0 | I66: 0 | J66: 0 | K66: 0 | L66: 0 | M66: 0 | N66: 0 | O66: 0 | P66: 0 | Q66: 0 | R66: 0 | S66: 0 | T66: 0 | U66: 0 | V66: 0 | W66: 0 | X66: 0 | Y66: 0 | Z66: 0 | AA66: 0 | AB66: 0 | AC66: 0 | AD66: 0 | AE66: 0
B67: Totals | C67: =SUM(C2:C66) -> 53361.86 | D67: =SUM(D2:D66) -> 0 | E67: =SUM(E2:E66) -> 0 | F67: =SUM(F2:F66) -> 0 | G67: 0 | H67: 0 | I67: =SUM(I2:I66) -> 53361.86 | J67: =SUM(J2:J66) -> 79637.75 | K67: =SUM(K2:K66) -> 12500 | L67: 0 | M67: =SUM(M2:M66) -> 0 | N67: 0 | O67: 0 | P67: 92137.75 | Q67: 0 | R67: 0 | S67: 0 | T67: 0 | U67: 0 | V67: 0 | W67: 0 | X67: 0 | Y67: 0 | Z67: 0 | AA67: 0 | AB67: 0 | AC67: 0 | AD67: 0 | AE67: 145499.61

Sheet BudgetPos (hidden)
A1: Position | B1: Munis BudgetCode | C1: FND | D1: FN | E1: OBJ | F1: SO | G1: Project | H1: Loc | I1: Pgm | J1: Crosspoint Budget Codes
A3: Teacher, Title I | B3: =BudgetCat!K2 -> 402.1000.511000.40024.1940.1750.FAC.030.2025 | C3: 204 | D3: 38 | E3: 05 | F3: 00 | G3: 400204 | H3: =CurrSchool -> 1940 | I3: 1750 | J3: =CONCATENATE(C3,"-",D3,"-",E3,"-",F3,"-",G3,"-",H3,"-",I3) -> 204-38-05-00-400204-1940-1750
A4: Para, Title I | B4: =BudgetCat!K5 -> 402.1000.514000.40024.1940.1750.FAC.030.2025 | C4: 204 | D4: 38 | E4: 07 | F4: 00 | G4: 400204 | H4: 1940 | I4: 1750 | J4: =CONCATENATE(C4,"-",D4,"-",E4,"-",F4,"-",G4,"-",H4,"-",I4) -> 204-38-07-00-400204-1940-1750
A5: Parent Liasion, Title I | B5: =BudgetCat!K30 -> 402.2100.517700.40024.1940.1750.FAC.030.2025 | C5: 204 | D5: 42 | E5: 07 | F5: 00 | G5: 400204 | H5: 1940 | I5: 1750 | J5: 204-42-07-00-400204-1940-1750
A6: Academic Coach | B6: =BudgetCat!K49 -> 402.2213.519100.40024.1940.1750.FAC.030.2025 | C6: 204 | D6: 44 | E6: 19 | F6: 10 | G6: 400204 | H6: 1940 | I6: 1750 | J6: 204-44-19-10-400204-1940-1750

Sheet PosCosts (hidden)
A1: Position | B1: BudgetCode | C1: BaseSalary | D1: Adjustment | E1: AdjustAnnSal | F1: SupplAmt | G1: TotAnnSal | H1: Altbene | I1: RET | J1: HealthIns | K1: TotBene | L1: TotCost
A2: =BudgetPos!A3 -> Teacher, Title I | B2: =BudgetPos!B3 -> 402.1000.511000.40024.1940.1750.FAC.030.2025 | C2: =SUMIF(ePosTitle,A2,eposBase) -> 0 | D2: =SUMIF(ePosTitle,A2,eposSalAdj) -> 0 | E2: =C2+D2 -> 0 | F2: 0 | G2: =E2+F2 -> 0 | H2: =SUMIF(ePosTitle,A2,eposFica) -> 0 | I2: =SUMIF(ePosTitle,A2,eposRet) -> 0 | J2: =SUMIF(ePosTitle,A2,eposHealth) -> 0 | K2: =SUMIF(ePosTitle,A2,eposBene) -> 0 | L2: =SUMIF(ePosTitle,A2,eposTot) -> 0
A3: =BudgetPos!A4 -> Para, Title I | B3: =BudgetPos!B4 -> 402.1000.514000.40024.1940.1750.FAC.030.2025 | C3: =SUMIF(ePosTitle,A3,eposBase) -> 0 | D3: 0 | E3: 0 | F3: 0 | G3: 0 | H3: 0 | I3: 0 | J3: 0 | K3: 0 | L3: 0
A4: =BudgetPos!A5 -> Parent Liasion, Title I | B4: =BudgetPos!B5 -> 402.2100.517700.40024.1940.1750.FAC.030.2025 | C4: 0 | D4: 0 | E4: 0 | F4: 0 | G4: 0 | H4: 0 | I4: 0 | J4: 0 | K4: 0 | L4: 0
A5: =BudgetPos!A6 -> Academic Coach | B5: =BudgetPos!B6 -> 402.2213.519100.40024.1940.1750.FAC.030.2025 | C5: 99650 | D5: 2491.25 | E5: 102141.25 | F5: 0 | G5: 102141.25 | H5: 2706.743125 | I5: 21347.52125 | J5: 21120 | K5: 45174.26437 | L5: 147315.5144

Sheet TitleIAllocations (hidden)
A1: LOC | B1: School | C1: FY25 Title I Allocation | D1: FY25 PFE Allocation
A2: 1080 | B2: Allgood Elementary School | C2: 356636 | D2: 3983.7
A3: 5030 | B3: Arabia Mountain High School - Academy of Engineering, Medicine and Environm | C3: 502392 | D3: 4208.161613
A4: 1200 | B4: Avondale Elementary School | C4: 254777.6 | D4: 2845.92
A5: 1600 | B5: Barack H. Obama Elementary Magnet School of Technology | C5: 556668 | D5: 6218.1
A6: 2590 | B6: Bob Mathis Elementary School | C6: 213850 | D6: 2388.75
A7: 1330 | B7: Briar Vista Elementary School | C7: 181016 | D7: 1516.235494
A8: 1320 | B8: Briarlake Elementary School | C8: 94985 | D8: 795.618224
A9: 1360 | B9: Brockett Elementary School | C9: 229510.4 | D9: 2563.68
A10: 1380 | B10: Browns Mill Elementary School | C10: 254646 | D10: 2844.45
A11: 1450 | B11: Canby Lane Elementary School | C11: 262542 | D11: 2932.65
A12: 3250 | B12: Cary Reynolds Elementary School | C12: 133705.6 | D12: 1493.52
A13: 1480 | B13: Cedar Grove Elementary School | C13: 327026 | D13: 3652.95
A14: 5190 | B14: Cedar Grove High School | C14: 749462 | D14: 8371.65
A15: 5180 | B15: Cedar Grove Middle School | C15: 469812 | D15: 5247.9
A16: 5220 | B16: Chamblee Charter High School | C16: 484000 | D16: 4054.1056
A17: 1470 | B17: Chapel Hill Elementary School | C17: 327026 | D17: 3652.95
A18: 5230 | B18: Chapel Hill Middle School | C18: 407302 | D18: 4549.65
A19: 1520 | B19: Chesnut Elementary School | C19: 151250 | D19: 1266.908
A20: 5250 | B20: Clarkston High School | C20: 930412 | D20: 10392.9
A21: 1560 | B21: Columbia Elementary School | C21: 231616 | D21: 2587.2
A22: 5270 | B22: Columbia High School | C22: 601412 | D22: 6717.9
A23: 5260 | B23: Columbia Middle School | C23: 371770 | D23: 4152.75
A24: 0220 | B24: Coralwood Education Center | C24: 25168 | D24: 210.8134912
A25: 5290 | B25: Cross Keys High School | C25: 1163344 | D25: 12994.8
A26: 6380 | B26: DeKalb Academy of Technology and the Environment Charter School | C26: 387562 | D26: 4329.15
A27: 5060 | B27: DeKalb Early College Academy | C27: 153314 | D27: 1712.55
A28: 1020 | B28: DeKalb Elementary School of the Arts | C28: 295836.8 | D28: 3304.56
A29: 6360 | B29: DeKalb PATH Academy Charter School | C29: 236880 | D29: 2646
A30: 6410 | B30: DeKalb Preparatory Academy Charter | C30: 307286 | D30: 3432.45
A31: 1640 | B31: Doraville United Elementary School | C31: 563248 | D31: 6291.6
A32: 1760 | B32: Dresden Elementary School | C32: 314787.2 | D32: 3516.24
A33: 5330 | B33: Druid Hills High School | C33: 402930 | D33: 3375.042912
A34: 5730 | B34: Druid Hills Middle School | C34: 406560 | D34: 3405.448704
A35: 1780 | B35: Dunaire Elementary School | C35: 263858 | D35: 2947.35
A36: 3420 | B36: Edward L. Bouie, Sr. Elementary School | C36: 305312 | D36: 3410.4
A37: 2570 | B37: Eldridge L. Miller Elementary School | C37: 269780 | D37: 3013.5
A38: 6250 | B38: Elizabeth Andrews High School | C38: 91593.6 | D38: 1023.12
A39: 1850 | B39: Evansdale Elementary School | C39: 193600 | D39: 1621.64224
A40: 1870 | B40: Fairington Elementary School | C40: 302680 | D40: 3381
A41: 1860 | B41: Flat Rock Elementary School | C41: 606018 | D41: 6769.35
A42: 1950 | B42: Flat Shoals Elementary School | C42: 288862 | D42: 3226.65
A43: 5240 | B43: Freedom Middle School | C43: 806708 | D43: 9011.1
A44: 2120 | B44: Hambrick Elementary School | C44: 321762 | D44: 3594.15
A45: 2130 | B45: Hawthorne Elementary School | C45: 176870.4 | D45: 1975.68
A46: 5490 | B46: Henderson Middle School | C46: 618552 | D46: 5181.146957
A47: 2150 | B47: Henderson Mill Elementary School | C47: 219736 | D47: 1840.563942
A48: 2180 | B48: Hightower Elementary School | C48: 349529.6 | D48: 3904.32
A49: 2200 | B49: Huntley Hills Elementary School | C49: 217929.6 | D49: 2434.32
A50: 2250 | B50: Idlewood Elementary School | C50: 559958 | D50: 6254.85
A51: 2300 | B51: Indian Creek Elementary School | C51: 543508 | D51: 6071.1
A52: 6350 | B52: International Community School | C52: 202070 | D52: 1692.589088
A53: 1400 | B53: John Robert Lewis Elementary School | C53: 470601.6 | D53: 5256.72
A54: 2320 | B54: Jolly Elementary School | C54: 494816 | D54: 5527.2
A55: 2350 | B55: Kelley Lake Elementary School | C55: 128441.6 | D55: 1434.72
A56: 2360 | B56: Kingsley Elementary School | C56: 140360 | D56: 1175.690624
A57: 5550 | B57: Lakeside High School | C57: 651585 | D57: 5457.839664
A58: 2500 | B58: Laurel Ridge Elementary School | C58: 108295 | D58: 907.106128
A59: 6390 | B59: Leadership Preparatory Academy | C59: 156604 | D59: 1749.3
A60: 5590 | B60: Lithonia High School | C60: 992922 | D60: 11091.15
A61: 5580 | B61: Lithonia Middle School | C61: 702744 | D61: 7849.8
A62: 2560 | B62: Livsey Elementary School | C62: 138424 | D62: 1159.474202
A63: 2610 | B63: Marbut Elementary School | C63: 252014 | D63: 2815.05
A64: 0150 | B64: Margaret Harris Comprehensive School | C64: 43164.8 | D64: 482.16
A65: 5740 | B65: Martin Luther King, Jr. High School | C65: 950152 | D65: 10613.4
A66: 5840 | B66: Mary McLeod Bethune Middle School | C66: 442176 | D66: 4939.2
A67: 2600 | B67: McLendon Elementary School | C67: 186214 | D67: 2080.05
A68: 5950 | B68: McNair High School | C68: 514556 | D68: 5747.7
A69: 5440 | B69: McNair Middle School | C69: 518504 | D69: 5791.8
A70: 2700 | B70: Midvale Elementary School | C70: 198979.2 | D70: 2222.64
A71: 5640 | B71: Miller Grove High School | C71: 731696 | D71: 8173.2
A72: 5680 | B72: Miller Grove Middle School | C72: 439544 | D72: 4909.8
A73: 2780 | B73: Montclair Elementary School | C73: 325315.2 | D73: 3633.84
A74: 1460 | B74: Murphey Candler Elementary School | C74: 303996 | D74: 3395.7
A75: 1940 | B75: Narvie Harris Elementary School | C75: 296889.6 | D75: 3316.32
A76: 3000 | B76: Oakcliff Elementary School | C76: 397432 | D76: 4439.4
A77: 3060 | B77: Oakview Elementary | C77: 426384 | D77: 4762.8
A78: 3090 | B78: Panola Way Elementary School | C78: 389536 | D78: 4351.2
A79: 3110 | B79: Peachcrest Elementary School | C79: 387562 | D79: 4329.15
A80: 5650 | B80: Peachtree Middle School | C80: 399300 | D80: 3344.63712
A81: 3120 | B81: Pine Ridge Elementary School | C81: 350714 | D81: 3917.55
A82: 3150 | B82: Pleasantdale Elementary School | C82: 363216 | D82: 4057.2
A83: 3450 | B83: Princeton Elementary School | C83: 489552 | D83: 5468.4
A84: 3320 | B84: Rainbow Elementary School | C84: 196084 | D84: 2190.3
A85: 3200 | B85: Redan Elementary School | C85: 340844 | D85: 3807.3
A86: 5670 | B86: Redan High School | C86: 664580 | D86: 7423.5
A87: 5660 | B87: Redan Middle School | C87: 417830 | D87: 4667.25
A88: 3700 | B88: Robert Shaw Theme School | C88: 192794 | D88: 2153.55
A89: 3400 | B89: Rock Chapel Elementary School | C89: 332290 | D89: 3711.75
A90: 3440 | B90: Rockbridge Elementary School | C90: 592858 | D90: 6622.35
A91: 2620 | B91: Ronald E McNair Discovery Learning Academy Elementary School | C91: 308602 | D91: 3447.15
A92: 3480 | B92: Rowland Elementary School | C92: 240828 | D92: 2690.1
A93: 5690 | B93: Salem Middle School | C93: 609966 | D93: 6813.45
A94: 5700 | B94: Sequoyah Middle School | C94: 1001212.8 | D94: 11183.76
A95: 3620 | B95: Shadow Rock Elementary School | C95: 311892 | D95: 3483.9
A96: 3980 | B96: Smoke Rise Elementary School | C96: 274780.8 | D96: 3069.36
A97: 4000 | B97: Snapfinger Elementary School | C97: 256620 | D97: 2866.5
A98: 5760 | B98: Southwest DeKalb High School | C98: 799075.2 | D98: 8925.84
A99: 5780 | B99: Stephenson High School | C99: 821184 | D99: 9172.8
A100: 5790 | B100: Stephenson Middle School | C100: 552720 | D100: 6174
A101: 4150 | B101: Stone Mill Elementary School | C101: 342160 | D101: 3822
A102: 4200 | B102: Stone Mountain Elementary School | C102: 277018 | D102: 3094.35
A103: 5800 | B103: Stone Mountain High School | C103: 800786 | D103: 8944.95
A104: 5810 | B104: Stone Mountain Middle School | C104: 668528 | D104: 7467.6
A105: 4250 | B105: Stoneview Elementary School | C105: 484288 | D105: 5409.6
A106: 6460 | B106: Tapestry Public Charter School | C106: 74415 | D106: 623.318736
A107: 5820 | B107: The Champion Middle Theme School | C107: 432700.8 | D107: 4833.36
A108: 4650 | B108: Toney Elementary School | C108: 134890 | D108: 1506.75
A109: 5850 | B109: Towers High School | C109: 507976 | D109: 5674.2
A110: 5930 | B110: Tucker High School | C110: 896985.6 | D110: 10019.52
A111: 5920 | B111: Tucker Middle School | C111: 790258 | D111: 8827.35
A112: 6260 | B112: UHS of Laurel Heights | C112: 12705 | D112: 106.420272
A113: 1390 | B113: Wadsworth Magnet School for High Achievers | C113: 98736 | D113: 827.0375424
A114: 4920 | B114: Woodridge Elementary School | C114: 250698 | D114: 2800.35
A115: 4960 | B115: Woodward Elementary School | C115: 281097.6 | D115: 3139.92
A116: 4980 | B116: Wynbrooke Elementary School | C116: 297942.4 | D116: 3328.08

Sheet Schools (hidden)
A1: SchoolName | B1: School | C1: SchoolType | D1: Loc | E1: Region | F1: SchoolAddress | G1: Title1type
A2: Allgood Elementary School | B2: 1080 | C2: E | D2: 108 | E2: 4 | F2: 659 Allgood Road,Stone Mountain,GA 30083 | G2: SW
A3: Arabia Mountain High School | B3: 5030 | C3: H | D3: 503 | E3: 3 | F3: 6610 Browns Mill Road,Lithonia,GA 30038 | G3: SW
A4: Ashford Park Elementary School | B4: 1130 | C4: E | D4: 113 | E4: 1 | F4: 2968 Cravenridge Drive NE,Atlanta,GA 30319 | G4: N
A5: Austin Elementary School | B5: 1180 | C5: E | D5: 118 | E5: 1 | F5: 5321 Roberts Drive,Dunwoody,GA 30338 | G5: N
A6: Avondale Elementary School | B6: 1200 | C6: E | D6: 120 | E6: 2 | F6: 8 Lakeshore Drive,Avondale Estates,GA 30002 | G6: SW
A7: Barack H Obama Elem Magnet School of Technology | B7: 1600 | C7: E | D7: 160 | E7: 7 | F7: 3132 Clifton Church Road SE,Atlanta,GA 30316 | G7: SW
A8: Bethune Middle School | B8: 5840 | C8: M | D8: 584 | E8: 6 | F8: 5200 Covington Highway,Decatur,GA 30035 | G8: SW
A9: Bob Mathis Elementary School | B9: 2590 | C9: E | D9: 259 | E9: 5 | F9: 3505 Boring Road,Decatur,GA 30034 | G9: SW
A10: Briar Vista Elementary School | B10: 1330 | C10: E | D10: 133 | E10: 2 | F10: 1131 Briar Vista Terrace NE,Atlanta,GA 30324 | G10: SW
A11: Briarlake Elementary School | B11: 1320 | C11: E | D11: 132 | E11: 2 | F11: 3590 Lavista Road,Decatur,GA 30033 | G11: SW
A12: Brockett Elementary School | B12: 1360 | C12: E | D12: 136 | E12: 2 | F12: 1855 Brockett Road,Tucker,GA 30084 | G12: SW
A13: Browns Mill Elementary School | B13: 1380 | C13: E | D13: 138 | E13: 5 | F13: 4863 Browns Mill Road,Lithonia,GA 30038 | G13: SW
A14: Canby Lane Elementary School | B14: 1450 | C14: E | D14: 145 | E14: 6 | F14: 4150 Green Hawk Trail,Decatur,GA 30035 | G14: SW
A15: Cary Reynolds Elementary Sch | B15: 3250 | C15: E | D15: 325 | E15: 1 | F15: 3497 Pine Street,Doraville,GA 30340 | G15: SW
A16: Cedar Grove Elementary School | B16: 1480 | C16: E | D16: 148 | E16: 7 | F16: 2330 River Road,Ellenwood,GA 30294 | G16: SW
A17: Cedar Grove High School | B17: 5190 | C17: H | D17: 519 | E17: 7 | F17: 2360 River Road,Ellenwood,GA 30294 | G17: SW
A18: Cedar Grove Middle School | B18: 5180 | C18: M | D18: 518 | E18: 7 | F18: 2300 Wildcat Road,Decatur,GA 30034 | G18: SW
A19: Chamblee Charter High School | B19: 5220 | C19: H | D19: 522 | E19: 1 | F19: 3688 Chamblee Dunwoody Road,Chamblee,GA 30341 | G19: SW
A20: Chamblee Middle School | B20: 5210 | C20: M | D20: 521 | E20: 1 | F20: 3601 Sexton Woods Drive,Atlanta,GA 30341 | G20: N
A21: Champion Theme Middle School | B21: 5820 | C21: M | D21: 582 | E21: 4 | F21: 5265 Mimosa Drive,Stone Mountain,GA 30083 | G21: SW
A22: Chapel Hill Elementary School | B22: 1470 | C22: E | D22: 147 | E22: 5 | F22: 3536 Radcliffe Blvd,Decatur,GA 30034 | G22: SW
A23: Chapel Hill Middle School | B23: 5230 | C23: M | D23: 523 | E23: 5 | F23: 3535 Dogwood Farm Road,Decatur,GA 30034 | G23: SW
A24: Chesnut Elementary School | B24: 1520 | C24: E | D24: 152 | E24: 1 | F24: 4576 N Peachtree Road,Atlanta,GA 30338 | G24: SW
A25: Clarkston High School | B25: 5250 | C25: H | D25: 525 | E25: 4 | F25: 618 North Indian Creek Drive,Clarkston,GA 30021 | G25: SW
A26: Columbia Elementary School | B26: 1560 | C26: E | D26: 156 | E26: 6 | F26: 3230 Columbia Woods Drive,Decatur,GA 30032 | G26: SW
A27: Columbia High School | B27: 5270 | C27: H | D27: 527 | E27: 6 | F27: 2106 Columbia Drive,Decatur,GA 30032 | G27: SW
A28: Columbia Middle School | B28: 5260 | C28: M | D28: 526 | E28: 6 | F28: 3001 Columbia Drive,Decatur,GA 30034 | G28: SW
A29: Coralwood Diagnostic Center | B29: 0220 | C29: E | D29: 22 | E29: 2 | F29: 2477 Coralwood Dr.,Decatur,GA 30033 | G29: SW
A30: Cross Keys High School | B30: 5290 | C30: H | D30: 529 | E30: 1 | F30: 1626 N Druid Hills Road NE,Atlanta,GA 30319 | G30: SW
A31: DeKalb Academy of Tech/Envir | B31: 6380 | C31: M | D31: 638 | E31: 4 | F31: 1492 Kelton Drive,Stone Mountain,GA 30083 | G31: SW
A32: DeKalb Alternative School | B32: 5460 | C32: H | D32: 546 | E32: 6 | F32: 5855 Memorial Drive,Stone Mountain,GA 30083 | G32: SW
A33: DeKalb Early College Academy | B33: 5060 | C33: H | D33: 506 | E33: 4 | F33: 1701 Mountain Industrial Blvd.,Stone Mountain,GA 30083 | G33: SW
A34: DeKalb HS of Technology North | B34: 6090 | C34: V | D34: 609 | E34: 6 | F34: 1995 Womack Road,Atlanta,GA 30338 | G34: SW
A35: DeKalb HS of Technology South | B35: 6230 | C35: V | D35: 623 | E35: 6 | F35: 3303 Panthersville Road,Decatur,GA 30034 | G35: SW
A36: DeKalb PATH Academy | B36: 6360 | C36: M | D36: 636 | E36: 1 | F36: 3007 Hermance Drive,Atlanta,GA 30319 | G36: N
A37: DeKalb Preparatory Academy | B37: 6410 | C37: E | D37: 641 | E37: 6 | F37: 1402 Austin Drive,Decatur,GA 30032 | G37: SW
A38: DeKalb School of the Arts | B38: 5010 | C38: H | D38: 501 | E38: 4 | F38: 1192 Clarendon Avenue,Avondale Estates,GA 30002 | G38: SW
A39: Doraville United Elementary School | B39: 1640 | C39: E | D39: 164 | E39: 1 | F39: 3630 Shallowford Rd NE,Doraville,GA 30340 | G39: N
A40: Dresden Elementary School | B40: 1760 | C40: E | D40: 176 | E40: 1 | F40: 2449 Dresden Drive,Atlanta,GA 30341 | G40: SW
A41: Druid Hills High School | B41: 5330 | C41: H | D41: 533 | E41: 2 | F41: 1798 Haygood Drive NE,Atlanta,GA 30307 | G41: SW
A42: Druid Hills Middle School | B42: 5730 | C42: M | D42: 573 | E42: 2 | F42: 3100 Mount Olive Drive,Decatur,GA 30033 | G42: SW
A43: Dunaire Elementary School | B43: 1780 | C43: E | D43: 178 | E43: 4 | F43: 651 S Indian Creek Drive,Stone Mountain,GA 30083 | G43: SW
A44: Dunwoody Elementary | B44: 1800 | C44: E | D44: 180 | E44: 1 | F44: 1923 Womack Rd,Dunwoody,GA 30338 | G44: SW
A45: Dunwoody High School | B45: 5350 | C45: H | D45: 535 | E45: 1 | F45: 5035 Vermack Road,Dunwoody,GA 30338 | G45: N
A46: Eagle Woods Academy | B46: 0240 | C46: H | D46: 24 | E46: 4 | F46: 5931 Shadow Rock Drive,Lithonia,GA 30058 | G46: N
A47: Early Learning Center | B47: 0200 | C47: E | D47: 20 | E47: 7 | F47: 797 Fayetteville Road, SE,Atlanta,GA 30316 | G47: N
A48: East DeKalb Special Facilities | B48: 6280 | C48: H | D48: 628 | E48: 99 | F48: 5835 Memorial Dr.,Stone Mountain,GA 30083 | G48: N
A49: East DeKalb Special Services_Private | B49: 6290 | C49: H | D49: 629 | E49: 99 | F49: 5839 Memorial Dr.,Stone Mountain,GA 30083 | G49: N
A50: Edward L Bouie Sr Elementary | B50: 3420 | C50: E | D50: 342 | E50: 5 | F50: 5100 Rock Springs Road,Lithonia,GA 30038 | G50: N
A51: Eldridge L Miller Elementary | B51: 2570 | C51: E | D51: 257 | E51: 3 | F51: 919 Martin Rd,Stone Mountain,GA 30088 | G51: SW
A52: Elementary School of Arts | B52: 1020 | C52: E | D52: 102 | E52: 7 | F52: 3131 Old Rockbridge Road,Avondale Estates,GA 30002 | G52: SW
A53: Elizabeth Andrews High School | B53: 6250 | C53: H | D53: 625 | E53: 6 | F53: 1701 Mountain Industrial Blvd,Stone Mountain,GA 30083 | G53: SW
A54: Evansdale Elementary School | B54: 1850 | C54: E | D54: 185 | E54: 2 | F54: 2914 Evans Woods Drive,Atlanta,GA 30340 | G54: SW
A55: Fairington Elementary School | B55: 1870 | C55: E | D55: 187 | E55: 5 | F55: 5505 Phillip Bradley Drive,Lithonia,GA 30038 | G55: SW
A56: Fernbank Elementary School | B56: 1900 | C56: E | D56: 190 | E56: 2 | F56: 157 Heaton Park Drive,Atlanta,GA 30307 | G56: N
A57: Fernbank Science Center | B57: 6600 | C57: H | D57: 660 | E57: 2 | F57: 156 Heaton Park Drive, NE,Atlanta,GA 30307 | G57: N
A58: Flat Rock Elementary School | B58: 1860 | C58: E | D58: 186 | E58: 5 | F58: 4603 Evans Mill Road,Lithonia,GA 30038 | G58: SW
A59: Flat Shoals Elementary School | B59: 1950 | C59: E | D59: 195 | E59: 7 | F59: 3226 Flat Shoals Road,Decatur,GA 30034 | G59: SW
A60: Flex Academy | B60: 6020 | C60: H | D60: 602 | E60: 1 | F60: 2652 Lawrenceville Hwy,Decatur,GA 30033 | G60: N
A61: Flex Academy Tuition | B61: 6030 | C61: H | D61: 603 | E61: 1 | F61: 2652 Lawrenceville Hwy,Decatur,GA 30033 | G61: N
A62: Flex Restore | B62: 6040 | C62: H | D62: 604 | E62: 1 | F62: 2652 Lawrenceville Hwy,Decatur,GA 30033 | G62: N
A63: Freedom Middle School | B63: 5240 | C63: M | D63: 524 | E63: 4 | F63: 505 South Hairston Road,Stone Mountain,GA 30088 | G63: SW
A64: GLOBE Academy Charter School | B64: 6450 | C64: E | D64: 645 | E64: 2 | F64: 2225 Heritage Drive,Atlanta,GA 30345 | G64: N
A65: Hambrick Elementary School | B65: 2120 | C65: E | D65: 212 | E65: 4 | F65: 1101 Hambrick Road,Stone Mountain,GA 30083 | G65: SW
A66: Hawthorne Elementary School | B66: 2130 | C66: E | D66: 213 | E66: 2 | F66: 2535 Caladium Drive, NE,Atlanta,GA 30345 | G66: SW
A67: Henderson Middle School | B67: 5490 | C67: M | D67: 549 | E67: 2 | F67: 2830 Henderson Mill Road,Atlanta,GA 30341 | G67: SW
A68: Henderson Mill Elementary | B68: 2150 | C68: E | D68: 215 | E68: 2 | F68: 2408 Henderson Mill Road, NE,Atlanta,GA 30345 | G68: SW
A69: Hightower Elementary School | B69: 2180 | C69: E | D69: 218 | E69: 1 | F69: 4236 Tilly Mill Road,Atlanta,GA 30360 | G69: SW
A70: Huntley Hills Elementary | B70: 2200 | C70: E | D70: 220 | E70: 1 | F70: 2112 Seaman Circle,Atlanta,GA 30341 | G70: SW
A71: Idlewood Elementary School | B71: 2250 | C71: E | D71: 225 | E71: 2 | F71: 1484 Idlewood Road,Tucker,GA 30084 | G71: SW
A72: Indian Creek Elementary School | B72: 2300 | C72: E | D72: 230 | E72: 4 | F72: 724 N Indian Creek Drive,Clarkston,GA 30021 | G72: SW
A73: Intensive English Program | B73: 6800 | C73: C | D73: 680 | E73: 1 | F73: 3318 Midway Road,Decatur,GA 30032 | G73: N
A74: International Center | B74: 7160 | C74: M | D74: 716 | E74: 6 | F74: 3318 Midway Road,Decatur,GA 30032 | G74: N
A75: International Community School | B75: 6350 | C75: E | D75: 635 | E75: 2 | F75: 2418 Wood Trail Lane,Decatur,GA 30033 | G75: SW
A76: John Lewis Elementary School | B76: 1400 | C76: E | D76: 140 | E76: 1 | F76: 2630 Skyland Dr NE,Brookhaven,GA 30319 | G76: SW
A77: Jolly Elementary School | B77: 2320 | C77: E | D77: 232 | E77: 4 | F77: 1070 Otello Avenue,Clarkston,GA 30021 | G77: SW
A78: Kelley Lake Elementary School | B78: 2350 | C78: E | D78: 235 | E78: 7 | F78: 2590 Kelly Lake Road,Decatur,GA 30032 | G78: SW
A79: Kingsley Elementary School | B79: 2360 | C79: E | D79: 236 | E79: 1 | F79: 2051 Brendon Drive,Atlanta,GA 30338 | G79: SW
A80: Kittredge Magnet Elementary | B80: 2370 | C80: E | D80: 237 | E80: 1 | F80: 1663 E Nancy Creek Dr., NE,Atlanta,GA 30319 | G80: N
A81: Lakeside High School | B81: 5550 | C81: H | D81: 555 | E81: 2 | F81: 3801 Briarcliff Road, NE,Atlanta,GA 30345 | G81: SW
A82: Laurel Heights | B82: 6260 | C82: H | D82: 626 | E82: 6 | F82: 934 Briarcliff Road,Atlanta,GA 30306 | G82: SW
A83: Laurel Ridge Elementary | B83: 2500 | C83: E | D83: 250 | E83: 2 | F83: 1215 Balsam Drive,Decatur,GA 30033 | G83: SW
A84: Leadership Preparatory Academy | B84: 6390 | C84: E | D84: 639 | E84: 3 | F84: 6400 Woodrow Road,Lithonia,GA 30038 | G84: SW
A85: Lithonia High School | B85: 5590 | C85: H | D85: 559 | E85: 3 | F85: 2440 Phillips Road,Lithonia,GA 30058 | G85: SW
A86: Lithonia Middle School | B86: 5580 | C86: M | D86: 558 | E86: 3 | F86: 2451 Randall Avenue,Lithonia,GA 30058 | G86: SW
A87: Livsey Elementary School | B87: 2560 | C87: E | D87: 256 | E87: 2 | F87: 4137 Livsey Road,Tucker,GA 30084 | G87: SW
A88: Marbut Theme School | B88: 2610 | C88: E | D88: 261 | E88: 3 | F88: 5776 Marbut Road,Lithonia,GA 30058 | G88: SW
A89: Margaret Harris Comprehensive | B89: 0150 | C89: C | D89: 15 | E89: 1 | F89: 1634 Knob Hill Drive, NE,Atlanta,GA 30329 | G89: SW
A90: Martin Luther King Jr High Sch | B90: 5740 | C90: H | D90: 574 | E90: 5 | F90: 3991 Snapfinger Road,Lithonia,GA 30038 | G90: SW
A91: McLendon Elementary School | B91: 2600 | C91: E | D91: 260 | E91: 2 | F91: 3169 Hollywood Drive,Decatur,GA 30033 | G91: SW
A92: McNair Discovery Learning Acad | B92: 2620 | C92: E | D92: 262 | E92: 7 | F92: 2162 Second Ave.,Decatur,GA 30032 | G92: SW
A93: McNair High School | B93: 5950 | C93: H | D93: 595 | E93: 7 | F93: 1804 Bouldercrest Road, SE,Atlanta,GA 30316 | G93: SW
A94: McNair Middle School | B94: 5440 | C94: M | D94: 544 | E94: 7 | F94: 2190 Wallingford Road,Decatur,GA 30032 | G94: SW
A95: Midvale Elementary School | B95: 2700 | C95: E | D95: 270 | E95: 2 | F95: 3836 Midvale Road,Tucker,GA 30084 | G95: SW
A96: Miller Grove High School | B96: 5640 | C96: H | D96: 564 | E96: 5 | F96: 2645 DeKalb Medical Parkway,Lithonia,GA 30058 | G96: SW
A97: Miller Grove Middle School | B97: 5680 | C97: M | D97: 568 | E97: 5 | F97: 2215 Miller Road,Decatur,GA 30035 | G97: SW
A98: Montclair Elementary School | B98: 2780 | C98: E | D98: 278 | E98: 1 | F98: 1680 Clairmont Place, NE,Atlanta,GA 30329 | G98: SW
A99: Montgomery Elementary School | B99: 2840 | C99: E | D99: 284 | E99: 1 | F99: 3995 Ashford Dunwoody Road,Atlanta,GA 30319 | G99: N
A100: Murphey Candler Elementary | B100: 1460 | C100: E | D100: 146 | E100: 5 | F100: 6775 S Goddard Road,Lithonia,GA 30038 | G100: SW
A101: Museum School_Avondale Estates | B101: 6400 | C101: E | D101: 640 | E101: 2 | F101: 923 Forrest Boulevard,Decatur,GA 30030 | G101: N
A102: Narvie J Harris Elementary | B102: 1940 | C102: E | D102: 194 | E102: 7 | F102: 3981 McGill Drive,Decatur,GA 30034 | G102: SW
A103: Oak Grove Elementary School | B103: 3050 | C103: E | D103: 305 | E103: 2 | F103: 1857 Oak Grove Road, NE,Atlanta,GA 30345 | G103: N
A104: Oak View Elementary School | B104: 3060 | C104: E | D104: 306 | E104: 7 | F104: 3574 Oakvale Road,Decatur,GA 30034 | G104: SW
A105: Oakcliff Elementary School | B105: 3000 | C105: E | D105: 300 | E105: 1 | F105: 3150 Willow Oak Way,Atlanta,GA 30340 | G105: SW
A106: Panola Way Elementary School | B106: 3090 | C106: E | D106: 309 | E106: 5 | F106: 2170 Panola Way Court,Lithonia,GA 30058 | G106: SW
A107: Peachcrest Elementary School | B107: 3110 | C107: E | D107: 311 | E107: 6 | F107: 1530 Joy Lane,Decatur,GA 30032 | G107: SW
A108: Peachtree Charter MS | B108: 5650 | C108: M | D108: 565 | E108: 1 | F108: 4664 N Peachtree Road,Atlanta,GA 30338 | G108: SW
A109: Pine Ridge Elementary School | B109: 3120 | C109: E | D109: 312 | E109: 3 | F109: 750 Pine Ridge Dr,Stone Mountain,GA 30087 | G109: SW
A110: Pleasantdale Elementary School | B110: 3150 | C110: E | D110: 315 | E110: 2 | F110: 3695 N Lake Drive,Atlanta,GA 30340 | G110: SW
A111: Princeton Elementary School | B111: 3450 | C111: E | D111: 345 | E111: 3 | F111: 1321 South Deshon Road,Lithonia,GA 30058 | G111: SW
A112: Rainbow Elementary School | B112: 3320 | C112: E | D112: 332 | E112: 5 | F112: 2801 Kelley Chapel Road,Decatur,GA 30034 | G112: SW
A113: Redan Elementary School | B113: 3200 | C113: E | D113: 320 | E113: 3 | F113: 1914 Stone Mtn Lithonia Rd,Lithonia,GA 30058 | G113: SW
A114: Redan High School | B114: 5670 | C114: H | D114: 567 | E114: 3 | F114: 5247 Redan Road,Stone Mountain,GA 30088 | G114: SW
A115: Redan Middle School | B115: 5660 | C115: M | D115: 566 | E115: 3 | F115: 1775 Young Road,Lithonia,GA 30058 | G115: SW
A116: Robert Shaw Theme School | B116: 3700 | C116: E | D116: 370 | E116: 7 | F116: 385 Glendale Road,Scottdale,GA 30079 | G116: SW
A117: Rock Chapel Elementary School | B117: 3400 | C117: E | D117: 340 | E117: 3 | F117: 1130 Rock Chapel Road,Lithonia,GA 30058 | G117: SW
A118: Rockbridge Elementary | B118: 3440 | C118: E | D118: 344 | E118: 4 | F118: 445 Halwick Way,Stone Mountain,GA 30083 | G118: SW
A119: Rowland Elementary | B119: 3480 | C119: E | D119: 348 | E119: 6 | F119: 1317 S Indian Creek Drive,Stone Mountain,GA 30083 | G119: SW
A120: Sagamore Hills Elementary | B120: 3500 | C120: E | D120: 350 | E120: 2 | F120: 1865 Alderbrook Road,Atlanta,GA 30345 | G120: N
A121: Salem Middle School | B121: 5690 | C121: M | D121: 569 | E121: 5 | F121: 5333 Salem Road,Lithonia,GA 30058 | G121: SW
A122: Sequoyah Middle School | B122: 5700 | C122: M | D122: 570 | E122: 1 | F122: 3456 Aztec Road,Atlanta,GA 30340 | G122: SW
A123: Shadow Rock Center | B123: 0110 | C123: E | D123: 11 | E123: 4 | F123: 1040 Kingway Drive,Lithonia,GA 30058 | G123: N
A124: Shadow Rock Elementary School | B124: 3620 | C124: E | D124: 362 | E124: 3 | F124: 1040 Kingway Drive,Lithonia,GA 30058 | G124: SW
A125: Smoke Rise Elementary School | B125: 3980 | C125: E | D125: 398 | E125: 2 | F125: 1991 Silver Hill Road,Stone Mountain,GA 30087 | G125: SW
A126: Snapfinger Elementary School | B126: 4000 | C126: E | D126: 400 | E126: 6 | F126: 1365 Snapfinger Road,Decatur,GA 30032 | G126: SW
A127: Southwest DeKalb High School | B127: 5760 | C127: H | D127: 576 | E127: 5 | F127: 2863 Kelley Chapel Road,Decatur,GA 30034 | G127: SW
A128: Stephenson High School | B128: 5780 | C128: H | D128: 578 | E128: 3 | F128: 701 Stephenson Road,Stone Mountain,GA 30087 | G128: SW
A129: Stephenson Middle School | B129: 5790 | C129: M | D129: 579 | E129: 3 | F129: 922 Stephenson Road,Stone Mountain,GA 30087 | G129: SW
A130: Stone Mill Elementary School | B130: 4150 | C130: E | D130: 415 | E130: 4 | F130: 4900 Sheila Lane,Stone Mountain,GA 30083 | G130: SW
A131: Stone Mountain Elementary | B131: 4200 | C131: E | D131: 420 | E131: 4 | F131: 6720 Memorial James B Rivers Dr,Stone Mountain,GA 30083 | G131: SW
A132: Stone Mountain High School | B132: 5800 | C132: H | D132: 580 | E132: 4 | F132: 4555 Central Drive,Stone Mountain,GA 30083 | G132: SW
A133: Stone Mountain Middle School | B133: 5810 | C133: M | D133: 581 | E133: 4 | F133: 4301 Sarr Parkway,Stone Mountain,GA 30083 | G133: SW
A134: Stoneview Elementary School | B134: 4250 | C134: E | D134: 425 | E134: 3 | F134: 2629 Huber Street,Lithonia,GA 30058 | G134: SW
A135: Tapestry Public Charter School | B135: 6420 | C135: H | D135: 642 | E135: 1 | F135: 3130 Raymond Drive,Atlanta,GA 30340 | G135: SW
A136: Toney Elementary School | B136: 4650 | C136: E | D136: 465 | E136: 6 | F136: 2701 Oakland Terrace,Decatur,GA 30032 | G136: SW
A137: Towers High School | B137: 5850 | C137: H | D137: 585 | E137: 6 | F137: 3919 Brookcrest Circle,Decatur,GA 30032 | G137: SW
A138: Tucker High School | B138: 5930 | C138: H | D138: 593 | E138: 2 | F138: 5036 Lavista Road,Tucker,GA 30084 | G138: SW
A139: Tucker Middle School | B139: 5920 | C139: M | D139: 592 | E139: 2 | F139: 2160 Idlewood Road,Tucker,GA 30084 | G139: SW
A140: Vanderlyn Elementary School | B140: 4840 | C140: E | D140: 484 | E140: 1 | F140: 1877 Vanderlyn Drive,Atlanta,GA 30338 | G140: N
A141: Wadsworth Magnet School | B141: 1390 | C141: E | D141: 139 | E141: 6 | F141: 3039 Santa Monica Drive,Decatur,GA 30032 | G141: SW
A142: Warren Technical School | B142: 6240 | C142: V | D142: 624 | E142: 1 | F142: 3075 Alton Road,Atlanta,GA 30341 | G142: N
A143: Woodridge Elementary School | B143: 4920 | C143: E | D143: 492 | E143: 5 | F143: 4120 Cedar Ridge Trail,Stone Mountain,GA 30083 | G143: SW
A144: Woodward Elementary School | B144: 4960 | C144: E | D144: 496 | E144: 1 | F144: 3034 Curtis Drive, NE,Atlanta,GA 30319 | G144: SW
A145: Wynbrooke Elementary School | B145: 4980 | C145: E | D145: 498 | E145: 3 | F145: 440 Wicksbury Way,Stone Mountain,GA 30087 | G145: SW

Sheet Data Analysis
A1: SUMMARY OF SCHOOL DATA ANALYSIS AND/OR COMPREHENSIVE NEEDS ASSESSMENT
A3: 1. List the data used to identify valid needs for improvement (Ex. demographics (African American/Black, Hispanic, ELL, Asian, Students with Disabilities & Economically Disadvantaged), student learning (MAP, Georgia GMAS), Non-Cognitive Data (Attendance, Behavioral), perception (Climate Survey)).
A4: Georgia Milestones, MAP, Disipline Data, Attendance and School Climate Data. African American, Economically Disadvantaed and Students with Disabilities are the demographics groups that will be monitored. Non Cognitive Data being that will be monitored are Attendance and Behavior. In order to assertain perception data from our stakeholders, Parent and Teacher Surveys will be administered.
A16: 2. What are the results of your Root Cause Analysis using the Five Whys Protocol?
A17: Common Assessmement and End of Year Summative data reflects the learning targets students have been exposed to throughout the school year. The areas that high light our root causes are ELA and Mathematics. These areas are probable results of Ineffective implementation of the structured literacy components which has led to decreased ahcievement in ELA scores. In additon, a decrease in explicit implementation of math instructional plans has increased the number of students performing below grade level. The increase in discipline referrals is negatively impacting school cultue and climate.
A29: 3. What does an analysis of your school data and/or a comprehensive needs assessment tell you about the school's strengths? Provide a narrative, identifying trends over the past three year, and tell your school's story (no charts and graphs).
A30: Narvie compared the GMAS content socres for ELA for 2024, 2023, and 2022 and Math for 2023, 2022, and 2021. Data Analysis revealed that the pecentage of schoolwide Distinguished Learners in ELA has increased. The percentage of distingushed ELA students for 2022 was 11%, for 2023, 16% and for 2024, 18% of students scored proficient. The number of students performing at developing or higher continues to grow. In 2021 76% of students were developing or above in ELA. In 2022, 80% of students were developing or above in ELA. In 2023, 83% of students performed at devlopng or above for ELA. The percentage of mathematics distinguished learners for 2022 was 7% and 12% for 2023. In mathematics for 2022, 77% of students performed at developing or higher. In mathematics for 2023 85% of student scored at proficient or higher. Math Ga milestones scores for 2024 have not been released as of yet. Analysis of the MAP ELA student Growth Summary Report aggregated data shows grdes 3, 4, and 5 are consistent in increasig the mean RIT scoeres for ELA and mathematics for the last 3 years. In Reading , 3rd grade grew from 168.9 in 2022 to 185.0 in 2023 and193.2 in 2024. Fourth grade grew from184.5 in 2022 to 194.4 in 2023 and then 202.8 in 2024. Fifth grade increased from 194.8 in 2022 to 203. in 2023 and 213.4 in 2024. The growth for math increased for all 3 grades levels . For 3rd Grade Winter 2022 the mean RIT score was 173.1 for Wtr 2023 185.0 and Wtr 2024, 193.2 For fourth grade winter 2022, 185.1, for winter 2023, 194.4 . and for winter 202.8. For fifth grade winter mathematics mean MAP score was 193.8, winter 2023, 203.0 and winter 2024, 213.4. Based on Istation data for 2023-24, level 3 to level 5 students showed a 54% growth for overall domains. This data is compared to the average performance of their district and state peers.
A43: 4. What does the data analysis and/or comprehensive needs assessment tell you about the school's gaps or opportunities for improvement? Based on the analysis, provide a narrative that describes the trend data as the rationale for identification of the gaps or opportunities for improvement (no charts or graphs).
A44: Students at Narvie J. Harris are making consistent academic progress throughout the school years in reading and math. In 2021 39% of students scored Distinguished or Proficient in ELA on the Georgia Milestones. In 2021 21% of students scored Distinguished or Proficient in Math In 2021 on the Georgia Milestones. Our ELA increased to 48% in 2022 and 33% in Math in 2022. Our 2023-24 winter MAP reading data shows an increase in ELA. On Georgia Milestones Assessment the ELA/Writing results prioritize the need to support writing. Teachers will be trained to effectively use and implement the writing platform to increase growth in ELA/Writing to increase proficient and distinguished learners. Teachers will continue to participate in professional learning opportunities to implement the use of math instructional learning plans and to implement best practices with math instruction. A close analysis in math revealed a need for combined instructional focus on procedural learning and conceptual understanding of mathematics. This is important to ensure all students learn and master standards. The CRA instructional model when used consistently will provide a graduated, conceptually supported work which will assist in creating meaningful connections among concrete, representational, and abstract levels of understanding in math.
A57: 5. What data are missing, and how will you go about collecting this information for future use?
A58: GMAS data for mathematics and final content scores for ELA, Math and Science are missing for the school. Prelimimary percentages will be replaced with final percentages once available.
A71: From the data analysis, what are the school's priority areas?
A72: Priority Area 1:
A73: Reading/ELA
A74: Priority Area 2:
A75: Mathematics
A76: Priority Area 3:
A77: School Culture and Climate
A78: Priority Area 4:

Sheet LEVEL 1 - 3 INITIATIVES
A1: EVIDENCE-BASED INTERVENTIONS
A2: Level 1 - 3 initiatives will be listed as Strong, Moderate, or Promising on one of the following websites:
A3: https://www.evidenceforessa.org | D3: https://ies.ed.gov/ncee
A4: http://www.bestevidence.org | D4: http://www.pewtrusts.org/en/research-and-analysis/data-visualizations/2015/results-first-clearinghouse-database
A5: https://www.childtrends.org | D5: https://ies.ed.gov/ncee/wwc/FWW
A6: https://dwwlibrary.wested.org | D6: https://ies.ed.gov/ncee/edlabs/askarel/index.asp?REL=southeast
A7: Priority Area | B7: Name of Intervention, Strategy, or Activity | C7: Website | D7: Evidence-based Level | E7: Measurement for Success (Outcomes) | F7: Results (to be completed as part of Annual Review)
A8: ELA | B8: Structured Literacy | C8: https://www.bestevidence.org | D8: Strong | E8: Increase in student comprension as measured by Georgia Milestones Assessment and MAP.
A9: ELA | B9: Writer's Workshop | C9: https://www.bestevidence.org | D9: Strong | E9: Increase in student achievement in writing measured by Georgia Milestones Assessment.
A10: Math | B10: Mathematics Standards-Based Classroom | C10: https://evidenceforessa.org | D10: Strong | E10: Increase student achievement on Georgia Milestones, MAP Assessment, and District Benchmarks.

Sheet LEVEL 4 INITIATIVES
A1: EVIDENCE-BASED INTERVENTIONS - NOT APPLICABLE FOR SCHOOL IMPROVEMENT 1003(A)
A2: Level 4 School Initiatives (Rationale/Logic Model)
A3: Priority | B3: Activities | D3: Inputs | F3: Outputs | H3: Outcomes
A4: Priority Area | B4: Name of Intervention, Strategy, or Activity | C4: Current Research with Demonstrated Rationale (Name and link to study) | D4: Intervention Subject | E4: Implementation Plan of Action (how?) | F4: Measurement for Success (Outcomes) | G4: When will success be measured (list month/date)? | H4: Results (to be completed as part of Annual Review)
A5: ELA, Math | B5: I-Ready | C5: https//curriculumassociates.com/research-and-efficacy | D5: ELA, Math | E5: During the day, After school, or at home. | F5: iReady growth data
A6: ELA, Math | B6: Stemscopes | C6: https://acceleratelearning.com/research/ | D6: ELA, Math, Science | E6: During the day, After school, or at home. | F6: Flocabulary Student Achievement Data
A7: ELA | B7: Accelerated Reader | C7: https://www.renaissance.com/products/accelerated-reader | D7: ELA, Math | E7: During the day, After school, or at home. | F7: AR Lexile data
A8: ELA | B8: Writable | C8: www.writable.com/wp-content/uploads/2017/12/research-synopsis-and-pedagogy_writable.pdf | D8: Writing | E8: During the day, After school, or at home. | F8: Writeable data
A9: ELA, Math | B9: IXL | C9: ixl.com/membership/teachers/research | D9: ELA, Math, Science, Social Studies | E9: During the day, After school, or at home. | F9: IXL data
A10: ELA | B10: i-Station | C10: https://www.istation.com/istation-reading-research-study | D10: ELA | E10: During the day, After school, or at home. | F10: I-Station data
A11: ELA, Math | B11: Flocabulary | C11: http://flocabulary.com/results-achievement | D11: ELA, Math, Science, Social Studies | E11: During the day, After school, or at home. | F11: Flocabulary Student Achievement Data
A12: ELA, Math | B12: Scholastic News | C12: www.scholastic.com/aboutscholastic/research-and-reports/ | D12: ELA, Math, Science, Social Studies | E12: During the day, After school, or at home.
A13: ELA, Math | B13: Summer Express | D13: ELA, Math | E13: At home

Sheet Priority Area 1
A1: PRIORITY AREA 1, IMPROVEMENT STRATEGIES, AND MONITORING CYCLE (Review - Reflect - Refine)
A2: PLAN: Continuous School Improvement Plans are developed based on data analyses and/or comprehensive needs assessments (PLAN), to implement solutions (DO), to understand the results or impact (CHECK) and to make adjustments based upon the outcomes of the strategy implementation (ACT).
A3: Priority Area 1 | C3: ='Data Analysis'!A73 -> Reading/ELA
A5: *SMARTIE Goal with Performance Measures | C5: By the end of the SY 2024-2025, Narvie J. Harris will (1) improve student scoring developing or above in ELA as measured by the Georgia Milestones from 83% (SY23-24) to 85.49 (SY 24-25) and 31% (SY23-24) to 31.93 (SY24-25) for the Exceptional Education subgroup: (2) increase by 3% the number of students achieving proficient and/or distinguished levels on the Georgia Milestones (GMAS), (3) increase by 3% the numbers of students moving from developing to proficient on the Georgia Milestones, (4) 6% increase in the number of students whom meet or exceed expected growth projection for RIT scores on the math MAP assessment, and (5) meet state and subgroup performance standards targets by 3% for economically disadvantages student and students with disabilities indicated in the CCRPI.
A6: * Specific, Measurable, Actionable, Realistic, Time-bound, Inclusive, Equitable - Must include subgroup targets.
A7: DCSD Strategic Plan Goal | C7: Goal Area I: Student Success with Equity and Access
A8: DO: School Improvement Plans are developed based on data analyses and/or comprehensive needs assessments (PLAN), to implement solutions (DO), to understand the results or impact (CHECK) and to make adjustments based upon the outcomes of the strategy implementation (ACT).
A9: IMPROVEMENT STRATEGY #1
A10: Structured Literacy | G10: SYSTEM 1: Standards and Curriculum Implementation
A11: Action Steps/Tasks to Implement Improvement Strategy (Who, What, When, Where, How, Funding Source) | G11: Position Responsible for the Action Step, and alignment to district and state efforts/requirements, if needed. | I11: Funding Budgeted to Support Action Step
G12: Person/Position Responsible | H12: Other (Optional, for school use) | I12: Title I, General, Grant, PTA, Donation, After School, Foundations) | J12: Title I State Focus | K12: THESE CELLS ARE LOCKED BECAUSE FUNDING AMOUNTS WILL AUTO POPULATE TO THIS SECTION FROM FUNDING WORKSHEETS.
A13: 1) The instructional team will monitor and implement direct and systematic reading instruction through the use of DCSD instructional framework (My View, Wonders, Performance Coach, Scholastic News, I-Ready Books, Summer Express) in all content areas to increase the components of Structured Literacy and core content mastery for all students. | E13: SYSTEM 1: Standards and Curriculum Implementation | G13: Administation/Academic Coach/MTSS specialist | H13: August 2024-May 2025 | I13: ='Title I Program Worksheet 1'!W13 -> 39552.57 | J13: =#REF! -> 
A14: 2)The instructional team will monitor student literacy skills through the daily check with an understanding tool to improve feedback and remediation for all groups of students. Common assessments will be given weekly to check for standards mastered and/or needing remediation. | E14: SYSTEM 1: Standards and Curriculum Implementation | G14: Leadership team | H14: August 2024-May 2025 | I14: ='Title I Program Worksheet 1'!W14 -> 0 | J14: =#REF! -> 
A15: 3)The instructional team will conduct walk throughs bi-monthly to monitor the implementation of the instructional framework and structured literacy components using an observation checklist to provide feedback and inform next steps. | E15: SYSTEM 4: Progress Monitoring and Analysis of Student Work | G15: Administation/Academic Coach/MTSS specialist | H15: August 2024-May 2025 | I15: ='Title I Program Worksheet 1'!W15 -> 0 | J15: =#REF! -> 
A16: 4) Teachers will provide interventions and remediation during the day and/or after school tutorial for students scoring below grade level as measured on the district MAP assessment, formative assessment, or other qualifying data ( dependent on multiple criteria rank order) to fill in the learning gaps. Provide remediation for transitional students in preparation for the next grade and individualized instruction for SWD students. Provide daily enrichment through small group instruction. | E16: SYSTEM 3: Collaboration Planning and Instructional Practices for Deeper Learning | G16: Teachers | H16: August 2024-May 2025 | I16: ='Title I Program Worksheet 1'!W16 -> 0 | J16: =#REF! -> 
A17: 5) Teachers will use Accelerated Reader and Flocabulary to increase comprehension through vocabulary acqusition and to challenge students to think critically and creatively in unit lesson plans. | E17: SYSTEM 5: Academic and Behavioral Support | G17: Teachers/Administration/Academic Coach/MTSS specialist | H17: August 2024-May 2025 | I17: ='Title I Program Worksheet 1'!W17 -> 0 | J17: =#REF! -> 
A18: 6) Teachers will use I-Ready as a intervention tool to faclitate student progress in reading. Students will use I-Ready for weekly independent practice, small group instruction, and differiented teacher assignments during the day. Also, during tutorial the I-Ready program will fill in the individual learning gaps and increase student improvement in reading. | E18: SYSTEM 5: Academic and Behavioral Support | G18: Teachers/Administration/Academic Coach/MTSS specialist | H18: August 2024-May 2025 | I18: ='Title I Program Worksheet 1'!W18 -> 0 | J18: =#REF! -> 
A19: Teachers will provide students with opportunties to use their reading strategies daily and support student's comprehension of various text by listening to studets read and discuss what they've read. Teachers will give corrective feedback to reinforce comprehension strategies. | E19: SYSTEM 1: Standards and Curriculum Implementation | G19: Teachers/Students/Administration and Media Specialist | H19: August 2024-May 2025 | I19: ='Title I Program Worksheet 1'!W19 -> 8484.91 | J19: =#REF! -> 
I20: ='Title I Program Worksheet 1'!W20 -> 0 | J20: =#REF! -> 
I21: ='Title I Program Worksheet 1'!W21 -> 0 | J21: =#REF! -> 
I22: ='Title I Program Worksheet 1'!W22 -> 0 | J22: =#REF! -> 
I23: ='Title I Program Worksheet 1'!W23 -> 0 | J23: =#REF! -> 
A24: Action Steps/Tasks to Implement Associated with Professional Development/Professional Learning High-quality and ongoing professional development for teachers, principals, and paraprofessionals (TA & SWP) | G24: Position Responsible for the Action Step, and alignment to district and state efforts/requirements, if needed. | I24: Funding Budgeted to Support Action Step
A25: Identify associated professional development courses/activities, participants, providers, and the dates activities will begin and end. | G25: Person/Position Responsible | H25: Other (Optional, for school use) | I25: Title I, General, Grant, PTA, Donation, After School, Foundations) | J25: Title I State Focus
A26: 7)Teachers will participate in PL's for IXL. The PL's will provide training to teachers with creating assignments, monitoring progress, reading reports, and analyzing data. The data will be used to inform instruction and guide teachers towardss next steps in planning for academic proficiency. | E26: SYSTEM 4: Progress Monitoring and Analysis of Student Work | G26: Teachers/Administration/Academic Coach/MTSS specialist | H26: August 2024-May 2025 | I26: ='Title I Program Worksheet 1'!W25 -> 0 | J26: =#REF! ->  | K26: SEE NOTE ABOVE
A27: 8) Teachers will participate in Writable training program to improve student outcomes for constructing responses and developing REBW essays. | E27: SYSTEM 6: Instructional Feedback and Professional Learning | G27: Teachers/Administration/Academic Coach/MTSS specialist | I27: ='Title I Program Worksheet 1'!W26 -> 0 | J27: =#REF! -> 
A28: 9) Teachers and the administrative team will collaborate in bi-weekly collaborative sessions using R.E.A.P protocol. Lesson plans, differentiated instructional strategies, tiered activities, and interventions will be presented in addition to addressing student strengths and weaknesses. | E28: SYSTEM 3: Collaboration Planning and Instructional Practices for Deeper Learning | G28: Teachers/Administration/Academic Coach/MTSS specialist | H28: August 2024-May 2025 | I28: ='Title I Program Worksheet 1'!W27 -> 0 | J28: =#REF! -> 
A29: 10) Teachers will participate in PL Data day to analyze student growth and reflect, review, and refine strategy instruction based on MAP and i-Ready diagnostic. Based on student data, teachers will create small groups to reduce student-teacher ratio. | E29: SYSTEM 2: Effective Use of Data | G29: Teachers/Administration/Academic Coach/MTSS specialist | H29: August 2024-May 2025 | I29: ='Title I Program Worksheet 1'!W28 -> 0 | J29: =#REF! -> 
A30: 11)Teachers will participate in state and local professional learning to support Structured Literacy including small group instruction, the Georgai Literacy Academy, district trainings, and conferences. | E30: SYSTEM 3: Collaboration Planning and Instructional Practices for Deeper Learning | G30: Teachers/Administration/Academic Coach/MTSS specialist | H30: August 2024-May 2025 | I30: ='Title I Program Worksheet 1'!W29 -> 0 | J30: =#REF! -> 
A31: Action Steps/Tasks to Implement Associated with Parent/Family Engagement | G31: Position Responsible for the Action Step, and alignment to district and state efforts/requirements, if needed. | I31: Funding Budgeted to Support Action Step
A32: Identify parent/family engagement activities, providers, and the dates activities will begin and end. | G32: Person/Position Responsible | H32: Other (Optional, for school use) | I32: Title I, General, Grant, PTA, Donation, After School, Foundations) | J32: Title I State Focus
A33: 12) Parents will participate in a mock GA Milestones University and Parent Workshops to understand the importance of reading and how they can help at home utilizing resources such supplies, technology, chromebooks, etc. | E33: SYSTEM 1: Standards and Curriculum Implementation | G33: Principal, AP, AC | H33: August 2024-May 2025 | I33: ='Title I Program Worksheet 1'!W31 -> 1200 | J33: =#REF! ->  | K33: SEE NOTE ABOVE
A34: 13) Send home content overview for instructional programs and provide support for parents at home. | E34: SYSTEM 5: Academic and Behavioral Support | G34: Teacher | H34: August 2024-May 2025 | I34: ='Title I Program Worksheet 1'!W32 -> 749.38 | J34: =#REF! -> 
A35: 14) Provide stakeholder information opportunities to give input, feedback, and request resources to assist their children at home with the ELA content and to help with transition to the next grade level;translations will be made available based on need/requests (stakeholder input meetings, annual meeting, Curriculum Night, CSIP, Compact and Policy development, parent/teacher conferences, email and websites). | E35: SYSTEM 6: Instructional Feedback and Professional Learning | G35: Principal, AP, AC | H35: August 2024-May 2025 | I35: ='Title I Program Worksheet 1'!W33 -> 0 | J35: =#REF! -> 
I36: ='Title I Program Worksheet 1'!W34 -> 0 | J36: =#REF! -> 
A37: 21)Character Education books and Parenting books for Social Emotional Support of Families | E37: SYSTEM 5: Academic and Behavioral Support | G37: Principal, AP, AC | H37: August 2024-May 2025 | I37: ='Title I Program Worksheet 1'!W35 -> 0 | J37: =#REF! -> 
A38: IMPROVEMENT STRATEGY #2
A39: Writing Workshop | G39: SYSTEM 1: Standards and Curriculum Implementation
A40: Action Steps/Tasks to Implement Improvement Strategy | G40: Position Responsible for the Action Step, and alignment to district and state efforts/requirements, if needed. | I40: Funding Budgeted to Support Action Step
G41: Person/Position Responsible | H41: Other (Optional, for school use) | I41: Title I, General, Grant, PTA, Donation, After School, Foundations) | J41: Title I State Focus
A42: 1)Teachers will utilize the writer's workshop model weekly and include STEMScopes (minilesson/work time/debrief) to provide direct instruction, modeling, scaffolding, flexible grouping, conferencing, and feedback. Students will use writing rubics and writer's checklist biweekly for self peer writing evaluation to increase the writing skills. | E42: SYSTEM 1: Standards and Curriculum Implementation | G42: Teacher | H42: August 2024-May 2025 | I42: ='Title I Program Worksheet 1'!W41 -> 0 | J42: =#REF! ->  | K42: THESE CELLS ARE LOCKED BECAUSE FUNDING AMOUNTS WILL AUTO POPULATE TO THIS SECTION FROM FUNDING WORKSHEETS.
A43: 2)Teachers will create biweekly assignments across all genres using the Writable program to organize and customize writing assignments and track student progress to improve student writing proficiency. Students will use Writable platform to write across all genres, construct short respnses, practice writing skills, and receive feedback from teachers, peers, and AI. Students will share work with peers and teachers (draft/published) to recieve immediate feedback. | E43: SYSTEM 3: Collaboration Planning and Instructional Practices for Deeper Learning | G43: Teacher | H43: August 2024-May 2025 | I43: ='Title I Program Worksheet 1'!W42 -> 3375 | J43: =#REF! -> 
A44: 3)Adminstration will conduct monthly walkthroughs to monitor the implementation of the Writer's Workshop model using an observation checklist to inform next steps. | E44: SYSTEM 6: Instructional Feedback and Professional Learning | G44: Principal, AP, AC | H44: August 2024-May 2025 | I44: ='Title I Program Worksheet 1'!W43 -> 0 | J44: =#REF! -> 
A45: Teachers will use the gradual release strategy weekly when providing instruction for readinga nd evidence-based writing (Reading Evidence Based Writing-REBW) and provide students with an informational/explantory or opinion/argumentative writer's checklist. Students will read informational/explantory or opinion/argumentative paired passages. Teachers and students will evaluate the essays based on a two-trait scoring rubric. | E45: SYSTEM 4: Progress Monitoring and Analysis of Student Work | G45: Teacher | H45: August 2024-May 2025 | I45: ='Title I Program Worksheet 1'!W44 -> 0 | J45: =#REF! -> 
A46: 5)Administration team will monitor the Writable student usage and growth reports to monitor growth between 2 graded assignments. | E46: SYSTEM 2: Effective Use of Data | G46: Principal, AP, AC | H46: August 2024-May 2025 | I46: ='Title I Program Worksheet 1'!W45 -> 0 | J46: =#REF! -> 
A47: 6) | I47: ='Title I Program Worksheet 1'!W46 -> 0 | J47: =#REF! -> 
A48: 7) | I48: ='Title I Program Worksheet 1'!W47 -> 0 | J48: =#REF! -> 
A49: 8) | I49: ='Title I Program Worksheet 1'!W48 -> 0 | J49: =#REF! ->  | AL49: Area I: Personalized Learning | AM49: Area II: Character, Service and Safety | AN49: Area III: Parent, Family and Community | AO49: Area IV: Educator and Organizational Excellence | AP49: Select Area of the GCS Strategic Plan 2016 from drop down menu
A50: 9) | I50: ='Title I Program Worksheet 1'!W49 -> 0 | J50: =#REF! -> 
A51: 10) | I51: ='Title I Program Worksheet 1'!W50 -> 0 | J51: =#REF! -> 
A52: 11) | I52: ='Title I Program Worksheet 1'!W51 -> 0 | J52: =#REF! -> 
A53: Action Steps/Tasks to Implement Associated with Professional Development/Professional Learning High-quality and ongoing professional development for teachers, principals, and paraprofessionals (TA & SWP) | G53: Position Responsible for the Action Step, and alignment to district and state efforts/requirements, if needed. | I53: Funding Budgeted to Support Action Step
A54: Identify associated professional development courses/activities, participants, providers, and the dates activities will begin and end. | G54: Person/Position Responsible | H54: Other (Optional, for school use) | I54: Title I, General, Grant, PTA, Donation, After School, Foundations) | J54: Title I State Focus
A55: 12)Teachers will participate in a writer's workshop PL to engage in the components of a writer's workshop to improve instructional practices. | E55: SYSTEM 6: Instructional Feedback and Professional Learning | G55: Principal, AP, AC | H55: August 2024-May 2025 | I55: ='Title I Program Worksheet 1'!W53 -> 0 | J55: =#REF! ->  | K55: SEE NOTE ABOVE | AL55: Click here and select from drop down menu. | AM55: GCS Priority Plan | AN55: Title I | AO55: Magnet | AP55: GCS Priority School | AQ55: African-American Male Achievement | AR55: Not Applicable
A56: 13)Teachers will participate in Writable training program to improve student outcomes for constructing responses and developing REBW essays. | E56: SYSTEM 1: Standards and Curriculum Implementation | G56: Principal, AP, AC | H56: August 2024-May 2025 | I56: ='Title I Program Worksheet 1'!W54 -> 0 | J56: =#REF! -> 
A57: 14)Administration team will monitor implementation of the writer's workshop and Writable through data talks and PD to improve student outcome. | E57: SYSTEM 6: Instructional Feedback and Professional Learning | G57: Principal, AP, AC | H57: August 2024-May 2025 | I57: ='Title I Program Worksheet 1'!W55 -> 0 | J57: =#REF! -> 
A58: 15) | I58: ='Title I Program Worksheet 1'!W56 -> 0 | J58: =#REF! -> 
A59: 16) | I59: ='Title I Program Worksheet 1'!W57 -> 0 | J59: =#REF! -> 
A60: Action Steps/Tasks to Implement Associated with Parent/Family Engagement | G60: Position Responsible for the Action Step, and alignment to district and state efforts/requirements, if needed. | I60: Funding Budgeted to Support Action Step
A61: Identify parent/family engagement activities, providers, and the dates activities will begin and end. | G61: Person/Position Responsible | H61: Other (Optional, for school use) | I61: Title I, General, Grant, PTA, Donation, After School, Foundations) | J61: Title I State Focus
A62: 17)Provide stakeholders information and opportunites to give input, feedback, and request resources to assist their children at home with ELA content content and to help with their child's transition to the next grade level, translations will be made available based on need/requests (stakeholder input meetings, annual meeting, curriculum Night, CSIP, compact an policy development, parent/teacher conferences, emails, and websites). | E62: SYSTEM 6: Instructional Feedback and Professional Learning | G62: Principal, AP, AC | H62: August 2024-May 2025 | I62: ='Title I Program Worksheet 1'!W59 -> 0 | J62: =#REF! ->  | K62: SEE NOTE ABOVE
A63: 18)Host a Parent University to give parents experiences with resources and activites that support reading and math. | E63: SYSTEM 5: Academic and Behavioral Support | G63: Principal, AP, AC, Teachers | H63: August 2024-May 2025 | I63: ='Title I Program Worksheet 1'!W60 -> 0 | J63: =#REF! -> 
A64: 19)Host a transition for our PreK students to allow parents and PreK student to meet with kindergarten teacher students new to Narvie meet with the kindergarten teachers to visit the classroom and learn the procedures and 5th grade students will visit a feeder middle school to meet administration, teachers, students, and representative organizations and clubs. The students learn middle school expectations and experiences. | E64: SYSTEM 5: Academic and Behavioral Support | G64: Principals, Teachers | H64: August 2024-May 2025 | I64: ='Title I Program Worksheet 1'!W61 -> 0 | J64: =#REF! -> 
I65: ='Title I Program Worksheet 1'!W62 -> 0 | J65: =#REF! -> 
A66: 21) | I66: ='Title I Program Worksheet 1'!W63 -> 0 | J66: =#REF! -> 
A67: IMPROVEMENT STRATEGY #3
A68: Type Improvement Strategy Here | G68: Six Systems - Select 1
A69: Action Steps/Tasks to Implement Improvement Strategy | G69: Position Responsible for the Action Step, and alignment to district and state efforts/requirements, if needed. | I69: Funding Budgeted to Support Action Step
G70: Person/Position Responsible | H70: Other (Optional, for school use) | I70: Title I, General, Grant, PTA, Donation, After School, Foundations) | J70: Title I State Focus
A71: 1) | E71: Six Systems - Select 1 | I71: ='Title I Program Worksheet 1'!W69 -> 0 | J71: =#REF! ->  | K71: THESE CELLS ARE LOCKED BECAUSE FUNDING AMOUNTS WILL AUTO POPULATE TO THIS SECTION FROM FUNDING WORKSHEETS.
A72: 2) | I72: ='Title I Program Worksheet 1'!W70 -> 0 | J72: =#REF! -> 
A73: 3) | I73: ='Title I Program Worksheet 1'!W71 -> 0 | J73: =#REF! -> 
A74: 4) | I74: ='Title I Program Worksheet 1'!W72 -> 0 | J74: =#REF! -> 
A75: 5) | I75: ='Title I Program Worksheet 1'!W73 -> 0 | J75: =#REF! -> 
A76: 6) | I76: ='Title I Program Worksheet 1'!W74 -> 0 | J76: =#REF! -> 
A77: 7) | I77: ='Title I Program Worksheet 1'!W75 -> 0 | J77: =#REF! -> 
A78: 8) | I78: ='Title I Program Worksheet 1'!W76 -> 0 | J78: =#REF! -> 
A79: 9) | I79: ='Title I Program Worksheet 1'!W77 -> 0 | J79: =#REF! -> 
A80: 10) | I80: ='Title I Program Worksheet 1'!W78 -> 0 | J80: =#REF! -> 
A81: 11) | I81: ='Title I Program Worksheet 1'!W79 -> 0 | J81: =#REF! -> 
A82: Action Steps/Tasks to Implement Associated with Professional Development/Professional Learning High-quality and ongoing professional development for teachers, principals, and paraprofessionals (TA & SWP) | G82: Position Responsible for the Action Step, and alignment to district and state efforts/requirements, if needed. | I82: Funding Budgeted to Support Action Step
A83: Identify associated professional development courses/activities, participants, providers, and the dates activities will begin and end. | G83: Person/Position Responsible | H83: Other (Optional, for school use) | I83: Title I, General, Grant, PTA, Donation, After School, Foundations) | J83: Title I State Focus
A84: 12) | E84: Six Systems - Select 1 | I84: ='Title I Program Worksheet 1'!W81 -> 0 | J84: =#REF! ->  | K84: SEE NOTE ABOVE
A85: 13) | I85: ='Title I Program Worksheet 1'!W82 -> 0 | J85: =#REF! -> 
A86: 14) | I86: ='Title I Program Worksheet 1'!W83 -> 0 | J86: =#REF! -> 
A87: 15) | I87: ='Title I Program Worksheet 1'!W84 -> 0 | J87: =#REF! -> 
A88: 16) | I88: ='Title I Program Worksheet 1'!W85 -> 0 | J88: =#REF! -> 
A89: Action Steps/Tasks to Implement Associated with Parent/Family Engagement | G89: Position Responsible for the Action Step, and alignment to district and state efforts/requirements, if needed. | I89: Funding Budgeted to Support Action Step
A90: Identify parent/family engagement activities, providers, and the dates activities will begin and end. | G90: Person/Position Responsible | H90: Other (Optional, for school use) | I90: Title I, General, Grant, PTA, Donation, After School, Foundations) | J90: Title I State Focus
A91: 17) | E91: Six Systems - Select 1 | I91: ='Title I Program Worksheet 1'!W87 -> 0 | J91: =#REF! ->  | K91: SEE NOTE ABOVE
A92: 18) | I92: ='Title I Program Worksheet 1'!W88 -> 0 | J92: =#REF! -> 
A93: 19) | I93: ='Title I Program Worksheet 1'!W89 -> 0 | J93: =#REF! -> 
A94: 20) | I94: ='Title I Program Worksheet 1'!W90 -> 0 | J94: =#REF! -> 
A95: 21) | I95: ='Title I Program Worksheet 1'!W92 -> 0 | J95: =#REF! -> 
A96: CSIP Progress Monitoring Cycle 1: | C96: CSIP Monitoring Cycle
A98: CSIP Progress Monitoring Cycle 2: | C98: CSIP Monitoring Cycle
A100: CSIP Progress Monitoring Cycle 3: | C100: CSIP Monitoring Cycle

Sheet Title I Program Worksheet 1
A1: TITLE I PROGRAM WORKSHEET (SWP and TA) | N1: TITLE I PROGRAM WORKSHEET (SWP and TA)
A2: School Name: | C2: ='Cover Sheet'!B2 -> Narvie J Harris Elementary | H2: School Number: | I2: ='Cover Sheet'!H2 -> 1940 | N2: School Name: | O2: ='Cover Sheet'!B2 -> Narvie J Harris Elementary | U2: School Number: | W2: ='Cover Sheet'!H2 -> 1940
A3: Principal: | C3: ='Cover Sheet'!B4 -> Lisa Scott
A4: LEA Name/Number: | C4: DeKalb County School District (644)
A6: Priority Area 1 | N6: Priority Area 1
A7: ='Data Analysis'!$A$73 -> Reading/ELA | N7: ='Data Analysis'!$A$73 -> Reading/ELA
A9: Improvement Strategy #1 | N9: Improvement Strategy #1
A10: =_xlfn.SINGLE('Priority Area 1'!A10) -> Structured Literacy | N10: ='Priority Area 1'!A10 -> Structured Literacy
A11: Action Steps to Implement Improvement Strategy | C11: Title I Program Component | E11: #1 | H11: #2 | K11: #3 | N11: #4 | Q11: #5 | T11: #6
E12: Budget Category 1 (May select up to six Budget Categories for each action step.) | F12: Budget Code | G12: Amount | H12: Budget Category 2 (May select up to six Budget Categories for each action step.) | I12: Budget Code | J12: Amount | K12: Budget Category 3 (May select up to six Budget Categories for each action step.) | L12: Budget Code | M12: Amount | N12: Budget Category 4 (May select up to six Budget Categories for each action step.) | O12: Budget Code | P12: Amount | Q12: Budget Category 5 (May select up to six Budget Categories for each action step.) | R12: Budget Code | S12: Amount | T12: Budget Category 6 (May select up to six Budget Categories for each action step.) | U12: Budget Code | V12: Amount | W12: Total Federal Funding for Action Step
A13: ='Priority Area 1'!A13 -> 1) The instructional team will monitor and implement direct and systematic reading instruction through the use of DCSD instructional framework (My View, Wonders, Performance Coach, Scholastic News, I-Ready Books, Summer Express) in all content areas to increase the components of Structured Literacy and core content mastery for all students. | C13: Schoolwide Reform Strategies (TA & SWP) | E13: Instructional Computer Software | F13: =IF(COUNTIF(BudgetDD!$A$2:$A$37,E13),VLOOKUP(E13,BudgetDD!$A$2:$B$37,2,FALSE),"") -> 402.1000.553200.40024.1940.1750.FAC.030.2025 | G13: 39552.57 | I13: =IF(COUNTIF(BudgetDD!$A$2:$A$37,H13),VLOOKUP(H13,BudgetDD!$A$2:$B$37,2,FALSE),"") ->  | L13: =IF(COUNTIF(BudgetDD!$A$1:$A$37,K13),VLOOKUP(K13,BudgetDD!$A$1:$B$37,2,FALSE),"") ->  | O13: =IF(COUNTIF(BudgetDD!$A$2:$A$37,N13),VLOOKUP(N13,BudgetDD!$A$2:$B$37,2,FALSE),"") ->  | R13: =IF(COUNTIF(BudgetDD!$A$2:$A$37,Q13),VLOOKUP(Q13,BudgetDD!$A$2:$B$37,2,FALSE),"") ->  | U13: =IF(COUNTIF(BudgetDD!$A$1:$A$37,T13),VLOOKUP(T13,BudgetDD!$A$1:$B$37,2,FALSE),"") ->  | W13: =G13+J13+M13+P13+S13+V13 -> 39552.57
A14: ='Priority Area 1'!A14 -> 2)The instructional team will monitor student literacy skills through the daily check with an understanding tool to improve feedback and remediation for all groups of students. Common assessments will be given weekly to check for standards mastered and/or needing remediation. | F14: =IF(COUNTIF(BudgetDD!$A$2:$A$37,E14),VLOOKUP(E14,BudgetDD!$A$2:$B$37,2,FALSE),"") ->  | I14: =IF(COUNTIF(BudgetDD!$A$2:$A$37,H14),VLOOKUP(H14,BudgetDD!$A$2:$B$37,2,FALSE),"") ->  | L14: =IF(COUNTIF(BudgetDD!$A$1:$A$37,K14),VLOOKUP(K14,BudgetDD!$A$1:$B$37,2,FALSE),"") ->  | O14: =IF(COUNTIF(BudgetDD!$A$2:$A$37,N14),VLOOKUP(N14,BudgetDD!$A$2:$B$37,2,FALSE),"") ->  | R14: =IF(COUNTIF(BudgetDD!$A$2:$A$37,Q14),VLOOKUP(Q14,BudgetDD!$A$2:$B$37,2,FALSE),"") ->  | U14: =IF(COUNTIF(BudgetDD!$A$1:$A$37,T14),VLOOKUP(T14,BudgetDD!$A$1:$B$37,2,FALSE),"") ->  | W14: =G14+J14+M14+P14+S14+V14 -> 0
A15: ='Priority Area 1'!A15 -> 3)The instructional team will conduct walk throughs bi-monthly to monitor the implementation of the instructional framework and structured literacy components using an observation checklist to provide feedback and inform next steps. | C15: Schoolwide Reform Strategies (TA & SWP) | F15: =IF(COUNTIF(BudgetDD!$A$2:$A$37,E15),VLOOKUP(E15,BudgetDD!$A$2:$B$37,2,FALSE),"") ->  | I15: =IF(COUNTIF(BudgetDD!$A$2:$A$37,H15),VLOOKUP(H15,BudgetDD!$A$2:$B$37,2,FALSE),"") ->  | L15: =IF(COUNTIF(BudgetDD!$A$1:$A$37,K15),VLOOKUP(K15,BudgetDD!$A$1:$B$37,2,FALSE),"") ->  | O15: =IF(COUNTIF(BudgetDD!$A$2:$A$37,N15),VLOOKUP(N15,BudgetDD!$A$2:$B$37,2,FALSE),"") ->  | R15: =IF(COUNTIF(BudgetDD!$A$2:$A$37,Q15),VLOOKUP(Q15,BudgetDD!$A$2:$B$37,2,FALSE),"") ->  | U15: =IF(COUNTIF(BudgetDD!$A$1:$A$37,T15),VLOOKUP(T15,BudgetDD!$A$1:$B$37,2,FALSE),"") ->  | W15: 0
A16: ='Priority Area 1'!A16 -> 4) Teachers will provide interventions and remediation during the day and/or after school tutorial for students scoring below grade level as measured on the district MAP assessment, formative assessment, or other qualifying data ( dependent on multiple criteria rank order) to fill in the learning gaps. Provide remediation for transitional students in preparation for the next grade and individualized instruction for SWD students. Provide daily enrichment through small group instruction. | C16: Schoolwide Reform Strategies (TA & SWP) | F16: =IF(COUNTIF(BudgetDD!$A$2:$A$37,E16),VLOOKUP(E16,BudgetDD!$A$2:$B$37,2,FALSE),"") ->  | I16: =IF(COUNTIF(BudgetDD!$A$2:$A$37,H16),VLOOKUP(H16,BudgetDD!$A$2:$B$37,2,FALSE),"") ->  | L16: =IF(COUNTIF(BudgetDD!$A$1:$A$37,K16),VLOOKUP(K16,BudgetDD!$A$1:$B$37,2,FALSE),"") ->  | O16: =IF(COUNTIF(BudgetDD!$A$2:$A$37,N16),VLOOKUP(N16,BudgetDD!$A$2:$B$37,2,FALSE),"") ->  | R16: =IF(COUNTIF(BudgetDD!$A$2:$A$37,Q16),VLOOKUP(Q16,BudgetDD!$A$2:$B$37,2,FALSE),"") ->  | U16: =IF(COUNTIF(BudgetDD!$A$1:$A$37,T16),VLOOKUP(T16,BudgetDD!$A$1:$B$37,2,FALSE),"") ->  | W16: 0
A17: ='Priority Area 1'!A17 -> 5) Teachers will use Accelerated Reader and Flocabulary to increase comprehension through vocabulary acqusition and to challenge students to think critically and creatively in unit lesson plans. | C17: Schoolwide Reform Strategies (TA & SWP) | E17: Instructional Computer Software | F17: =IF(COUNTIF(BudgetDD!$A$2:$A$37,E17),VLOOKUP(E17,BudgetDD!$A$2:$B$37,2,FALSE),"") -> 402.1000.553200.40024.1940.1750.FAC.030.2025 | I17: =IF(COUNTIF(BudgetDD!$A$2:$A$37,H17),VLOOKUP(H17,BudgetDD!$A$2:$B$37,2,FALSE),"") ->  | L17: =IF(COUNTIF(BudgetDD!$A$1:$A$37,K17),VLOOKUP(K17,BudgetDD!$A$1:$B$37,2,FALSE),"") ->  | O17: =IF(COUNTIF(BudgetDD!$A$2:$A$37,N17),VLOOKUP(N17,BudgetDD!$A$2:$B$37,2,FALSE),"") ->  | R17: =IF(COUNTIF(BudgetDD!$A$2:$A$37,Q17),VLOOKUP(Q17,BudgetDD!$A$2:$B$37,2,FALSE),"") ->  | U17: =IF(COUNTIF(BudgetDD!$A$1:$A$37,T17),VLOOKUP(T17,BudgetDD!$A$1:$B$37,2,FALSE),"") ->  | W17: 0
A18: ='Priority Area 1'!A18 -> 6) Teachers will use I-Ready as a intervention tool to faclitate student progress in reading. Students will use I-Ready for weekly independent practice, small group instruction, and differiented teacher assignments during the day. Also, during tutorial the I-Ready program will fill in the individual learning gaps and increase student improvement in reading. | C18: Schoolwide Reform Strategies (TA & SWP) | E18: Instructional Computer Software | F18: =IF(COUNTIF(BudgetDD!$A$2:$A$37,E18),VLOOKUP(E18,BudgetDD!$A$2:$B$37,2,FALSE),"") -> 402.1000.553200.40024.1940.1750.FAC.030.2025 | I18: =IF(COUNTIF(BudgetDD!$A$2:$A$37,H18),VLOOKUP(H18,BudgetDD!$A$2:$B$37,2,FALSE),"") ->  | L18: =IF(COUNTIF(BudgetDD!$A$1:$A$37,K18),VLOOKUP(K18,BudgetDD!$A$1:$B$37,2,FALSE),"") ->  | O18: =IF(COUNTIF(BudgetDD!$A$2:$A$37,N18),VLOOKUP(N18,BudgetDD!$A$2:$B$37,2,FALSE),"") ->  | R18: =IF(COUNTIF(BudgetDD!$A$2:$A$37,Q18),VLOOKUP(Q18,BudgetDD!$A$2:$B$37,2,FALSE),"") ->  | U18: =IF(COUNTIF(BudgetDD!$A$1:$A$37,T18),VLOOKUP(T18,BudgetDD!$A$1:$B$37,2,FALSE),"") ->  | W18: 0
A19: ='Priority Area 1'!A19 -> Teachers will provide students with opportunties to use their reading strategies daily and support student's comprehension of various text by listening to studets read and discuss what they've read. Teachers will give corrective feedback to reinforce comprehension strategies. | C19: Schoolwide Reform Strategies (TA & SWP) | E19: Instructional Equipment | F19: =IF(COUNTIF(BudgetDD!$A$2:$A$37,E19),VLOOKUP(E19,BudgetDD!$A$2:$B$37,2,FALSE),"") -> 402.1000.561500.40024.1940.1750.FAC.030.2025 | G19: 8484.91 | I19: =IF(COUNTIF(BudgetDD!$A$2:$A$37,H19),VLOOKUP(H19,BudgetDD!$A$2:$B$37,2,FALSE),"") ->  | L19: =IF(COUNTIF(BudgetDD!$A$1:$A$37,K19),VLOOKUP(K19,BudgetDD!$A$1:$B$37,2,FALSE),"") ->  | O19: =IF(COUNTIF(BudgetDD!$A$2:$A$37,N19),VLOOKUP(N19,BudgetDD!$A$2:$B$37,2,FALSE),"") ->  | R19: =IF(COUNTIF(BudgetDD!$A$2:$A$37,Q19),VLOOKUP(Q19,BudgetDD!$A$2:$B$37,2,FALSE),"") ->  | U19: =IF(COUNTIF(BudgetDD!$A$1:$A$37,T19),VLOOKUP(T19,BudgetDD!$A$1:$B$37,2,FALSE),"") ->  | W19: 8484.91
A20: ='Priority Area 1'!A20 -> 0 | C20: Schoolwide Reform Strategies (TA & SWP) | F20: =IF(COUNTIF(BudgetDD!$A$2:$A$37,E20),VLOOKUP(E20,BudgetDD!$A$2:$B$37,2,FALSE),"") ->  | I20: =IF(COUNTIF(BudgetDD!$A$2:$A$37,H20),VLOOKUP(H20,BudgetDD!$A$2:$B$37,2,FALSE),"") ->  | L20: =IF(COUNTIF(BudgetDD!$A$1:$A$37,K20),VLOOKUP(K20,BudgetDD!$A$1:$B$37,2,FALSE),"") ->  | O20: =IF(COUNTIF(BudgetDD!$A$2:$A$37,N20),VLOOKUP(N20,BudgetDD!$A$2:$B$37,2,FALSE),"") ->  | R20: =IF(COUNTIF(BudgetDD!$A$2:$A$37,Q20),VLOOKUP(Q20,BudgetDD!$A$2:$B$37,2,FALSE),"") ->  | U20: =IF(COUNTIF(BudgetDD!$A$1:$A$37,T20),VLOOKUP(T20,BudgetDD!$A$1:$B$37,2,FALSE),"") ->  | W20: 0
A21: ='Priority Area 1'!A21 -> 0 | F21: =IF(COUNTIF(BudgetDD!$A$2:$A$37,E21),VLOOKUP(E21,BudgetDD!$A$2:$B$37,2,FALSE),"") ->  | I21: =IF(COUNTIF(BudgetDD!$A$2:$A$37,H21),VLOOKUP(H21,BudgetDD!$A$2:$B$37,2,FALSE),"") ->  | L21: =IF(COUNTIF(BudgetDD!$A$1:$A$37,K21),VLOOKUP(K21,BudgetDD!$A$1:$B$37,2,FALSE),"") ->  | O21: =IF(COUNTIF(BudgetDD!$A$2:$A$37,N21),VLOOKUP(N21,BudgetDD!$A$2:$B$37,2,FALSE),"") ->  | R21: =IF(COUNTIF(BudgetDD!$A$2:$A$37,Q21),VLOOKUP(Q21,BudgetDD!$A$2:$B$37,2,FALSE),"") ->  | U21: =IF(COUNTIF(BudgetDD!$A$1:$A$37,T21),VLOOKUP(T21,BudgetDD!$A$1:$B$37,2,FALSE),"") ->  | W21: 0
A22: ='Priority Area 1'!A22 -> 0 | F22: =IF(COUNTIF(BudgetDD!$A$2:$A$37,E22),VLOOKUP(E22,BudgetDD!$A$2:$B$37,2,FALSE),"") ->  | I22: =IF(COUNTIF(BudgetDD!$A$2:$A$37,H22),VLOOKUP(H22,BudgetDD!$A$2:$B$37,2,FALSE),"") ->  | L22: =IF(COUNTIF(BudgetDD!$A$1:$A$37,K22),VLOOKUP(K22,BudgetDD!$A$1:$B$37,2,FALSE),"") ->  | O22: =IF(COUNTIF(BudgetDD!$A$2:$A$37,N22),VLOOKUP(N22,BudgetDD!$A$2:$B$37,2,FALSE),"") ->  | R22: =IF(COUNTIF(BudgetDD!$A$2:$A$37,Q22),VLOOKUP(Q22,BudgetDD!$A$2:$B$37,2,FALSE),"") ->  | U22: =IF(COUNTIF(BudgetDD!$A$1:$A$37,T22),VLOOKUP(T22,BudgetDD!$A$1:$B$37,2,FALSE),"") ->  | W22: 0
A23: ='Priority Area 1'!A23 -> 0 | F23: =IF(COUNTIF(BudgetDD!$A$2:$A$37,E23),VLOOKUP(E23,BudgetDD!$A$2:$B$37,2,FALSE),"") ->  | I23: =IF(COUNTIF(BudgetDD!$A$2:$A$37,H23),VLOOKUP(H23,BudgetDD!$A$2:$B$37,2,FALSE),"") ->  | L23: =IF(COUNTIF(BudgetDD!$A$1:$A$37,K23),VLOOKUP(K23,BudgetDD!$A$1:$B$37,2,FALSE),"") ->  | O23: =IF(COUNTIF(BudgetDD!$A$2:$A$37,N23),VLOOKUP(N23,BudgetDD!$A$2:$B$37,2,FALSE),"") ->  | R23: =IF(COUNTIF(BudgetDD!$A$2:$A$37,Q23),VLOOKUP(Q23,BudgetDD!$A$2:$B$37,2,FALSE),"") ->  | U23: =IF(COUNTIF(BudgetDD!$A$1:$A$37,T23),VLOOKUP(T23,BudgetDD!$A$1:$B$37,2,FALSE),"") ->  | W23: 0
A24: Professional Development Action Steps (Beginning and Ending Dates of Activity, Consultants Providing Training, and Description of Services) | E24: Budget Category 1 (May select up to six Budget Categories for each action step.) | F24: Budget Code | G24: Amount | H24: Budget Category 2 (May select up to six Budget Categories for each action step.) | I24: Budget Code | J24: Amount | K24: Budget Category 3 (May select up to six Budget Categories for each action step.) | L24: Budget Code | M24: Amount | N24: Budget Category 4 (May select up to six Budget Categories for each action step.) | O24: Budget Code | P24: Amount | Q24: Budget Category 5 (May select up to six Budget Categories for each action step.) | R24: Budget Code | S24: Amount | T24: Budget Category 6 (May select up to six Budget Categories for each action step.) | U24: Budget Code | V24: Amount | W24: Total Federal Funding for Action Step
A25: ='Priority Area 1'!A26:F26 -> 7)Teachers will participate in PL's for IXL. The PL's will provide training to teachers with creating assignments, monitoring progress, reading reports, and analyzing data. The data will be used to inform instruction and guide teachers towardss next steps in planning for academic proficiency. | E25: Instructional Contracted Services | F25: =IF(COUNTIF(BudgetDD!$A$2:$A$37,E25),VLOOKUP(E25,BudgetDD!$A$2:$B$37,2,FALSE),"") -> 402.1000.530000.40024.1940.1750.FAC.030.2025 | I25: =IF(COUNTIF(BudgetDD!$A$2:$A$37,H25),VLOOKUP(H25,BudgetDD!$A$2:$B$37,2,FALSE),"") ->  | L25: =IF(COUNTIF(BudgetDD!$A$1:$A$37,K25),VLOOKUP(K25,BudgetDD!$A$1:$B$37,2,FALSE),"") ->  | O25: =IF(COUNTIF(BudgetDD!$A$2:$A$37,N25),VLOOKUP(N25,BudgetDD!$A$2:$B$37,2,FALSE),"") ->  | R25: =IF(COUNTIF(BudgetDD!$A$2:$A$37,Q25),VLOOKUP(Q25,BudgetDD!$A$2:$B$37,2,FALSE),"") ->  | U25: =IF(COUNTIF(BudgetDD!$A$1:$A$37,T25),VLOOKUP(T25,BudgetDD!$A$1:$B$37,2,FALSE),"") ->  | W25: 0
A26: ='Priority Area 1'!A27:F27 -> 8) Teachers will participate in Writable training program to improve student outcomes for constructing responses and developing REBW essays. | F26: =IF(COUNTIF(BudgetDD!$A$2:$A$37,E26),VLOOKUP(E26,BudgetDD!$A$2:$B$37,2,FALSE),"") ->  | I26: =IF(COUNTIF(BudgetDD!$A$2:$A$37,H26),VLOOKUP(H26,BudgetDD!$A$2:$B$37,2,FALSE),"") ->  | L26: =IF(COUNTIF(BudgetDD!$A$1:$A$37,K26),VLOOKUP(K26,BudgetDD!$A$1:$B$37,2,FALSE),"") ->  | O26: =IF(COUNTIF(BudgetDD!$A$2:$A$37,N26),VLOOKUP(N26,BudgetDD!$A$2:$B$37,2,FALSE),"") ->  | R26: =IF(COUNTIF(BudgetDD!$A$2:$A$37,Q26),VLOOKUP(Q26,BudgetDD!$A$2:$B$37,2,FALSE),"") ->  | U26: =IF(COUNTIF(BudgetDD!$A$1:$A$37,T26),VLOOKUP(T26,BudgetDD!$A$1:$B$37,2,FALSE),"") ->  | W26: 0
A27: ='Priority Area 1'!A28:F28 -> 9) Teachers and the administrative team will collaborate in bi-weekly collaborative sessions using R.E.A.P protocol. Lesson plans, differentiated instructional strategies, tiered activities, and interventions will be presented in addition to addressing student strengths and weaknesses. | F27: =IF(COUNTIF(BudgetDD!$A$2:$A$37,E27),VLOOKUP(E27,BudgetDD!$A$2:$B$37,2,FALSE),"") ->  | I27: =IF(COUNTIF(BudgetDD!$A$2:$A$37,H27),VLOOKUP(H27,BudgetDD!$A$2:$B$37,2,FALSE),"") ->  | L27: =IF(COUNTIF(BudgetDD!$A$1:$A$37,K27),VLOOKUP(K27,BudgetDD!$A$1:$B$37,2,FALSE),"") ->  | O27: =IF(COUNTIF(BudgetDD!$A$2:$A$37,N27),VLOOKUP(N27,BudgetDD!$A$2:$B$37,2,FALSE),"") ->  | R27: =IF(COUNTIF(BudgetDD!$A$2:$A$37,Q27),VLOOKUP(Q27,BudgetDD!$A$2:$B$37,2,FALSE),"") ->  | U27: =IF(COUNTIF(BudgetDD!$A$1:$A$37,T27),VLOOKUP(T27,BudgetDD!$A$1:$B$37,2,FALSE),"") ->  | W27: 0
A28: ='Priority Area 1'!A29:F29 -> 10) Teachers will participate in PL Data day to analyze student growth and reflect, review, and refine strategy instruction based on MAP and i-Ready diagnostic. Based on student data, teachers will create small groups to reduce student-teacher ratio. | F28: =IF(COUNTIF(BudgetDD!$A$2:$A$37,E28),VLOOKUP(E28,BudgetDD!$A$2:$B$37,2,FALSE),"") ->  | I28: =IF(COUNTIF(BudgetDD!$A$2:$A$37,H28),VLOOKUP(H28,BudgetDD!$A$2:$B$37,2,FALSE),"") ->  | L28: =IF(COUNTIF(BudgetDD!$A$1:$A$37,K28),VLOOKUP(K28,BudgetDD!$A$1:$B$37,2,FALSE),"") ->  | O28: =IF(COUNTIF(BudgetDD!$A$2:$A$37,N28),VLOOKUP(N28,BudgetDD!$A$2:$B$37,2,FALSE),"") ->  | R28: =IF(COUNTIF(BudgetDD!$A$2:$A$37,Q28),VLOOKUP(Q28,BudgetDD!$A$2:$B$37,2,FALSE),"") ->  | U28: =IF(COUNTIF(BudgetDD!$A$1:$A$37,T28),VLOOKUP(T28,BudgetDD!$A$1:$B$37,2,FALSE),"") ->  | W28: =G28+J28+M28+P28+S28+V28 -> 0
A29: ='Priority Area 1'!A30:F30 -> 11)Teachers will participate in state and local professional learning to support Structured Literacy including small group instruction, the Georgai Literacy Academy, district trainings, and conferences. | F29: =IF(COUNTIF(BudgetDD!$A$2:$A$37,E29),VLOOKUP(E29,BudgetDD!$A$2:$B$37,2,FALSE),"") ->  | I29: =IF(COUNTIF(BudgetDD!$A$2:$A$37,H29),VLOOKUP(H29,BudgetDD!$A$2:$B$37,2,FALSE),"") ->  | L29: =IF(COUNTIF(BudgetDD!$A$1:$A$37,K29),VLOOKUP(K29,BudgetDD!$A$1:$B$37,2,FALSE),"") ->  | O29: =IF(COUNTIF(BudgetDD!$A$2:$A$37,N29),VLOOKUP(N29,BudgetDD!$A$2:$B$37,2,FALSE),"") ->  | R29: =IF(COUNTIF(BudgetDD!$A$2:$A$37,Q29),VLOOKUP(Q29,BudgetDD!$A$2:$B$37,2,FALSE),"") ->  | U29: =IF(COUNTIF(BudgetDD!$A$1:$A$37,T29),VLOOKUP(T29,BudgetDD!$A$1:$B$37,2,FALSE),"") ->  | W29: =G29+J29+M29+P29+S29+V29 -> 0
A30: Parent/Family Engagement Action Steps | C30: Title I Parent/Family Engagement Component | E30: Budget Category 1 (May select up to six Budget Categories for each action step.) | F30: Budget Code | G30: Amount | H30: Budget Category 2 (May select up to six Budget Categories for each action step.) | I30: Budget Code | J30: Amount | K30: Budget Category 3 (May select up to six Budget Categories for each action step.) | L30: Budget Code | M30: Amount | N30: Budget Category 4 (May select up to six Budget Categories for each action step.) | O30: Budget Code | P30: Amount | Q30: Budget Category 5 (May select up to six Budget Categories for each action step.) | R30: Budget Code | S30: Amount | T30: Budget Category 6 (May select up to six Budget Categories for each action step.) | U30: Budget Code | V30: Amount | W30: Total Federal Funding for Action Step
A31: ='Priority Area 1'!A33:F33 -> 12) Parents will participate in a mock GA Milestones University and Parent Workshops to understand the importance of reading and how they can help at home utilizing resources such supplies, technology, chromebooks, etc. | C31: 8) Provide parent assistance on understanding state academic content standards and student academic achievement standards, monitoring, and progress | E31: PFE Expendible Equipment | F31: =IF(COUNTIF(BudgetPFEDD!$A$2:$A$13,E31),VLOOKUP(E31,BudgetPFEDD!$A$2:$B$13,2,FALSE),"") -> 402.2100.561500.30124.1940.1750.FAC.030.2025 | G31: 1200 | I31: =IF(COUNTIF(BudgetPFEDD!$A$2:$A$13,H31),VLOOKUP(H31,BudgetPFEDD!$A$2:$B$13,2,FALSE),"") ->  | L31: =IF(COUNTIF(BudgetPFEDD!$A$2:$A$13,K31),VLOOKUP(K31,BudgetPFEDD!$A$2:$B$13,2,FALSE),"") ->  | O31: =IF(COUNTIF(BudgetPFEDD!$A$2:$A$13,N31),VLOOKUP(N31,BudgetPFEDD!$A$2:$B$13,2,FALSE),"") ->  | R31: =IF(COUNTIF(BudgetPFEDD!$A$2:$A$13,Q31),VLOOKUP(Q31,BudgetPFEDD!$A$2:$B$13,2,FALSE),"") ->  | U31: =IF(COUNTIF(BudgetPFEDD!$A$2:$A$13,T31),VLOOKUP(T31,BudgetPFEDD!$A$2:$B$13,2,FALSE),"") ->  | W31: 1200
A32: ='Priority Area 1'!A34:F34 -> 13) Send home content overview for instructional programs and provide support for parents at home. | C32: 9) Provide materials and training to help parents work with their children to improve achievement. | E32: PFE Supplies | F32: =IF(COUNTIF(BudgetPFEDD!$A$2:$A$13,E32),VLOOKUP(E32,BudgetPFEDD!$A$2:$B$13,2,FALSE),"") -> 402.2100.561000.30124.1940.1750.FAC.030.2025 | G32: 749.38 | I32: =IF(COUNTIF(BudgetPFEDD!$A$2:$A$13,H32),VLOOKUP(H32,BudgetPFEDD!$A$2:$B$13,2,FALSE),"") ->  | L32: =IF(COUNTIF(BudgetPFEDD!$A$2:$A$13,K32),VLOOKUP(K32,BudgetPFEDD!$A$2:$B$13,2,FALSE),"") ->  | O32: =IF(COUNTIF(BudgetPFEDD!$A$2:$A$13,N32),VLOOKUP(N32,BudgetPFEDD!$A$2:$B$13,2,FALSE),"") ->  | R32: =IF(COUNTIF(BudgetPFEDD!$A$2:$A$13,Q32),VLOOKUP(Q32,BudgetPFEDD!$A$2:$B$13,2,FALSE),"") ->  | U32: =IF(COUNTIF(BudgetPFEDD!$A$2:$A$13,T32),VLOOKUP(T32,BudgetPFEDD!$A$2:$B$13,2,FALSE),"") ->  | W32: 749.38
A33: ='Priority Area 1'!A35:F35 -> 14) Provide stakeholder information opportunities to give input, feedback, and request resources to assist their children at home with the ELA content and to help with transition to the next grade level;translations will be made available based on need/requests (stakeholder input meetings, annual meeting, Curriculum Night, CSIP, Compact and Policy development, parent/teacher conferences, email and websites). | C33: 3) Involve parents in an organized, ongoing, and timely way in the planning, review, and improvement of Title I programs and Schoolwide program plans | F33: =IF(COUNTIF(BudgetPFEDD!$A$2:$A$13,E33),VLOOKUP(E33,BudgetPFEDD!$A$2:$B$13,2,FALSE),"") ->  | I33: =IF(COUNTIF(BudgetPFEDD!$A$2:$A$13,H33),VLOOKUP(H33,BudgetPFEDD!$A$2:$B$13,2,FALSE),"") ->  | L33: =IF(COUNTIF(BudgetPFEDD!$A$2:$A$13,K33),VLOOKUP(K33,BudgetPFEDD!$A$2:$B$13,2,FALSE),"") ->  | O33: =IF(COUNTIF(BudgetPFEDD!$A$2:$A$13,N33),VLOOKUP(N33,BudgetPFEDD!$A$2:$B$13,2,FALSE),"") ->  | R33: =IF(COUNTIF(BudgetPFEDD!$A$2:$A$13,Q33),VLOOKUP(Q33,BudgetPFEDD!$A$2:$B$13,2,FALSE),"") ->  | U33: =IF(COUNTIF(BudgetPFEDD!$A$2:$A$13,T33),VLOOKUP(T33,BudgetPFEDD!$A$2:$B$13,2,FALSE),"") ->  | W33: 0
A34: ='Priority Area 1'!A36:F36 -> 0 | C34: 8) Provide parent assistance on understanding state academic content standards and student academic achievement standards, monitoring, and progress | F34: =IF(COUNTIF(BudgetPFEDD!$A$2:$A$13,E34),VLOOKUP(E34,BudgetPFEDD!$A$2:$B$13,2,FALSE),"") ->  | I34: =IF(COUNTIF(BudgetPFEDD!$A$2:$A$13,H34),VLOOKUP(H34,BudgetPFEDD!$A$2:$B$13,2,FALSE),"") ->  | L34: =IF(COUNTIF(BudgetPFEDD!$A$2:$A$13,K34),VLOOKUP(K34,BudgetPFEDD!$A$2:$B$13,2,FALSE),"") ->  | O34: =IF(COUNTIF(BudgetPFEDD!$A$2:$A$13,N34),VLOOKUP(N34,BudgetPFEDD!$A$2:$B$13,2,FALSE),"") ->  | R34: =IF(COUNTIF(BudgetPFEDD!$A$2:$A$13,Q34),VLOOKUP(Q34,BudgetPFEDD!$A$2:$B$13,2,FALSE),"") ->  | U34: =IF(COUNTIF(BudgetPFEDD!$A$2:$A$13,T34),VLOOKUP(T34,BudgetPFEDD!$A$2:$B$13,2,FALSE),"") ->  | W34: =G34+J34+M34+P34+S34+V34 -> 0
A35: ='Priority Area 1'!A37:F37 -> 21)Character Education books and Parenting books for Social Emotional Support of Families | C35: 11) Coordinate and integrate parent involvement programs and activities | E35: PFE Books and Periodicals | F35: =IF(COUNTIF(BudgetPFEDD!$A$2:$A$13,E35),VLOOKUP(E35,BudgetPFEDD!$A$2:$B$13,2,FALSE),"") -> 402.2100.564200.30124.1940.1750.FAC.030.2025 | I35: =IF(COUNTIF(BudgetPFEDD!$A$2:$A$13,H35),VLOOKUP(H35,BudgetPFEDD!$A$2:$B$13,2,FALSE),"") ->  | L35: =IF(COUNTIF(BudgetPFEDD!$A$2:$A$13,K35),VLOOKUP(K35,BudgetPFEDD!$A$2:$B$13,2,FALSE),"") ->  | O35: =IF(COUNTIF(BudgetPFEDD!$A$2:$A$13,N35),VLOOKUP(N35,BudgetPFEDD!$A$2:$B$13,2,FALSE),"") ->  | R35: =IF(COUNTIF(BudgetPFEDD!$A$2:$A$13,Q35),VLOOKUP(Q35,BudgetPFEDD!$A$2:$B$13,2,FALSE),"") ->  | U35: =IF(COUNTIF(BudgetPFEDD!$A$2:$A$13,T35),VLOOKUP(T35,BudgetPFEDD!$A$2:$B$13,2,FALSE),"") ->  | W35: 0
V36: Subtotal #1: | W36: =SUM(W13:W35) -> 49986.86
A37: Improvement Strategy #2 | N37: Improvement Strategy #2
A38: ='Priority Area 1'!A39 -> Writing Workshop | N38: ='Priority Area 1'!A39 -> Writing Workshop
A39: Action Steps to Implement Improvement Strategy | C39: Title I Program Component | E39: #1 | H39: #2 | K39: #3 | N39: #4 | Q39: #5 | T39: #6
E40: Budget Category 1 (May select up to six Budget Categories for each action step.) | F40: Budget Code | G40: Amount | H40: Budget Category 2 (May select up to six Budget Categories for each action step.) | I40: Budget Code | J40: Amount | K40: Budget Category 3 (May select up to six Budget Categories for each action step.) | L40: Budget Code | M40: Amount | N40: Budget Category 4 (May select up to six Budget Categories for each action step.) | O40: Budget Code | P40: Amount | Q40: Budget Category 5 (May select up to six Budget Categories for each action step.) | R40: Budget Code | S40: Amount | T40: Budget Category 6 (May select up to six Budget Categories for each action step.) | U40: Budget Code | V40: Amount | W40: Total Federal Funding for Action Step
A41: ='Priority Area 1'!A42:F42 -> 1)Teachers will utilize the writer's workshop model weekly and include STEMScopes (minilesson/work time/debrief) to provide direct instruction, modeling, scaffolding, flexible grouping, conferencing, and feedback. Students will use writing rubics and writer's checklist biweekly for self peer writing evaluation to increase the writing skills. | C41: Including teachers in decisions regarding the use of assessments | F41: =IF(COUNTIF(BudgetDD!$A$2:$A$37,E41),VLOOKUP(E41,BudgetDD!$A$2:$B$37,2,FALSE),"") ->  | I41: =IF(COUNTIF(BudgetDD!$A$2:$A$37,H41),VLOOKUP(H41,BudgetDD!$A$2:$B$37,2,FALSE),"") ->  | L41: =IF(COUNTIF(BudgetDD!$A$1:$A$37,K41),VLOOKUP(K41,BudgetDD!$A$1:$B$37,2,FALSE),"") ->  | O41: =IF(COUNTIF(BudgetDD!$A$2:$A$37,N41),VLOOKUP(N41,BudgetDD!$A$2:$B$37,2,FALSE),"") ->  | R41: =IF(COUNTIF(BudgetDD!$A$2:$A$37,Q41),VLOOKUP(Q41,BudgetDD!$A$2:$B$37,2,FALSE),"") ->  | U41: =IF(COUNTIF(BudgetDD!$A$1:$A$37,T41),VLOOKUP(T41,BudgetDD!$A$1:$B$37,2,FALSE),"") ->  | W41: =G41+J41+M41+P41+S41+V41 -> 0
A42: ='Priority Area 1'!A43:F43 -> 2)Teachers will create biweekly assignments across all genres using the Writable program to organize and customize writing assignments and track student progress to improve student writing proficiency. Students will use Writable platform to write across all genres, construct short respnses, practice writing skills, and receive feedback from teachers, peers, and AI. Students will share work with peers and teachers (draft/published) to recieve immediate feedback. | C42: Activities for children experiencing difficulty | E42: Instructional Supplies | F42: =IF(COUNTIF(BudgetDD!$A$2:$A$37,E42),VLOOKUP(E42,BudgetDD!$A$2:$B$37,2,FALSE),"") -> 402.1000.561000.40024.1940.1750.FAC.030.2025 | G42: 3375 | I42: =IF(COUNTIF(BudgetDD!$A$2:$A$37,H42),VLOOKUP(H42,BudgetDD!$A$2:$B$37,2,FALSE),"") ->  | L42: =IF(COUNTIF(BudgetDD!$A$1:$A$37,K42),VLOOKUP(K42,BudgetDD!$A$1:$B$37,2,FALSE),"") ->  | O42: =IF(COUNTIF(BudgetDD!$A$2:$A$37,N42),VLOOKUP(N42,BudgetDD!$A$2:$B$37,2,FALSE),"") ->  | R42: =IF(COUNTIF(BudgetDD!$A$2:$A$37,Q42),VLOOKUP(Q42,BudgetDD!$A$2:$B$37,2,FALSE),"") ->  | U42: =IF(COUNTIF(BudgetDD!$A$1:$A$37,T42),VLOOKUP(T42,BudgetDD!$A$1:$B$37,2,FALSE),"") ->  | W42: 3375
A43: ='Priority Area 1'!A44:F44 -> 3)Adminstration will conduct monthly walkthroughs to monitor the implementation of the Writer's Workshop model using an observation checklist to inform next steps. | C43: Activities for children experiencing difficulty | F43: =IF(COUNTIF(BudgetDD!$A$2:$A$37,E43),VLOOKUP(E43,BudgetDD!$A$2:$B$37,2,FALSE),"") ->  | I43: =IF(COUNTIF(BudgetDD!$A$2:$A$37,H43),VLOOKUP(H43,BudgetDD!$A$2:$B$37,2,FALSE),"") ->  | L43: =IF(COUNTIF(BudgetDD!$A$1:$A$37,K43),VLOOKUP(K43,BudgetDD!$A$1:$B$37,2,FALSE),"") ->  | O43: =IF(COUNTIF(BudgetDD!$A$2:$A$37,N43),VLOOKUP(N43,BudgetDD!$A$2:$B$37,2,FALSE),"") ->  | R43: =IF(COUNTIF(BudgetDD!$A$2:$A$37,Q43),VLOOKUP(Q43,BudgetDD!$A$2:$B$37,2,FALSE),"") ->  | U43: =IF(COUNTIF(BudgetDD!$A$1:$A$37,T43),VLOOKUP(T43,BudgetDD!$A$1:$B$37,2,FALSE),"") ->  | W43: 0
A44: ='Priority Area 1'!A45:F45 -> Teachers will use the gradual release strategy weekly when providing instruction for readinga nd evidence-based writing (Reading Evidence Based Writing-REBW) and provide students with an informational/explantory or opinion/argumentative writer's checklist. Students will read informational/explantory or opinion/argumentative paired passages. Teachers and students will evaluate the essays based on a two-trait scoring rubric. | C44: Activities for children experiencing difficulty | F44: =IF(COUNTIF(BudgetDD!$A$2:$A$37,E44),VLOOKUP(E44,BudgetDD!$A$2:$B$37,2,FALSE),"") ->  | I44: =IF(COUNTIF(BudgetDD!$A$2:$A$37,H44),VLOOKUP(H44,BudgetDD!$A$2:$B$37,2,FALSE),"") ->  | L44: =IF(COUNTIF(BudgetDD!$A$1:$A$37,K44),VLOOKUP(K44,BudgetDD!$A$1:$B$37,2,FALSE),"") ->  | O44: =IF(COUNTIF(BudgetDD!$A$2:$A$37,N44),VLOOKUP(N44,BudgetDD!$A$2:$B$37,2,FALSE),"") ->  | R44: =IF(COUNTIF(BudgetDD!$A$2:$A$37,Q44),VLOOKUP(Q44,BudgetDD!$A$2:$B$37,2,FALSE),"") ->  | U44: =IF(COUNTIF(BudgetDD!$A$1:$A$37,T44),VLOOKUP(T44,BudgetDD!$A$1:$B$37,2,FALSE),"") ->  | W44: 0
A45: ='Priority Area 1'!A46:F46 -> 5)Administration team will monitor the Writable student usage and growth reports to monitor growth between 2 graded assignments. | C45: Activities for children experiencing difficulty | F45: =IF(COUNTIF(BudgetDD!$A$2:$A$37,E45),VLOOKUP(E45,BudgetDD!$A$2:$B$37,2,FALSE),"") ->  | I45: =IF(COUNTIF(BudgetDD!$A$2:$A$37,H45),VLOOKUP(H45,BudgetDD!$A$2:$B$37,2,FALSE),"") ->  | L45: =IF(COUNTIF(BudgetDD!$A$1:$A$37,K45),VLOOKUP(K45,BudgetDD!$A$1:$B$37,2,FALSE),"") ->  | O45: =IF(COUNTIF(BudgetDD!$A$2:$A$37,N45),VLOOKUP(N45,BudgetDD!$A$2:$B$37,2,FALSE),"") ->  | R45: =IF(COUNTIF(BudgetDD!$A$2:$A$37,Q45),VLOOKUP(Q45,BudgetDD!$A$2:$B$37,2,FALSE),"") ->  | U45: =IF(COUNTIF(BudgetDD!$A$1:$A$37,T45),VLOOKUP(T45,BudgetDD!$A$1:$B$37,2,FALSE),"") ->  | W45: 0
A46: ='Priority Area 1'!A47:F47 -> 6) | F46: =IF(COUNTIF(BudgetDD!$A$2:$A$37,E46),VLOOKUP(E46,BudgetDD!$A$2:$B$37,2,FALSE),"") ->  | I46: =IF(COUNTIF(BudgetDD!$A$2:$A$37,H46),VLOOKUP(H46,BudgetDD!$A$2:$B$37,2,FALSE),"") ->  | L46: =IF(COUNTIF(BudgetDD!$A$1:$A$37,K46),VLOOKUP(K46,BudgetDD!$A$1:$B$37,2,FALSE),"") ->  | O46: =IF(COUNTIF(BudgetDD!$A$2:$A$37,N46),VLOOKUP(N46,BudgetDD!$A$2:$B$37,2,FALSE),"") ->  | R46: =IF(COUNTIF(BudgetDD!$A$2:$A$37,Q46),VLOOKUP(Q46,BudgetDD!$A$2:$B$37,2,FALSE),"") ->  | U46: =IF(COUNTIF(BudgetDD!$A$1:$A$37,T46),VLOOKUP(T46,BudgetDD!$A$1:$B$37,2,FALSE),"") ->  | W46: 0
A47: ='Priority Area 1'!A48:F48 -> 7) | F47: =IF(COUNTIF(BudgetDD!$A$2:$A$37,E47),VLOOKUP(E47,BudgetDD!$A$2:$B$37,2,FALSE),"") ->  | I47: =IF(COUNTIF(BudgetDD!$A$2:$A$37,H47),VLOOKUP(H47,BudgetDD!$A$2:$B$37,2,FALSE),"") ->  | L47: =IF(COUNTIF(BudgetDD!$A$1:$A$37,K47),VLOOKUP(K47,BudgetDD!$A$1:$B$37,2,FALSE),"") ->  | O47: =IF(COUNTIF(BudgetDD!$A$2:$A$37,N47),VLOOKUP(N47,BudgetDD!$A$2:$B$37,2,FALSE),"") ->  | R47: =IF(COUNTIF(BudgetDD!$A$2:$A$37,Q47),VLOOKUP(Q47,BudgetDD!$A$2:$B$37,2,FALSE),"") ->  | U47: =IF(COUNTIF(BudgetDD!$A$1:$A$37,T47),VLOOKUP(T47,BudgetDD!$A$1:$B$37,2,FALSE),"") ->  | W47: 0
A48: ='Priority Area 1'!A49:F49 -> 8) | F48: =IF(COUNTIF(BudgetDD!$A$2:$A$37,E48),VLOOKUP(E48,BudgetDD!$A$2:$B$37,2,FALSE),"") ->  | I48: =IF(COUNTIF(BudgetDD!$A$2:$A$37,H48),VLOOKUP(H48,BudgetDD!$A$2:$B$37,2,FALSE),"") ->  | L48: =IF(COUNTIF(BudgetDD!$A$1:$A$37,K48),VLOOKUP(K48,BudgetDD!$A$1:$B$37,2,FALSE),"") ->  | O48: =IF(COUNTIF(BudgetDD!$A$2:$A$37,N48),VLOOKUP(N48,BudgetDD!$A$2:$B$37,2,FALSE),"") ->  | R48: =IF(COUNTIF(BudgetDD!$A$2:$A$37,Q48),VLOOKUP(Q48,BudgetDD!$A$2:$B$37,2,FALSE),"") ->  | U48: =IF(COUNTIF(BudgetDD!$A$1:$A$37,T48),VLOOKUP(T48,BudgetDD!$A$1:$B$37,2,FALSE),"") ->  | W48: 0
A49: ='Priority Area 1'!A50:F50 -> 9) | F49: =IF(COUNTIF(BudgetDD!$A$2:$A$37,E49),VLOOKUP(E49,BudgetDD!$A$2:$B$37,2,FALSE),"") ->  | I49: =IF(COUNTIF(BudgetDD!$A$2:$A$37,H49),VLOOKUP(H49,BudgetDD!$A$2:$B$37,2,FALSE),"") ->  | L49: =IF(COUNTIF(BudgetDD!$A$1:$A$37,K49),VLOOKUP(K49,BudgetDD!$A$1:$B$37,2,FALSE),"") ->  | O49: =IF(COUNTIF(BudgetDD!$A$2:$A$37,N49),VLOOKUP(N49,BudgetDD!$A$2:$B$37,2,FALSE),"") ->  | R49: =IF(COUNTIF(BudgetDD!$A$2:$A$37,Q49),VLOOKUP(Q49,BudgetDD!$A$2:$B$37,2,FALSE),"") ->  | U49: =IF(COUNTIF(BudgetDD!$A$1:$A$37,T49),VLOOKUP(T49,BudgetDD!$A$1:$B$37,2,FALSE),"") ->  | W49: 0
A50: ='Priority Area 1'!A51:F51 -> 10) | F50: =IF(COUNTIF(BudgetDD!$A$2:$A$37,E50),VLOOKUP(E50,BudgetDD!$A$2:$B$37,2,FALSE),"") ->  | I50: =IF(COUNTIF(BudgetDD!$A$2:$A$37,H50),VLOOKUP(H50,BudgetDD!$A$2:$B$37,2,FALSE),"") ->  | L50: =IF(COUNTIF(BudgetDD!$A$1:$A$37,K50),VLOOKUP(K50,BudgetDD!$A$1:$B$37,2,FALSE),"") ->  | O50: =IF(COUNTIF(BudgetDD!$A$2:$A$37,N50),VLOOKUP(N50,BudgetDD!$A$2:$B$37,2,FALSE),"") ->  | R50: =IF(COUNTIF(BudgetDD!$A$2:$A$37,Q50),VLOOKUP(Q50,BudgetDD!$A$2:$B$37,2,FALSE),"") ->  | U50: =IF(COUNTIF(BudgetDD!$A$1:$A$37,T50),VLOOKUP(T50,BudgetDD!$A$1:$B$37,2,FALSE),"") ->  | W50: =G50+J50+M50+P50+S50+V50 -> 0
A51: ='Priority Area 1'!A52:F52 -> 11) | F51: =IF(COUNTIF(BudgetDD!$A$2:$A$37,E51),VLOOKUP(E51,BudgetDD!$A$2:$B$37,2,FALSE),"") ->  | I51: =IF(COUNTIF(BudgetDD!$A$2:$A$37,H51),VLOOKUP(H51,BudgetDD!$A$2:$B$37,2,FALSE),"") ->  | L51: =IF(COUNTIF(BudgetDD!$A$1:$A$37,K51),VLOOKUP(K51,BudgetDD!$A$1:$B$37,2,FALSE),"") ->  | O51: =IF(COUNTIF(BudgetDD!$A$2:$A$37,N51),VLOOKUP(N51,BudgetDD!$A$2:$B$37,2,FALSE),"") ->  | R51: =IF(COUNTIF(BudgetDD!$A$2:$A$37,Q51),VLOOKUP(Q51,BudgetDD!$A$2:$B$37,2,FALSE),"") ->  | U51: =IF(COUNTIF(BudgetDD!$A$1:$A$37,T51),VLOOKUP(T51,BudgetDD!$A$1:$B$37,2,FALSE),"") ->  | W51: =G51+J51+M51+P51+S51+V51 -> 0
A52: Professional Development Action Steps (Beginning and Ending Dates of Activity, Consultants Providing Training, and Description of Services) | E52: Budget Category 1 (May select up to six Budget Categories for each action step.) | F52: Budget Code | G52: Amount | H52: Budget Category 2 (May select up to six Budget Categories for each action step.) | I52: Budget Code | J52: Amount | K52: Budget Category 3 (May select up to six Budget Categories for each action step.) | L52: Budget Code | M52: Amount | N52: Budget Category 4 (May select up to six Budget Categories for each action step.) | O52: Budget Code | P52: Amount | Q52: Budget Category 5 (May select up to six Budget Categories for each action step.) | R52: Budget Code | S52: Amount | T52: Budget Category 6 (May select up to six Budget Categories for each action step.) | U52: Budget Code | V52: Amount | W52: Total Federal Funding for Action Step
A53: ='Priority Area 1'!A55:F55 -> 12)Teachers will participate in a writer's workshop PL to engage in the components of a writer's workshop to improve instructional practices. | F53: =IF(COUNTIF(BudgetDD!$A$2:$A$37,E53),VLOOKUP(E53,BudgetDD!$A$2:$B$37,2,FALSE),"") ->  | I53: =IF(COUNTIF(BudgetDD!$A$2:$A$37,H53),VLOOKUP(H53,BudgetDD!$A$2:$B$37,2,FALSE),"") ->  | L53: =IF(COUNTIF(BudgetDD!$A$1:$A$37,K53),VLOOKUP(K53,BudgetDD!$A$1:$B$37,2,FALSE),"") ->  | O53: =IF(COUNTIF(BudgetDD!$A$2:$A$37,N53),VLOOKUP(N53,BudgetDD!$A$2:$B$37,2,FALSE),"") ->  | R53: =IF(COUNTIF(BudgetDD!$A$2:$A$37,Q53),VLOOKUP(Q53,BudgetDD!$A$2:$B$37,2,FALSE),"") ->  | U53: =IF(COUNTIF(BudgetDD!$A$1:$A$37,T53),VLOOKUP(T53,BudgetDD!$A$1:$B$37,2,FALSE),"") ->  | W53: =G53+J53+M53+P53+S53+V53 -> 0
A54: ='Priority Area 1'!A56:F56 -> 13)Teachers will participate in Writable training program to improve student outcomes for constructing responses and developing REBW essays. | F54: =IF(COUNTIF(BudgetDD!$A$2:$A$37,E54),VLOOKUP(E54,BudgetDD!$A$2:$B$37,2,FALSE),"") ->  | I54: =IF(COUNTIF(BudgetDD!$A$2:$A$37,H54),VLOOKUP(H54,BudgetDD!$A$2:$B$37,2,FALSE),"") ->  | L54: =IF(COUNTIF(BudgetDD!$A$1:$A$37,K54),VLOOKUP(K54,BudgetDD!$A$1:$B$37,2,FALSE),"") ->  | O54: =IF(COUNTIF(BudgetDD!$A$2:$A$37,N54),VLOOKUP(N54,BudgetDD!$A$2:$B$37,2,FALSE),"") ->  | R54: =IF(COUNTIF(BudgetDD!$A$2:$A$37,Q54),VLOOKUP(Q54,BudgetDD!$A$2:$B$37,2,FALSE),"") ->  | U54: =IF(COUNTIF(BudgetDD!$A$1:$A$37,T54),VLOOKUP(T54,BudgetDD!$A$1:$B$37,2,FALSE),"") ->  | W54: 0
A55: ='Priority Area 1'!A57:F57 -> 14)Administration team will monitor implementation of the writer's workshop and Writable through data talks and PD to improve student outcome. | F55: =IF(COUNTIF(BudgetDD!$A$2:$A$37,E55),VLOOKUP(E55,BudgetDD!$A$2:$B$37,2,FALSE),"") ->  | I55: =IF(COUNTIF(BudgetDD!$A$2:$A$37,H55),VLOOKUP(H55,BudgetDD!$A$2:$B$37,2,FALSE),"") ->  | L55: =IF(COUNTIF(BudgetDD!$A$1:$A$37,K55),VLOOKUP(K55,BudgetDD!$A$1:$B$37,2,FALSE),"") ->  | O55: =IF(COUNTIF(BudgetDD!$A$2:$A$37,N55),VLOOKUP(N55,BudgetDD!$A$2:$B$37,2,FALSE),"") ->  | R55: =IF(COUNTIF(BudgetDD!$A$2:$A$37,Q55),VLOOKUP(Q55,BudgetDD!$A$2:$B$37,2,FALSE),"") ->  | U55: =IF(COUNTIF(BudgetDD!$A$1:$A$37,T55),VLOOKUP(T55,BudgetDD!$A$1:$B$37,2,FALSE),"") ->  | W55: 0
A56: ='Priority Area 1'!A58:F58 -> 15) | F56: =IF(COUNTIF(BudgetDD!$A$2:$A$37,E56),VLOOKUP(E56,BudgetDD!$A$2:$B$37,2,FALSE),"") ->  | I56: =IF(COUNTIF(BudgetDD!$A$2:$A$37,H56),VLOOKUP(H56,BudgetDD!$A$2:$B$37,2,FALSE),"") ->  | L56: =IF(COUNTIF(BudgetDD!$A$1:$A$37,K56),VLOOKUP(K56,BudgetDD!$A$1:$B$37,2,FALSE),"") ->  | O56: =IF(COUNTIF(BudgetDD!$A$2:$A$37,N56),VLOOKUP(N56,BudgetDD!$A$2:$B$37,2,FALSE),"") ->  | R56: =IF(COUNTIF(BudgetDD!$A$2:$A$37,Q56),VLOOKUP(Q56,BudgetDD!$A$2:$B$37,2,FALSE),"") ->  | U56: =IF(COUNTIF(BudgetDD!$A$1:$A$37,T56),VLOOKUP(T56,BudgetDD!$A$1:$B$37,2,FALSE),"") ->  | W56: 0
A57: ='Priority Area 1'!A59:F59 -> 16) | F57: =IF(COUNTIF(BudgetDD!$A$2:$A$37,E57),VLOOKUP(E57,BudgetDD!$A$2:$B$37,2,FALSE),"") ->  | I57: =IF(COUNTIF(BudgetDD!$A$2:$A$37,H57),VLOOKUP(H57,BudgetDD!$A$2:$B$37,2,FALSE),"") ->  | L57: =IF(COUNTIF(BudgetDD!$A$1:$A$37,K57),VLOOKUP(K57,BudgetDD!$A$1:$B$37,2,FALSE),"") ->  | O57: =IF(COUNTIF(BudgetDD!$A$2:$A$37,N57),VLOOKUP(N57,BudgetDD!$A$2:$B$37,2,FALSE),"") ->  | R57: =IF(COUNTIF(BudgetDD!$A$2:$A$37,Q57),VLOOKUP(Q57,BudgetDD!$A$2:$B$37,2,FALSE),"") ->  | U57: =IF(COUNTIF(BudgetDD!$A$1:$A$37,T57),VLOOKUP(T57,BudgetDD!$A$1:$B$37,2,FALSE),"") ->  | W57: 0
A58: Parent/Family Engagement Action Steps | C58: Title I Parent/Family Engagement Component | E58: Budget Category 1 (May select up to six Budget Categories for each action step.) | F58: Budget Code | G58: Amount | H58: Budget Category 2 (May select up to six Budget Categories for each action step.) | I58: Budget Code | J58: Amount | K58: Budget Category 3 (May select up to six Budget Categories for each action step.) | L58: Budget Code | M58: Amount | N58: Budget Category 4 (May select up to six Budget Categories for each action step.) | O58: Budget Code | P58: Amount | Q58: Budget Category 5 (May select up to six Budget Categories for each action step.) | R58: Budget Code | S58: Amount | T58: Budget Category 6 (May select up to six Budget Categories for each action step.) | U58: Budget Code | V58: Amount | W58: Total Federal Funding for Action Step
A59: ='Priority Area 1'!A62:F62 -> 17)Provide stakeholders information and opportunites to give input, feedback, and request resources to assist their children at home with ELA content content and to help with their child's transition to the next grade level, translations will be made available based on need/requests (stakeholder input meetings, annual meeting, curriculum Night, CSIP, compact an policy development, parent/teacher conferences, emails, and websites). | C59: 4) Provide timely information to parents through various methods | F59: =IF(COUNTIF(BudgetPFEDD!$A$2:$A$13,E59),VLOOKUP(E59,BudgetPFEDD!$A$2:$B$13,2,FALSE),"") ->  | I59: =IF(COUNTIF(BudgetPFEDD!$A$2:$A$13,H59),VLOOKUP(H59,BudgetPFEDD!$A$2:$B$13,2,FALSE),"") ->  | L59: =IF(COUNTIF(BudgetPFEDD!$A$2:$A$13,K59),VLOOKUP(K59,BudgetPFEDD!$A$2:$B$13,2,FALSE),"") ->  | O59: =IF(COUNTIF(BudgetPFEDD!$A$2:$A$13,N59),VLOOKUP(N59,BudgetPFEDD!$A$2:$B$13,2,FALSE),"") ->  | R59: =IF(COUNTIF(BudgetPFEDD!$A$2:$A$13,Q59),VLOOKUP(Q59,BudgetPFEDD!$A$2:$B$13,2,FALSE),"") ->  | U59: =IF(COUNTIF(BudgetPFEDD!$A$2:$A$13,T59),VLOOKUP(T59,BudgetPFEDD!$A$2:$B$13,2,FALSE),"") ->  | W59: =G59+J59+M59+P59+S59+V59 -> 0
A60: ='Priority Area 1'!A63:F63 -> 18)Host a Parent University to give parents experiences with resources and activites that support reading and math. | C60: 8) Provide parent assistance on understanding state academic content standards and student academic achievement standards, monitoring, and progress | F60: =IF(COUNTIF(BudgetPFEDD!$A$2:$A$13,E60),VLOOKUP(E60,BudgetPFEDD!$A$2:$B$13,2,FALSE),"") ->  | I60: =IF(COUNTIF(BudgetPFEDD!$A$2:$A$13,H60),VLOOKUP(H60,BudgetPFEDD!$A$2:$B$13,2,FALSE),"") ->  | L60: =IF(COUNTIF(BudgetPFEDD!$A$2:$A$13,K60),VLOOKUP(K60,BudgetPFEDD!$A$2:$B$13,2,FALSE),"") ->  | O60: =IF(COUNTIF(BudgetPFEDD!$A$2:$A$13,N60),VLOOKUP(N60,BudgetPFEDD!$A$2:$B$13,2,FALSE),"") ->  | R60: =IF(COUNTIF(BudgetPFEDD!$A$2:$A$13,Q60),VLOOKUP(Q60,BudgetPFEDD!$A$2:$B$13,2,FALSE),"") ->  | U60: =IF(COUNTIF(BudgetPFEDD!$A$2:$A$13,T60),VLOOKUP(T60,BudgetPFEDD!$A$2:$B$13,2,FALSE),"") ->  | W60: 0
A61: ='Priority Area 1'!A64:F64 -> 19)Host a transition for our PreK students to allow parents and PreK student to meet with kindergarten teacher students new to Narvie meet with the kindergarten teachers to visit the classroom and learn the procedures and 5th grade students will visit a feeder middle school to meet administration, teachers, students, and representative organizations and clubs. The students learn middle school expectations and experiences. | C61: 3) Involve parents in an organized, ongoing, and timely way in the planning, review, and improvement of Title I programs and Schoolwide program plans | F61: =IF(COUNTIF(BudgetPFEDD!$A$2:$A$13,E61),VLOOKUP(E61,BudgetPFEDD!$A$2:$B$13,2,FALSE),"") ->  | I61: =IF(COUNTIF(BudgetPFEDD!$A$2:$A$13,H61),VLOOKUP(H61,BudgetPFEDD!$A$2:$B$13,2,FALSE),"") ->  | L61: =IF(COUNTIF(BudgetPFEDD!$A$2:$A$13,K61),VLOOKUP(K61,BudgetPFEDD!$A$2:$B$13,2,FALSE),"") ->  | O61: =IF(COUNTIF(BudgetPFEDD!$A$2:$A$13,N61),VLOOKUP(N61,BudgetPFEDD!$A$2:$B$13,2,FALSE),"") ->  | R61: =IF(COUNTIF(BudgetPFEDD!$A$2:$A$13,Q61),VLOOKUP(Q61,BudgetPFEDD!$A$2:$B$13,2,FALSE),"") ->  | U61: =IF(COUNTIF(BudgetPFEDD!$A$2:$A$13,T61),VLOOKUP(T61,BudgetPFEDD!$A$2:$B$13,2,FALSE),"") ->  | W61: 0
A62: ='Priority Area 1'!A65:F65 -> 0 | F62: =IF(COUNTIF(BudgetPFEDD!$A$2:$A$13,E62),VLOOKUP(E62,BudgetPFEDD!$A$2:$B$13,2,FALSE),"") ->  | I62: =IF(COUNTIF(BudgetPFEDD!$A$2:$A$13,H62),VLOOKUP(H62,BudgetPFEDD!$A$2:$B$13,2,FALSE),"") ->  | L62: =IF(COUNTIF(BudgetPFEDD!$A$2:$A$13,K62),VLOOKUP(K62,BudgetPFEDD!$A$2:$B$13,2,FALSE),"") ->  | O62: =IF(COUNTIF(BudgetPFEDD!$A$2:$A$13,N62),VLOOKUP(N62,BudgetPFEDD!$A$2:$B$13,2,FALSE),"") ->  | R62: =IF(COUNTIF(BudgetPFEDD!$A$2:$A$13,Q62),VLOOKUP(Q62,BudgetPFEDD!$A$2:$B$13,2,FALSE),"") ->  | U62: =IF(COUNTIF(BudgetPFEDD!$A$2:$A$13,T62),VLOOKUP(T62,BudgetPFEDD!$A$2:$B$13,2,FALSE),"") ->  | W62: 0
A63: ='Priority Area 1'!A66:F66 -> 21) | F63: =IF(COUNTIF(BudgetPFEDD!$A$2:$A$13,E63),VLOOKUP(E63,BudgetPFEDD!$A$2:$B$13,2,FALSE),"") ->  | I63: =IF(COUNTIF(BudgetPFEDD!$A$2:$A$13,H63),VLOOKUP(H63,BudgetPFEDD!$A$2:$B$13,2,FALSE),"") ->  | L63: =IF(COUNTIF(BudgetPFEDD!$A$2:$A$13,K63),VLOOKUP(K63,BudgetPFEDD!$A$2:$B$13,2,FALSE),"") ->  | O63: =IF(COUNTIF(BudgetPFEDD!$A$2:$A$13,N63),VLOOKUP(N63,BudgetPFEDD!$A$2:$B$13,2,FALSE),"") ->  | R63: =IF(COUNTIF(BudgetPFEDD!$A$2:$A$13,Q63),VLOOKUP(Q63,BudgetPFEDD!$A$2:$B$13,2,FALSE),"") ->  | U63: =IF(COUNTIF(BudgetPFEDD!$A$2:$A$13,T63),VLOOKUP(T63,BudgetPFEDD!$A$2:$B$13,2,FALSE),"") ->  | W63: 0
V64: Subtotal #2: | W64: =SUM(W41:W63) -> 3375
A65: Improvement Strategy #3 | N65: Improvement Strategy #3
A66: ='Priority Area 1'!A68 -> Type Improvement Strategy Here | N66: ='Priority Area 1'!A68 -> Type Improvement Strategy Here
A67: Action Steps to Implement Improvement Strategy | C67: Title I Program Component | E67: #1 | H67: #2 | K67: #3 | N67: #4 | Q67: #5 | T67: #6
E68: Budget Category 1 (May select up to six Budget Categories for each action step.) | F68: Budget Code | G68: Amount | H68: Budget Category 2 (May select up to six Budget Categories for each action step.) | I68: Budget Code | J68: Amount | K68: Budget Category 3 (May select up to six Budget Categories for each action step.) | L68: Budget Code | M68: Amount | N68: Budget Category 4 (May select up to six Budget Categories for each action step.) | O68: Budget Code | P68: Amount | Q68: Budget Category 5 (May select up to six Budget Categories for each action step.) | R68: Budget Code | S68: Amount | T68: Budget Category 6 (May select up to six Budget Categories for each action step.) | U68: Budget Code | V68: Amount | W68: Total Federal Funding for Action Step
A69: ='Priority Area 1'!A71:F71 -> 1) | C69: Select from drop down menu - you may select more than one | F69: =IF(COUNTIF(BudgetDD!$A$2:$A$37,E69),VLOOKUP(E69,BudgetDD!$A$2:$B$37,2,FALSE),"") ->  | I69: =IF(COUNTIF(BudgetDD!$A$2:$A$37,H69),VLOOKUP(H69,BudgetDD!$A$2:$B$37,2,FALSE),"") ->  | L69: =IF(COUNTIF(BudgetDD!$A$1:$A$37,K69),VLOOKUP(K69,BudgetDD!$A$1:$B$37,2,FALSE),"") ->  | O69: =IF(COUNTIF(BudgetDD!$A$2:$A$37,N69),VLOOKUP(N69,BudgetDD!$A$2:$B$37,2,FALSE),"") ->  | R69: =IF(COUNTIF(BudgetDD!$A$2:$A$37,Q69),VLOOKUP(Q69,BudgetDD!$A$2:$B$37,2,FALSE),"") ->  | U69: =IF(COUNTIF(BudgetDD!$A$1:$A$37,T69),VLOOKUP(T69,BudgetDD!$A$1:$B$37,2,FALSE),"") ->  | W69: =G69+J69+M69+P69+S69+V69 -> 0
A70: ='Priority Area 1'!A72:F72 -> 2) | F70: =IF(COUNTIF(BudgetDD!$A$2:$A$37,E70),VLOOKUP(E70,BudgetDD!$A$2:$B$37,2,FALSE),"") ->  | I70: =IF(COUNTIF(BudgetDD!$A$2:$A$37,H70),VLOOKUP(H70,BudgetDD!$A$2:$B$37,2,FALSE),"") ->  | L70: =IF(COUNTIF(BudgetDD!$A$1:$A$37,K70),VLOOKUP(K70,BudgetDD!$A$1:$B$37,2,FALSE),"") ->  | O70: =IF(COUNTIF(BudgetDD!$A$2:$A$37,N70),VLOOKUP(N70,BudgetDD!$A$2:$B$37,2,FALSE),"") ->  | R70: =IF(COUNTIF(BudgetDD!$A$2:$A$37,Q70),VLOOKUP(Q70,BudgetDD!$A$2:$B$37,2,FALSE),"") ->  | U70: =IF(COUNTIF(BudgetDD!$A$1:$A$37,T70),VLOOKUP(T70,BudgetDD!$A$1:$B$37,2,FALSE),"") ->  | W70: 0
A71: ='Priority Area 1'!A73:F73 -> 3) | F71: =IF(COUNTIF(BudgetDD!$A$2:$A$37,E71),VLOOKUP(E71,BudgetDD!$A$2:$B$37,2,FALSE),"") ->  | I71: =IF(COUNTIF(BudgetDD!$A$2:$A$37,H71),VLOOKUP(H71,BudgetDD!$A$2:$B$37,2,FALSE),"") ->  | L71: =IF(COUNTIF(BudgetDD!$A$1:$A$37,K71),VLOOKUP(K71,BudgetDD!$A$1:$B$37,2,FALSE),"") ->  | O71: =IF(COUNTIF(BudgetDD!$A$2:$A$37,N71),VLOOKUP(N71,BudgetDD!$A$2:$B$37,2,FALSE),"") ->  | R71: =IF(COUNTIF(BudgetDD!$A$2:$A$37,Q71),VLOOKUP(Q71,BudgetDD!$A$2:$B$37,2,FALSE),"") ->  | U71: =IF(COUNTIF(BudgetDD!$A$1:$A$37,T71),VLOOKUP(T71,BudgetDD!$A$1:$B$37,2,FALSE),"") ->  | W71: 0
A72: ='Priority Area 1'!A74:F74 -> 4) | F72: =IF(COUNTIF(BudgetDD!$A$2:$A$37,E72),VLOOKUP(E72,BudgetDD!$A$2:$B$37,2,FALSE),"") ->  | I72: =IF(COUNTIF(BudgetDD!$A$2:$A$37,H72),VLOOKUP(H72,BudgetDD!$A$2:$B$37,2,FALSE),"") ->  | L72: =IF(COUNTIF(BudgetDD!$A$1:$A$37,K72),VLOOKUP(K72,BudgetDD!$A$1:$B$37,2,FALSE),"") ->  | O72: =IF(COUNTIF(BudgetDD!$A$2:$A$37,N72),VLOOKUP(N72,BudgetDD!$A$2:$B$37,2,FALSE),"") ->  | R72: =IF(COUNTIF(BudgetDD!$A$2:$A$37,Q72),VLOOKUP(Q72,BudgetDD!$A$2:$B$37,2,FALSE),"") ->  | U72: =IF(COUNTIF(BudgetDD!$A$1:$A$37,T72),VLOOKUP(T72,BudgetDD!$A$1:$B$37,2,FALSE),"") ->  | W72: =G72+J72+M72+P72+S72+V72 -> 0
A73: ='Priority Area 1'!A75:F75 -> 5) | F73: =IF(COUNTIF(BudgetDD!$A$2:$A$37,E73),VLOOKUP(E73,BudgetDD!$A$2:$B$37,2,FALSE),"") ->  | I73: =IF(COUNTIF(BudgetDD!$A$2:$A$37,H73),VLOOKUP(H73,BudgetDD!$A$2:$B$37,2,FALSE),"") ->  | L73: =IF(COUNTIF(BudgetDD!$A$1:$A$37,K73),VLOOKUP(K73,BudgetDD!$A$1:$B$37,2,FALSE),"") ->  | O73: =IF(COUNTIF(BudgetDD!$A$2:$A$37,N73),VLOOKUP(N73,BudgetDD!$A$2:$B$37,2,FALSE),"") ->  | R73: =IF(COUNTIF(BudgetDD!$A$2:$A$37,Q73),VLOOKUP(Q73,BudgetDD!$A$2:$B$37,2,FALSE),"") ->  | U73: =IF(COUNTIF(BudgetDD!$A$1:$A$37,T73),VLOOKUP(T73,BudgetDD!$A$1:$B$37,2,FALSE),"") ->  | W73: 0
A74: ='Priority Area 1'!A76:F76 -> 6) | F74: =IF(COUNTIF(BudgetDD!$A$2:$A$37,E74),VLOOKUP(E74,BudgetDD!$A$2:$B$37,2,FALSE),"") ->  | I74: =IF(COUNTIF(BudgetDD!$A$2:$A$37,H74),VLOOKUP(H74,BudgetDD!$A$2:$B$37,2,FALSE),"") ->  | L74: =IF(COUNTIF(BudgetDD!$A$1:$A$37,K74),VLOOKUP(K74,BudgetDD!$A$1:$B$37,2,FALSE),"") ->  | O74: =IF(COUNTIF(BudgetDD!$A$2:$A$37,N74),VLOOKUP(N74,BudgetDD!$A$2:$B$37,2,FALSE),"") ->  | R74: =IF(COUNTIF(BudgetDD!$A$2:$A$37,Q74),VLOOKUP(Q74,BudgetDD!$A$2:$B$37,2,FALSE),"") ->  | U74: =IF(COUNTIF(BudgetDD!$A$1:$A$37,T74),VLOOKUP(T74,BudgetDD!$A$1:$B$37,2,FALSE),"") ->  | W74: 0
A75: ='Priority Area 1'!A77:F77 -> 7) | F75: =IF(COUNTIF(BudgetDD!$A$2:$A$37,E75),VLOOKUP(E75,BudgetDD!$A$2:$B$37,2,FALSE),"") ->  | I75: =IF(COUNTIF(BudgetDD!$A$2:$A$37,H75),VLOOKUP(H75,BudgetDD!$A$2:$B$37,2,FALSE),"") ->  | L75: =IF(COUNTIF(BudgetDD!$A$1:$A$37,K75),VLOOKUP(K75,BudgetDD!$A$1:$B$37,2,FALSE),"") ->  | O75: =IF(COUNTIF(BudgetDD!$A$2:$A$37,N75),VLOOKUP(N75,BudgetDD!$A$2:$B$37,2,FALSE),"") ->  | R75: =IF(COUNTIF(BudgetDD!$A$2:$A$37,Q75),VLOOKUP(Q75,BudgetDD!$A$2:$B$37,2,FALSE),"") ->  | U75: =IF(COUNTIF(BudgetDD!$A$1:$A$37,T75),VLOOKUP(T75,BudgetDD!$A$1:$B$37,2,FALSE),"") ->  | W75: 0
A76: ='Priority Area 1'!A78:F78 -> 8) | F76: =IF(COUNTIF(BudgetDD!$A$2:$A$37,E76),VLOOKUP(E76,BudgetDD!$A$2:$B$37,2,FALSE),"") ->  | I76: =IF(COUNTIF(BudgetDD!$A$2:$A$37,H76),VLOOKUP(H76,BudgetDD!$A$2:$B$37,2,FALSE),"") ->  | L76: =IF(COUNTIF(BudgetDD!$A$1:$A$37,K76),VLOOKUP(K76,BudgetDD!$A$1:$B$37,2,FALSE),"") ->  | O76: =IF(COUNTIF(BudgetDD!$A$2:$A$37,N76),VLOOKUP(N76,BudgetDD!$A$2:$B$37,2,FALSE),"") ->  | R76: =IF(COUNTIF(BudgetDD!$A$2:$A$37,Q76),VLOOKUP(Q76,BudgetDD!$A$2:$B$37,2,FALSE),"") ->  | U76: =IF(COUNTIF(BudgetDD!$A$1:$A$37,T76),VLOOKUP(T76,BudgetDD!$A$1:$B$37,2,FALSE),"") ->  | W76: 0
A77: ='Priority Area 1'!A79:F79 -> 9) | F77: =IF(COUNTIF(BudgetDD!$A$2:$A$37,E77),VLOOKUP(E77,BudgetDD!$A$2:$B$37,2,FALSE),"") ->  | I77: =IF(COUNTIF(BudgetDD!$A$2:$A$37,H77),VLOOKUP(H77,BudgetDD!$A$2:$B$37,2,FALSE),"") ->  | L77: =IF(COUNTIF(BudgetDD!$A$1:$A$37,K77),VLOOKUP(K77,BudgetDD!$A$1:$B$37,2,FALSE),"") ->  | O77: =IF(COUNTIF(BudgetDD!$A$2:$A$37,N77),VLOOKUP(N77,BudgetDD!$A$2:$B$37,2,FALSE),"") ->  | R77: =IF(COUNTIF(BudgetDD!$A$2:$A$37,Q77),VLOOKUP(Q77,BudgetDD!$A$2:$B$37,2,FALSE),"") ->  | U77: =IF(COUNTIF(BudgetDD!$A$1:$A$37,T77),VLOOKUP(T77,BudgetDD!$A$1:$B$37,2,FALSE),"") ->  | W77: 0
A78: ='Priority Area 1'!A80:F80 -> 10) | F78: =IF(COUNTIF(BudgetDD!$A$2:$A$37,E78),VLOOKUP(E78,BudgetDD!$A$2:$B$37,2,FALSE),"") ->  | I78: =IF(COUNTIF(BudgetDD!$A$2:$A$37,H78),VLOOKUP(H78,BudgetDD!$A$2:$B$37,2,FALSE),"") ->  | L78: =IF(COUNTIF(BudgetDD!$A$1:$A$37,K78),VLOOKUP(K78,BudgetDD!$A$1:$B$37,2,FALSE),"") ->  | O78: =IF(COUNTIF(BudgetDD!$A$2:$A$37,N78),VLOOKUP(N78,BudgetDD!$A$2:$B$37,2,FALSE),"") ->  | R78: =IF(COUNTIF(BudgetDD!$A$2:$A$37,Q78),VLOOKUP(Q78,BudgetDD!$A$2:$B$37,2,FALSE),"") ->  | U78: =IF(COUNTIF(BudgetDD!$A$1:$A$37,T78),VLOOKUP(T78,BudgetDD!$A$1:$B$37,2,FALSE),"") ->  | W78: =G78+J78+M78+P78+S78+V78 -> 0
A79: ='Priority Area 1'!A81:F81 -> 11) | F79: =IF(COUNTIF(BudgetDD!$A$2:$A$37,E79),VLOOKUP(E79,BudgetDD!$A$2:$B$37,2,FALSE),"") ->  | I79: =IF(COUNTIF(BudgetDD!$A$2:$A$37,H79),VLOOKUP(H79,BudgetDD!$A$2:$B$37,2,FALSE),"") ->  | L79: =IF(COUNTIF(BudgetDD!$A$1:$A$37,K79),VLOOKUP(K79,BudgetDD!$A$1:$B$37,2,FALSE),"") ->  | O79: =IF(COUNTIF(BudgetDD!$A$2:$A$37,N79),VLOOKUP(N79,BudgetDD!$A$2:$B$37,2,FALSE),"") ->  | R79: =IF(COUNTIF(BudgetDD!$A$2:$A$37,Q79),VLOOKUP(Q79,BudgetDD!$A$2:$B$37,2,FALSE),"") ->  | U79: =IF(COUNTIF(BudgetDD!$A$1:$A$37,T79),VLOOKUP(T79,BudgetDD!$A$1:$B$37,2,FALSE),"") ->  | W79: =G79+J79+M79+P79+S79+V79 -> 0
A80: Professional Development Action Steps (Beginning and Ending Dates of Activity, Consultants Providing Training, and Description of Services) | E80: Budget Category 1 (May select up to six Budget Categories for each action step.) | F80: Budget Code | G80: Amount | H80: Budget Category 2 (May select up to six Budget Categories for each action step.) | I80: Budget Code | J80: Amount | K80: Budget Category 3 (May select up to six Budget Categories for each action step.) | L80: Budget Code | M80: Amount | N80: Budget Category 4 (May select up to six Budget Categories for each action step.) | O80: Budget Code | P80: Amount | Q80: Budget Category 5 (May select up to six Budget Categories for each action step.) | R80: Budget Code | S80: Amount | T80: Budget Category 6 (May select up to six Budget Categories for each action step.) | U80: Budget Code | V80: Amount | W80: Total Federal Funding for Action Step
A81: ='Priority Area 1'!A84:F84 -> 12) | F81: =IF(COUNTIF(BudgetDD!$A$2:$A$37,E81),VLOOKUP(E81,BudgetDD!$A$2:$B$37,2,FALSE),"") ->  | I81: =IF(COUNTIF(BudgetDD!$A$2:$A$37,H81),VLOOKUP(H81,BudgetDD!$A$2:$B$37,2,FALSE),"") ->  | L81: =IF(COUNTIF(BudgetDD!$A$1:$A$37,K81),VLOOKUP(K81,BudgetDD!$A$1:$B$37,2,FALSE),"") ->  | O81: =IF(COUNTIF(BudgetDD!$A$2:$A$37,N81),VLOOKUP(N81,BudgetDD!$A$2:$B$37,2,FALSE),"") ->  | R81: =IF(COUNTIF(BudgetDD!$A$2:$A$37,Q81),VLOOKUP(Q81,BudgetDD!$A$2:$B$37,2,FALSE),"") ->  | U81: =IF(COUNTIF(BudgetDD!$A$1:$A$37,T81),VLOOKUP(T81,BudgetDD!$A$1:$B$37,2,FALSE),"") ->  | W81: =G81+J81+M81+P81+S81+V81 -> 0
A82: ='Priority Area 1'!A85:F85 -> 13) | F82: =IF(COUNTIF(BudgetDD!$A$2:$A$37,E82),VLOOKUP(E82,BudgetDD!$A$2:$B$37,2,FALSE),"") ->  | I82: =IF(COUNTIF(BudgetDD!$A$2:$A$37,H82),VLOOKUP(H82,BudgetDD!$A$2:$B$37,2,FALSE),"") ->  | L82: =IF(COUNTIF(BudgetDD!$A$1:$A$37,K82),VLOOKUP(K82,BudgetDD!$A$1:$B$37,2,FALSE),"") ->  | O82: =IF(COUNTIF(BudgetDD!$A$2:$A$37,N82),VLOOKUP(N82,BudgetDD!$A$2:$B$37,2,FALSE),"") ->  | R82: =IF(COUNTIF(BudgetDD!$A$2:$A$37,Q82),VLOOKUP(Q82,BudgetDD!$A$2:$B$37,2,FALSE),"") ->  | U82: =IF(COUNTIF(BudgetDD!$A$1:$A$37,T82),VLOOKUP(T82,BudgetDD!$A$1:$B$37,2,FALSE),"") ->  | W82: 0
A83: ='Priority Area 1'!A86:F86 -> 14) | F83: =IF(COUNTIF(BudgetDD!$A$2:$A$37,E83),VLOOKUP(E83,BudgetDD!$A$2:$B$37,2,FALSE),"") ->  | I83: =IF(COUNTIF(BudgetDD!$A$2:$A$37,H83),VLOOKUP(H83,BudgetDD!$A$2:$B$37,2,FALSE),"") ->  | L83: =IF(COUNTIF(BudgetDD!$A$1:$A$37,K83),VLOOKUP(K83,BudgetDD!$A$1:$B$37,2,FALSE),"") ->  | O83: =IF(COUNTIF(BudgetDD!$A$2:$A$37,N83),VLOOKUP(N83,BudgetDD!$A$2:$B$37,2,FALSE),"") ->  | R83: =IF(COUNTIF(BudgetDD!$A$2:$A$37,Q83),VLOOKUP(Q83,BudgetDD!$A$2:$B$37,2,FALSE),"") ->  | U83: =IF(COUNTIF(BudgetDD!$A$1:$A$37,T83),VLOOKUP(T83,BudgetDD!$A$1:$B$37,2,FALSE),"") ->  | W83: 0
A84: ='Priority Area 1'!A87:F87 -> 15) | F84: =IF(COUNTIF(BudgetDD!$A$2:$A$37,E84),VLOOKUP(E84,BudgetDD!$A$2:$B$37,2,FALSE),"") ->  | I84: =IF(COUNTIF(BudgetDD!$A$2:$A$37,H84),VLOOKUP(H84,BudgetDD!$A$2:$B$37,2,FALSE),"") ->  | L84: =IF(COUNTIF(BudgetDD!$A$1:$A$37,K84),VLOOKUP(K84,BudgetDD!$A$1:$B$37,2,FALSE),"") ->  | O84: =IF(COUNTIF(BudgetDD!$A$2:$A$37,N84),VLOOKUP(N84,BudgetDD!$A$2:$B$37,2,FALSE),"") ->  | R84: =IF(COUNTIF(BudgetDD!$A$2:$A$37,Q84),VLOOKUP(Q84,BudgetDD!$A$2:$B$37,2,FALSE),"") ->  | U84: =IF(COUNTIF(BudgetDD!$A$1:$A$37,T84),VLOOKUP(T84,BudgetDD!$A$1:$B$37,2,FALSE),"") ->  | W84: =G84+J84+M84+P84+S84+V84 -> 0
A85: ='Priority Area 1'!A88:F88 -> 16) | F85: =IF(COUNTIF(BudgetDD!$A$2:$A$37,E85),VLOOKUP(E85,BudgetDD!$A$2:$B$37,2,FALSE),"") ->  | I85: =IF(COUNTIF(BudgetDD!$A$2:$A$37,H85),VLOOKUP(H85,BudgetDD!$A$2:$B$37,2,FALSE),"") ->  | L85: =IF(COUNTIF(BudgetDD!$A$1:$A$37,K85),VLOOKUP(K85,BudgetDD!$A$1:$B$37,2,FALSE),"") ->  | O85: =IF(COUNTIF(BudgetDD!$A$2:$A$37,N85),VLOOKUP(N85,BudgetDD!$A$2:$B$37,2,FALSE),"") ->  | R85: =IF(COUNTIF(BudgetDD!$A$2:$A$37,Q85),VLOOKUP(Q85,BudgetDD!$A$2:$B$37,2,FALSE),"") ->  | U85: =IF(COUNTIF(BudgetDD!$A$1:$A$37,T85),VLOOKUP(T85,BudgetDD!$A$1:$B$37,2,FALSE),"") ->  | W85: =G85+J85+M85+P85+S85+V85 -> 0
A86: Parent/Family Engagement Action Steps | C86: Title I Parent/Family Engagement Component | E86: Budget Category 1 (May select up to six Budget Categories for each action step.) | F86: Budget Code | G86: Amount | H86: Budget Category 2 (May select up to six Budget Categories for each action step.) | I86: Budget Code | J86: Amount | K86: Budget Category 3 (May select up to six Budget Categories for each action step.) | L86: Budget Code | M86: Amount | N86: Budget Category 4 (May select up to six Budget Categories for each action step.) | O86: Budget Code | P86: Amount | Q86: Budget Category 5 (May select up to six Budget Categories for each action step.) | R86: Budget Code | S86: Amount | T86: Budget Category 6 (May select up to six Budget Categories for each action step.) | U86: Budget Code | V86: Amount | W86: Total Federal Funding for Action Step
A87: ='Priority Area 1'!A91:F91 -> 17) | C87: You may select more than one component from the following components - Components 1-13 are required | F87: =IF(COUNTIF(BudgetPFEDD!$A$2:$A$13,E87),VLOOKUP(E87,BudgetPFEDD!$A$2:$B$13,2,FALSE),"") ->  | I87: =IF(COUNTIF(BudgetPFEDD!$A$2:$A$13,H87),VLOOKUP(H87,BudgetPFEDD!$A$2:$B$13,2,FALSE),"") ->  | L87: =IF(COUNTIF(BudgetPFEDD!$A$2:$A$13,K87),VLOOKUP(K87,BudgetPFEDD!$A$2:$B$13,2,FALSE),"") ->  | O87: =IF(COUNTIF(BudgetPFEDD!$A$2:$A$13,N87),VLOOKUP(N87,BudgetPFEDD!$A$2:$B$13,2,FALSE),"") ->  | R87: =IF(COUNTIF(BudgetPFEDD!$A$2:$A$13,Q87),VLOOKUP(Q87,BudgetPFEDD!$A$2:$B$13,2,FALSE),"") ->  | U87: =IF(COUNTIF(BudgetPFEDD!$A$2:$A$13,T87),VLOOKUP(T87,BudgetPFEDD!$A$2:$B$13,2,FALSE),"") ->  | W87: =G87+J87+M87+P87+S87+V87 -> 0
A88: ='Priority Area 1'!A92:F92 -> 18) | F88: =IF(COUNTIF(BudgetPFEDD!$A$2:$A$13,E88),VLOOKUP(E88,BudgetPFEDD!$A$2:$B$13,2,FALSE),"") ->  | I88: =IF(COUNTIF(BudgetPFEDD!$A$2:$A$13,H88),VLOOKUP(H88,BudgetPFEDD!$A$2:$B$13,2,FALSE),"") ->  | L88: =IF(COUNTIF(BudgetPFEDD!$A$2:$A$13,K88),VLOOKUP(K88,BudgetPFEDD!$A$2:$B$13,2,FALSE),"") ->  | O88: =IF(COUNTIF(BudgetPFEDD!$A$2:$A$13,N88),VLOOKUP(N88,BudgetPFEDD!$A$2:$B$13,2,FALSE),"") ->  | R88: =IF(COUNTIF(BudgetPFEDD!$A$2:$A$13,Q88),VLOOKUP(Q88,BudgetPFEDD!$A$2:$B$13,2,FALSE),"") ->  | U88: =IF(COUNTIF(BudgetPFEDD!$A$2:$A$13,T88),VLOOKUP(T88,BudgetPFEDD!$A$2:$B$13,2,FALSE),"") ->  | W88: 0
A89: ='Priority Area 1'!A93:F93 -> 19) | F89: =IF(COUNTIF(BudgetPFEDD!$A$2:$A$13,E89),VLOOKUP(E89,BudgetPFEDD!$A$2:$B$13,2,FALSE),"") ->  | I89: =IF(COUNTIF(BudgetPFEDD!$A$2:$A$13,H89),VLOOKUP(H89,BudgetPFEDD!$A$2:$B$13,2,FALSE),"") ->  | L89: =IF(COUNTIF(BudgetPFEDD!$A$2:$A$13,K89),VLOOKUP(K89,BudgetPFEDD!$A$2:$B$13,2,FALSE),"") ->  | O89: =IF(COUNTIF(BudgetPFEDD!$A$2:$A$13,N89),VLOOKUP(N89,BudgetPFEDD!$A$2:$B$13,2,FALSE),"") ->  | R89: =IF(COUNTIF(BudgetPFEDD!$A$2:$A$13,Q89),VLOOKUP(Q89,BudgetPFEDD!$A$2:$B$13,2,FALSE),"") ->  | U89: =IF(COUNTIF(BudgetPFEDD!$A$2:$A$13,T89),VLOOKUP(T89,BudgetPFEDD!$A$2:$B$13,2,FALSE),"") ->  | W89: 0
A90: ='Priority Area 1'!A94:F94 -> 20) | F90: =IF(COUNTIF(BudgetPFEDD!$A$2:$A$13,E90),VLOOKUP(E90,BudgetPFEDD!$A$2:$B$13,2,FALSE),"") ->  | I90: =IF(COUNTIF(BudgetPFEDD!$A$2:$A$13,H90),VLOOKUP(H90,BudgetPFEDD!$A$2:$B$13,2,FALSE),"") ->  | L90: =IF(COUNTIF(BudgetPFEDD!$A$2:$A$13,K90),VLOOKUP(K90,BudgetPFEDD!$A$2:$B$13,2,FALSE),"") ->  | O90: =IF(COUNTIF(BudgetPFEDD!$A$2:$A$13,N90),VLOOKUP(N90,BudgetPFEDD!$A$2:$B$13,2,FALSE),"") ->  | R90: =IF(COUNTIF(BudgetPFEDD!$A$2:$A$13,Q90),VLOOKUP(Q90,BudgetPFEDD!$A$2:$B$13,2,FALSE),"") ->  | U90: =IF(COUNTIF(BudgetPFEDD!$A$2:$A$13,T90),VLOOKUP(T90,BudgetPFEDD!$A$2:$B$13,2,FALSE),"") ->  | W90: =G90+J90+M90+P90+S90+V90 -> 0
A91: ='Priority Area 1'!A95:F95 -> 21) | F91: =IF(COUNTIF(BudgetPFEDD!$A$2:$A$13,E91),VLOOKUP(E91,BudgetPFEDD!$A$2:$B$13,2,FALSE),"") ->  | I91: =IF(COUNTIF(BudgetPFEDD!$A$2:$A$13,H91),VLOOKUP(H91,BudgetPFEDD!$A$2:$B$13,2,FALSE),"") ->  | L91: =IF(COUNTIF(BudgetPFEDD!$A$2:$A$13,K91),VLOOKUP(K91,BudgetPFEDD!$A$2:$B$13,2,FALSE),"") ->  | O91: =IF(COUNTIF(BudgetPFEDD!$A$2:$A$13,N91),VLOOKUP(N91,BudgetPFEDD!$A$2:$B$13,2,FALSE),"") ->  | R91: =IF(COUNTIF(BudgetPFEDD!$A$2:$A$13,Q91),VLOOKUP(Q91,BudgetPFEDD!$A$2:$B$13,2,FALSE),"") ->  | U91: =IF(COUNTIF(BudgetPFEDD!$A$2:$A$13,T91),VLOOKUP(T91,BudgetPFEDD!$A$2:$B$13,2,FALSE),"") ->  | W91: =G91+J91+M91+P91+S91+V91 -> 0
V92: Subtotal #3: | W92: =SUM(W69:W91) -> 0

Sheet Title I Program Worksheet 2
A1: TITLE I PROGRAM WORKSHEET 2 (SWP and TA) | N1: TITLE I PROGRAM WORKSHEET 2 (SWP and TA)
A2: School Name: | C2: ='Cover Sheet'!B2 -> Narvie J Harris Elementary | H2: School Number: | I2: ='Cover Sheet'!H2 -> 1940 | N2: School Name: | O2: ='Cover Sheet'!B2 -> Narvie J Harris Elementary | U2: School Number: | W2: ='Cover Sheet'!H2 -> 1940
A3: Principal: | C3: ='Cover Sheet'!B4 -> Lisa Scott
A4: LEA Name/Number: | C4: DeKalb County School District (644)
A6: Priority Area 2 | N6: Priority Area 2
A7: ='Data Analysis'!$A75 -> Mathematics | N7: ='Data Analysis'!$A75 -> Mathematics
A9: Improvement Strategy #1 | N9: Improvement Strategy #1
A10: ='Priority Area 2'!A10:I10 -> Concrete-Representational-Abstract (CRA) Sequence of Instruction | N10: ='Priority Area 2'!A10 -> Concrete-Representational-Abstract (CRA) Sequence of Instruction
A11: Action Steps to Implement Improvement Strategy | C11: Title I Program Component | E11: #1 | H11: #2 | K11: #3 | N11: #4 | Q11: #5 | T11: #6
E12: Budget Category 1 (May select up to six Budget Categories for each action step.) | F12: Budget Code | G12: Amount | H12: Budget Category 2 (May select up to six Budget Categories for each action step.) | I12: Budget Code | J12: Amount | K12: Budget Category 3 (May select up to six Budget Categories for each action step.) | L12: Budget Code | M12: Amount | N12: Budget Category 4 (May select up to six Budget Categories for each action step.) | O12: Budget Code | P12: Amount | Q12: Budget Category 5 (May select up to six Budget Categories for each action step.) | R12: Budget Code | S12: Amount | T12: Budget Category 6 (May select up to six Budget Categories for each action step.) | U12: Budget Code | V12: Amount | W12: Total Federal Funding for Action Step
A13: ='Priority Area 2'!A13 -> 1) Teachers will use the CRA sequence of instruction to help students math skills and improve student achievement in each mathematics learning plan implemented in weekly lesson plans. | C13: Schoolwide Reform Strategies (TA & SWP) | E13: Instructional Supplies | F13: =IF(COUNTIF(BudgetDD!$A$2:$A$37,E13),VLOOKUP(E13,BudgetDD!$A$2:$B$37,2,FALSE),"") -> 402.1000.561000.40024.1940.1750.FAC.030.2025 | G13: 40588.09 | I13: =IF(COUNTIF(BudgetDD!$A$2:$A$37,H13),VLOOKUP(H13,BudgetDD!$A$2:$B$37,2,FALSE),"") ->  | L13: =IF(COUNTIF(BudgetDD!$A$1:$A$37,K13),VLOOKUP(K13,BudgetDD!$A$1:$B$37,2,FALSE),"") ->  | O13: =IF(COUNTIF(BudgetDD!$A$2:$A$37,N13),VLOOKUP(N13,BudgetDD!$A$2:$B$37,2,FALSE),"") ->  | R13: =IF(COUNTIF(BudgetDD!$A$2:$A$37,Q13),VLOOKUP(Q13,BudgetDD!$A$2:$B$37,2,FALSE),"") ->  | U13: =IF(COUNTIF(BudgetDD!$A$1:$A$37,T13),VLOOKUP(T13,BudgetDD!$A$1:$B$37,2,FALSE),"") ->  | W13: =G13+J13+M13+P13+S13+V13 -> 40588.09
A14: ='Priority Area 2'!A14 -> 2) Teachers will plan, implement, and progress monitor math concepts using Gradual Release to increase student achievement. Students will apply math concepts daily through small group instruction, collaboration, or indpendpent practice. Teachers will also use StemScopes to differenitiated suupport instrction. | C14: Schoolwide Reform Strategies (TA & SWP) | F14: =IF(COUNTIF(BudgetDD!$A$2:$A$37,E14),VLOOKUP(E14,BudgetDD!$A$2:$B$37,2,FALSE),"") ->  | I14: =IF(COUNTIF(BudgetDD!$A$2:$A$37,H14),VLOOKUP(H14,BudgetDD!$A$2:$B$37,2,FALSE),"") ->  | L14: =IF(COUNTIF(BudgetDD!$A$1:$A$37,K14),VLOOKUP(K14,BudgetDD!$A$1:$B$37,2,FALSE),"") ->  | O14: =IF(COUNTIF(BudgetDD!$A$2:$A$37,N14),VLOOKUP(N14,BudgetDD!$A$2:$B$37,2,FALSE),"") ->  | R14: =IF(COUNTIF(BudgetDD!$A$2:$A$37,Q14),VLOOKUP(Q14,BudgetDD!$A$2:$B$37,2,FALSE),"") ->  | U14: =IF(COUNTIF(BudgetDD!$A$1:$A$37,T14),VLOOKUP(T14,BudgetDD!$A$1:$B$37,2,FALSE),"") ->  | W14: =G14+J14+M14+P14+S14+V14 -> 0
A15: ='Priority Area 2'!A15 -> 3) Teachers will implement a variety of tools daily, including technology to support conceptual teaching and increase student performance and achievement. Students will use manipulatives to explore and represent mathematical concepts. Students will explore independently and collaboratively to improve academic discourse and student achievement. | C15: Schoolwide Reform Strategies (TA & SWP) | E15: Instructional Supplies | F15: =IF(COUNTIF(BudgetDD!$A$2:$A$37,E15),VLOOKUP(E15,BudgetDD!$A$2:$B$37,2,FALSE),"") -> 402.1000.561000.40024.1940.1750.FAC.030.2025 | G15: 10882.72 | H15: Instructional Equipment | I15: =IF(COUNTIF(BudgetDD!$A$2:$A$37,H15),VLOOKUP(H15,BudgetDD!$A$2:$B$37,2,FALSE),"") -> 402.1000.561500.40024.1940.1750.FAC.030.2025 | J15: 2500 | L15: =IF(COUNTIF(BudgetDD!$A$1:$A$37,K15),VLOOKUP(K15,BudgetDD!$A$1:$B$37,2,FALSE),"") ->  | O15: =IF(COUNTIF(BudgetDD!$A$2:$A$37,N15),VLOOKUP(N15,BudgetDD!$A$2:$B$37,2,FALSE),"") ->  | R15: =IF(COUNTIF(BudgetDD!$A$2:$A$37,Q15),VLOOKUP(Q15,BudgetDD!$A$2:$B$37,2,FALSE),"") ->  | U15: =IF(COUNTIF(BudgetDD!$A$1:$A$37,T15),VLOOKUP(T15,BudgetDD!$A$1:$B$37,2,FALSE),"") ->  | W15: 13382.72
A16: ='Priority Area 2'!A16 -> 4) Teachers and students will use I-Ready, Permance or Instruction Coach Math books and IXL to improve student achievement by tracking student progress and monitoring growth. Teachers will administer the I-Ready diagnostic assessment 2 times per year to identify individualized student achievement. | C16: Schoolwide Reform Strategies (TA & SWP) | F16: =IF(COUNTIF(BudgetDD!$A$2:$A$37,E16),VLOOKUP(E16,BudgetDD!$A$2:$B$37,2,FALSE),"") ->  | I16: =IF(COUNTIF(BudgetDD!$A$2:$A$37,H16),VLOOKUP(H16,BudgetDD!$A$2:$B$37,2,FALSE),"") ->  | L16: =IF(COUNTIF(BudgetDD!$A$1:$A$37,K16),VLOOKUP(K16,BudgetDD!$A$1:$B$37,2,FALSE),"") ->  | O16: =IF(COUNTIF(BudgetDD!$A$2:$A$37,N16),VLOOKUP(N16,BudgetDD!$A$2:$B$37,2,FALSE),"") ->  | R16: =IF(COUNTIF(BudgetDD!$A$2:$A$37,Q16),VLOOKUP(Q16,BudgetDD!$A$2:$B$37,2,FALSE),"") ->  | U16: =IF(COUNTIF(BudgetDD!$A$1:$A$37,T16),VLOOKUP(T16,BudgetDD!$A$1:$B$37,2,FALSE),"") ->  | W16: 0
A17: ='Priority Area 2'!A17 -> 5) Administrative team will conduct monthly walkthroughs to monitor the implementation of the mathematical instructional framework using an observation tool to provide feedback and inform next steps. | C17: Schoolwide Reform Strategies (TA & SWP) | F17: =IF(COUNTIF(BudgetDD!$A$2:$A$37,E17),VLOOKUP(E17,BudgetDD!$A$2:$B$37,2,FALSE),"") ->  | I17: =IF(COUNTIF(BudgetDD!$A$2:$A$37,H17),VLOOKUP(H17,BudgetDD!$A$2:$B$37,2,FALSE),"") ->  | L17: =IF(COUNTIF(BudgetDD!$A$1:$A$37,K17),VLOOKUP(K17,BudgetDD!$A$1:$B$37,2,FALSE),"") ->  | O17: =IF(COUNTIF(BudgetDD!$A$2:$A$37,N17),VLOOKUP(N17,BudgetDD!$A$2:$B$37,2,FALSE),"") ->  | R17: =IF(COUNTIF(BudgetDD!$A$2:$A$37,Q17),VLOOKUP(Q17,BudgetDD!$A$2:$B$37,2,FALSE),"") ->  | U17: =IF(COUNTIF(BudgetDD!$A$1:$A$37,T17),VLOOKUP(T17,BudgetDD!$A$1:$B$37,2,FALSE),"") ->  | W17: 0
A18: ='Priority Area 2'!A18 -> 0 | C18: Schoolwide Reform Strategies (TA & SWP) | F18: =IF(COUNTIF(BudgetDD!$A$2:$A$37,E18),VLOOKUP(E18,BudgetDD!$A$2:$B$37,2,FALSE),"") ->  | I18: =IF(COUNTIF(BudgetDD!$A$2:$A$37,H18),VLOOKUP(H18,BudgetDD!$A$2:$B$37,2,FALSE),"") ->  | L18: =IF(COUNTIF(BudgetDD!$A$1:$A$37,K18),VLOOKUP(K18,BudgetDD!$A$1:$B$37,2,FALSE),"") ->  | O18: =IF(COUNTIF(BudgetDD!$A$2:$A$37,N18),VLOOKUP(N18,BudgetDD!$A$2:$B$37,2,FALSE),"") ->  | R18: =IF(COUNTIF(BudgetDD!$A$2:$A$37,Q18),VLOOKUP(Q18,BudgetDD!$A$2:$B$37,2,FALSE),"") ->  | U18: =IF(COUNTIF(BudgetDD!$A$1:$A$37,T18),VLOOKUP(T18,BudgetDD!$A$1:$B$37,2,FALSE),"") ->  | W18: 0
A19: ='Priority Area 2'!A19 -> 0 | C19: Schoolwide Reform Strategies (TA & SWP) | F19: =IF(COUNTIF(BudgetDD!$A$2:$A$37,E19),VLOOKUP(E19,BudgetDD!$A$2:$B$37,2,FALSE),"") ->  | I19: =IF(COUNTIF(BudgetDD!$A$2:$A$37,H19),VLOOKUP(H19,BudgetDD!$A$2:$B$37,2,FALSE),"") ->  | L19: =IF(COUNTIF(BudgetDD!$A$1:$A$37,K19),VLOOKUP(K19,BudgetDD!$A$1:$B$37,2,FALSE),"") ->  | O19: =IF(COUNTIF(BudgetDD!$A$2:$A$37,N19),VLOOKUP(N19,BudgetDD!$A$2:$B$37,2,FALSE),"") ->  | R19: =IF(COUNTIF(BudgetDD!$A$2:$A$37,Q19),VLOOKUP(Q19,BudgetDD!$A$2:$B$37,2,FALSE),"") ->  | U19: =IF(COUNTIF(BudgetDD!$A$1:$A$37,T19),VLOOKUP(T19,BudgetDD!$A$1:$B$37,2,FALSE),"") ->  | W19: 0
A20: ='Priority Area 2'!A20 -> 0 | C20: Schoolwide Reform Strategies (TA & SWP) | F20: =IF(COUNTIF(BudgetDD!$A$2:$A$37,E20),VLOOKUP(E20,BudgetDD!$A$2:$B$37,2,FALSE),"") ->  | I20: =IF(COUNTIF(BudgetDD!$A$2:$A$37,H20),VLOOKUP(H20,BudgetDD!$A$2:$B$37,2,FALSE),"") ->  | L20: =IF(COUNTIF(BudgetDD!$A$1:$A$37,K20),VLOOKUP(K20,BudgetDD!$A$1:$B$37,2,FALSE),"") ->  | O20: =IF(COUNTIF(BudgetDD!$A$2:$A$37,N20),VLOOKUP(N20,BudgetDD!$A$2:$B$37,2,FALSE),"") ->  | R20: =IF(COUNTIF(BudgetDD!$A$2:$A$37,Q20),VLOOKUP(Q20,BudgetDD!$A$2:$B$37,2,FALSE),"") ->  | U20: =IF(COUNTIF(BudgetDD!$A$1:$A$37,T20),VLOOKUP(T20,BudgetDD!$A$1:$B$37,2,FALSE),"") ->  | W20: 0
A21: ='Priority Area 2'!A21 -> 0 | C21: Schoolwide Reform Strategies (TA & SWP) | F21: =IF(COUNTIF(BudgetDD!$A$2:$A$37,E21),VLOOKUP(E21,BudgetDD!$A$2:$B$37,2,FALSE),"") ->  | I21: =IF(COUNTIF(BudgetDD!$A$2:$A$37,H21),VLOOKUP(H21,BudgetDD!$A$2:$B$37,2,FALSE),"") ->  | L21: =IF(COUNTIF(BudgetDD!$A$1:$A$37,K21),VLOOKUP(K21,BudgetDD!$A$1:$B$37,2,FALSE),"") ->  | O21: =IF(COUNTIF(BudgetDD!$A$2:$A$37,N21),VLOOKUP(N21,BudgetDD!$A$2:$B$37,2,FALSE),"") ->  | R21: =IF(COUNTIF(BudgetDD!$A$2:$A$37,Q21),VLOOKUP(Q21,BudgetDD!$A$2:$B$37,2,FALSE),"") ->  | U21: =IF(COUNTIF(BudgetDD!$A$1:$A$37,T21),VLOOKUP(T21,BudgetDD!$A$1:$B$37,2,FALSE),"") ->  | W21: 0
A22: ='Priority Area 2'!A22 -> 0 | C22: Schoolwide Reform Strategies (TA & SWP) | F22: =IF(COUNTIF(BudgetDD!$A$2:$A$37,E22),VLOOKUP(E22,BudgetDD!$A$2:$B$37,2,FALSE),"") ->  | I22: =IF(COUNTIF(BudgetDD!$A$2:$A$37,H22),VLOOKUP(H22,BudgetDD!$A$2:$B$37,2,FALSE),"") ->  | L22: =IF(COUNTIF(BudgetDD!$A$1:$A$37,K22),VLOOKUP(K22,BudgetDD!$A$1:$B$37,2,FALSE),"") ->  | O22: =IF(COUNTIF(BudgetDD!$A$2:$A$37,N22),VLOOKUP(N22,BudgetDD!$A$2:$B$37,2,FALSE),"") ->  | R22: =IF(COUNTIF(BudgetDD!$A$2:$A$37,Q22),VLOOKUP(Q22,BudgetDD!$A$2:$B$37,2,FALSE),"") ->  | U22: =IF(COUNTIF(BudgetDD!$A$1:$A$37,T22),VLOOKUP(T22,BudgetDD!$A$1:$B$37,2,FALSE),"") ->  | W22: 0
A23: ='Priority Area 2'!A23 -> 0 | F23: =IF(COUNTIF(BudgetDD!$A$2:$A$37,E23),VLOOKUP(E23,BudgetDD!$A$2:$B$37,2,FALSE),"") ->  | I23: =IF(COUNTIF(BudgetDD!$A$2:$A$37,H23),VLOOKUP(H23,BudgetDD!$A$2:$B$37,2,FALSE),"") ->  | L23: =IF(COUNTIF(BudgetDD!$A$1:$A$37,K23),VLOOKUP(K23,BudgetDD!$A$1:$B$37,2,FALSE),"") ->  | O23: =IF(COUNTIF(BudgetDD!$A$2:$A$37,N23),VLOOKUP(N23,BudgetDD!$A$2:$B$37,2,FALSE),"") ->  | R23: =IF(COUNTIF(BudgetDD!$A$2:$A$37,Q23),VLOOKUP(Q23,BudgetDD!$A$2:$B$37,2,FALSE),"") ->  | U23: =IF(COUNTIF(BudgetDD!$A$1:$A$37,T23),VLOOKUP(T23,BudgetDD!$A$1:$B$37,2,FALSE),"") ->  | W23: 0
A24: Professional Development Action Steps (Beginning and Ending Dates of Activity, Consultants Providing Training, and Description of Services) | E24: Budget Category 1 (May select up to six Budget Categories for each action step.) | F24: Budget Code | G24: Amount | H24: Budget Category 2 (May select up to six Budget Categories for each action step.) | I24: Budget Code | J24: Amount | K24: Budget Category 3 (May select up to six Budget Categories for each action step.) | L24: Budget Code | M24: Amount | N24: Budget Category 4 (May select up to six Budget Categories for each action step.) | O24: Budget Code | P24: Amount | Q24: Budget Category 5 (May select up to six Budget Categories for each action step.) | R24: Budget Code | S24: Amount | T24: Budget Category 6 (May select up to six Budget Categories for each action step.) | U24: Budget Code | V24: Amount | W24: Total Federal Funding for Action Step
A25: ='Priority Area 2'!A26:F26 -> 8) The instructional team will participate in state and national conferences for PL on CRA and other math strategies to improve student conceptual understanding of mathematical skills. | E25: PL Travel of Employees | F25: =IF(COUNTIF(BudgetDD!$A$2:$A$37,E25),VLOOKUP(E25,BudgetDD!$A$2:$B$37,2,FALSE),"") -> 402.2213.558000.40024.1940.1750.FAC.030.2025 | G25: 20000 | H25: PL Registration Fees | I25: =IF(COUNTIF(BudgetDD!$A$2:$A$37,H25),VLOOKUP(H25,BudgetDD!$A$2:$B$37,2,FALSE),"") -> 402.2213.581000.40024.1940.1750.FAC.030.2025 | J25: 10000 | L25: =IF(COUNTIF(BudgetDD!$A$1:$A$37,K25),VLOOKUP(K25,BudgetDD!$A$1:$B$37,2,FALSE),"") ->  | O25: =IF(COUNTIF(BudgetDD!$A$2:$A$37,N25),VLOOKUP(N25,BudgetDD!$A$2:$B$37,2,FALSE),"") ->  | R25: =IF(COUNTIF(BudgetDD!$A$2:$A$37,Q25),VLOOKUP(Q25,BudgetDD!$A$2:$B$37,2,FALSE),"") ->  | U25: =IF(COUNTIF(BudgetDD!$A$1:$A$37,T25),VLOOKUP(T25,BudgetDD!$A$1:$B$37,2,FALSE),"") ->  | W25: 30000
A26: ='Priority Area 2'!A27:F27 -> 9)All Instructional staff will attend Narvie University sessions beginning August 2024 and will include the effective implementation of Math Workshops with a focus on the workd period. Narvie University will be held once a month and Teacher Boot Camp will be held Summer 2025. | E26: PL Stipends | F26: =IF(COUNTIF(BudgetDD!$A$2:$A$37,E26),VLOOKUP(E26,BudgetDD!$A$2:$B$37,2,FALSE),"") -> 402.2213.511600.40024.1940.1750.FAC.030.2025 | G26: 6400 | I26: =IF(COUNTIF(BudgetDD!$A$2:$A$37,H26),VLOOKUP(H26,BudgetDD!$A$2:$B$37,2,FALSE),"") ->  | L26: =IF(COUNTIF(BudgetDD!$A$1:$A$37,K26),VLOOKUP(K26,BudgetDD!$A$1:$B$37,2,FALSE),"") ->  | O26: =IF(COUNTIF(BudgetDD!$A$2:$A$37,N26),VLOOKUP(N26,BudgetDD!$A$2:$B$37,2,FALSE),"") ->  | R26: =IF(COUNTIF(BudgetDD!$A$2:$A$37,Q26),VLOOKUP(Q26,BudgetDD!$A$2:$B$37,2,FALSE),"") ->  | U26: =IF(COUNTIF(BudgetDD!$A$1:$A$37,T26),VLOOKUP(T26,BudgetDD!$A$1:$B$37,2,FALSE),"") ->  | W26: 6400
A27: ='Priority Area 2'!A28:F28 -> 10)Teachers and the administration team will collaborate in bi-weekly collaborative sessions using the R.E.A.P. protocol. Lesson plans, differentiated insructional strategies, tiered activites, assessments, and interventions presented while discussing strengths and weaknesses. | F27: =IF(COUNTIF(BudgetDD!$A$2:$A$37,E27),VLOOKUP(E27,BudgetDD!$A$2:$B$37,2,FALSE),"") ->  | I27: =IF(COUNTIF(BudgetDD!$A$2:$A$37,H27),VLOOKUP(H27,BudgetDD!$A$2:$B$37,2,FALSE),"") ->  | L27: =IF(COUNTIF(BudgetDD!$A$1:$A$37,K27),VLOOKUP(K27,BudgetDD!$A$1:$B$37,2,FALSE),"") ->  | O27: =IF(COUNTIF(BudgetDD!$A$2:$A$37,N27),VLOOKUP(N27,BudgetDD!$A$2:$B$37,2,FALSE),"") ->  | R27: =IF(COUNTIF(BudgetDD!$A$2:$A$37,Q27),VLOOKUP(Q27,BudgetDD!$A$2:$B$37,2,FALSE),"") ->  | U27: =IF(COUNTIF(BudgetDD!$A$1:$A$37,T27),VLOOKUP(T27,BudgetDD!$A$1:$B$37,2,FALSE),"") ->  | W27: 0
A28: ='Priority Area 2'!A29:F29 -> 11) The instructional team will participate in PL to administer the I-Ready diagnostic, interprete results and inividualize instruction to increase student achievement. Teachers will access instructional grouping data and engage in the differentiated in the platform. | F28: =IF(COUNTIF(BudgetDD!$A$2:$A$37,E28),VLOOKUP(E28,BudgetDD!$A$2:$B$37,2,FALSE),"") ->  | I28: =IF(COUNTIF(BudgetDD!$A$2:$A$37,H28),VLOOKUP(H28,BudgetDD!$A$2:$B$37,2,FALSE),"") ->  | L28: =IF(COUNTIF(BudgetDD!$A$1:$A$37,K28),VLOOKUP(K28,BudgetDD!$A$1:$B$37,2,FALSE),"") ->  | O28: =IF(COUNTIF(BudgetDD!$A$2:$A$37,N28),VLOOKUP(N28,BudgetDD!$A$2:$B$37,2,FALSE),"") ->  | R28: =IF(COUNTIF(BudgetDD!$A$2:$A$37,Q28),VLOOKUP(Q28,BudgetDD!$A$2:$B$37,2,FALSE),"") ->  | U28: =IF(COUNTIF(BudgetDD!$A$1:$A$37,T28),VLOOKUP(T28,BudgetDD!$A$1:$B$37,2,FALSE),"") ->  | W28: 0
A29: ='Priority Area 2'!A30:F30 -> 0 | F29: =IF(COUNTIF(BudgetDD!$A$2:$A$37,E29),VLOOKUP(E29,BudgetDD!$A$2:$B$37,2,FALSE),"") ->  | I29: =IF(COUNTIF(BudgetDD!$A$2:$A$37,H29),VLOOKUP(H29,BudgetDD!$A$2:$B$37,2,FALSE),"") ->  | L29: =IF(COUNTIF(BudgetDD!$A$1:$A$37,K29),VLOOKUP(K29,BudgetDD!$A$1:$B$37,2,FALSE),"") ->  | O29: =IF(COUNTIF(BudgetDD!$A$2:$A$37,N29),VLOOKUP(N29,BudgetDD!$A$2:$B$37,2,FALSE),"") ->  | R29: =IF(COUNTIF(BudgetDD!$A$2:$A$37,Q29),VLOOKUP(Q29,BudgetDD!$A$2:$B$37,2,FALSE),"") ->  | U29: =IF(COUNTIF(BudgetDD!$A$1:$A$37,T29),VLOOKUP(T29,BudgetDD!$A$1:$B$37,2,FALSE),"") ->  | W29: 0
A30: Parent/Family Engagement Action Steps | C30: Title I Parent/Family Engagement Component | E30: Budget Category 1 (May select up to six Budget Categories for each action step.) | F30: Budget Code | G30: Amount | H30: Budget Category 2 (May select up to six Budget Categories for each action step.) | I30: Budget Code | J30: Amount | K30: Budget Category 3 (May select up to six Budget Categories for each action step.) | L30: Budget Code | M30: Amount | N30: Budget Category 4 (May select up to six Budget Categories for each action step.) | O30: Budget Code | P30: Amount | Q30: Budget Category 5 (May select up to six Budget Categories for each action step.) | R30: Budget Code | S30: Amount | T30: Budget Category 6 (May select up to six Budget Categories for each action step.) | U30: Budget Code | V30: Amount | W30: Total Federal Funding for Action Step
A31: ='Priority Area 2'!A33:F33 -> 13) Provide stakeholders information and opportunities to give input, feedback, and request resources to assist their children at home with Math content and to help their child's transition to the next grade level; translations will be made available based on need/requests (stakeholder input meetings, annual Title I meeting, Curriculum Night, CSIP, Compact and Policy development, parent/teacher conferenes, emails, and website). Provide parents with a guide to IReady to support learning at home. | C31: 11) Coordinate and integrate parent involvement programs and activities | E31: PFE Supplies | F31: =IF(COUNTIF(BudgetPFEDD!$A$2:$A$13,E31),VLOOKUP(E31,BudgetPFEDD!$A$2:$B$13,2,FALSE),"") -> 402.2100.561000.30124.1940.1750.FAC.030.2025 | G31: 258.32 | I31: =IF(COUNTIF(BudgetPFEDD!$A$2:$A$13,H31),VLOOKUP(H31,BudgetPFEDD!$A$2:$B$13,2,FALSE),"") ->  | L31: =IF(COUNTIF(BudgetPFEDD!$A$2:$A$13,K31),VLOOKUP(K31,BudgetPFEDD!$A$2:$B$13,2,FALSE),"") ->  | O31: =IF(COUNTIF(BudgetPFEDD!$A$2:$A$13,N31),VLOOKUP(N31,BudgetPFEDD!$A$2:$B$13,2,FALSE),"") ->  | R31: =IF(COUNTIF(BudgetPFEDD!$A$2:$A$13,Q31),VLOOKUP(Q31,BudgetPFEDD!$A$2:$B$13,2,FALSE),"") ->  | U31: =IF(COUNTIF(BudgetPFEDD!$A$2:$A$13,T31),VLOOKUP(T31,BudgetPFEDD!$A$2:$B$13,2,FALSE),"") ->  | W31: 258.32
A32: ='Priority Area 2'!A34:F34 -> 14) Teachers will introduce parents to mathematical tools and CRA sequence of instruction strategy during Curriculum Night and Parent Academies to provide support with helping their students at home. | C32: 9) Provide materials and training to help parents work with their children to improve achievement. | F32: =IF(COUNTIF(BudgetPFEDD!$A$2:$A$13,E32),VLOOKUP(E32,BudgetPFEDD!$A$2:$B$13,2,FALSE),"") ->  | I32: =IF(COUNTIF(BudgetPFEDD!$A$2:$A$13,H32),VLOOKUP(H32,BudgetPFEDD!$A$2:$B$13,2,FALSE),"") ->  | L32: =IF(COUNTIF(BudgetPFEDD!$A$2:$A$13,K32),VLOOKUP(K32,BudgetPFEDD!$A$2:$B$13,2,FALSE),"") ->  | O32: =IF(COUNTIF(BudgetPFEDD!$A$2:$A$13,N32),VLOOKUP(N32,BudgetPFEDD!$A$2:$B$13,2,FALSE),"") ->  | R32: =IF(COUNTIF(BudgetPFEDD!$A$2:$A$13,Q32),VLOOKUP(Q32,BudgetPFEDD!$A$2:$B$13,2,FALSE),"") ->  | U32: =IF(COUNTIF(BudgetPFEDD!$A$2:$A$13,T32),VLOOKUP(T32,BudgetPFEDD!$A$2:$B$13,2,FALSE),"") ->  | W32: 0
A33: ='Priority Area 2'!A35:F35 -> 15) Teachers will provide stakeholders with opportunities to engage in the Mathematical Modeling Framework and the Framework for Statistical Reasoning to help parents work with their child at home. | C33: 9) Provide materials and training to help parents work with their children to improve achievement. | E33: PFE Facilitator Extra Activity | F33: =IF(COUNTIF(BudgetPFEDD!$A$2:$A$13,E33),VLOOKUP(E33,BudgetPFEDD!$A$2:$B$13,2,FALSE),"") -> 402.2100.519900.30124.1940.1750.FAC.030.2025 | G33: 1080 | I33: =IF(COUNTIF(BudgetPFEDD!$A$2:$A$13,H33),VLOOKUP(H33,BudgetPFEDD!$A$2:$B$13,2,FALSE),"") ->  | L33: =IF(COUNTIF(BudgetPFEDD!$A$2:$A$13,K33),VLOOKUP(K33,BudgetPFEDD!$A$2:$B$13,2,FALSE),"") ->  | O33: =IF(COUNTIF(BudgetPFEDD!$A$2:$A$13,N33),VLOOKUP(N33,BudgetPFEDD!$A$2:$B$13,2,FALSE),"") ->  | R33: =IF(COUNTIF(BudgetPFEDD!$A$2:$A$13,Q33),VLOOKUP(Q33,BudgetPFEDD!$A$2:$B$13,2,FALSE),"") ->  | U33: =IF(COUNTIF(BudgetPFEDD!$A$2:$A$13,T33),VLOOKUP(T33,BudgetPFEDD!$A$2:$B$13,2,FALSE),"") ->  | W33: 1080
A34: ='Priority Area 2'!A36:F36 -> 0 | F34: =IF(COUNTIF(BudgetPFEDD!$A$2:$A$13,E34),VLOOKUP(E34,BudgetPFEDD!$A$2:$B$13,2,FALSE),"") ->  | I34: =IF(COUNTIF(BudgetPFEDD!$A$2:$A$13,H34),VLOOKUP(H34,BudgetPFEDD!$A$2:$B$13,2,FALSE),"") ->  | L34: =IF(COUNTIF(BudgetPFEDD!$A$2:$A$13,K34),VLOOKUP(K34,BudgetPFEDD!$A$2:$B$13,2,FALSE),"") ->  | O34: =IF(COUNTIF(BudgetPFEDD!$A$2:$A$13,N34),VLOOKUP(N34,BudgetPFEDD!$A$2:$B$13,2,FALSE),"") ->  | R34: =IF(COUNTIF(BudgetPFEDD!$A$2:$A$13,Q34),VLOOKUP(Q34,BudgetPFEDD!$A$2:$B$13,2,FALSE),"") ->  | U34: =IF(COUNTIF(BudgetPFEDD!$A$2:$A$13,T34),VLOOKUP(T34,BudgetPFEDD!$A$2:$B$13,2,FALSE),"") ->  | W34: 0
A35: ='Priority Area 2'!A37:F37 -> 0 | F35: =IF(COUNTIF(BudgetPFEDD!$A$2:$A$13,E35),VLOOKUP(E35,BudgetPFEDD!$A$2:$B$13,2,FALSE),"") ->  | I35: =IF(COUNTIF(BudgetPFEDD!$A$2:$A$13,H35),VLOOKUP(H35,BudgetPFEDD!$A$2:$B$13,2,FALSE),"") ->  | L35: =IF(COUNTIF(BudgetPFEDD!$A$2:$A$13,K35),VLOOKUP(K35,BudgetPFEDD!$A$2:$B$13,2,FALSE),"") ->  | O35: =IF(COUNTIF(BudgetPFEDD!$A$2:$A$13,N35),VLOOKUP(N35,BudgetPFEDD!$A$2:$B$13,2,FALSE),"") ->  | R35: =IF(COUNTIF(BudgetPFEDD!$A$2:$A$13,Q35),VLOOKUP(Q35,BudgetPFEDD!$A$2:$B$13,2,FALSE),"") ->  | U35: =IF(COUNTIF(BudgetPFEDD!$A$2:$A$13,T35),VLOOKUP(T35,BudgetPFEDD!$A$2:$B$13,2,FALSE),"") ->  | W35: 0
V36: Subtotal #1: | W36: =SUM(W13:W35) -> 91709.13
A37: Improvement Strategy #2 | N37: Improvement Strategy #2
A38: ='Priority Area 2'!A39:I39 -> Type Improvement Strategy Here | N38: ='Priority Area 2'!A39 -> Type Improvement Strategy Here
A39: Action Steps to Implement Improvement Strategy | C39: Title I Program Component | E39: #1 | H39: #2 | K39: #3 | N39: #4 | Q39: #5 | T39: #6
E40: Budget Category 1 (May select up to six Budget Categories for each action step.) | F40: Budget Code | G40: Amount | H40: Budget Category 2 (May select up to six Budget Categories for each action step.) | I40: Budget Code | J40: Amount | K40: Budget Category 3 (May select up to six Budget Categories for each action step.) | L40: Budget Code | M40: Amount | N40: Budget Category 4 (May select up to six Budget Categories for each action step.) | O40: Budget Code | P40: Amount | Q40: Budget Category 5 (May select up to six Budget Categories for each action step.) | R40: Budget Code | S40: Amount | T40: Budget Category 6 (May select up to six Budget Categories for each action step.) | U40: Budget Code | V40: Amount | W40: Total Federal Funding for Action Step
A41: ='Priority Area 2'!A42:F42 -> 1) | C41: Select from drop down menu | F41: =IF(COUNTIF(BudgetDD!$A$2:$A$37,E41),VLOOKUP(E41,BudgetDD!$A$2:$B$37,2,FALSE),"") ->  | I41: =IF(COUNTIF(BudgetDD!$A$2:$A$37,H41),VLOOKUP(H41,BudgetDD!$A$2:$B$37,2,FALSE),"") ->  | L41: =IF(COUNTIF(BudgetDD!$A$1:$A$37,K41),VLOOKUP(K41,BudgetDD!$A$1:$B$37,2,FALSE),"") ->  | O41: =IF(COUNTIF(BudgetDD!$A$2:$A$37,N41),VLOOKUP(N41,BudgetDD!$A$2:$B$37,2,FALSE),"") ->  | R41: =IF(COUNTIF(BudgetDD!$A$2:$A$37,Q41),VLOOKUP(Q41,BudgetDD!$A$2:$B$37,2,FALSE),"") ->  | U41: =IF(COUNTIF(BudgetDD!$A$1:$A$37,T41),VLOOKUP(T41,BudgetDD!$A$1:$B$37,2,FALSE),"") ->  | W41: =G41+J41+M41+P41+S41+V41 -> 0
A42: ='Priority Area 2'!A43:F43 -> 2) | F42: =IF(COUNTIF(BudgetDD!$A$2:$A$37,E42),VLOOKUP(E42,BudgetDD!$A$2:$B$37,2,FALSE),"") ->  | I42: =IF(COUNTIF(BudgetDD!$A$2:$A$37,H42),VLOOKUP(H42,BudgetDD!$A$2:$B$37,2,FALSE),"") ->  | L42: =IF(COUNTIF(BudgetDD!$A$1:$A$37,K42),VLOOKUP(K42,BudgetDD!$A$1:$B$37,2,FALSE),"") ->  | O42: =IF(COUNTIF(BudgetDD!$A$2:$A$37,N42),VLOOKUP(N42,BudgetDD!$A$2:$B$37,2,FALSE),"") ->  | R42: =IF(COUNTIF(BudgetDD!$A$2:$A$37,Q42),VLOOKUP(Q42,BudgetDD!$A$2:$B$37,2,FALSE),"") ->  | U42: =IF(COUNTIF(BudgetDD!$A$1:$A$37,T42),VLOOKUP(T42,BudgetDD!$A$1:$B$37,2,FALSE),"") ->  | W42: 0
A43: ='Priority Area 2'!A44:F44 -> 3) | F43: =IF(COUNTIF(BudgetDD!$A$2:$A$37,E43),VLOOKUP(E43,BudgetDD!$A$2:$B$37,2,FALSE),"") ->  | I43: =IF(COUNTIF(BudgetDD!$A$2:$A$37,H43),VLOOKUP(H43,BudgetDD!$A$2:$B$37,2,FALSE),"") ->  | L43: =IF(COUNTIF(BudgetDD!$A$1:$A$37,K43),VLOOKUP(K43,BudgetDD!$A$1:$B$37,2,FALSE),"") ->  | O43: =IF(COUNTIF(BudgetDD!$A$2:$A$37,N43),VLOOKUP(N43,BudgetDD!$A$2:$B$37,2,FALSE),"") ->  | R43: =IF(COUNTIF(BudgetDD!$A$2:$A$37,Q43),VLOOKUP(Q43,BudgetDD!$A$2:$B$37,2,FALSE),"") ->  | U43: =IF(COUNTIF(BudgetDD!$A$1:$A$37,T43),VLOOKUP(T43,BudgetDD!$A$1:$B$37,2,FALSE),"") ->  | W43: 0
A44: ='Priority Area 2'!A45:F45 -> 4) | F44: =IF(COUNTIF(BudgetDD!$A$2:$A$37,E44),VLOOKUP(E44,BudgetDD!$A$2:$B$37,2,FALSE),"") ->  | I44: =IF(COUNTIF(BudgetDD!$A$2:$A$37,H44),VLOOKUP(H44,BudgetDD!$A$2:$B$37,2,FALSE),"") ->  | L44: =IF(COUNTIF(BudgetDD!$A$1:$A$37,K44),VLOOKUP(K44,BudgetDD!$A$1:$B$37,2,FALSE),"") ->  | O44: =IF(COUNTIF(BudgetDD!$A$2:$A$37,N44),VLOOKUP(N44,BudgetDD!$A$2:$B$37,2,FALSE),"") ->  | R44: =IF(COUNTIF(BudgetDD!$A$2:$A$37,Q44),VLOOKUP(Q44,BudgetDD!$A$2:$B$37,2,FALSE),"") ->  | U44: =IF(COUNTIF(BudgetDD!$A$1:$A$37,T44),VLOOKUP(T44,BudgetDD!$A$1:$B$37,2,FALSE),"") ->  | W44: 0
A45: ='Priority Area 2'!A46:F46 -> 5) | F45: =IF(COUNTIF(BudgetDD!$A$2:$A$37,E45),VLOOKUP(E45,BudgetDD!$A$2:$B$37,2,FALSE),"") ->  | I45: =IF(COUNTIF(BudgetDD!$A$2:$A$37,H45),VLOOKUP(H45,BudgetDD!$A$2:$B$37,2,FALSE),"") ->  | L45: =IF(COUNTIF(BudgetDD!$A$1:$A$37,K45),VLOOKUP(K45,BudgetDD!$A$1:$B$37,2,FALSE),"") ->  | O45: =IF(COUNTIF(BudgetDD!$A$2:$A$37,N45),VLOOKUP(N45,BudgetDD!$A$2:$B$37,2,FALSE),"") ->  | R45: =IF(COUNTIF(BudgetDD!$A$2:$A$37,Q45),VLOOKUP(Q45,BudgetDD!$A$2:$B$37,2,FALSE),"") ->  | U45: =IF(COUNTIF(BudgetDD!$A$1:$A$37,T45),VLOOKUP(T45,BudgetDD!$A$1:$B$37,2,FALSE),"") ->  | W45: 0
A46: ='Priority Area 2'!A47:F47 -> 6) | F46: =IF(COUNTIF(BudgetDD!$A$2:$A$37,E46),VLOOKUP(E46,BudgetDD!$A$2:$B$37,2,FALSE),"") ->  | I46: =IF(COUNTIF(BudgetDD!$A$2:$A$37,H46),VLOOKUP(H46,BudgetDD!$A$2:$B$37,2,FALSE),"") ->  | L46: =IF(COUNTIF(BudgetDD!$A$1:$A$37,K46),VLOOKUP(K46,BudgetDD!$A$1:$B$37,2,FALSE),"") ->  | O46: =IF(COUNTIF(BudgetDD!$A$2:$A$37,N46),VLOOKUP(N46,BudgetDD!$A$2:$B$37,2,FALSE),"") ->  | R46: =IF(COUNTIF(BudgetDD!$A$2:$A$37,Q46),VLOOKUP(Q46,BudgetDD!$A$2:$B$37,2,FALSE),"") ->  | U46: =IF(COUNTIF(BudgetDD!$A$1:$A$37,T46),VLOOKUP(T46,BudgetDD!$A$1:$B$37,2,FALSE),"") ->  | W46: 0
A47: ='Priority Area 2'!A48:F48 -> 7) | F47: =IF(COUNTIF(BudgetDD!$A$2:$A$37,E47),VLOOKUP(E47,BudgetDD!$A$2:$B$37,2,FALSE),"") ->  | I47: =IF(COUNTIF(BudgetDD!$A$2:$A$37,H47),VLOOKUP(H47,BudgetDD!$A$2:$B$37,2,FALSE),"") ->  | L47: =IF(COUNTIF(BudgetDD!$A$1:$A$37,K47),VLOOKUP(K47,BudgetDD!$A$1:$B$37,2,FALSE),"") ->  | O47: =IF(COUNTIF(BudgetDD!$A$2:$A$37,N47),VLOOKUP(N47,BudgetDD!$A$2:$B$37,2,FALSE),"") ->  | R47: =IF(COUNTIF(BudgetDD!$A$2:$A$37,Q47),VLOOKUP(Q47,BudgetDD!$A$2:$B$37,2,FALSE),"") ->  | U47: =IF(COUNTIF(BudgetDD!$A$1:$A$37,T47),VLOOKUP(T47,BudgetDD!$A$1:$B$37,2,FALSE),"") ->  | W47: 0
A48: ='Priority Area 2'!A49:F49 -> 8) | F48: =IF(COUNTIF(BudgetDD!$A$2:$A$37,E48),VLOOKUP(E48,BudgetDD!$A$2:$B$37,2,FALSE),"") ->  | I48: =IF(COUNTIF(BudgetDD!$A$2:$A$37,H48),VLOOKUP(H48,BudgetDD!$A$2:$B$37,2,FALSE),"") ->  | L48: =IF(COUNTIF(BudgetDD!$A$1:$A$37,K48),VLOOKUP(K48,BudgetDD!$A$1:$B$37,2,FALSE),"") ->  | O48: =IF(COUNTIF(BudgetDD!$A$2:$A$37,N48),VLOOKUP(N48,BudgetDD!$A$2:$B$37,2,FALSE),"") ->  | R48: =IF(COUNTIF(BudgetDD!$A$2:$A$37,Q48),VLOOKUP(Q48,BudgetDD!$A$2:$B$37,2,FALSE),"") ->  | U48: =IF(COUNTIF(BudgetDD!$A$1:$A$37,T48),VLOOKUP(T48,BudgetDD!$A$1:$B$37,2,FALSE),"") ->  | W48: 0
A49: ='Priority Area 2'!A50:F50 -> 9) | F49: =IF(COUNTIF(BudgetDD!$A$2:$A$37,E49),VLOOKUP(E49,BudgetDD!$A$2:$B$37,2,FALSE),"") ->  | I49: =IF(COUNTIF(BudgetDD!$A$2:$A$37,H49),VLOOKUP(H49,BudgetDD!$A$2:$B$37,2,FALSE),"") ->  | L49: =IF(COUNTIF(BudgetDD!$A$1:$A$37,K49),VLOOKUP(K49,BudgetDD!$A$1:$B$37,2,FALSE),"") ->  | O49: =IF(COUNTIF(BudgetDD!$A$2:$A$37,N49),VLOOKUP(N49,BudgetDD!$A$2:$B$37,2,FALSE),"") ->  | R49: =IF(COUNTIF(BudgetDD!$A$2:$A$37,Q49),VLOOKUP(Q49,BudgetDD!$A$2:$B$37,2,FALSE),"") ->  | U49: =IF(COUNTIF(BudgetDD!$A$1:$A$37,T49),VLOOKUP(T49,BudgetDD!$A$1:$B$37,2,FALSE),"") ->  | W49: 0
A50: ='Priority Area 2'!A51:F51 -> 10) | F50: =IF(COUNTIF(BudgetDD!$A$2:$A$37,E50),VLOOKUP(E50,BudgetDD!$A$2:$B$37,2,FALSE),"") ->  | I50: =IF(COUNTIF(BudgetDD!$A$2:$A$37,H50),VLOOKUP(H50,BudgetDD!$A$2:$B$37,2,FALSE),"") ->  | L50: =IF(COUNTIF(BudgetDD!$A$1:$A$37,K50),VLOOKUP(K50,BudgetDD!$A$1:$B$37,2,FALSE),"") ->  | O50: =IF(COUNTIF(BudgetDD!$A$2:$A$37,N50),VLOOKUP(N50,BudgetDD!$A$2:$B$37,2,FALSE),"") ->  | R50: =IF(COUNTIF(BudgetDD!$A$2:$A$37,Q50),VLOOKUP(Q50,BudgetDD!$A$2:$B$37,2,FALSE),"") ->  | U50: =IF(COUNTIF(BudgetDD!$A$1:$A$37,T50),VLOOKUP(T50,BudgetDD!$A$1:$B$37,2,FALSE),"") ->  | W50: 0
A51: ='Priority Area 2'!A52:F52 -> 11) | F51: =IF(COUNTIF(BudgetDD!$A$2:$A$37,E51),VLOOKUP(E51,BudgetDD!$A$2:$B$37,2,FALSE),"") ->  | I51: =IF(COUNTIF(BudgetDD!$A$2:$A$37,H51),VLOOKUP(H51,BudgetDD!$A$2:$B$37,2,FALSE),"") ->  | L51: =IF(COUNTIF(BudgetDD!$A$1:$A$37,K51),VLOOKUP(K51,BudgetDD!$A$1:$B$37,2,FALSE),"") ->  | O51: =IF(COUNTIF(BudgetDD!$A$2:$A$37,N51),VLOOKUP(N51,BudgetDD!$A$2:$B$37,2,FALSE),"") ->  | R51: =IF(COUNTIF(BudgetDD!$A$2:$A$37,Q51),VLOOKUP(Q51,BudgetDD!$A$2:$B$37,2,FALSE),"") ->  | U51: =IF(COUNTIF(BudgetDD!$A$1:$A$37,T51),VLOOKUP(T51,BudgetDD!$A$1:$B$37,2,FALSE),"") ->  | W51: 0
A52: Professional Development Action Steps (Beginning and Ending Dates of Activity, Consultants Providing Training, and Description of Services) | E52: Budget Category 1 (May select up to six Budget Categories for each action step.) | F52: Budget Code | G52: Amount | H52: Budget Category 2 (May select up to six Budget Categories for each action step.) | I52: Budget Code | J52: Amount | K52: Budget Category 3 (May select up to six Budget Categories for each action step.) | L52: Budget Code | M52: Amount | N52: Budget Category 4 (May select up to six Budget Categories for each action step.) | O52: Budget Code | P52: Amount | Q52: Budget Category 5 (May select up to six Budget Categories for each action step.) | R52: Budget Code | S52: Amount | T52: Budget Category 6 (May select up to six Budget Categories for each action step.) | U52: Budget Code | V52: Amount | W52: Total Federal Funding for Action Step
A53: ='Priority Area 2'!A55:F55 -> 12) | F53: =IF(COUNTIF(BudgetDD!$A$2:$A$37,E53),VLOOKUP(E53,BudgetDD!$A$2:$B$37,2,FALSE),"") ->  | I53: =IF(COUNTIF(BudgetDD!$A$2:$A$37,H53),VLOOKUP(H53,BudgetDD!$A$2:$B$37,2,FALSE),"") ->  | L53: =IF(COUNTIF(BudgetDD!$A$1:$A$37,K53),VLOOKUP(K53,BudgetDD!$A$1:$B$37,2,FALSE),"") ->  | O53: =IF(COUNTIF(BudgetDD!$A$2:$A$37,N53),VLOOKUP(N53,BudgetDD!$A$2:$B$37,2,FALSE),"") ->  | R53: =IF(COUNTIF(BudgetDD!$A$2:$A$37,Q53),VLOOKUP(Q53,BudgetDD!$A$2:$B$37,2,FALSE),"") ->  | U53: =IF(COUNTIF(BudgetDD!$A$1:$A$37,T53),VLOOKUP(T53,BudgetDD!$A$1:$B$37,2,FALSE),"") ->  | W53: 0
A54: ='Priority Area 2'!A56:F56 -> 13) | F54: =IF(COUNTIF(BudgetDD!$A$2:$A$37,E54),VLOOKUP(E54,BudgetDD!$A$2:$B$37,2,FALSE),"") ->  | I54: =IF(COUNTIF(BudgetDD!$A$2:$A$37,H54),VLOOKUP(H54,BudgetDD!$A$2:$B$37,2,FALSE),"") ->  | L54: =IF(COUNTIF(BudgetDD!$A$1:$A$37,K54),VLOOKUP(K54,BudgetDD!$A$1:$B$37,2,FALSE),"") ->  | O54: =IF(COUNTIF(BudgetDD!$A$2:$A$37,N54),VLOOKUP(N54,BudgetDD!$A$2:$B$37,2,FALSE),"") ->  | R54: =IF(COUNTIF(BudgetDD!$A$2:$A$37,Q54),VLOOKUP(Q54,BudgetDD!$A$2:$B$37,2,FALSE),"") ->  | U54: =IF(COUNTIF(BudgetDD!$A$1:$A$37,T54),VLOOKUP(T54,BudgetDD!$A$1:$B$37,2,FALSE),"") ->  | W54: 0
A55: ='Priority Area 2'!A57:F57 -> 14) | F55: =IF(COUNTIF(BudgetDD!$A$2:$A$37,E55),VLOOKUP(E55,BudgetDD!$A$2:$B$37,2,FALSE),"") ->  | I55: =IF(COUNTIF(BudgetDD!$A$2:$A$37,H55),VLOOKUP(H55,BudgetDD!$A$2:$B$37,2,FALSE),"") ->  | L55: =IF(COUNTIF(BudgetDD!$A$1:$A$37,K55),VLOOKUP(K55,BudgetDD!$A$1:$B$37,2,FALSE),"") ->  | O55: =IF(COUNTIF(BudgetDD!$A$2:$A$37,N55),VLOOKUP(N55,BudgetDD!$A$2:$B$37,2,FALSE),"") ->  | R55: =IF(COUNTIF(BudgetDD!$A$2:$A$37,Q55),VLOOKUP(Q55,BudgetDD!$A$2:$B$37,2,FALSE),"") ->  | U55: =IF(COUNTIF(BudgetDD!$A$1:$A$37,T55),VLOOKUP(T55,BudgetDD!$A$1:$B$37,2,FALSE),"") ->  | W55: 0
A56: ='Priority Area 2'!A58:F58 -> 15) | F56: =IF(COUNTIF(BudgetDD!$A$2:$A$37,E56),VLOOKUP(E56,BudgetDD!$A$2:$B$37,2,FALSE),"") ->  | I56: =IF(COUNTIF(BudgetDD!$A$2:$A$37,H56),VLOOKUP(H56,BudgetDD!$A$2:$B$37,2,FALSE),"") ->  | L56: =IF(COUNTIF(BudgetDD!$A$1:$A$37,K56),VLOOKUP(K56,BudgetDD!$A$1:$B$37,2,FALSE),"") ->  | O56: =IF(COUNTIF(BudgetDD!$A$2:$A$37,N56),VLOOKUP(N56,BudgetDD!$A$2:$B$37,2,FALSE),"") ->  | R56: =IF(COUNTIF(BudgetDD!$A$2:$A$37,Q56),VLOOKUP(Q56,BudgetDD!$A$2:$B$37,2,FALSE),"") ->  | U56: =IF(COUNTIF(BudgetDD!$A$1:$A$37,T56),VLOOKUP(T56,BudgetDD!$A$1:$B$37,2,FALSE),"") ->  | W56: 0
A57: ='Priority Area 2'!A59:F59 -> 16) | F57: =IF(COUNTIF(BudgetDD!$A$2:$A$37,E57),VLOOKUP(E57,BudgetDD!$A$2:$B$37,2,FALSE),"") ->  | I57: =IF(COUNTIF(BudgetDD!$A$2:$A$37,H57),VLOOKUP(H57,BudgetDD!$A$2:$B$37,2,FALSE),"") ->  | L57: =IF(COUNTIF(BudgetDD!$A$1:$A$37,K57),VLOOKUP(K57,BudgetDD!$A$1:$B$37,2,FALSE),"") ->  | O57: =IF(COUNTIF(BudgetDD!$A$2:$A$37,N57),VLOOKUP(N57,BudgetDD!$A$2:$B$37,2,FALSE),"") ->  | R57: =IF(COUNTIF(BudgetDD!$A$2:$A$37,Q57),VLOOKUP(Q57,BudgetDD!$A$2:$B$37,2,FALSE),"") ->  | U57: =IF(COUNTIF(BudgetDD!$A$1:$A$37,T57),VLOOKUP(T57,BudgetDD!$A$1:$B$37,2,FALSE),"") ->  | W57: 0
A58: Parent/Family Engagement Action Steps | C58: Title I Parent/Family Engagement Component | E58: Budget Category 1 (May select up to six Budget Categories for each action step.) | F58: Budget Code | G58: Amount | H58: Budget Category 2 (May select up to six Budget Categories for each action step.) | I58: Budget Code | J58: Amount | K58: Budget Category 3 (May select up to six Budget Categories for each action step.) | L58: Budget Code | M58: Amount | N58: Budget Category 4 (May select up to six Budget Categories for each action step.) | O58: Budget Code | P58: Amount | Q58: Budget Category 5 (May select up to six Budget Categories for each action step.) | R58: Budget Code | S58: Amount | T58: Budget Category 6 (May select up to six Budget Categories for each action step.) | U58: Budget Code | V58: Amount | W58: Total Federal Funding for Action Step
A59: ='Priority Area 2'!A62:F62 -> 17) | C59: You may select more than one component from the following components - Components 1-13 are required | F59: =IF(COUNTIF(BudgetPFEDD!$A$2:$A$13,E59),VLOOKUP(E59,BudgetPFEDD!$A$2:$B$13,2,FALSE),"") ->  | I59: =IF(COUNTIF(BudgetPFEDD!$A$2:$A$13,H59),VLOOKUP(H59,BudgetPFEDD!$A$2:$B$13,2,FALSE),"") ->  | L59: =IF(COUNTIF(BudgetPFEDD!$A$2:$A$13,K59),VLOOKUP(K59,BudgetPFEDD!$A$2:$B$13,2,FALSE),"") ->  | O59: =IF(COUNTIF(BudgetPFEDD!$A$2:$A$13,N59),VLOOKUP(N59,BudgetPFEDD!$A$2:$B$13,2,FALSE),"") ->  | R59: =IF(COUNTIF(BudgetPFEDD!$A$2:$A$13,Q59),VLOOKUP(Q59,BudgetPFEDD!$A$2:$B$13,2,FALSE),"") ->  | U59: =IF(COUNTIF(BudgetPFEDD!$A$2:$A$13,T59),VLOOKUP(T59,BudgetPFEDD!$A$2:$B$13,2,FALSE),"") ->  | W59: 0
A60: ='Priority Area 2'!A63:F63 -> 18) | F60: =IF(COUNTIF(BudgetPFEDD!$A$2:$A$13,E60),VLOOKUP(E60,BudgetPFEDD!$A$2:$B$13,2,FALSE),"") ->  | I60: =IF(COUNTIF(BudgetPFEDD!$A$2:$A$13,H60),VLOOKUP(H60,BudgetPFEDD!$A$2:$B$13,2,FALSE),"") ->  | L60: =IF(COUNTIF(BudgetPFEDD!$A$2:$A$13,K60),VLOOKUP(K60,BudgetPFEDD!$A$2:$B$13,2,FALSE),"") ->  | O60: =IF(COUNTIF(BudgetPFEDD!$A$2:$A$13,N60),VLOOKUP(N60,BudgetPFEDD!$A$2:$B$13,2,FALSE),"") ->  | R60: =IF(COUNTIF(BudgetPFEDD!$A$2:$A$13,Q60),VLOOKUP(Q60,BudgetPFEDD!$A$2:$B$13,2,FALSE),"") ->  | U60: =IF(COUNTIF(BudgetPFEDD!$A$2:$A$13,T60),VLOOKUP(T60,BudgetPFEDD!$A$2:$B$13,2,FALSE),"") ->  | W60: 0
A61: ='Priority Area 2'!A64:F64 -> 19) | F61: =IF(COUNTIF(BudgetPFEDD!$A$2:$A$13,E61),VLOOKUP(E61,BudgetPFEDD!$A$2:$B$13,2,FALSE),"") ->  | I61: =IF(COUNTIF(BudgetPFEDD!$A$2:$A$13,H61),VLOOKUP(H61,BudgetPFEDD!$A$2:$B$13,2,FALSE),"") ->  | L61: =IF(COUNTIF(BudgetPFEDD!$A$2:$A$13,K61),VLOOKUP(K61,BudgetPFEDD!$A$2:$B$13,2,FALSE),"") ->  | O61: =IF(COUNTIF(BudgetPFEDD!$A$2:$A$13,N61),VLOOKUP(N61,BudgetPFEDD!$A$2:$B$13,2,FALSE),"") ->  | R61: =IF(COUNTIF(BudgetPFEDD!$A$2:$A$13,Q61),VLOOKUP(Q61,BudgetPFEDD!$A$2:$B$13,2,FALSE),"") ->  | U61: =IF(COUNTIF(BudgetPFEDD!$A$2:$A$13,T61),VLOOKUP(T61,BudgetPFEDD!$A$2:$B$13,2,FALSE),"") ->  | W61: 0
A62: ='Priority Area 2'!A65:F65 -> 20) | F62: =IF(COUNTIF(BudgetPFEDD!$A$2:$A$13,E62),VLOOKUP(E62,BudgetPFEDD!$A$2:$B$13,2,FALSE),"") ->  | I62: =IF(COUNTIF(BudgetPFEDD!$A$2:$A$13,H62),VLOOKUP(H62,BudgetPFEDD!$A$2:$B$13,2,FALSE),"") ->  | L62: =IF(COUNTIF(BudgetPFEDD!$A$2:$A$13,K62),VLOOKUP(K62,BudgetPFEDD!$A$2:$B$13,2,FALSE),"") ->  | O62: =IF(COUNTIF(BudgetPFEDD!$A$2:$A$13,N62),VLOOKUP(N62,BudgetPFEDD!$A$2:$B$13,2,FALSE),"") ->  | R62: =IF(COUNTIF(BudgetPFEDD!$A$2:$A$13,Q62),VLOOKUP(Q62,BudgetPFEDD!$A$2:$B$13,2,FALSE),"") ->  | U62: =IF(COUNTIF(BudgetPFEDD!$A$2:$A$13,T62),VLOOKUP(T62,BudgetPFEDD!$A$2:$B$13,2,FALSE),"") ->  | W62: 0
A63: ='Priority Area 2'!A66:F66 -> 21) | F63: =IF(COUNTIF(BudgetPFEDD!$A$2:$A$13,E63),VLOOKUP(E63,BudgetPFEDD!$A$2:$B$13,2,FALSE),"") ->  | I63: =IF(COUNTIF(BudgetPFEDD!$A$2:$A$13,H63),VLOOKUP(H63,BudgetPFEDD!$A$2:$B$13,2,FALSE),"") ->  | L63: =IF(COUNTIF(BudgetPFEDD!$A$2:$A$13,K63),VLOOKUP(K63,BudgetPFEDD!$A$2:$B$13,2,FALSE),"") ->  | O63: =IF(COUNTIF(BudgetPFEDD!$A$2:$A$13,N63),VLOOKUP(N63,BudgetPFEDD!$A$2:$B$13,2,FALSE),"") ->  | R63: =IF(COUNTIF(BudgetPFEDD!$A$2:$A$13,Q63),VLOOKUP(Q63,BudgetPFEDD!$A$2:$B$13,2,FALSE),"") ->  | U63: =IF(COUNTIF(BudgetPFEDD!$A$2:$A$13,T63),VLOOKUP(T63,BudgetPFEDD!$A$2:$B$13,2,FALSE),"") ->  | W63: 0
V64: Subtotal #2: | W64: =SUM(W41:W63) -> 0
A65: Improvement Strategy #3 | N65: Improvement Strategy #3
A66: ='Priority Area 2'!A68:I68 -> Type Improvement Strategy Here | N66: ='Priority Area 2'!A68 -> Type Improvement Strategy Here
A67: Action Steps to Implement Improvement Strategy | C67: Title I Program Component | E67: #1 | H67: #2 | K67: #3 | N67: #4 | Q67: #5 | T67: #6
E68: Budget Category 1 (May select up to six Budget Categories for each action step.) | F68: Budget Code | G68: Amount | H68: Budget Category 2 (May select up to six Budget Categories for each action step.) | I68: Budget Code | J68: Amount | K68: Budget Category 3 (May select up to six Budget Categories for each action step.) | L68: Budget Code | M68: Amount | N68: Budget Category 4 (May select up to six Budget Categories for each action step.) | O68: Budget Code | P68: Amount | Q68: Budget Category 5 (May select up to six Budget Categories for each action step.) | R68: Budget Code | S68: Amount | T68: Budget Category 6 (May select up to six Budget Categories for each action step.) | U68: Budget Code | V68: Amount | W68: Total Federal Funding for Action Step
A69: ='Priority Area 2'!A71:F71 -> 1) | C69: Select from drop down menu | F69: =IF(COUNTIF(BudgetDD!$A$2:$A$37,E69),VLOOKUP(E69,BudgetDD!$A$2:$B$37,2,FALSE),"") ->  | I69: =IF(COUNTIF(BudgetDD!$A$2:$A$37,H69),VLOOKUP(H69,BudgetDD!$A$2:$B$37,2,FALSE),"") ->  | L69: =IF(COUNTIF(BudgetDD!$A$1:$A$37,K69),VLOOKUP(K69,BudgetDD!$A$1:$B$37,2,FALSE),"") ->  | O69: =IF(COUNTIF(BudgetDD!$A$2:$A$37,N69),VLOOKUP(N69,BudgetDD!$A$2:$B$37,2,FALSE),"") ->  | R69: =IF(COUNTIF(BudgetDD!$A$2:$A$37,Q69),VLOOKUP(Q69,BudgetDD!$A$2:$B$37,2,FALSE),"") ->  | U69: =IF(COUNTIF(BudgetDD!$A$1:$A$37,T69),VLOOKUP(T69,BudgetDD!$A$1:$B$37,2,FALSE),"") ->  | W69: =G69+J69+M69+P69+S69+V69 -> 0
A70: ='Priority Area 2'!A72:F72 -> 2) | F70: =IF(COUNTIF(BudgetDD!$A$2:$A$37,E70),VLOOKUP(E70,BudgetDD!$A$2:$B$37,2,FALSE),"") ->  | I70: =IF(COUNTIF(BudgetDD!$A$2:$A$37,H70),VLOOKUP(H70,BudgetDD!$A$2:$B$37,2,FALSE),"") ->  | L70: =IF(COUNTIF(BudgetDD!$A$1:$A$37,K70),VLOOKUP(K70,BudgetDD!$A$1:$B$37,2,FALSE),"") ->  | O70: =IF(COUNTIF(BudgetDD!$A$2:$A$37,N70),VLOOKUP(N70,BudgetDD!$A$2:$B$37,2,FALSE),"") ->  | R70: =IF(COUNTIF(BudgetDD!$A$2:$A$37,Q70),VLOOKUP(Q70,BudgetDD!$A$2:$B$37,2,FALSE),"") ->  | U70: =IF(COUNTIF(BudgetDD!$A$1:$A$37,T70),VLOOKUP(T70,BudgetDD!$A$1:$B$37,2,FALSE),"") ->  | W70: 0
A71: ='Priority Area 2'!A73:F73 -> 3) | F71: =IF(COUNTIF(BudgetDD!$A$2:$A$37,E71),VLOOKUP(E71,BudgetDD!$A$2:$B$37,2,FALSE),"") ->  | I71: =IF(COUNTIF(BudgetDD!$A$2:$A$37,H71),VLOOKUP(H71,BudgetDD!$A$2:$B$37,2,FALSE),"") ->  | L71: =IF(COUNTIF(BudgetDD!$A$1:$A$37,K71),VLOOKUP(K71,BudgetDD!$A$1:$B$37,2,FALSE),"") ->  | O71: =IF(COUNTIF(BudgetDD!$A$2:$A$37,N71),VLOOKUP(N71,BudgetDD!$A$2:$B$37,2,FALSE),"") ->  | R71: =IF(COUNTIF(BudgetDD!$A$2:$A$37,Q71),VLOOKUP(Q71,BudgetDD!$A$2:$B$37,2,FALSE),"") ->  | U71: =IF(COUNTIF(BudgetDD!$A$1:$A$37,T71),VLOOKUP(T71,BudgetDD!$A$1:$B$37,2,FALSE),"") ->  | W71: 0
A72: ='Priority Area 2'!A74:F74 -> 4) | F72: =IF(COUNTIF(BudgetDD!$A$2:$A$37,E72),VLOOKUP(E72,BudgetDD!$A$2:$B$37,2,FALSE),"") ->  | I72: =IF(COUNTIF(BudgetDD!$A$2:$A$37,H72),VLOOKUP(H72,BudgetDD!$A$2:$B$37,2,FALSE),"") ->  | L72: =IF(COUNTIF(BudgetDD!$A$1:$A$37,K72),VLOOKUP(K72,BudgetDD!$A$1:$B$37,2,FALSE),"") ->  | O72: =IF(COUNTIF(BudgetDD!$A$2:$A$37,N72),VLOOKUP(N72,BudgetDD!$A$2:$B$37,2,FALSE),"") ->  | R72: =IF(COUNTIF(BudgetDD!$A$2:$A$37,Q72),VLOOKUP(Q72,BudgetDD!$A$2:$B$37,2,FALSE),"") ->  | U72: =IF(COUNTIF(BudgetDD!$A$1:$A$37,T72),VLOOKUP(T72,BudgetDD!$A$1:$B$37,2,FALSE),"") ->  | W72: 0
A73: ='Priority Area 2'!A75:F75 -> 5) | F73: =IF(COUNTIF(BudgetDD!$A$2:$A$37,E73),VLOOKUP(E73,BudgetDD!$A$2:$B$37,2,FALSE),"") ->  | I73: =IF(COUNTIF(BudgetDD!$A$2:$A$37,H73),VLOOKUP(H73,BudgetDD!$A$2:$B$37,2,FALSE),"") ->  | L73: =IF(COUNTIF(BudgetDD!$A$1:$A$37,K73),VLOOKUP(K73,BudgetDD!$A$1:$B$37,2,FALSE),"") ->  | O73: =IF(COUNTIF(BudgetDD!$A$2:$A$37,N73),VLOOKUP(N73,BudgetDD!$A$2:$B$37,2,FALSE),"") ->  | R73: =IF(COUNTIF(BudgetDD!$A$2:$A$37,Q73),VLOOKUP(Q73,BudgetDD!$A$2:$B$37,2,FALSE),"") ->  | U73: =IF(COUNTIF(BudgetDD!$A$1:$A$37,T73),VLOOKUP(T73,BudgetDD!$A$1:$B$37,2,FALSE),"") ->  | W73: 0
